Workbook

Sheet Zmeny
B1: Změna
A2: Datum | B2: Rev | C2: Popis
A3: 2020-11-19 | B3: 00 | C3: Základní verze
A4: 2020-11-20 | B4: 01 | C4: Doplněno GGP Mladá Boleslav
A5: 2020-11-23 | B5: 02 | C5: Doplněno WWGC 2020 Lake Keepit, opraveny chyby

Sheet Soutez
A1: No. | B1: Soutěž | C1: Stát | D1: Rok | E1: Místo | F1: Termín | G1: Poč. disc. | H1: Poč. pilotů | I1: Ki | J1: Kn1 | K1: Kn2 | L1: Kp | M1: Kinp | N1: dKinp | O1: Web | P1: Results | Q1: Poznámka
B2: Zařazené soutěže 2018:
B3: AZ Cup 2018 - Klub | C3: CZ | D3: 2018 | E3: Zbraslavice | F3: 28.4.-7.5.2018 | G3: 8 | H3: 40 | I3: 0.9 | J3: 0.025 | L3: =VLOOKUP(G3,Kp!$A$4:$B$24,2,FALSE) -> 0.02 | M3: =IF(OR(G3=0,G3=1,G3=2),0,IF(H3<10,0,SUM(I3:L3))) -> 0.945 | N3: =M3-I3 -> 0.045 | O3: http://www.azcup.cz/ | P3: https://www.soaringspot.com/cs/az-cup-2018-zbraslavice-2018/results/klub
B4: AZ Cup 2018 - Kombi | C4: CZ | D4: 2018 | E4: Zbraslavice | F4: 28.4.-7.5.2018 | G4: 9 | H4: 29 | I4: 0.9 | J4: 0.05 | L4: =VLOOKUP(G4,Kp!$A$4:$B$24,2,FALSE) -> 0.025 | M4: 0.975 | N4: =M4-I4 -> 0.075 | O4: http://www.azcup.cz/ | P4: https://www.soaringspot.com/cs/az-cup-2018-zbraslavice-2018/results/kombi
A5: 14. | B5: JPJ 2018 - Klub | C5: CZ | D5: 2018 | E5: Šumperk | F5: 28.4.-7.5.2018 | G5: 2 | H5: 44 | I5: 0.9 | L5: =VLOOKUP(G5,Kp!$A$4:$B$24,2,FALSE) -> 0 | M5: 0 | N5: -0.9 | O5: http://www.jpj-sumperk.cz/ | P5: https://www.soaringspot.com/cs/14-jarni-pohar-jeseniku-2018-sumperk-2018/results/klubova-trida | Q5: Méně jak 3 platné disciplíny
A6: 14. | B6: JPJ 2018 - Kombi | C6: CZ | D6: 2018 | E6: Šumperk | F6: 28.4.-7.5.2018 | G6: 2 | H6: 24 | I6: 0.9 | L6: =VLOOKUP(G6,Kp!$A$4:$B$24,2,FALSE) -> 0 | M6: 0 | N6: -0.9 | O6: http://www.jpj-sumperk.cz/ | P6: https://www.soaringspot.com/cs/14-jarni-pohar-jeseniku-2018-sumperk-2018/results/kombi-trida | Q6: Méně jak 3 platné disciplíny
B7: PMČR 2018 - Klub | C7: CZ | D7: 2018 | E7: Tábor | F7: 27.5.-9.6.2018 | G7: 10 | H7: 29 | I7: 1 | J7: 0.055 | L7: =VLOOKUP(G7,Kp!$A$4:$B$24,2,FALSE) -> 0.03 | M7: 1.085 | N7: =M7-I7 -> 0.085 | O7: http://www.gliding.cz/souteze/2018/pmcr/ | P7: https://www.soaringspot.com/cs/plachtarske-mistrovstvi-cr-2018-tabor-2018/results/klub
B8: PMČR 2018 - Kombi 15m | C8: CZ | D8: 2018 | E8: Tábor | F8: 27.5.-9.6.2018 | G8: 9 | H8: 17 | I8: 1 | J8: 0.055 | L8: =VLOOKUP(G8,Kp!$A$4:$B$24,2,FALSE) -> 0.025 | M8: 1.08 | N8: 0.08 | O8: http://www.gliding.cz/souteze/2018/pmcr/ | P8: https://www.soaringspot.com/cs/plachtarske-mistrovstvi-cr-2018-tabor-2018/results/kombi-15
B9: PMČR 2018 - Kombi Open | C9: CZ | D9: 2018 | E9: Tábor | F9: 27.5.-9.6.2018 | G9: 9 | H9: 14 | I9: 1 | J9: 0.025 | L9: =VLOOKUP(G9,Kp!$A$4:$B$24,2,FALSE) -> 0.025 | M9: 1.05 | N9: 0.05 | O9: http://www.gliding.cz/souteze/2018/pmcr/ | P9: https://www.soaringspot.com/cs/plachtarske-mistrovstvi-cr-2018-tabor-2018/results/kombi-open
B10: FL 2018 - Kombi | C10: CZ | D10: 2018 | E10: Frýdlant n/Ostr. | F10: 29.6.-7.7.2018 | G10: 6 | H10: 15 | I10: 0.75 | L10: =VLOOKUP(G10,Kp!$A$4:$B$24,2,FALSE) -> 0.01 | M10: 0.76 | N10: 0.01 | O10: https://fl2018.akfrydlant.cz/ | P10: https://www.soaringspot.com/cs/fl-2018-adrenalin-grand-prix-frydlant-2018/results/fl
B11: Adrenalin GP 2018 - Klub GP | C11: CZ | D11: 2018 | E11: Frýdlant n/Ostr. | F11: 29.6.-7.7.2018 | G11: 7 | H11: 12 | I11: 0.75 | J11: 0.005 | L11: =VLOOKUP(G11,Kp!$A$4:$B$24,2,FALSE) -> 0.015 | M11: 0.77 | N11: 0.02 | O11: https://fl2018.akfrydlant.cz/ | P11: https://www.soaringspot.com/cs/fl-2018-adrenalin-grand-prix-frydlant-2018/results/agp
B12: Safari 2018 - Duo Kombi | C12: CZ | D12: 2018 | E12: Dvůr Králové | F12: 30.6.-13.7.2018 | G12: 6 | H12: 11 | I12: 0.75 | L12: =VLOOKUP(G12,Kp!$A$4:$B$24,2,FALSE) -> 0.01 | M12: 0.76 | N12: 0.01 | O12: http://www.gliding.cz/souteze/2018/safari/ | P12: https://www.soaringspot.com/cs/21-safari-pohar-dvur-kralove-nad-labem-2018/results/duo-blanik
B13: Safari 2018 - Klub | C13: CZ | D13: 2018 | E13: Dvůr Králové | F13: 30.6.-13.7.2018 | G13: 8 | H13: 29 | I13: 0.75 | L13: =VLOOKUP(G13,Kp!$A$4:$B$24,2,FALSE) -> 0.02 | M13: 0.77 | N13: 0.02 | O13: http://www.gliding.cz/souteze/2018/safari/ | P13: https://www.soaringspot.com/cs/21-safari-pohar-dvur-kralove-nad-labem-2018/results/klub
B14: Safari 2018 - Kombi | C14: CZ | D14: 2018 | E14: Dvůr Králové | F14: 30.6.-13.7.2018 | G14: 8 | H14: 11 | I14: 0.75 | L14: =VLOOKUP(G14,Kp!$A$4:$B$24,2,FALSE) -> 0.02 | M14: 0.77 | N14: 0.02 | O14: http://www.gliding.cz/souteze/2018/safari/ | P14: https://www.soaringspot.com/cs/21-safari-pohar-dvur-kralove-nad-labem-2018/results/volna
B15: Toužim Cup 2018 - Klub | C15: CZ | D15: 2018 | E15: Toužim | F15: 14.7.-21.7.2018 | G15: 5 | H15: 29 | I15: 0.9 | J15: 0.005 | L15: =VLOOKUP(G15,Kp!$A$4:$B$24,2,FALSE) -> 0.005 | M15: 0.91 | N15: 0.01 | O15: http://www.gliding.cz/souteze/2018/tcup/ | P15: https://www.soaringspot.com/cs/touzim-cup-2018-touzim-2018/results/klub
B16: Toužim Cup 2018 - Kombi | C16: CZ | D16: 2018 | E16: Toužim | F16: 14.7.-21.7.2018 | G16: 5 | H16: 19 | I16: 0.9 | J16: 0.005 | L16: =VLOOKUP(G16,Kp!$A$4:$B$24,2,FALSE) -> 0.005 | M16: 0.91 | N16: 0.01 | O16: http://www.gliding.cz/souteze/2018/tcup/ | P16: https://www.soaringspot.com/cs/touzim-cup-2018-touzim-2018/results/kombi
B17: PMČRj 2018 - Klub | C17: CZ | D17: 2018 | E17: Raná | F17: 15.7.-27.7.2018 | G17: 10 | H17: 30 | I17: 0.9 | J17: 0.005 | L17: =VLOOKUP(G17,Kp!$A$4:$B$24,2,FALSE) -> 0.03 | M17: 0.935 | N17: 0.035 | O17: http://www.gliding.cz/souteze/2018/pmcr_j/ | P17: https://www.soaringspot.com/cs/plachtarske-mistrovstvi-cr-junioru-2018-rana-loumy-2018/results/club
B18: Ranský Pohár 2018 - Kombi | C18: CZ | D18: 2018 | E18: Raná | F18: 21.7.-28.7.2018 | G18: 6 | H18: 19 | I18: 0.75 | L18: =VLOOKUP(G18,Kp!$A$4:$B$24,2,FALSE) -> 0.01 | M18: 0.76 | N18: 0.01 | O18: http://pohar.aeroklubrana.cz/ | P18: https://www.soaringspot.com/cs/ransky-pohar-2018-rana-loumy-2018/results/combi
B19: PPV 2018 - Klub | C19: CZ | D19: 2018 | E19: Havlíčkův Brod | F19: 21.7.-28.7.2018 | G19: 6 | H19: 44 | I19: 0.9 | L19: =VLOOKUP(G19,Kp!$A$4:$B$24,2,FALSE) -> 0.01 | M19: 0.91 | N19: 0.01 | O19: http://www.gliding.cz/souteze/2018/ppv/ | P19: https://www.soaringspot.com/cs/plachtarsky-pohar-vysociny-2018-havlickuv-brod-2018/results/klubova-trida
B20: PPV 2018 - Kombi | C20: CZ | D20: 2018 | E20: Havlíčkův Brod | F20: 21.7.-28.7.2018 | G20: 6 | H20: 17 | I20: 0.9 | L20: =VLOOKUP(G20,Kp!$A$4:$B$24,2,FALSE) -> 0.01 | M20: 0.91 | N20: 0.01 | O20: http://www.gliding.cz/souteze/2018/ppv/ | P20: https://www.soaringspot.com/cs/plachtarsky-pohar-vysociny-2018-havlickuv-brod-2018/results/kombinovana-trida
B21: Pohár Českého Ráje 2018 - Kombi | C21: CZ | D21: 2018 | E21: Jičín | F21: 28.7.-4.8.2018 | G21: 8 | H21: 10 | I21: 0.75 | L21: =VLOOKUP(G21,Kp!$A$4:$B$24,2,FALSE) -> 0.02 | M21: 0.77 | N21: 0.02 | P21: https://www.soaringspot.com/cs/pohar-ceskeho-raje-2018-jicin-2018/results/unknown
B22: PMRg 2018 - Klub | C22: CZ | D22: 2018 | E22: Hodkovice | F22: 29.7.-11.8.2018 | G22: 10 | H22: 36 | I22: 0.9 | J22: 0.015 | L22: =VLOOKUP(G22,Kp!$A$4:$B$24,2,FALSE) -> 0.03 | M22: =IF(OR(G22=0,G22=1,G22=2),0,IF(H22<10,0,SUM(I22:L22))) -> 0.945 | N22: 0.045 | O22: http://www.gliding.cz/souteze/2018/pmrg/ | P22: https://www.soaringspot.com/cs/mistrovstvi-ceske-republiky-regionu-hodkovice-nad-mohelkou-2018/results/klub
B23: PMRg 2018 - Kombi | C23: CZ | D23: 2018 | E23: Hodkovice | F23: 29.7.-11.8.2018 | G23: 10 | H23: 17 | I23: 0.9 | J23: 0.02 | L23: =VLOOKUP(G23,Kp!$A$4:$B$24,2,FALSE) -> 0.03 | M23: =IF(OR(G23=0,G23=1,G23=2),0,IF(H23<10,0,SUM(I23:L23))) -> 0.95 | N23: =M23-I23 -> 0.05 | O23: http://www.gliding.cz/souteze/2018/pmrg/ | P23: https://www.soaringspot.com/cs/mistrovstvi-ceske-republiky-regionu-hodkovice-nad-mohelkou-2018/results/kombi-open
A24: 35. | B24: WGC 2018 - Std | C24: PL | D24: 2018 | E24: Ostrow Wielkopolski | F24: 8.7.-21.7.2018 | G24: 7 | H24: 47 | I24: 1 | J24: 0.105 | L24: =VLOOKUP(G24,Kp!$A$4:$B$24,2,FALSE) -> 0.015 | M24: 1.12 | N24: 0.12 | O24: https://ostrowglide.com/en/ | P24: https://www.soaringspot.com/cs/wgc2018pl/results/standard
A25: 35. | B25: WGC 2018 - 15m | C25: PL | D25: 2018 | E25: Ostrow Wielkopolski | F25: 8.7.-21.7.2018 | G25: 7 | H25: 37 | I25: 1 | J25: 0.085 | L25: =VLOOKUP(G25,Kp!$A$4:$B$24,2,FALSE) -> 0.015 | M25: 1.1 | N25: 0.1 | O25: https://ostrowglide.com/en/ | P25: https://www.soaringspot.com/cs/wgc2018pl/results/15-meter
A26: 35. | B26: WGC 2018 - Klub | C26: PL | D26: 2018 | E26: Ostrow Wielkopolski | F26: 8.7.-21.7.2018 | G26: 7 | H26: 48 | I26: 1 | J26: 0.09 | L26: =VLOOKUP(G26,Kp!$A$4:$B$24,2,FALSE) -> 0.015 | M26: 1.105 | N26: 0.105 | O26: https://ostrowglide.com/en/ | P26: https://www.soaringspot.com/cs/wgc2018pl/results/club
A27: 35. | B27: WGC 2018 - 18m | C27: CZ | D27: 2018 | E27: Hosín | F27: 28.7.-11.8.2018 | G27: 12 | H27: 45 | I27: 1 | J27: 0.105 | L27: =VLOOKUP(G27,Kp!$A$4:$B$24,2,FALSE) -> 0.03 | M27: 1.135 | N27: 0.135 | O27: http://www.wgc2018.cz/ | P27: https://www.soaringspot.com/cs/35th-world-gliding-championships-hosin-2018/results/18-meter
A28: 35. | B28: WGC 2018 - Open | C28: CZ | D28: 2018 | E28: Hosín | F28: 28.7.-11.8.2018 | G28: 12 | H28: 31 | I28: 1 | J28: 0.095 | L28: =VLOOKUP(G28,Kp!$A$4:$B$24,2,FALSE) -> 0.03 | M28: 1.125 | N28: =M28-I28 -> 0.125 | O28: http://www.wgc2018.cz/ | P28: https://www.soaringspot.com/cs/35th-world-gliding-championships-hosin-2018/results/open
A29: 35. | B29: WGC 2018 - Duo 20m | C29: CZ | D29: 2018 | E29: Hosín | F29: 28.7.-11.8.2018 | G29: 12 | H29: 18 | I29: 1 | J29: 0.07 | L29: =VLOOKUP(G29,Kp!$A$4:$B$24,2,FALSE) -> 0.03 | M29: 1.1 | N29: 0.1 | O29: http://www.wgc2018.cz/ | P29: https://www.soaringspot.com/cs/35th-world-gliding-championships-hosin-2018/results/double-seater
A30: 17. | B30: HOP 2018 - Klub | C30: CZ | D30: 2018 | E30: Hronov | F30: 11.8.-18.8.2018 | G30: 6 | H30: 26 | I30: 0.75 | L30: =VLOOKUP(G30,Kp!$A$4:$B$24,2,FALSE) -> 0.01 | M30: 0.76 | N30: 0.01 | O30: http://www.lkvp.cz/HOP-2018.html | P30: https://www.soaringspot.com/cs/17-hop-2018-velke-porici-2018/results/klub-hop
A31: 17. | B31: HOP 2018 - Kombi | C31: CZ | D31: 2018 | E31: Hronov | F31: 11.8.-18.8.2018 | G31: 6 | H31: 15 | I31: 0.75 | L31: =VLOOKUP(G31,Kp!$A$4:$B$24,2,FALSE) -> 0.01 | M31: 0.76 | N31: 0.01 | O31: http://www.lkvp.cz/HOP-2018.html | P31: https://www.soaringspot.com/cs/17-hop-2018-velke-porici-2018/results/kombi-ppf
B32: GGP MB 2018 - Gradient GP | C32: CZ | D32: 2018 | E32: Mladá Boleslav | F32: 18.8.-25.8.2018 | G32: 6 | H32: 11 | I32: 0.75 | L32: =VLOOKUP(G32,Kp!$A$4:$B$24,2,FALSE) -> 0.01 | M32: 0.76 | N32: 0.01 | O32: http://ggp.cpska.cz/public/index3.php | P32: https://www.soaringspot.com/cs/gradient-club-grand-prix-2018-mlada-boleslav-2018/results/gradient-gp
B33: GGP MB 2018 - Klub GP | C33: CZ | D33: 2018 | E33: Mladá Boleslav | F33: 18.8.-25.8.2018 | G33: 6 | H33: 10 | I33: 0.75 | J33: 0.01 | L33: =VLOOKUP(G33,Kp!$A$4:$B$24,2,FALSE) -> 0.01 | M33: 0.77 | N33: 0.02 | O33: http://ggp.cpska.cz/public/index3.php | P33: https://www.soaringspot.com/cs/gradient-club-grand-prix-2018-mlada-boleslav-2018/results/club-gp
B34: GGP MB 2018 - Pohár MV - Kombi | C34: CZ | D34: 2018 | E34: Mladá Boleslav | F34: 18.8.-25.8.2018 | G34: 6 | H34: 11 | I34: 0.75 | J34: 0.01 | L34: =VLOOKUP(G34,Kp!$A$4:$B$24,2,FALSE) -> 0.01 | M34: 0.77 | N34: 0.02 | O34: http://ggp.cpska.cz/public/index3.php | P34: https://www.soaringspot.com/cs/gradient-club-grand-prix-2018-mlada-boleslav-2018/results/pohar-metodeje-vlach
B35: Fatraglide 2018 - Kombi | C35: SK | D35: 2018 | E35: Martin | F35: 28.4.-7.5.2018 | G35: 9 | H35: 14 | I35: 0.75 | L35: =VLOOKUP(G35,Kp!$A$4:$B$24,2,FALSE) -> 0.025 | M35: 0.775 | N35: 0.025 | O35: http://www.fatraglide.sk/ | P35: https://www.soaringspot.com/en_gb/fatraglide18-martin-2018/results/combi
B36: Hahnweide 2018 - Duo 20m | C36: DE | D36: 2018 | E36: Kirchheim/Teck | F36: 4.5.-12.5.2018 | G36: 6 | H36: 32 | I36: 0.75 | J36: 0.05 | L36: =VLOOKUP(G36,Kp!$A$4:$B$24,2,FALSE) -> 0.01 | M36: 0.81 | N36: 0.06 | O36: http://www.wettbewerb.wolf-hirth.de/ | P36: https://www.soaringspot.com/de/52-internationaler-hahnweide-wettbewerb-hahnweide-2018/results/dosi
B37: Flatland Cup 2018 - Klub | C37: HU | D37: 2018 | E37: Szeged | F37: 3.8.-11.8.2018 | G37: 7 | H37: 35 | I37: 0.9 | J37: 0.005 | L37: =VLOOKUP(G37,Kp!$A$4:$B$24,2,FALSE) -> 0.015 | M37: =IF(OR(G37=0,G37=1,G37=2),0,IF(H37<10,0,SUM(I37:L37))) -> 0.92 | N37: 0.02 | O37: http://flatlandcup.hu/2018/hu/ | P37: https://www.soaringspot.com/cs/xi-flatland-cup-szeged-2018/results/fai-club
B38: Flatland Cup 2018 - Kombi | C38: HU | D38: 2018 | E38: Szeged | F38: 3.8.-11.8.2018 | G38: 9 | H38: 25 | I38: 0.9 | J38: 0.005 | L38: =VLOOKUP(G38,Kp!$A$4:$B$24,2,FALSE) -> 0.025 | M38: 0.93 | N38: 0.03 | O38: http://flatlandcup.hu/2018/hu/ | P38: https://www.soaringspot.com/cs/xi-flatland-cup-szeged-2018/results/open
B39: FCC 2018 - Klub | C39: SK | D39: 2018 | E39: Prievidza | F39: 8.4.-19.4.2018 | G39: 8 | H39: 47 | I39: 0.9 | J39: 0.04 | L39: =VLOOKUP(G39,Kp!$A$4:$B$24,2,FALSE) -> 0.02 | M39: 0.96 | N39: 0.06 | O39: http://www.fccgliding.sk/ | P39: https://www.soaringspot.com/cs/fcc-gliding-2018-prievidza-2018/results/club
B40: FCC 2018 - Kombi 15m | C40: SK | D40: 2018 | E40: Prievidza | F40: 8.4.-19.4.2018 | G40: 7 | H40: 33 | I40: 0.9 | J40: 0.08 | L40: =VLOOKUP(G40,Kp!$A$4:$B$24,2,FALSE) -> 0.015 | M40: 0.995 | N40: 0.095 | O40: http://www.fccgliding.sk/ | P40: https://www.soaringspot.com/cs/fcc-gliding-2018-prievidza-2018/results/15-m
B41: FCC 2018 - Kombi Open | C41: SK | D41: 2018 | E41: Prievidza | F41: 8.4.-19.4.2018 | G41: 8 | H41: 25 | I41: 0.9 | J41: 0.06 | L41: =VLOOKUP(G41,Kp!$A$4:$B$24,2,FALSE) -> 0.02 | M41: 0.98 | N41: 0.08 | O41: http://www.fccgliding.sk/ | P41: https://www.soaringspot.com/cs/fcc-gliding-2018-prievidza-2018/results/combi
B42: Šariš Cup 2018 - Klub | C42: SK | D42: 2018 | E42: Ražňany | F42: 26.5.-3.6.2018 | G42: 6 | H42: 19 | I42: 0.75 | L42: =VLOOKUP(G42,Kp!$A$4:$B$24,2,FALSE) -> 0.01 | M42: 0.76 | N42: 0.01 | P42: https://www.soaringspot.com/cs/sariscup-gliding-2018-raznany-2018/results/club
B43: PMSR 2018 - Kombi | C43: SK | D43: 2018 | E43: Prievidza | F43: 10.6.-22.6.2018 | G43: 9 | H43: 20 | I43: 0.9 | J43: 0.01 | L43: =VLOOKUP(G43,Kp!$A$4:$B$24,2,FALSE) -> 0.025 | M43: 0.935 | N43: =M43-I43 -> 0.035 | P43: https://www.soaringspot.com/cs/61-majstrovstva-slovenska-v-bezmotorovom-lietani-prievidza-2018/results/volna-trieda
B44: SGP 2018 RU - Klub GP | C44: RU | D44: 2018 | E44: Usman | F44: 19.5.-26.5.2018 | G44: 3 | H44: 17 | I44: 0.9 | L44: =VLOOKUP(G44,Kp!$A$4:$B$24,2,FALSE) -> -0.02 | M44: 0.88 | N44: -0.02 | O44: http://sgp.aero/russia2018/event-information/event-schedule.aspx?contestID=31481 | P44: http://sgp.aero/russia2018/results-sgp/results.aspx?contestID=31527
A45: 8. | B45: WSGP Final 2018 - 18m GP | C45: CL | D45: 2018 | E45: Vitacura | F45: 11.1.-20.1.2018 | G45: 6 | H45: 19 | I45: 1 | J45: 0.055 | L45: =VLOOKUP(G45,Kp!$A$4:$B$24,2,FALSE) -> 0.01 | M45: 1.065 | N45: 0.065 | O45: http://sgp.aero/finals2017.aspx | P45: http://sgp.aero/finals2017/results-sgp/results.aspx?contestID=28606
A46: 38. | B46: MAM 2018 - Kombi | C46: SK | D46: 2018 | E46: Partizánske | F46: 1.7.-15.7.2018 | G46: 10 | H46: 9 | I46: 0.75 | L46: =VLOOKUP(G46,Kp!$A$4:$B$24,2,FALSE) -> 0.03 | M46: 0 | N46: -0.75 | P46: https://www.soaringspot.com/cs/38-memorial-alexandra-makarenka-2018-male-bielice-2018/results/kombi-treida | Q46: Méně jak 10 soutěžících ve třídě
B47: Pribina Cup 2018 - Klub | C47: SK | D47: 2018 | E47: Nitra | F47: 30.3.-7.4.2018 | G47: 2 | H47: 34 | I47: 0.9 | L47: =VLOOKUP(G47,Kp!$A$4:$B$24,2,FALSE) -> 0 | M47: 0 | N47: -0.9 | O47: www.pribinacup.sk/ | P47: https://www.soaringspot.com/cs/pribina-cup-2018-nitra-2018/results/club | Q47: Méně jak 3 platné disciplíny
B48: Pribina Cup 2018 - Kombi 15m | C48: SK | D48: 2018 | E48: Nitra | F48: 30.3.-7.4.2018 | G48: 2 | H48: 26 | I48: 0.9 | L48: =VLOOKUP(G48,Kp!$A$4:$B$24,2,FALSE) -> 0 | M48: 0 | N48: -0.9 | O48: www.pribinacup.sk/ | P48: https://www.soaringspot.com/cs/pribina-cup-2018-nitra-2018/results/15-meter | Q48: Méně jak 3 platné disciplíny
B49: Pribina Cup 2018 - Kombi Open | C49: SK | D49: 2018 | E49: Nitra | F49: 30.3.-7.4.2018 | G49: 2 | H49: 18 | I49: 0.9 | L49: =VLOOKUP(G49,Kp!$A$4:$B$24,2,FALSE) -> 0 | M49: 0 | N49: -0.9 | O49: www.pribinacup.sk/ | P49: https://www.soaringspot.com/cs/pribina-cup-2018-nitra-2018/results/open | Q49: Méně jak 3 platné disciplíny
B50: Pribina Cup 2018 - Duo 20m | C50: SK | D50: 2018 | E50: Nitra | F50: 30.3.-7.4.2018 | G50: 2 | H50: 13 | I50: 0.9 | L50: =VLOOKUP(G50,Kp!$A$4:$B$24,2,FALSE) -> 0 | M50: 0 | N50: -0.9 | O50: www.pribinacup.sk/ | P50: https://www.soaringspot.com/cs/pribina-cup-2018-nitra-2018/results/20m-multi-seat | Q50: Méně jak 3 platné disciplíny
B51: Zařazené soutěže 2019:
B52: AZ Cup 2019 - Klub | C52: CZ | D52: 2019 | E52: Zbraslavice | F52: 1.5.-11.5.19 | G52: 6 | H52: 37 | I52: 0.9 | J52: 0.005 | L52: =VLOOKUP(G52,Kp!$A$4:$B$24,2,FALSE) -> 0.01 | M52: 0.915 | N52: 0.015 | P52: https://www.soaringspot.com/cs/az-cup-2019-zbraslavice-2019/results/klubova-trida
B53: AZ Cup 2019 - Kombi | C53: CZ | D53: 2019 | E53: Zbraslavice | F53: 1.5.-11.5.19 | G53: 6 | H53: 30 | I53: 0.9 | J53: 0.025 | L53: =VLOOKUP(G53,Kp!$A$4:$B$24,2,FALSE) -> 0.01 | M53: 0.935 | N53: 0.035 | P53: https://www.soaringspot.com/cs/az-cup-2019-zbraslavice-2019/results/kombinovana-trida
A54: 15. | B54: JPJ 2019 - Klub | C54: CZ | D54: 2019 | E54: Šumperk | F54: 1.5.-11.5.19 | G54: 4 | H54: 36 | I54: 0.9 | L54: =VLOOKUP(G54,Kp!$A$4:$B$24,2,FALSE) -> 0 | M54: 0.9 | N54: 0 | P54: https://www.soaringspot.com/cs/jpj2019/results/klubova-trida
A55: 15. | B55: JPJ 2019 - Kombi | C55: CZ | D55: 2019 | E55: Šumperk | F55: 1.5.-11.5.19 | G55: 5 | H55: 28 | I55: 0.9 | L55: =VLOOKUP(G55,Kp!$A$4:$B$24,2,FALSE) -> 0.005 | M55: 0.905 | N55: 0.005 | P55: https://www.soaringspot.com/cs/jpj2019/results/kombi-trida
B56: GGP MB 2019 - Klub GP | C56: CZ | D56: 2019 | E56: Mladá Boleslav | F56: 29.6.-6.7.19 | G56: 6 | H56: 9 | I56: 0.9 | L56: =VLOOKUP(G56,Kp!$A$4:$B$24,2,FALSE) -> 0.01 | M56: 0 | N56: -0.9 | P56: https://www.soaringspot.com/cs/gradient-club-grand-prix-2019-mlada-boleslav-2019/results/club-gp | Q56: Méně jak 10 soutěžících ve třídě
B57: GGP MB 2019 - Pohár MV - Kombi | C57: CZ | D57: 2019 | E57: Mladá Boleslav | F57: 29.6.-6.7.19 | G57: 6 | H57: 6 | I57: 0.75 | L57: =VLOOKUP(G57,Kp!$A$4:$B$24,2,FALSE) -> 0.01 | M57: 0 | N57: -0.75 | P57: https://www.soaringspot.com/cs/gradient-club-grand-prix-2019-mlada-boleslav-2019/results/pohar-metodeje-vlach | Q57: Méně jak 10 soutěžících ve třídě
B58: Adrenalin GP 2019 - Klub GP | C58: CZ | D58: 2019 | E58: Frýdlant n/Ostr. | F58: 28.6.-6.7.19 | G58: 7 | H58: 12 | I58: 0.9 | L58: =VLOOKUP(G58,Kp!$A$4:$B$24,2,FALSE) -> 0.015 | M58: 0.915 | N58: =M58-I58 -> 0.015 | P58: https://www.soaringspot.com/cs/fl-2019-adrenalin-grand-prix-frydlant-2019/results/unknown
B59: FL 2019 - Kombi | C59: CZ | D59: 2019 | E59: Frýdlant n/Ostr. | F59: 28.6.-6.7.19 | G59: 7 | H59: 14 | I59: 0.75 | L59: =VLOOKUP(G59,Kp!$A$4:$B$24,2,FALSE) -> 0.015 | M59: 0.765 | N59: 0.015 | P59: https://www.soaringspot.com/cs/fl-2019-adrenalin-grand-prix-frydlant-2019/results/fl
B60: PMČRj 2019 - Klub | C60: CZ | D60: 2019 | E60: Jaroměř | F60: 30.6.-12.7.19 | G60: 7 | H60: 31 | I60: 0.9 | J60: 0.01 | L60: =VLOOKUP(G60,Kp!$A$4:$B$24,2,FALSE) -> 0.015 | M60: 0.925 | N60: 0.025 | P60: https://www.soaringspot.com/cs/plachtarske-mistrovstvi-cr-junioru-a-akademiku-2019-jaromer-2019/results/club
B61: Safari 2019 - Duo Kombi | C61: CZ | D61: 2019 | E61: Dvůr Králové | F61: 29.6.-13.7.19 | G61: 7 | H61: 15 | I61: 0.75 | J61: 0.005 | L61: =VLOOKUP(G61,Kp!$A$4:$B$24,2,FALSE) -> 0.015 | M61: 0.77 | N61: 0.02 | P61: https://www.soaringspot.com/cs/safari-cup-2019-dvur-kralove-nad-labem-2019/results/double-seater
B62: Safari 2019 - Klub | C62: CZ | D62: 2019 | E62: Dvůr Králové | F62: 29.6.-13.7.19 | G62: 7 | H62: 28 | I62: 0.75 | L62: =VLOOKUP(G62,Kp!$A$4:$B$24,2,FALSE) -> 0.015 | M62: 0.765 | N62: 0.015 | P62: https://www.soaringspot.com/cs/safari-cup-2019-dvur-kralove-nad-labem-2019/results/klub
B63: Safari 2019 - Kombi | C63: CZ | D63: 2019 | E63: Dvůr Králové | F63: 29.6.-13.7.19 | G63: 7 | H63: 11 | I63: 0.75 | J63: 0.005 | L63: =VLOOKUP(G63,Kp!$A$4:$B$24,2,FALSE) -> 0.015 | M63: 0.77 | N63: 0.02 | P63: https://www.soaringspot.com/cs/safari-cup-2019-dvur-kralove-nad-labem-2019/results/volna
B64: PPV 2019 - Klub | C64: CZ | D64: 2019 | E64: Havlíčkův Brod | F64: 13.7.-20.7.19 | G64: 4 | H64: 47 | I64: 0.9 | L64: =VLOOKUP(G64,Kp!$A$4:$B$24,2,FALSE) -> 0 | M64: 0.9 | N64: 0 | P64: https://www.soaringspot.com/cs/plachtarsky-pohar-vysociny-2019-havlickuv-brod-2019/results/klubova-trida
B65: PPV 2019 - Kombi | C65: CZ | D65: 2019 | E65: Havlíčkův Brod | F65: 13.7.-20.7.19 | G65: 4 | H65: 19 | I65: 0.9 | J65: 0.005 | L65: =VLOOKUP(G65,Kp!$A$4:$B$24,2,FALSE) -> 0 | M65: 0.905 | N65: 0.005 | P65: https://www.soaringspot.com/cs/plachtarsky-pohar-vysociny-2019-havlickuv-brod-2019/results/kombinovana-trida
B66: Toužim Cup 2019 - Klub | C66: CZ | D66: 2019 | E66: Toužim | F66: 23.7.-21.7.19 | G66: 5 | H66: 31 | I66: 0.9 | J66: 0.005 | L66: =VLOOKUP(G66,Kp!$A$4:$B$24,2,FALSE) -> 0.005 | M66: 0.91 | N66: 0.01 | P66: https://www.soaringspot.com/cs/touzim-cup-2019-touzim1-2019/results/club
B67: Toužim Cup 2019 - Kombi | C67: CZ | D67: 2019 | E67: Toužim | F67: 23.7.-21.7.19 | G67: 5 | H67: 22 | I67: 0.9 | L67: =VLOOKUP(G67,Kp!$A$4:$B$24,2,FALSE) -> 0.005 | M67: 0.905 | N67: =M67-I67 -> 0.005 | P67: https://www.soaringspot.com/cs/touzim-cup-2019-touzim1-2019/results/kombi
B68: PMRg 2019 - Klub | C68: CZ | D68: 2019 | E68: Vysoké Mýto | F68: 21.7.-3.8.19 | G68: 8 | H68: 24 | I68: 0.9 | J68: 0.015 | L68: =VLOOKUP(G68,Kp!$A$4:$B$24,2,FALSE) -> 0.02 | M68: 0.935 | N68: 0.035 | P68: https://www.soaringspot.com/cs/plachtarske-mistrovstvi-regionu-2019-vysoke-myto-2019/results/klubova-trida
B69: PMRg 2019 - Kombi | C69: CZ | D69: 2019 | E69: Vysoké Mýto | F69: 21.7.-3.8.19 | G69: 8 | H69: 13 | I69: 0.9 | J69: 0.015 | L69: =VLOOKUP(G69,Kp!$A$4:$B$24,2,FALSE) -> 0.02 | M69: 0.935 | N69: 0.035 | P69: https://www.soaringspot.com/cs/plachtarske-mistrovstvi-regionu-2019-vysoke-myto-2019/results/kombinovana-trida
B70: Pohár Českého Ráje 2019 - Kombi | C70: CZ | D70: 2019 | E70: Jičín | F70: 27.7.-3.8.19 | G70: 3 | H70: 12 | I70: 0.75 | L70: =VLOOKUP(G70,Kp!$A$4:$B$24,2,FALSE) -> -0.02 | M70: 0.73 | N70: -0.02 | P70: https://www.soaringspot.com/cs/pohar-ceskeho-raje-2019-jicin-2019/results/unknown
B71: Ranský Pohár 2019 - Kombi | C71: CZ | D71: 2019 | E71: Raná | F71: 27.7.-4.8.19 | G71: 3 | H71: 16 | I71: 0.75 | L71: =VLOOKUP(G71,Kp!$A$4:$B$24,2,FALSE) -> -0.02 | M71: 0.73 | N71: -0.02 | P71: https://www.soaringspot.com/cs/ransky-pohar-2019-rana-loumy-2019/results/club
A72: 18. | B72: HOP 2019 - Klub | C72: CZ | D72: 2019 | E72: Hronov | F72: 10.8.-17.8.19 | G72: 2 | H72: 27 | I72: 0.75 | L72: =VLOOKUP(G72,Kp!$A$4:$B$24,2,FALSE) -> 0 | M72: 0 | N72: -0.75 | P72: https://www.soaringspot.com/cs/18-hop-2019-velke-porici-2019/results/klub-hop | Q72: Méně jak 3 platné disciplíny
A73: 18. | B73: HOP 2019 - Kombi | C73: CZ | D73: 2019 | E73: Hronov | F73: 10.8.-17.8.19 | G73: 5 | H73: 16 | I73: 0.75 | L73: =VLOOKUP(G73,Kp!$A$4:$B$24,2,FALSE) -> 0.005 | M73: 0.755 | N73: =M73-I73 -> 0.005 | P73: https://www.soaringspot.com/cs/18-hop-2019-velke-porici-2019/results/kombi-ppf
B74: PMCŘ 2019 - Klub | C74: CZ | D74: 2019 | E74: Moravská Třebová | F74: 12.8.-24.8.19 | G74: 7 | H74: 28 | I74: 1 | J74: 0.05 | L74: =VLOOKUP(G74,Kp!$A$4:$B$24,2,FALSE) -> 0.015 | M74: 1.065 | N74: 0.065 | P74: https://www.soaringspot.com/cs/plachtarske-mistrovstvi-cr-2019-moravska-trebova-2019/results/15-meter
B75: PMCŘ 2019 - Kombi 15m | C75: CZ | D75: 2019 | E75: Moravská Třebová | F75: 12.8.-24.8.19 | G75: 6 | H75: 13 | I75: 1 | J75: 0.04 | K75: 0.02 | L75: =VLOOKUP(G75,Kp!$A$4:$B$24,2,FALSE) -> 0.01 | M75: 1.07 | N75: =M75-I75 -> 0.07 | P75: https://www.soaringspot.com/cs/plachtarske-mistrovstvi-cr-2019-moravska-trebova-2019/results/kombi-15m
B76: PMCŘ 2019 - Kombi Open | C76: CZ | D76: 2019 | E76: Moravská Třebová | F76: 12.8.-24.8.19 | G76: 7 | H76: 13 | I76: 1 | J76: 0.015 | L76: =VLOOKUP(G76,Kp!$A$4:$B$24,2,FALSE) -> 0.015 | M76: 1.03 | N76: 0.03 | P76: https://www.soaringspot.com/cs/plachtarske-mistrovstvi-cr-2019-moravska-trebova-2019/results/kombi-open
B77: Zbraslavický bludišťák 2019 - Kombi | C77: CZ | D77: 2019 | E77: Zbraslavice | F77: 31.8.-15.9.19 | G77: 2 | H77: 19 | I77: 0.75 | L77: =VLOOKUP(G77,Kp!$A$4:$B$24,2,FALSE) -> 0 | M77: 0 | N77: -0.75 | P77: https://www.soaringspot.com/cs/zbraslavicky-bludistak-zbraslavice-2019/results/otevrena-trida | Q77: Méně jak 3 platné disciplíny
B78: Pribina Cup 2019 - Klub | C78: SK | D78: 2019 | E78: Nitra | F78: 19.4.-27.4.19 | G78: 4 | H78: 43 | I78: 0.9 | J78: 0.045 | L78: =VLOOKUP(G78,Kp!$A$4:$B$24,2,FALSE) -> 0 | M78: 0.945 | N78: 0.045 | P78: https://www.soaringspot.com/cs/pribina-cup-2019-nitra-2019/results/club
B79: Pribina Cup 2019 - Kombi 15m | C79: SK | D79: 2019 | E79: Nitra | F79: 19.4.-27.4.19 | G79: 5 | H79: 37 | I79: 0.9 | J79: 0.045 | L79: =VLOOKUP(G79,Kp!$A$4:$B$24,2,FALSE) -> 0.005 | M79: 0.95 | N79: 0.05 | P79: https://www.soaringspot.com/cs/pribina-cup-2019-nitra-2019/results/15m
B80: Pribina Cup 2019 - Kombi Open | C80: SK | D80: 2019 | E80: Nitra | F80: 19.4.-27.4.19 | G80: 4 | H80: 36 | I80: 0.9 | J80: 0.065 | L80: =VLOOKUP(G80,Kp!$A$4:$B$24,2,FALSE) -> 0 | M80: 0.965 | N80: 0.065 | P80: https://www.soaringspot.com/cs/pribina-cup-2019-nitra-2019/results/open
B81: Pribina Cup 2019 - Duo 20m | C81: SK | D81: 2019 | E81: Nitra | F81: 19.4.-27.4.19 | G81: 5 | H81: 13 | I81: 0.9 | J81: 0.015 | L81: =VLOOKUP(G81,Kp!$A$4:$B$24,2,FALSE) -> 0.005 | M81: 0.92 | N81: 0.02 | P81: https://www.soaringspot.com/cs/pribina-cup-2019-nitra-2019/results/20m-double-seater
B82: FCC 2019 - Klub | C82: SK | D82: 2019 | E82: Prievidza | F82: 28.4.-9.5.19 | G82: 4 | H82: 39 | I82: 0.9 | J82: 0.065 | L82: =VLOOKUP(G82,Kp!$A$4:$B$24,2,FALSE) -> 0 | M82: 0.965 | N82: 0.065 | P82: https://www.soaringspot.com/cs/fcc-gliding-2019-prievidza-2019/results/club
B83: FCC 2019 - Kombi 15m | C83: SK | D83: 2019 | E83: Prievidza | F83: 28.4.-9.5.19 | G83: 4 | H83: 38 | I83: 0.9 | J83: 0.08 | L83: =VLOOKUP(G83,Kp!$A$4:$B$24,2,FALSE) -> 0 | M83: 0.98 | N83: 0.08 | P83: https://www.soaringspot.com/cs/fcc-gliding-2019-prievidza-2019/results/15-m
B84: FCC 2019 - Kombi Open | C84: SK | D84: 2019 | E84: Prievidza | F84: 28.4.-9.5.19 | G84: 4 | H84: 27 | I84: 0.9 | J84: 0.035 | L84: =VLOOKUP(G84,Kp!$A$4:$B$24,2,FALSE) -> 0 | M84: 0.935 | N84: 0.035 | P84: https://www.soaringspot.com/cs/fcc-gliding-2019-prievidza-2019/results/combi
B85: Šariš Cup 2019 - Klub | C85: SK | D85: 2019 | E85: Ražňany | F85: 1.6.-9.6.19 | G85: 4 | H85: 14 | I85: 0.75 | L85: =VLOOKUP(G85,Kp!$A$4:$B$24,2,FALSE) -> 0 | M85: 0.75 | N85: 0 | P85: https://www.soaringspot.com/cs/sariscup2019/results/club
B86: Šariš Cup 2019 - Kombi | C86: SK | D86: 2019 | E86: Ražňany | F86: 1.6.-9.6.19 | G86: 5 | H86: 6 | I86: 0.75 | L86: =VLOOKUP(G86,Kp!$A$4:$B$24,2,FALSE) -> 0.005 | M86: 0 | N86: =M86-I86 -> -0.75 | P86: https://www.soaringspot.com/cs/sariscup2019/results/combi | Q86: Méně jak 10 soutěžících ve třídě
B87: PMSR 2019 - Klub | C87: SK | D87: 2019 | E87: Martin | F87: 16.6.-28.6.19 | G87: 7 | H87: 24 | I87: 0.9 | J87: 0.005 | L87: =VLOOKUP(G87,Kp!$A$4:$B$24,2,FALSE) -> 0.015 | M87: 0.92 | N87: 0.02 | P87: https://www.soaringspot.com/cs/62-majstrovstva-sr-vbezmotorovom-lietani-2019-martin-2019/results/klubova-trieda
B88: PMSR 2019 - Kombi 15m | C88: SK | D88: 2019 | E88: Martin | F88: 16.6.-28.6.19 | G88: 7 | H88: 10 | I88: 0.9 | J88: 0.015 | L88: =VLOOKUP(G88,Kp!$A$4:$B$24,2,FALSE) -> 0.015 | M88: 0.93 | N88: =M88-I88 -> 0.03 | P88: https://www.soaringspot.com/cs/62-majstrovstva-sr-vbezmotorovom-lietani-2019-martin-2019/results/15m-standard-trieda
B89: PMSR 2019 - Kombi Open | C89: SK | D89: 2019 | E89: Martin | F89: 16.6.-28.6.19 | G89: 7 | H89: 14 | I89: 0.9 | J89: 0.005 | L89: =VLOOKUP(G89,Kp!$A$4:$B$24,2,FALSE) -> 0.015 | M89: 0.92 | N89: =M89-I89 -> 0.02 | P89: https://www.soaringspot.com/cs/62-majstrovstva-sr-vbezmotorovom-lietani-2019-martin-2019/results/kombinovana-trieda
A90: 39. | B90: MAM 2019 - Klub | C90: SK | D90: 2019 | E90: Partizánske | F90: 30.6.-11.7.19 | G90: 9 | H90: 34 | I90: 0.75 | L90: =VLOOKUP(G90,Kp!$A$4:$B$24,2,FALSE) -> 0.025 | M90: 0.775 | N90: 0.025 | P90: https://www.soaringspot.com/cs/39-memorial-alexandra-makarenka-2019-male-bielice-2019/results/klubova-trieda
A91: 39. | B91: MAM 2019 - Kombi | C91: SK | D91: 2019 | E91: Partizánske | F91: 30.6.-11.7.19 | G91: 9 | H91: 10 | I91: 0.75 | L91: =VLOOKUP(G91,Kp!$A$4:$B$24,2,FALSE) -> 0.025 | M91: 0.775 | N91: =M91-I91 -> 0.025 | P91: https://www.soaringspot.com/cs/39-memorial-alexandra-makarenka-2019-male-bielice-2019/results/kombinovana-treida
A92: 20. | B92: EGC 2019 - Std | C92: SK | D92: 2019 | E92: Prievidza | F92: 7.7.-20.7.19 | G92: 12 | H92: 29 | I92: 1 | J92: 0.075 | L92: =VLOOKUP(G92,Kp!$A$4:$B$24,2,FALSE) -> 0.03 | M92: 1.105 | N92: 0.105 | P92: https://www.soaringspot.com/cs/20th-fai-european-gliding-championship-2019-prievidza-2019/results/standard
A93: 20. | B93: EGC 2019 - Klub | C93: SK | D93: 2019 | E93: Prievidza | F93: 7.7.-20.7.19 | G93: 12 | H93: 31 | I93: 1 | J93: 0.075 | L93: =VLOOKUP(G93,Kp!$A$4:$B$24,2,FALSE) -> 0.03 | M93: 1.105 | N93: =M93-I93 -> 0.105 | P93: https://www.soaringspot.com/cs/20th-fai-european-gliding-championship-2019-prievidza-2019/results/club
A94: 20. | B94: EGC 2019 - 15m | C94: SK | D94: 2019 | E94: Prievidza | F94: 7.7.-20.7.19 | G94: 12 | H94: 22 | I94: 1 | J94: 0.075 | L94: =VLOOKUP(G94,Kp!$A$4:$B$24,2,FALSE) -> 0.03 | M94: 1.105 | N94: =M94-I94 -> 0.105 | P94: https://www.soaringspot.com/cs/20th-fai-european-gliding-championship-2019-prievidza-2019/results/15m
B95: Top Gun 2019 - Kombi | C95: SK | D95: 2019 | E95: Prievidza | F95: 10.8.-17.8.19 | G95: 3 | H95: 10 | I95: 0.75 | L95: =VLOOKUP(G95,Kp!$A$4:$B$24,2,FALSE) -> -0.02 | M95: =IF(OR(G95=0,G95=1,G95=2),0,IF(H95<10,0,SUM(I95:L95))) -> 0.73 | N95: -0.02 | P95: https://www.soaringspot.com/cs/top-gun-prievidza-2019-prievidza-2019/results/top-gun
A96: 20. | B96: EGC 2019 - Open | C96: PL | D96: 2019 | E96: Stalowa Wola-Turbia | F96: 11.5.-25.5.19 | G96: 5 | H96: 17 | I96: 1 | J96: 0.055 | L96: =VLOOKUP(G96,Kp!$A$4:$B$24,2,FALSE) -> 0.005 | M96: 1.06 | N96: 0.06 | O96: https://egc2019.pl/ | P96: https://www.soaringspot.com/en_gb/egc019/results/open
A97: 20. | B97: EGC 2019 - 18m | C97: PL | D97: 2019 | E97: Stalowa Wola-Turbia | F97: 11.5.-25.5.19 | G97: 5 | H97: 28 | I97: 1 | J97: 0.085 | L97: =VLOOKUP(G97,Kp!$A$4:$B$24,2,FALSE) -> 0.005 | M97: 1.09 | N97: =M97-I97 -> 0.09 | O97: https://egc2019.pl/ | P97: https://www.soaringspot.com/en_gb/egc019/results/18m
A98: 20. | B98: EGC 2019 - Duo 20m | C98: PL | D98: 2019 | E98: Stalowa Wola-Turbia | F98: 11.5.-25.5.19 | G98: 5 | H98: 14 | I98: 1 | J98: 0.06 | L98: =VLOOKUP(G98,Kp!$A$4:$B$24,2,FALSE) -> 0.005 | M98: 1.065 | N98: =M98-I98 -> 0.065 | O98: https://egc2019.pl/ | P98: https://www.soaringspot.com/en_gb/egc019/results/20m-multi-seat
A99: 27. | B99: Alpe Adria Cup 2019 - Klub | C99: AT | D99: 2019 | E99: Feldkirchen | F99: 25.5.-1.6.19 | G99: 3 | H99: 20 | I99: 0.75 | L99: =VLOOKUP(G99,Kp!$A$4:$B$24,2,FALSE) -> -0.02 | M99: 0.73 | N99: -0.02 | P99: https://www.soaringspot.com/cs/aac2019/results/106er-klasse
A100: 27. | B100: Alpe Adria Cup 2019 - Kombi | C100: AT | D100: 2019 | E100: Feldkirchen | F100: 25.5.-1.6.19 | G100: 3 | H100: 23 | I100: 0.75 | L100: =VLOOKUP(G100,Kp!$A$4:$B$24,2,FALSE) -> -0.02 | M100: 0.73 | N100: =M100-I100 -> -0.02 | P100: https://www.soaringspot.com/cs/aac2019/results/offene-klasse
B101: OSS 2019 - Klub | C101: AT | D101: 2019 | E101: Dobersberg | F101: 3.8.-10.8.19 | G101: 4 | H101: 16 | I101: 0.9 | J101: 0.005 | L101: =VLOOKUP(G101,Kp!$A$4:$B$24,2,FALSE) -> 0 | M101: =IF(OR(G101=0,G101=1,G101=2),0,IF(H101<10,0,SUM(I101:L101))) -> 0.905 | N101: 0.005 | P101: https://www.soaringspot.com/cs/ssm2019/results/club
B102: OSS 2019 - 18m | C102: AT | D102: 2019 | E102: Dobersberg | F102: 3.8.-10.8.19 | G102: 4 | H102: 19 | I102: 0.9 | J102: 0.015 | L102: =VLOOKUP(G102,Kp!$A$4:$B$24,2,FALSE) -> 0 | M102: 0.915 | N102: =M102-I102 -> 0.015 | P102: https://www.soaringspot.com/cs/ssm2019/results/18-meter
B103: OSS 2019 - Open | C103: AT | D103: 2019 | E103: Dobersberg | F103: 3.8.-10.8.19 | G103: 4 | H103: 8 | I103: 0.9 | L103: =VLOOKUP(G103,Kp!$A$4:$B$24,2,FALSE) -> 0 | M103: 0 | N103: =M103-I103 -> -0.9 | P103: https://www.soaringspot.com/cs/ssm2019/results/open | Q103: Méně jak 10 soutěžících ve třídě
B104: OSS 2019 - Kombi | C104: AT | D104: 2019 | E104: Dobersberg | F104: 3.8.-10.8.19 | G104: 4 | H104: 11 | I104: 0.9 | L104: =VLOOKUP(G104,Kp!$A$4:$B$24,2,FALSE) -> 0 | M104: 0.9 | N104: 0 | P104: https://www.soaringspot.com/cs/ssm2019/results/mixed
A105: 11. | B105: WGC Juniors 2019 - Klub | C105: HU | D105: 2019 | E105: Szeged | F105: 28.7.-10.8.19 | G105: 11 | H105: 44 | I105: 1 | J105: 0.015 | L105: =VLOOKUP(G105,Kp!$A$4:$B$24,2,FALSE) -> 0.03 | M105: 1.045 | N105: 0.045 | P105: https://www.soaringspot.com/cs/11th-fai-junior-world-gliding-championships-szeged-2019/results/club
A106: 11. | B106: WGC Juniors 2019 - Std | C106: HU | D106: 2019 | E106: Szeged | F106: 28.7.-10.8.19 | G106: 10 | H106: 36 | I106: 1 | J106: 0.04 | L106: =VLOOKUP(G106,Kp!$A$4:$B$24,2,FALSE) -> 0.03 | M106: 1.07 | N106: 0.07 | P106: https://www.soaringspot.com/cs/11th-fai-junior-world-gliding-championships-szeged-2019/results/standard
B107: SGP 2019 BH - 18m GP | C107: BH | D107: 2019 | E107: Livno | F107: 27.7.-3.8.19 | G107: 6 | H107: 15 | I107: 0.9 | J107: 0.015 | L107: =VLOOKUP(G107,Kp!$A$4:$B$24,2,FALSE) -> 0.01 | M107: 0.925 | N107: =M107-I107 -> 0.025 | P107: http://www.sgp.aero/bosnia2018/results-sgp/results.aspx?contestID=32417
A108: 9. | B108: WSGP Final 2019 - 18m GP | C108: SP | D108: 2019 | E108: La Cerdanya | F108: 1.6.-8.6.19 | G108: 6 | H108: 19 | I108: 1 | J108: 0.07 | L108: =VLOOKUP(G108,Kp!$A$4:$B$24,2,FALSE) -> 0.01 | M108: =IF(OR(G108=0,G108=1,G108=2),0,IF(H108<10,0,SUM(I108:L108))) -> 1.08 | N108: 0.08 | P108: http://www.sgp.aero/finals2019/results-sgp/results.aspx
B109: Zařazené soutěže 2020:
B110: AZ Cup 2020 - Klub | C110: CZ | D110: 2020 | E110: Zbraslavice | F110: 3.5.-7.6.20 | G110: 3 | H110: 27 | I110: 0.9 | J110: 0.015 | K110: 0.01 | L110: =VLOOKUP(G110,Kp!$A$4:$B$24,2,FALSE) -> -0.02 | M110: =IF(OR(G110=0,G110=1,G110=2),0,IF(H110<10,0,SUM(I110:L110))) -> 0.905 | N110: =M110-I110 -> 0.005 | P110: https://www.soaringspot.com/cs/az-cup-2020-zbraslavice-2020/results/klubova-trida
B111: AZ Cup 2020 - Kombi A | C111: CZ | D111: 2020 | E111: Zbraslavice | F111: 3.5.-7.6.20 | G111: 3 | H111: 20 | I111: 0.9 | J111: 0.02 | L111: =VLOOKUP(G111,Kp!$A$4:$B$24,2,FALSE) -> -0.02 | M111: 0.9 | N111: =M111-I111 -> 0 | P111: https://www.soaringspot.com/cs/az-cup-2020-zbraslavice-2020/results/15m-trida
B112: AZ Cup 2020 - Kombi B | C112: CZ | D112: 2020 | E112: Zbraslavice | F112: 3.5.-7.6.20 | G112: 3 | H112: 21 | I112: 0.9 | J112: 0.04 | K112: 0.01 | L112: =VLOOKUP(G112,Kp!$A$4:$B$24,2,FALSE) -> -0.02 | M112: 0.93 | N112: =M112-I112 -> 0.03 | P112: https://www.soaringspot.com/cs/az-cup-2020-zbraslavice-2020/results/kombinovana-trida
B113: Závody Šohajů 2020 - Klub | C113: CZ | D113: 2020 | E113: Raná | F113: 20.6.-27.6.20 | G113: 2 | H113: 15 | I113: 0.75 | L113: =VLOOKUP(G113,Kp!$A$4:$B$24,2,FALSE) -> 0 | M113: 0 | N113: -0.75 | P113: https://www.soaringspot.com/cs/zavody-sohaju-a-historickych-kluzaku-2020-rana-loumy-2020/results/oldtimer | Q113: Méně jak 3 platné disciplíny
B114: Safari 2020 - Kombi | C114: CZ | D114: 2020 | E114: Dvůr Králové | F114: 28.6.-11.7.20 | G114: 5 | H114: 12 | I114: 0.75 | J114: 0.01 | L114: =VLOOKUP(G114,Kp!$A$4:$B$24,2,FALSE) -> 0.005 | M114: 0.765 | N114: 0.015 | P114: https://www.soaringspot.com/cs/safari-cup-2020-dvur-kralove-nad-labem-2020/results/volna
B115: Safari 2020 - Klub | C115: CZ | D115: 2020 | E115: Dvůr Králové | F115: 28.6.-11.7.20 | G115: 4 | H115: 26 | I115: 0.75 | L115: =VLOOKUP(G115,Kp!$A$4:$B$24,2,FALSE) -> 0 | M115: 0.75 | N115: =M115-I115 -> 0 | P115: https://www.soaringspot.com/cs/safari-cup-2020-dvur-kralove-nad-labem-2020/results/klub
B116: Safari 2020 - Duo Kombi | C116: CZ | D116: 2020 | E116: Dvůr Králové | F116: 28.6.-11.7.20 | G116: 1 | H116: 14 | I116: 0.75 | L116: =VLOOKUP(G116,Kp!$A$4:$B$24,2,FALSE) -> 0 | M116: 0 | N116: -0.75 | P116: https://www.soaringspot.com/cs/safari-cup-2020-dvur-kralove-nad-labem-2020/results/duo-blanik | Q116: Méně jak 3 platné disciplíny
B117: Toužim Cup 2020 - Klub | C117: CZ | D117: 2020 | E117: Toužim | F117: 11.7.-19.7.20 | G117: 5 | H117: 30 | I117: 0.9 | J117: 0.01 | L117: =VLOOKUP(G117,Kp!$A$4:$B$24,2,FALSE) -> 0.005 | M117: 0.915 | N117: 0.015 | P117: https://www.soaringspot.com/cs/tcup2020/results/klub
B118: Toužim Cup 2020 - Kombi | C118: CZ | D118: 2020 | E118: Toužim | F118: 11.7.-19.7.20 | G118: 5 | H118: 23 | I118: 0.9 | J118: 0.005 | L118: =VLOOKUP(G118,Kp!$A$4:$B$24,2,FALSE) -> 0.005 | M118: 0.91 | N118: 0.01 | P118: https://www.soaringspot.com/cs/tcup2020/results/kombi
B119: PMRg 2020 - Klub | C119: CZ | D119: 2020 | E119: Hosín | F119: 12.7.-25.7.20 | G119: 5 | H119: 24 | I119: 0.9 | J119: 0.01 | L119: =VLOOKUP(G119,Kp!$A$4:$B$24,2,FALSE) -> 0.005 | M119: 0.915 | N119: 0.015 | P119: https://www.soaringspot.com/cs/plachtarske-mistrovstvi-regionu-cr-hosin-2020/results/klubova-trida
B120: PMRg 2020 - Kombi | C120: CZ | D120: 2020 | E120: Hosín | F120: 12.7.-25.7.20 | G120: 5 | H120: 12 | I120: 0.9 | J120: 0.015 | L120: =VLOOKUP(G120,Kp!$A$4:$B$24,2,FALSE) -> 0.005 | M120: 0.92 | N120: 0.02 | P120: https://www.soaringspot.com/cs/plachtarske-mistrovstvi-regionu-cr-hosin-2020/results/kombinovana-trida
B121: Ranský Pohár 2020 - Kombi | C121: CZ | D121: 2020 | E121: Raná | F121: 18.7.-26.7.20 | G121: 6 | H121: 24 | I121: 0.75 | L121: =VLOOKUP(G121,Kp!$A$4:$B$24,2,FALSE) -> 0.01 | M121: 0.76 | N121: 0.01 | P121: https://www.soaringspot.com/cs/ransky-pohar-2020-rana-loumy-2020/results/combi
A122: 16. | B122: JPJ 2020 - Klub | C122: CZ | D122: 2020 | E122: Šumperk | F122: 25.7.-1.8.20 | G122: 6 | H122: 33 | I122: 0.9 | L122: =VLOOKUP(G122,Kp!$A$4:$B$24,2,FALSE) -> 0.01 | M122: 0.91 | N122: 0.01 | P122: https://www.soaringspot.com/cs/jpj2020/results/klubova-trida
A123: 16. | B123: JPJ 2020 - Kombi | C123: CZ | D123: 2020 | E123: Šumperk | F123: 25.7.-1.8.20 | G123: 6 | H123: 21 | I123: 0.9 | L123: =VLOOKUP(G123,Kp!$A$4:$B$24,2,FALSE) -> 0.01 | M123: 0.91 | N123: 0.01 | P123: https://www.soaringspot.com/cs/jpj2020/results/kombi-trida
B124: PMCŘ 2020 - Klub | C124: CZ | D124: 2020 | E124: Tábor | F124: 26.7.-8.8.20 | G124: 9 | H124: 25 | I124: 1 | J124: 0.04 | K124: 0.02 | L124: =VLOOKUP(G124,Kp!$A$4:$B$24,2,FALSE) -> 0.025 | M124: 1.085 | N124: =M124-I124 -> 0.085 | P124: https://www.soaringspot.com/cs/plachtarske-mistrovstvi-cr-2020-tabor-2020/results/club
B125: PMCŘ 2020 - Kombi 15m | C125: CZ | D125: 2020 | E125: Tábor | F125: 26.7.-8.8.20 | G125: 9 | H125: 22 | I125: 1 | J125: 0.045 | K125: 0.02 | L125: =VLOOKUP(G125,Kp!$A$4:$B$24,2,FALSE) -> 0.025 | M125: 1.09 | N125: =M125-I125 -> 0.09 | P125: https://www.soaringspot.com/cs/plachtarske-mistrovstvi-cr-2020-tabor-2020/results/15-mixed
B126: PMCŘ 2020 - Kombi Open | C126: CZ | D126: 2020 | E126: Tábor | F126: 26.7.-8.8.20 | G126: 9 | H126: 21 | I126: 1 | J126: 0.035 | K126: 0.01 | L126: =VLOOKUP(G126,Kp!$A$4:$B$24,2,FALSE) -> 0.025 | M126: 1.07 | N126: =M126-I126 -> 0.07 | P126: https://www.soaringspot.com/cs/plachtarske-mistrovstvi-cr-2020-tabor-2020/results/open-mixed
B127: Pohár Českého Ráje 2020 - Kombi | C127: CZ | D127: 2020 | E127: Jičín | F127: 1.8.-8.8.20 | G127: 4 | H127: 9 | I127: 0.75 | L127: =VLOOKUP(G127,Kp!$A$4:$B$24,2,FALSE) -> 0 | M127: 0 | N127: -0.75 | P127: https://www.soaringspot.com/cs/pohar-ceskeho-raje-2020-jicin-2020/results/club | Q127: Méně jak 10 soutěžících ve třídě
B128: PMČRj 2020 - Klub | C128: CZ | D128: 2020 | E128: Zbraslavice | F128: 8.8.-22.8.20 | G128: 8 | H128: 37 | I128: 0.9 | J128: 0.01 | L128: =VLOOKUP(G128,Kp!$A$4:$B$24,2,FALSE) -> 0.02 | M128: 0.93 | N128: =M128-I128 -> 0.03 | P128: https://www.soaringspot.com/cs/plachtarske-mcr-junioru-a-akademiku-2020-zbraslavice-2020/results/klubova-trida
A129: 19. | B129: HOP 2020 - Klub | C129: CZ | D129: 2020 | E129: Hronov | F129: 8.8.-15.8.20 | G129: 5 | H129: 26 | I129: 0.75 | L129: =VLOOKUP(G129,Kp!$A$4:$B$24,2,FALSE) -> 0.005 | M129: 0.755 | N129: 0.005 | P129: https://www.soaringspot.com/cs/19-hop-2020-velke-porici-2020/results/klub-hop
A130: 19. | B130: HOP 2020 - Kombi | C130: CZ | D130: 2020 | E130: Hronov | F130: 8.8.-15.8.20 | G130: 5 | H130: 19 | I130: 0.75 | J130: 0.005 | L130: =VLOOKUP(G130,Kp!$A$4:$B$24,2,FALSE) -> 0.005 | M130: 0.76 | N130: 0.01 | P130: https://www.soaringspot.com/cs/19-hop-2020-velke-porici-2020/results/kombi-ppf
B131: Adrenalin GP 2020 - Klub GP | C131: CZ | D131: 2020 | E131: Frýdlant n/Ostr. | F131: 15.8.-22.8.20 | G131: 3 | H131: 9 | I131: 0.9 | L131: =VLOOKUP(G131,Kp!$A$4:$B$24,2,FALSE) -> -0.02 | M131: 0 | N131: =M131-I131 -> -0.9 | P131: https://www.soaringspot.com/cs/fl-2020-adrenalin-grand-prix-frydlant-2020/results/agp | Q131: Méně jak 10 soutěžících ve třídě
B132: FL 2020 - Kombi | C132: CZ | D132: 2020 | E132: Frýdlant n/Ostr. | F132: 15.8.-22.8.20 | G132: 2 | H132: 11 | I132: 0.75 | L132: =VLOOKUP(G132,Kp!$A$4:$B$24,2,FALSE) -> 0 | M132: 0 | N132: -0.75 | P132: https://www.soaringspot.com/cs/fl-2020-adrenalin-grand-prix-frydlant-2020/results/fl | Q132: Méně jak 3 platné disciplíny
B133: Pozdní sběr 2020 - Kombi | C133: CZ | D133: 2020 | E133: Zbraslavice | F133: 12.9.-28.9.20 | G133: 2 | H133: 7 | I133: 0.75 | L133: =VLOOKUP(G133,Kp!$A$4:$B$24,2,FALSE) -> 0 | M133: 0 | N133: -0.75 | P133: https://www.soaringspot.com/cs/pozdni-sber-zbraslavice-2020/results/klub | Q133: Méně jak 10 soutěžících ve třídě, méně jak 3 platné disciplíny
B134: PMSR 2020 - Klub | C134: SK | D134: 2020 | E134: Partizánske | F134: 5.7.-18.7.20 | G134: 9 | H134: 25 | I134: 0.9 | J134: 0.01 | L134: =VLOOKUP(G134,Kp!$A$4:$B$24,2,FALSE) -> 0.025 | M134: 0.935 | N134: 0.035 | P134: https://www.soaringspot.com/cs/63-majstrovstva-slovenska-v-bezmotorovom-lietani-2020/results/klubova-tireda
B135: PMSR 2020 - Kombi 15m | C135: SK | D135: 2020 | E135: Partizánske | F135: 5.7.-18.7.20 | G135: 9 | H135: 11 | I135: 0.9 | J135: 0.01 | L135: =VLOOKUP(G135,Kp!$A$4:$B$24,2,FALSE) -> 0.025 | M135: 0.935 | N135: 0.035 | P135: https://www.soaringspot.com/cs/63-majstrovstva-slovenska-v-bezmotorovom-lietani-2020/results/15m-trieda
B136: PMSR 2020 - Kombi Open | C136: SK | D136: 2020 | E136: Partizánske | F136: 5.7.-18.7.20 | G136: 9 | H136: 20 | I136: 0.9 | J136: 0.01 | L136: =VLOOKUP(G136,Kp!$A$4:$B$24,2,FALSE) -> 0.025 | M136: 0.935 | N136: 0.035 | P136: https://www.soaringspot.com/cs/63-majstrovstva-slovenska-v-bezmotorovom-lietani-2020/results/kombinovana-treida
B137: Šariš Cup 2020 - Klub | C137: SK | D137: 2020 | E137: Ražňany | F137: 1.8.-9.8.20 | G137: 7 | H137: 11 | I137: 0.75 | L137: =VLOOKUP(G137,Kp!$A$4:$B$24,2,FALSE) -> 0.015 | M137: 0.765 | N137: 0.015 | P137: https://www.soaringspot.com/cs/sariscup2020/results/club
B138: FCC 2020 - Klub | C138: SK | D138: 2020 | E138: Prievidza | F138: 2.8.-13.8.20 | G138: 9 | H138: 11 | I138: 0.9 | L138: =VLOOKUP(G138,Kp!$A$4:$B$24,2,FALSE) -> 0.025 | M138: 0.925 | N138: 0.025 | P138: https://www.soaringspot.com/cs/fcc-gliding-2020-prievidza-2020/results/club
B139: FCC 2020 - Kombi | C139: SK | D139: 2020 | E139: Prievidza | F139: 2.8.-13.8.20 | G139: 10 | H139: 17 | I139: 0.9 | J139: 0.005 | K139: 0.01 | L139: =VLOOKUP(G139,Kp!$A$4:$B$24,2,FALSE) -> 0.03 | M139: 0.945 | N139: 0.045 | P139: https://www.soaringspot.com/cs/fcc-gliding-2020-prievidza-2020/results/combi
B140: Oldtimer Pribina Star 2020 - Klub | C140: SK | D140: 2020 | E140: Nitra | F140: 7.8.-15.8.20 | G140: 4 | H140: 16 | I140: 0.75 | L140: =VLOOKUP(G140,Kp!$A$4:$B$24,2,FALSE) -> 0 | M140: 0.75 | N140: 0 | P140: https://www.soaringspot.com/cs/oldtimer-pribina-star-2020-nitra-2020/results/klub
B141: Fatraglide 2020 - Klub | C141: SK | D141: 2020 | E141: Martin | F141: 15.8.-22.8.20 | G141: 3 | H141: 10 | I141: 0.75 | L141: =VLOOKUP(G141,Kp!$A$4:$B$24,2,FALSE) -> -0.02 | M141: 0.73 | N141: -0.02 | O141: http://www.fatraglide.sk/ | P141: https://www.soaringspot.com/cs/fatraglide-2020-martin-2020/results/klubova-trieda
B142: Fatraglide 2020 - Kombi | C142: SK | D142: 2020 | E142: Martin | F142: 15.8.-22.8.20 | G142: 5 | H142: 18 | I142: 0.75 | J142: 0.005 | L142: =VLOOKUP(G142,Kp!$A$4:$B$24,2,FALSE) -> 0.005 | M142: 0.76 | N142: =M142-I142 -> 0.01 | O142: http://www.fatraglide.sk/ | P142: https://www.soaringspot.com/cs/fatraglide-2020-martin-2020/results/kombinovana-trieda
B143: Septembrova cena 2020 - Kombi | C143: SK | D143: 2020 | E143: Trnava | F143: 29.8.-1.9.20 | G143: 1 | H143: 12 | I143: 0.75 | L143: =VLOOKUP(G143,Kp!$A$4:$B$24,2,FALSE) -> 0 | M143: 0 | N143: -0.75 | P143: https://www.soaringspot.com/cs/septembrova-cena-2020-trnava-2020/results/klub | Q143: Méně jak 3 platné disciplíny
A144: 28. | B144: Alpe Adria Cup 2020 - Kombi 106 | C144: AT | D144: 2020 | E144: Feldkirchen | F144: 4.7.-11.7.20 | G144: 7 | H144: 21 | I144: 0.75 | L144: =VLOOKUP(G144,Kp!$A$4:$B$24,2,FALSE) -> 0.015 | M144: 0.765 | N144: =M144-I144 -> 0.015 | P144: https://www.soaringspot.com/cs/aac2020/results/106er
A145: 28. | B145: Alpe Adria Cup 2020 - Kombi Open | C145: AT | D145: 2020 | E145: Feldkirchen | F145: 4.7.-11.7.20 | G145: 7 | H145: 24 | I145: 0.75 | K145: 0.01 | L145: =VLOOKUP(G145,Kp!$A$4:$B$24,2,FALSE) -> 0.015 | M145: 0.775 | N145: =M145-I145 -> 0.025 | P145: https://www.soaringspot.com/cs/aac2020/results/offene-klasse
B146: GGP MB 2020 - Gradient GP | C146: CZ | D146: 2020 | E146: Mladá Boleslav | F146: 22.8.-29.8.20 | G146: 4 | H146: 10 | I146: 0.9 | J146: 0 | K146: 0 | L146: =VLOOKUP(G146,Kp!$A$4:$B$24,2,FALSE) -> 0 | M146: =IF(OR(G146=0,G146=1,G146=2),0,IF(H146<10,0,SUM(I146:L146))) -> 0.9 | N146: =M146-I146 -> 0 | P146: https://www.soaringspot.com/cs/ggp2020/results/gradient-gp
B147: GGP MB 2020 - Klub GP | C147: CZ | D147: 2020 | E147: Mladá Boleslav | F147: 22.8.-29.8.20 | G147: 5 | H147: 13 | I147: 0.9 | J147: 0.005 | K147: 0.01 | L147: =VLOOKUP(G147,Kp!$A$4:$B$24,2,FALSE) -> 0.005 | M147: =IF(OR(G147=0,G147=1,G147=2),0,IF(H147<10,0,SUM(I147:L147))) -> 0.92 | N147: 0.02 | P147: https://www.soaringspot.com/cs/ggp2020/results/club-gp
B148: GGP MB 2020 - Pohár MV - Kombi | C148: CZ | D148: 2020 | E148: Mladá Boleslav | F148: 22.8.-29.8.20 | G148: 5 | H148: 19 | I148: 0.9 | J148: 0.025 | K148: 0 | L148: =VLOOKUP(G148,Kp!$A$4:$B$24,2,FALSE) -> 0.005 | M148: 0.93 | N148: =M148-I148 -> 0.03 | P148: https://www.soaringspot.com/cs/ggp2020/results/open
A149: 10. | B149: WGC Women 2020 - Klub | C149: AU | D149: 2020 | E149: Lake Keepit | F149: 3.1.-17.1.20 | G149: 9 | H149: 17 | I149: 1 | J149: 0.02 | K149: 0.01 | L149: =VLOOKUP(G149,Kp!$A$4:$B$24,2,FALSE) -> 0.025 | M149: =IF(OR(G149=0,G149=1,G149=2),0,IF(H149<10,0,SUM(I149:L149))) -> 1.055 | N149: =M149-I149 -> 0.055 | P149: https://www.soaringspot.com/cs/10th-fai-womens-world-gliding-championship-lake-keepit-2020/results/club
A150: 10. | B150: WGC Women 2020 - Std | C150: AU | D150: 2020 | E150: Lake Keepit | F150: 3.1.-17.1.20 | G150: 9 | H150: 16 | I150: 1 | J150: 0.005 | K150: 0.04 | L150: =VLOOKUP(G150,Kp!$A$4:$B$24,2,FALSE) -> 0.025 | M150: =IF(OR(G150=0,G150=1,G150=2),0,IF(H150<10,0,SUM(I150:L150))) -> 1.07 | N150: 0.07 | P150: https://www.soaringspot.com/cs/10th-fai-womens-world-gliding-championship-lake-keepit-2020/results/standard
A151: 10. | B151: WGC Women 2020 - 18m | C151: AU | D151: 2020 | E151: Lake Keepit | F151: 3.1.-17.1.20 | G151: 9 | H151: 14 | I151: 1 | J151: 0.005 | K151: 0.03 | L151: =VLOOKUP(G151,Kp!$A$4:$B$24,2,FALSE) -> 0.025 | M151: 1.06 | N151: 0.06 | P151: https://www.soaringspot.com/cs/10th-fai-womens-world-gliding-championship-lake-keepit-2020/results/18-meter
B154: Schváleno Plachtařskou komisí AeČR dne xx.yy.2020 v ZZZZ

Sheet Kp (hidden)
A1: Korekce na počet platných disciplín
A3: Počet platných disciplín | B3: Korekce Kp
A4: 0 | B4: 0
A5: 1 | B5: 0
A6: 2 | B6: 0
A7: 3 | B7: -0.02
A8: 4 | B8: 0
A9: 5 | B9: 0.005
A10: 6 | B10: 0.01
A11: 7 | B11: 0.015
A12: 8 | B12: 0.02
A13: 9 | B13: 0.025
A14: 10 | B14: 0.03
A15: 11 | B15: 0.03
A16: 12 | B16: 0.03
A17: 13 | B17: 0.03
A18: 14 | B18: 0.03
A19: 15 | B19: 0.03
A20: 16 | B20: 0.03
A21: 17 | B21: 0.03
A22: 18 | B22: 0.03
A23: 19 | B23: 0.03
A24: 20 | B24: 0.03

Sheet Pilot
A1: Jmeno | B1: Rok nar. | C1: Aeroklub | D1: Region | E1: M/F | F1: Junior v roce | G1: 2021 | H1: Hranice pro juniory: / Poznámka: | I1: =G1-25 -> 1996 | J1: Počet Jun: | K1: =COUNTIF(F3:F2127,"Junior v roce "&G1) -> 65 | L1: Počet F: | M1: =COUNTIF(E3:E2127,"F") -> 72 | N1: Počet M: | O1: =COUNTIF(E3:E2127,"M") -> 887 | P1: Počet celk: | Q1: =COUNTIF(A3:A2127,"<>") -> 959
A2: -
A3: Adam Jandora | B3: 1992 | C3: Medlánky | D3: =VLOOKUP(C3,Region,2,0) -> CZ/M | E3: M | F3: =IF(A3="(prázdné)","",IF(($G$1-B3)>25,"","Junior v roce "&$G$1)) -> 
A4: Adam Olejar | B4: 1991 | C4: Medlánky | D4: CZ/M | E4: M | F4: =IF(A4="(prázdné)","",IF(($G$1-B4)>25,"","Junior v roce "&$G$1)) -> 
A5: Adam Sostaric | B5: 1991 | C5: Chrudim | D5: CZ/C2 | E5: M
A6: Albrecht Beat | B6: 1953 | C6: Šumperk | D6: CZ/M | E6: M
A7: Alena Netusilova | B7: 1970 | C7: Zbraslavice | D7: CZ/C1 | E7: F
A8: Ales Cervenka | B8: 1981 | C8: Soběslav | D8: CZ/C1 | E8: M
A9: Ales Hajek | B9: 1958 | C9: Mladá Boleslav | D9: CZ/C1 | E9: M
A10: Ales Hala | B10: 1994 | C10: Tábor | D10: CZ/C1 | E10: M
A11: Ales Holoubek | B11: 1966 | C11: Jičín | D11: CZ/C2 | E11: M
A12: Ales Tresl | B12: 1958 | C12: Raná | D12: CZ/C2 | E12: M
A13: Ales Vorac | B13: 1985 | C13: Křižanov | D13: CZ/M | E13: M
A14: Ales Vyhnal | B14: 1989 | C14: Kralupy | D14: CZ/C1 | E14: M
A15: Alexander Nerandzic | B15: 1966 | C15: Raná | D15: CZ/C2 | E15: M
A16: Alois Cmajdalka | B16: 1963 | C16: Kunovice | D16: CZ/M | E16: M
A17: Alois Sohr | B17: 1939 | C17: Hranice | D17: CZ/M | E17: M
A18: Andrea Bensova | B18: 1978 | C18: Zbraslavice | D18: CZ/C1 | E18: F
A19: Aneta Prachtova | B19: 1991 | C19: Kralupy | D19: CZ/C1 | E19: F
A20: Anna Bordovska | B20: 1989 | C20: Mladá Boleslav | D20: CZ/C1 | E20: F
A21: Antonin Bordovsky | B21: 1951 | C21: Krnov | D21: CZ/M | E21: M
A22: Antonin Bruna | B22: 1945 | C22: GAC Benešov | D22: CZ/C1 | E22: M
A23: Antonin Burger | B23: 1943 | C23: Panenský Týnec | D23: CZ/C1 | E23: M
A24: Antonin Konicek | B24: 1973 | C24: Kunovice | D24: CZ/M | E24: M
A25: Antonin Kutalek | B25: 1943 | C25: Zábřeh | D25: CZ/M | E25: M
A26: Antonin Novotny | B26: 1972 | C26: Luhačovice | D26: CZ/M | E26: M
A27: Antonin Otrusina | B27: 1948 | C27: Křižanov | D27: CZ/M | E27: M
A28: Antonin Pilat | B28: 1971 | C28: Vyškov | D28: CZ/M | E28: M
A29: Antonin Teichmann | B29: 1965 | C29: Hronov | D29: CZ/C2 | E29: M
A30: Barbora Kubickova | B30: 1993 | C30: Medlánky | D30: CZ/M | E30: F
A31: Barbora Moravcova | B31: 1994 | C31: Zbraslavice | D31: CZ/C1 | E31: F
A32: Barbora Nahodilova | B32: 1989 | C32: Hosín | D32: CZ/C1 | E32: F
A33: Bedrich Honzicek | B33: 1972 | C33: Letňany | D33: =VLOOKUP(C33,Region,2,0) -> CZ/C1 | E33: M | F33: =IF(A33="(prázdné)","",IF(($G$1-B33)>25,"","Junior v roce "&$G$1)) -> 
A34: Bedrich Prochazka | B34: 1957 | C34: Rakovník | D34: CZ/C1 | E34: M
A35: Bohdan Sebestik | B35: 1957 | C35: Kroměříž | D35: CZ/M | E35: M
A36: Bohumil Kunc | B36: 1983 | C36: Kunovice | D36: CZ/M | E36: M
A37: Bohumil Rikal | B37: 1946 | C37: Hronov | D37: CZ/C2 | E37: M
A38: Bohumil Svec | B38: 1985 | C38: Roudnice | D38: CZ/C2 | E38: M
A39: Bohumir Zajdl | B39: 1950 | C39: Dvůr Králové | D39: CZ/C2 | E39: M
A40: Bohus Marcinik | B40: 1947 | C40: Příbram | D40: CZ/C1 | E40: M
A41: Boris Bachraty | B41: 1974 | C41: Břeclav | D41: CZ/M | E41: M
A42: Bronislav Smatana | B42: 1970 | C42: Zbraslavice | D42: CZ/C1 | E42: M
A43: Carsten Tietz | B43: 1966 | C43: Hronov | D43: =VLOOKUP(C43,Region,2,0) -> CZ/C2 | E43: M | F43: =IF(A43="(prázdné)","",IF(($G$1-B43)>25,"","Junior v roce "&$G$1)) -> 
A44: Christof Madoery | B44: 1958 | C44: Šumperk | D44: =VLOOKUP(C44,Region,2,0) -> CZ/M | E44: M | F44: =IF(A44="(prázdné)","",IF(($G$1-B44)>25,"","Junior v roce "&$G$1)) -> 
A45: Dalibor Daricek | B45: 1993 | C45: Kunovice | D45: CZ/M | E45: M
A46: Dalibor Fencl | B46: 1966 | C46: Zbraslavice | D46: CZ/C1 | E46: M
A47: Dalibor Pek | B47: 1968 | C47: Raná | D47: CZ/C2 | E47: M
A48: Dana Novakova | B48: 1965 | C48: Mladá Boleslav | D48: CZ/C1 | E48: F
A49: Danes Grula | B49: 1961 | C49: Medlánky | D49: CZ/M | E49: M
A50: Daniel Adamec | B50: 1977 | C50: Hranice | D50: CZ/M | E50: M
A51: Daniel Brichta | B51: 1962 | C51: GAC Benešov | D51: =VLOOKUP(C51,Region,2,0) -> CZ/C1 | E51: M | F51: =IF(A51="(prázdné)","",IF(($G$1-B51)>25,"","Junior v roce "&$G$1)) -> 
A52: Daniel Dvorak | B52: 1980 | C52: Letkov | D52: CZ/C1 | E52: M
A53: Daniel Krasnicky | B53: 1984 | C53: Příbram | D53: CZ/C1 | E53: M
A54: Daniel Moravek | B54: 1973 | C54: Hodkovice | D54: CZ/C2 | E54: M
A55: Daniel Novak | B55: 1971 | C55: Letkov | D55: CZ/C1 | E55: M
A56: Daniel Ryba | B56: 1994 | C56: Dvůr Králové | D56: CZ/C2 | E56: M
A57: Daniel Suchy | B57: 1995 | C57: Hranice | D57: CZ/M | E57: M
A58: Daniela Frankova | B58: 1997 | C58: Jaroměř | D58: CZ/C2 | E58: M | F58: Junior v roce 2021
A59: Daniela Stepankova | B59: 1988 | C59: Hosín | D59: CZ/C1 | E59: F
A60: David Cisar | B60: 1987 | C60: Křižanov | D60: CZ/M | E60: M
A61: David Krcil | B61: 1976 | C61: Raná | D61: =VLOOKUP(C61,Region,2,0) -> CZ/C2 | E61: M | F61: =IF(A61="(prázdné)","",IF(($G$1-B61)>25,"","Junior v roce "&$G$1)) -> 
A62: David Londa | B62: 1973 | C62: Mladá Boleslav | D62: CZ/C1 | E62: M
A63: David Mach | B63: 1994 | C63: Hronov | D63: CZ/C2 | E63: M
A64: David Marek | B64: 1991 | C64: Křižanov | D64: CZ/M | E64: M
A65: David Novotny | B65: 1984 | C65: Polička | D65: CZ/C2 | E65: M
A66: David Popovsky | B66: 1976 | C66: Rakovník | D66: CZ/C1 | E66: M
A67: David Prihoda | B67: 1994 | C67: Hranice | D67: CZ/M | E67: M
A68: David Rozporka | B68: 1994 | C68: Hronov | D68: CZ/C2 | E68: M
A69: David Rytina | B69: 1983 | C69: Zbraslavice | D69: CZ/C1 | E69: M
A70: David Riha | B70: 1983 | C70: Vlašim | D70: CZ/C1 | E70: M
A71: David Sachl | B71: 1978 | C71: Kralupy | D71: CZ/C1 | E71: M
A72: David Tejnora | B72: 1982 | C72: Kolín | D72: CZ/C1 | E72: M
A73: David Trnecka | B73: 1979 | C73: Medlánky | D73: CZ/M | E73: M
A74: David Vrchota | B74: 1976 | C74: Jaroměř | D74: =VLOOKUP(C74,Region,2,0) -> CZ/C2 | E74: M | F74: =IF(A74="(prázdné)","",IF(($G$1-B74)>25,"","Junior v roce "&$G$1)) -> 
A75: David Zapletal | B75: 1970 | C75: Mladá Boleslav | D75: CZ/C1 | E75: M | F75: =IF(A75="(prázdné)","",IF(($G$1-B75)>25,"","Junior v roce "&$G$1)) -> 
A76: David Zatecka | B76: 1993 | C76: GAC Benešov | D76: =VLOOKUP(C76,Region,2,0) -> CZ/C1 | E76: M
A77: Dusan Gadas | B77: 1960 | C77: Hranice | D77: CZ/M | E77: M
A78: Dusan Kmet | B78: 1972 | C78: Křižanov | D78: CZ/M | E78: M
A79: Dusan Sys | B79: 1977 | C79: Šumperk | D79: CZ/M | E79: M
A80: Dusan Zerzan | B80: 1970 | C80: Šumperk | D80: CZ/M | E80: M
A81: Eduard Svoboda | B81: 1957 | C81: Raná | D81: CZ/C2 | E81: M
A82: Eliska Bohunovska | B82: 2001 | C82: Hranice | D82: =VLOOKUP(C82,Region,2,0) -> CZ/M | E82: F | F82: =IF(A82="(prázdné)","",IF(($G$1-B82)>25,"","Junior v roce "&$G$1)) -> Junior v roce 2021
A83: Eva Cerna | B83: 1964 | C83: Příbram | D83: CZ/C1 | E83: F
A84: Evzen Skala | B84: 1954 | C84: Vrchlabí | D84: CZ/C2 | E84: M
A85: Filip Graf | B85: 1981 | C85: Křižanov | D85: CZ/M | E85: M
A86: Filip Neumann | B86: 1977 | C86: GAC Benešov | D86: CZ/C1 | E86: M
A87: Filip Sklenar | B87: 1990 | C87: Žamberk | D87: CZ/C2 | E87: M
A88: Filip sirc | B88: 1993 | C88: Letňany | D88: CZ/C1 | E88: M
A89: Filip Vita | B89: 2001 | C89: Kroměříž | D89: CZ/M | E89: M | F89: Junior v roce 2021
A90: Frantisek Brozman | B90: 1960 | C90: Tachov | D90: CZ/C1 | E90: M
A91: Frantisek Filandr | B91: 1956 | C91: Most | D91: CZ/C2 | E91: M
A92: Frantisek Hubacek | B92: 1978 | C92: Točná | D92: CZ/C1 | E92: M
A93: Frantisek Komarek | B93: 1985 | C93: Zbraslavice | D93: CZ/C1 | E93: M
A94: Frantisek Kriz | B94: 1961 | C94: Toužim | D94: CZ/C1 | E94: M
A95: Frantisek Marek | B95: 1960 | C95: Křižanov | D95: CZ/M | E95: M
A96: Frantisek Matousek | B96: 1937 | C96: Nové Město nad Metují | D96: CZ/C2 | E96: M
A97: Frantisek Myska | B97: 1968 | C97: Most | D97: CZ/C2 | E97: M
A98: Frantisek Pycha | B98: 1972 | C98: Chrudim | D98: CZ/C2 | E98: M
A99: Frantisek Soucek | B99: 1945 | C99: Dvůr Králové | D99: CZ/C2 | E99: M
A100: Frantisek Sindelar | B100: 1954 | C100: Kralupy | D100: CZ/C1 | E100: M
A101: Frantisek Suna | B101: 1983 | C101: Hosín | D101: =VLOOKUP(C101,Region,2,0) -> CZ/C1 | E101: M | F101: =IF(A101="(prázdné)","",IF(($G$1-B101)>25,"","Junior v roce "&$G$1)) -> 
A102: Frantisek Vancura | B102: 1966 | C102: Hranice | D102: CZ/M | E102: M
A103: Gabriela Cervena | B103: 1966 | C103: Jaroměř | D103: CZ/C2 | E103: F
A104: Gustav Vrbacky | B104: 1933 | C104: Medlánky | D104: CZ/M | E104: M
A105: Hana Treslova | B105: 1991 | C105: Raná | D105: CZ/C2 | E105: F
A106: Hana Vokrinkova | B106: 1958 | C106: Hodkovice | D106: CZ/C2 | E106: F
A107: Hynek Pokorny | B107: 1991 | C107: Letňany | D107: CZ/C1 | E107: M
A108: Christof Madory | B108: 1958 | C108: Šumperk | D108: CZ/M | E108: M
A109: Ilja Kopacek | B109: 1943 | C109: Jičín | D109: =VLOOKUP(C109,Region,2,0) -> CZ/C2 | E109: M | F109: =IF(A109="(prázdné)","",IF(($G$1-B109)>25,"","Junior v roce "&$G$1)) -> 
A110: Ivan Filakovsky | B110: 1965 | C110: Medlánky | D110: CZ/M | E110: M
A111: Ivan Harasta 65 | B111: 1965 | C111: Toužim | D111: CZ/C1 | E111: M
A112: Ivan Harasta 98 | B112: 1998 | C112: Toužim | D112: CZ/C1 | E112: M | F112: Junior v roce 2021
A113: Ivan Kuzelka | B113: 1945 | C113: Havlíčkův Brod | D113: CZ/C2 | E113: M
A114: Ivan Ladr | B114: 1940 | C114: Dvůr Králové | D114: CZ/C2 | E114: M
A115: Ivan Novak | B115: 1962 | C115: Mladá Boleslav | D115: CZ/C1 | E115: M
A116: Ivan Tvrdik | B116: 1997 | C116: Letňany | D116: CZ/C1 | E116: M | F116: Junior v roce 2021
A117: Ivo Burda | B117: 1962 | C117: Zbraslavice | D117: CZ/C1 | E117: M
A118: Ivo Nezval | B118: 1964 | C118: Šumperk | D118: CZ/M | E118: M
A119: Ivo Vudarcik | B119: 1994 | C119: Rakovník | D119: CZ/C1 | E119: M
A120: Jacek Kerum | B120: 1943 | C120: Příbram | D120: CZ/C1 | E120: M
A121: Jakub Brotanek | B121: 1985 | C121: Roudnice | D121: CZ/C2 | E121: M
A122: Jakub Hlavacek | B122: 1991 | C122: Letkov | D122: CZ/C1 | E122: M
A123: Jakub Kmosek | B123: 1978 | C123: Zbraslavice | D123: CZ/C1 | E123: M
A124: Jakub Kohn | B124: 1992 | C124: Prostějov | D124: CZ/M | E124: M
A125: Jakub Koudelka | B125: 2000 | C125: Křižanov | D125: =VLOOKUP(C125,Region,2,0) -> CZ/M | E125: M | F125: Junior v roce 2021
A126: Jakub Malik | B126: 1999 | C126: Letňany | D126: CZ/C1 | E126: M | F126: Junior v roce 2021
A127: Jakub Michalicka | B127: 1993 | C127: Rakovník | D127: CZ/C1 | E127: M
A128: Jakub Spanger | B128: 2002 | C128: Jeseník | D128: =VLOOKUP(C128,Region,2,0) -> CZ/M | E128: M | F128: =IF(A128="(prázdné)","",IF(($G$1-B128)>25,"","Junior v roce "&$G$1)) -> Junior v roce 2021
A129: Jakub Tiller | B129: 1987 | C129: Broumov | D129: CZ/C2 | E129: M
A130: Jakub Vimr | B130: 1975 | C130: GAC Benešov | D130: CZ/C1 | E130: M
A131: Jan Adam | B131: 2002 | C131: Podhořany | D131: =VLOOKUP(C131,Region,2,0) -> CZ/C2 | E131: M | F131: =IF(A131="(prázdné)","",IF(($G$1-B131)>25,"","Junior v roce "&$G$1)) -> Junior v roce 2021
A132: Jan Bejdl | B132: 1978 | C132: Zbraslavice | D132: =VLOOKUP(C132,Region,2,0) -> CZ/C1 | E132: M | F132: =IF(A132="(prázdné)","",IF(($G$1-B132)>25,"","Junior v roce "&$G$1)) -> 
A133: Jan Belina | B133: 1979 | C133: Hořice | D133: CZ/C2 | E133: M
A134: Jan Beran | B134: 1999 | C134: Kladno | D134: =VLOOKUP(C134,Region,2,0) -> CZ/C1 | E134: M | F134: Junior v roce 2021
A135: Jan Beranek | B135: 1976 | C135: Jihlava | D135: CZ/M | E135: M
A136: Jan Boruvka | B136: 1984 | C136: Jičín | D136: CZ/C2 | E136: M
A137: Jan Camr | B137: 2002 | C137: Jaroměř | D137: =VLOOKUP(C137,Region,2,0) -> CZ/C2 | E137: M | F137: =IF(A137="(prázdné)","",IF(($G$1-B137)>25,"","Junior v roce "&$G$1)) -> Junior v roce 2021
A138: Jan Cerveny | B138: 1984 | C138: Jaroměř | D138: CZ/C2 | E138: M
A139: Jan Cibulka | B139: 2002 | C139: Letňany | D139: =VLOOKUP(C139,Region,2,0) -> CZ/C1 | E139: M | F139: =IF(A139="(prázdné)","",IF(($G$1-B139)>25,"","Junior v roce "&$G$1)) -> Junior v roce 2021
A140: Jan Dersak 69 | B140: 1969 | C140: Kralupy | D140: CZ/C1 | E140: M
A141: Jan Dersak 92 | B141: 1992 | C141: Kralupy | D141: CZ/C1 | E141: M
A142: Jan Drahota | B142: 1988 | C142: Rakovník | D142: CZ/C1 | E142: M
A143: Jan Drbohlav | B143: 1999 | C143: Hodkovice | D143: =VLOOKUP(C143,Region,2,0) -> CZ/C2 | E143: M | F143: =IF(A143="(prázdné)","",IF(($G$1-B143)>25,"","Junior v roce "&$G$1)) -> Junior v roce 2021
A144: Jan Florian | B144: 1992 | C144: Zbraslavice | D144: CZ/C1 | E144: M
A145: Jan Habermann | B145: 1975 | C145: Vlašim | D145: =VLOOKUP(C145,Region,2,0) -> CZ/C1 | E145: M | F145: =IF(A145="(prázdné)","",IF(($G$1-B145)>25,"","Junior v roce "&$G$1)) -> 
A146: Jan Hejret | B146: 1976 | C146: Jaroměř | D146: CZ/C2 | E146: M
A147: Jan Heroudek | B147: 1970 | C147: Rakovník | D147: =VLOOKUP(C147,Region,2,0) -> CZ/C1 | E147: M | F147: =IF(A147="(prázdné)","",IF(($G$1-B147)>25,"","Junior v roce "&$G$1)) -> 
A148: Jan Hlavacek | B148: 1965 | C148: Rakovník | D148: CZ/C1 | E148: M
A149: Jan Horak | B149: 1971 | C149: Zbraslavice | D149: CZ/C1 | E149: M
A150: Jan Horky | B150: 1968 | C150: Medlánky | D150: CZ/M | E150: M
A151: Jan Hrbatsch | B151: 1989 | C151: Hodkovice | D151: CZ/C2 | E151: M
A152: Jan Hruska | B152: 1988 | C152: Tábor | D152: CZ/C1 | E152: M | F152: =IF(A152="(prázdné)","",IF(($G$1-B152)>25,"","Junior v roce "&$G$1)) -> 
A153: Jan Hybner | B153: 1977 | C153: Liberec | D153: =VLOOKUP(C153,Region,2,0) -> CZ/C2 | E153: M
A154: Jan Jicha | B154: 1984 | C154: Podhořany | D154: CZ/C2 | E154: M
A155: Jan Jindra | B155: 1981 | C155: Roudnice | D155: CZ/C2 | E155: M
A156: Jan Kantor | B156: 1983 | C156: Letňany | D156: CZ/C1 | E156: M
A157: Jan Kapralek | B157: 1991 | C157: Kladno | D157: CZ/C1 | E157: M
A158: Jan Karabec | B158: 2000 | C158: Podhořany | D158: =VLOOKUP(C158,Region,2,0) -> CZ/C2 | E158: M | F158: =IF(A158="(prázdné)","",IF(($G$1-B158)>25,"","Junior v roce "&$G$1)) -> Junior v roce 2021
A159: Jan Karnik | B159: 1976 | C159: Letkov | D159: =VLOOKUP(C159,Region,2,0) -> CZ/C1 | E159: M | F159: =IF(A159="(prázdné)","",IF(($G$1-B159)>25,"","Junior v roce "&$G$1)) -> 
A160: Jan Kaspar | B160: 1994 | C160: Letňany | D160: =VLOOKUP(C160,Region,2,0) -> CZ/C1 | E160: M
A161: Jan Kohout | B161: 1970 | C161: Žamberk | D161: CZ/C2 | E161: M
A162: Jan Konecny | B162: 1972 | C162: Rakovník | D162: CZ/C1 | E162: M
A163: Jan Kostka | B163: 1996 | C163: Kladno | D163: CZ/C1 | E163: M | F163: Junior v roce 2021
A164: Jan Kotan | B164: 1982 | C164: Letňany | D164: CZ/C1 | E164: M
A165: Jan Kralik | B165: 1991 | C165: Letkov | D165: CZ/C1 | E165: M
A166: Jan Kristof | B166: 1962 | C166: Frýdlant | D166: CZ/M | E166: M
A167: Jan Kulistak | B167: 1990 | C167: Kunovice | D167: CZ/M | E167: M
A168: Jan Lancdorf | B168: 1988 | C168: Panenský Týnec | D168: CZ/C1 | E168: M
A169: Jan Louda | B169: 1986 | C169: Mladá Boleslav | D169: CZ/C1 | E169: M
A170: Jan Mareth | B170: 1979 | C170: Frýdlant | D170: CZ/M | E170: M
A171: Jan Masek | B171: 1977 | C171: Kladno | D171: CZ/C1 | E171: M
A172: Jan Matejovsky | B172: 1972 | C172: Hranice | D172: CZ/M | E172: M
A173: Jan Merta | B173: 1952 | C173: Šumperk | D173: CZ/M | E173: M
A174: Jan Mittner | B174: 1986 | C174: Zbraslavice | D174: =VLOOKUP(C174,Region,2,0) -> CZ/C1 | E174: M | F174: =IF(A174="(prázdné)","",IF(($G$1-B174)>25,"","Junior v roce "&$G$1)) -> 
A175: Jan Moravec | B175: 1979 | C175: Zábřeh | D175: CZ/M | E175: M
A176: Jan Nyc | B176: 1943 | C176: Dvůr Králové | D176: =VLOOKUP(C176,Region,2,0) -> CZ/C2 | E176: M | F176: =IF(A176="(prázdné)","",IF(($G$1-B176)>25,"","Junior v roce "&$G$1)) -> 
A177: Jan Obrucnik | B177: 1991 | C177: Kralupy | D177: CZ/C1 | E177: M
A178: Jan Oscatka | B178: 1990 | C178: Jaroměř | D178: =VLOOKUP(C178,Region,2,0) -> CZ/C2 | E178: M | F178: =IF(A178="(prázdné)","",IF(($G$1-B178)>25,"","Junior v roce "&$G$1)) -> 
A179: Jan Otrusina | B179: 1976 | C179: Křižanov | D179: CZ/M | E179: M
A180: Jan Ourada | B180: 1978 | C180: Točná | D180: CZ/C1 | E180: M
A181: Jan Pavlik | B181: 1987 | C181: Křižanov | D181: CZ/M | E181: M
A182: Jan Pazour | B182: 1979 | C182: Dvůr Králové | D182: =VLOOKUP(C182,Region,2,0) -> CZ/C2 | E182: M | F182: =IF(A182="(prázdné)","",IF(($G$1-B182)>25,"","Junior v roce "&$G$1)) -> 
A183: Jan Platenik | B183: 1981 | C183: Krnov | D183: CZ/M | E183: M
A184: Jan Podhrazsky | B184: 1976 | C184: Šumperk | D184: CZ/M | E184: M
A185: Jan Pokluda | B185: 1973 | C185: Šumperk | D185: CZ/M | E185: M
A186: Jan Pubec | B186: 1979 | C186: Plzeň Bory | D186: CZ/C1 | E186: M
A187: Jan Ratz | B187: 1987 | C187: Zbraslavice | D187: CZ/C1 | E187: M
A188: Jan Rensa | B188: 1980 | C188: Polička | D188: CZ/C2 | E188: M
A189: Jan Rolinek | B189: 1973 | C189: Luhačovice | D189: CZ/M | E189: M
A190: Jan Rott | B190: 1962 | C190: Hronov | D190: CZ/C2 | E190: M
A191: Jan Repka | B191: 1959 | C191: Liberec | D191: CZ/C2 | E191: M
A192: Jan Seifert | B192: 1948 | C192: Raná | D192: CZ/C2 | E192: M
A193: Jan Simon | B193: 1970 | C193: Kralupy | D193: CZ/C1 | E193: M
A194: Jan Sindelar | B194: 1946 | C194: Kunovice | D194: CZ/M | E194: M
A195: Jan Smaha | B195: 1958 | C195: Česká Lípa | D195: CZ/C2 | E195: M
A196: Jan Smekal | B196: 1976 | C196: Zbraslavice | D196: =VLOOKUP(C196,Region,2,0) -> CZ/C1 | E196: M | F196: =IF(A196="(prázdné)","",IF(($G$1-B196)>25,"","Junior v roce "&$G$1)) -> 
A197: Jan Sponer | B197: 1988 | C197: Medlánky | D197: CZ/M | E197: M
A198: Jan Stastny | B198: 2003 | C198: Medlánky | D198: =VLOOKUP(C198,Region,2,0) -> CZ/M | E198: M | F198: Junior v roce 2021
A199: Jan Stepan | B199: 1991 | C199: Hronov | D199: CZ/C2 | E199: M
A200: Jan Sustr 76 | B200: 1976 | C200: Raná | D200: CZ/C2 | E200: M
... 761 more rows

Sheet Region
A1: Aeroklub | B1: Region | C1: Počet | D1: =C70+C37+C2 -> 89
A2: Benešov | B2: CZ/C1 | C2: =COUNTIF(B2:B35,B2) -> 34
A3: Beroun | B3: CZ/C1
A4: Bystřice u Benešova | B4: CZ/C1
A5: Erpužice | B5: CZ/C1
A6: GAC Benešov | B6: CZ/C1
A7: Hořovice | B7: CZ/C1
A8: Hosín | B8: CZ/C1
A9: Jindřichův Hradec | B9: CZ/C1
A10: Karlovy Vary | B10: CZ/C1
A11: Karlštejn | B11: CZ/C1
A12: Kladno | B12: CZ/C1
A13: Klatovy | B13: CZ/C1
A14: Kolín | B14: CZ/C1
A15: Kralupy | B15: CZ/C1
A16: Letkov | B16: CZ/C1
A17: Letňany | B17: CZ/C1
A18: Mladá Boleslav | B18: CZ/C1
A19: Nesvačily | B19: CZ/C1
A20: Panenský Týnec | B20: CZ/C1
A21: Plasy | B21: CZ/C1
A22: Plzeň Bory | B22: CZ/C1
A23: Prachatice | B23: CZ/C1
A24: Příbram | B24: CZ/C1
A25: Rakovník | B25: CZ/C1
A26: Slaný | B26: CZ/C1
A27: Soběslav | B27: CZ/C1
A28: Staňkov | B28: CZ/C1
A29: Strakonice | B29: CZ/C1
A30: Tábor | B30: CZ/C1
A31: Tachov | B31: CZ/C1
A32: Točná | B32: CZ/C1
A33: Toužim | B33: CZ/C1
A34: Vlašim | B34: CZ/C1
A35: Zbraslavice | B35: CZ/C1
A36: - | B36: -
A37: Broumov | B37: CZ/C2 | C37: =COUNTIF(B37:B68,B37) -> 32
A38: Česká Lípa | B38: CZ/C2
A39: Dvůr Králové | B39: CZ/C2
A40: Havlíčkův Brod | B40: CZ/C2
A41: Hodkovice | B41: CZ/C2
A42: Hořice | B42: CZ/C2
A43: Hradčany | B43: CZ/C2
A44: Hronov | B44: CZ/C2
A45: Chomutov | B45: CZ/C2
A46: Chotěboř | B46: CZ/C2
A47: Chrudim | B47: CZ/C2
A48: Jaroměř | B48: CZ/C2
A49: Jičín | B49: CZ/C2
A50: Letecká společnost na Vysočině | B50: CZ/C2
A51: Liberec | B51: CZ/C2
A52: Mnichovo Hradiště | B52: CZ/C2
A53: Most | B53: CZ/C2
A54: Náchod | B54: CZ/C2
A55: Nové Město nad Metují | B55: CZ/C2
A56: Pardubice | B56: CZ/C2
A57: Podhořany | B57: CZ/C2
A58: Polička | B58: CZ/C2
A59: Přibyslav | B59: CZ/C2
A60: Raná | B60: CZ/C2
A61: Roudnice | B61: CZ/C2
A62: Skuteč | B62: CZ/C2
A63: Turnov | B63: CZ/C2
A64: Ústí nad Labem | B64: CZ/C2
A65: Ústí nad Orlicí | B65: CZ/C2
A66: Vrchlabí | B66: CZ/C2
A67: Vysoké Mýto | B67: CZ/C2
A68: Žamberk | B68: CZ/C2
A69: - | B69: -
A70: Bohuňovice | B70: CZ/M | C70: =COUNTIF(B70:B92,B70) -> 23
A71: Břeclav | B71: CZ/M
A72: LK Břeclav | B72: CZ/M
A73: Frýdlant | B73: CZ/M
A74: Hranice | B74: CZ/M
A75: Jeseník | B75: CZ/M
A76: Jihlava | B76: CZ/M
A77: Krnov | B77: CZ/M
A78: Kroměříž | B78: CZ/M
A79: Křižanov | B79: CZ/M
A80: Kunovice | B80: CZ/M
A81: Kyjov | B81: CZ/M
A82: Luhačovice | B82: CZ/M
A83: Medlánky | B83: CZ/M
A84: Moravská Třebová | B84: CZ/M
A85: Olomouc | B85: CZ/M
A86: Prostějov | B86: CZ/M
A87: Slatina | B87: CZ/M
A88: Slavičín | B88: CZ/M
A89: Stichovice | B89: CZ/M
A90: Šumperk | B90: CZ/M
A91: Vyškov | B91: CZ/M
A92: Zábřeh | B92: CZ/M
A94: Aalborg | B94: DK
A95: Air Sympatia | B95: SK
A96: Akaflieg Dresden | B96: DE
A97: Bad Nauheim | B97: DE
A98: Bratislava | B98: SK
A99: Dánsko | B99: DK
A100: Greiz | B100: DE
A101: Japonsko | B101: JP
A102: Jelenia Góra | B102: PL
A103: Martin | B103: SK
A104: Německo | B104: DE
A105: Nitra | B105: SK
A106: Novo Mesto | B106: SI
A107: Poprad | B107: SK
A108: Prešov | B108: SK
A109: Prievidza | B109: SK
A110: Rakousko | B110: AT
A111: Ružomberok | B111: SK
A112: SGC Martin | B112: SK
A113: Slovinsko | B113: SI
A114: Trenčín | B114: SK
A115: Trnava | B115: SK
A116: Žilina | B116: SK

Sheet Data
M1: Počet X filtr: | N1: =SUBTOTAL(103,N7:N4936) -> 3 | O1: =SUBTOTAL(103,O7:O4936) -> 0
A2: * | M2: Počet X: | N2: =COUNTIFS(N$7:N$4936,"x",$A$7:$A$4936,$A$2) -> 1044 | O2: =COUNTIFS(O$7:O$4936,"x",$A$7:$A$4936,$A$2) -> 87
H3: 2017 | N3: =COUNTIFS($H$7:$H$1153,$H3,N$7:N$1153,"x",$A$7:$A$1153,$A$2) -> 0 | O3: 0
H4: 2016 | N4: 0 | O4: 0
H5: 2015 | N5: 0 | O5: 0
A6: Jméno | B6: Rok narození | C6: M/F | D6: Aeroklub | E6: Region | F6: Soutěž | G6: Stát | H6: Rok | I6: Pořadí ve třídě | J6: Body ve třídě | K6: Kinp | L6: Bi | M6: Bi×Kinp | N6: G | O6: W | P6: Typ | Q6: CN | R6: Junior | S6: Poznámka
A7: Pavel Rericha | B7: =VLOOKUP(A7,Pilot,2,0) -> 1967 | C7: =VLOOKUP(A7,Pilot,5,0) -> M | D7: =VLOOKUP(A7,Pilot,3,0) -> Moravská Třebová | E7: =VLOOKUP(A7,Pilot,4,0) -> CZ/M | F7: JPJ 2018 - Klub | G7: CZ | H7: 2018 | I7: 1 | J7: 1496 | K7: =VLOOKUP(F7,Soutez,12,0) -> 0 | L7: =ROUND(J7/MAX($J$7:$J$51)*10000*0.7+(MAX($I$7:$I$51)-I7)/(MAX($I$7:$I$51)-1)*10000*0.3,0) -> 10000 | M7: =ROUND(K7*L7,0) -> 0 | P7: ASW-19B | Q7: NO | R7: =IF(ISERROR(VLOOKUP(A7,Pilot,6,0)),"Není v databázi",VLOOKUP(A7,Pilot,6,0)) -> 
A8: Petr Vodicka | B8: 1965 | C8: M | D8: Jaroměř | E8: CZ/C2 | F8: JPJ 2018 - Klub | G8: CZ | H8: 2018 | I8: 2 | J8: 1389 | K8: 0 | L8: =ROUND(J8/MAX($J$7:$J$51)*10000*0.7+(MAX($I$7:$I$51)-I8)/(MAX($I$7:$I$51)-1)*10000*0.3,0) -> 9430 | M8: 0 | P8: Janus dvojí | Q8: BV
A9: Vaclav Marel | B9: 1974 | C9: M | D9: Jaroměř | E9: CZ/C2 | F9: JPJ 2018 - Klub | G9: CZ | H9: 2018 | I9: 3 | J9: 1384 | K9: 0 | L9: 9336 | M9: 0 | P9: Std. Cirrus | Q9: IF
A10: Lubomir Motl | B10: 1959 | C10: M | D10: Kyjov | E10: CZ/M | F10: JPJ 2018 - Klub | G10: CZ | H10: 2018 | I10: 4 | J10: 1348 | K10: 0 | L10: 9098 | M10: 0 | P10: LS-1f | Q10: G2
A11: Martin Ficnar | B11: 1971 | C11: M | D11: Šumperk | E11: CZ/M | F11: JPJ 2018 - Klub | G11: CZ | H11: 2018 | I11: 5 | J11: 1297 | K11: 0 | L11: 8790 | M11: 0 | P11: LS-3a 15m | Q11: S20
A12: Jiri Koudela | B12: 1974 | C12: M | D12: Vyškov | E12: CZ/M | F12: JPJ 2018 - Klub | G12: CZ | H12: 2018 | I12: 6 | J12: 1284 | K12: 0 | L12: 8659 | M12: 0 | P12: ASW-19B | Q12: JK
A13: Rene Hudak | B13: 1972 | C13: M | D13: Kunovice | E13: CZ/M | F13: JPJ 2018 - Klub | G13: CZ | H13: 2018 | I13: 7 | J13: 1277 | K13: 0 | L13: 8557 | M13: 0 | P13: Std. Cirrus WL | Q13: NK
A14: Josef Novak | B14: 1981 | C14: M | D14: Kunovice | E14: CZ/M | F14: JPJ 2018 - Klub | G14: CZ | H14: 2018 | I14: 8 | J14: 1234 | K14: 0 | L14: 8286 | M14: 0 | P14: LS-1f | Q14: JT
A15: Martin Kriz | B15: 1968 | C15: M | D15: Přibyslav | E15: CZ/C2 | F15: JPJ 2018 - Klub | G15: CZ | H15: 2018 | I15: 9 | J15: 1180 | K15: 0 | L15: 7963 | M15: 0 | P15: ASW-15B | Q15: BE
A16: Petr Jedlicka | B16: 1987 | C16: M | D16: Medlánky | E16: CZ/M | F16: JPJ 2018 - Klub | G16: CZ | H16: 2018 | I16: 10 | J16: 1167 | K16: 0 | L16: 7833 | M16: 0 | P16: Phoebus A1 | Q16: NN
A17: Radek Zima 75 | B17: 1975 | C17: M | D17: Břeclav | E17: CZ/M | F17: JPJ 2018 - Klub | G17: CZ | H17: 2018 | I17: 11 | J17: 1123 | K17: 0 | L17: 7557 | M17: 0 | P17: DG-100 | Q17: M
A18: Stanislav Doskocil | B18: 1978 | C18: M | D18: Medlánky | E18: CZ/M | F18: JPJ 2018 - Klub | G18: CZ | H18: 2018 | I18: 12 | J18: 1077 | K18: 0 | L18: 7272 | M18: 0 | P18: Std. Cirrus | Q18: SD
A19: Tomas Prikryl | B19: 1973 | C19: M | D19: Vyškov | E19: CZ/M | F19: JPJ 2018 - Klub | G19: CZ | H19: 2018 | I19: 13 | J19: 1065 | K19: 0 | L19: 7146 | M19: 0 | P19: DG-101 G | Q19: JR
A20: Roman Lengal | B20: 1987 | C20: M | D20: Břeclav | E20: CZ/M | F20: JPJ 2018 - Klub | G20: CZ | H20: 2018 | I20: 14 | J20: 1051 | K20: 0 | L20: 7011 | M20: 0 | P20: Cirrus VTC | Q20: 13
A21: Peter Kaspar | B21: 1980 | C21: M | D21: Vyškov | E21: CZ/M | F21: JPJ 2018 - Klub | G21: CZ | H21: 2018 | I21: 15 | J21: 1048 | K21: 0 | L21: 6927 | M21: 0 | P21: G-102 Astir 77 | Q21: AP
A22: Jan Kohout | B22: 1970 | C22: M | D22: Žamberk | E22: CZ/C2 | F22: JPJ 2018 - Klub | G22: CZ | H22: 2018 | I22: 16 | J22: 1038 | K22: 0 | L22: 6810 | M22: 0 | P22: Std. Cirrus | Q22: OK6
A23: David Vrchota | B23: 1976 | C23: M | D23: Jaroměř | E23: CZ/C2 | F23: JPJ 2018 - Klub | G23: CZ | H23: 2018 | I23: 17 | J23: 1033 | K23: 0 | L23: 6717 | M23: 0 | P23: Std. Cirrus | Q23: GO
A24: Michal Cupak | B24: 1991 | C24: M | D24: Medlánky | E24: CZ/M | F24: JPJ 2018 - Klub | G24: CZ | H24: 2018 | I24: 18 | J24: 1031 | K24: 0 | L24: 6638 | M24: 0 | P24: Std. Cirrus | Q24: MP
A25: Karel Horalek | B25: 1976 | C25: M | D25: Olomouc | E25: CZ/M | F25: JPJ 2018 - Klub | G25: CZ | H25: 2018 | I25: 19 | J25: 1022 | K25: 0 | L25: 6526 | M25: 0 | P25: LS-3 15m | Q25: Y1
A26: Miroslav Mancik | B26: 1976 | C26: M | D26: Kyjov | E26: CZ/M | F26: JPJ 2018 - Klub | G26: CZ | H26: 2018 | I26: 20 | J26: 986 | K26: 0 | L26: 6288 | M26: 0 | P26: Std. Cirrus | Q26: 90
A27: Martin Urner | B27: 1974 | C27: M | D27: Letňany | E27: CZ/C1 | F27: JPJ 2018 - Klub | G27: CZ | H27: 2018 | I27: 21 | J27: 977 | K27: 0 | L27: 6176 | M27: 0 | P27: ASW-15B | Q27: JJ
A28: Ladislav Jozsa | B28: 1981 | C28: M | D28: Medlánky | E28: CZ/M | F28: JPJ 2018 - Klub | G28: CZ | H28: 2018 | I28: 22 | J28: 937 | K28: 0 | L28: 5919 | M28: 0 | P28: Std. Cirrus | Q28: LJ
A29: Pavel Simek | B29: 1957 | C29: M | D29: Vyškov | E29: CZ/M | F29: JPJ 2018 - Klub | G29: CZ | H29: 2018 | I29: 23 | J29: 928 | K29: 0 | L29: =ROUND(J29/MAX($J$7:$J$51)*10000*0.7+(MAX($I$7:$I$51)-I29)/(MAX($I$7:$I$51)-1)*10000*0.3,0) -> 5807 | M29: 0 | P29: DG-1000S 18m | Q29: 66
A30: Tomas Ondrisek | B30: 1970 | C30: M | D30: Kunovice | E30: CZ/M | F30: JPJ 2018 - Klub | G30: CZ | H30: 2018 | I30: 24 | J30: 914 | K30: 0 | L30: 5672 | M30: 0 | P30: DG-400 15m | Q30: MR
A31: Lukas Petrzela | B31: 1987 | C31: M | D31: Olomouc | E31: CZ/M | F31: JPJ 2018 - Klub | G31: CZ | H31: 2018 | I31: 24 | J31: 914 | K31: 0 | L31: 5672 | M31: 0 | P31: VSO-10 | Q31: I7
A32: Oldrich Kounovsky | B32: 1976 | C32: M | D32: Medlánky | E32: CZ/M | F32: JPJ 2018 - Klub | G32: CZ | H32: 2018 | I32: 24 | J32: 914 | K32: 0 | L32: 5672 | M32: 0 | P32: Std. Cirrus | Q32: MSkl
A33: Jiri Vavrina | B33: 1958 | C33: M | D33: Kyjov | E33: CZ/M | F33: JPJ 2018 - Klub | G33: CZ | H33: 2018 | I33: 27 | J33: 864 | K33: 0 | L33: 5229 | M33: 0 | P33: LS-1f | Q33: BS
A34: Petr Valenta 76 | B34: 1976 | C34: M | D34: Jaroměř | E34: CZ/C2 | F34: JPJ 2018 - Klub | G34: CZ | H34: 2018 | I34: 28 | J34: 863 | K34: 0 | L34: 5154 | M34: 0 | P34: Discus b | Q34: JA
A35: Martin Svarc | B35: 1981 | C35: M | D35: Olomouc | E35: CZ/M | F35: JPJ 2018 - Klub | G35: CZ | H35: 2018 | I35: 29 | J35: 856 | K35: 0 | L35: 5052 | M35: 0 | P35: DG-101 G | Q35: HE
A36: Antonin Pilat | B36: 1971 | C36: M | D36: Vyškov | E36: CZ/M | F36: JPJ 2018 - Klub | G36: CZ | H36: 2018 | I36: 30 | J36: 776 | K36: 0 | L36: 4608 | M36: 0 | P36: DG-200 15m | Q36: JB
A37: Libor Bednarik | B37: 1972 | C37: M | D37: Kunovice | E37: CZ/M | F37: JPJ 2018 - Klub | G37: CZ | H37: 2018 | I37: 31 | J37: 731 | K37: 0 | L37: 4327 | M37: 0 | P37: Std. Cirrus | Q37: PIF
A38: Jaromir Vlk | B38: 1959 | C38: M | D38: Šumperk | E38: CZ/M | F38: JPJ 2018 - Klub | G38: CZ | H38: 2018 | I38: 32 | J38: 690 | K38: 0 | L38: 4066 | M38: 0 | P38: ASW-15B | Q38: R5
A39: Vit Prokop | B39: =VLOOKUP(A39,Pilot,2,0) -> 1987 | C39: =VLOOKUP(A39,Pilot,5,0) -> M | D39: =VLOOKUP(A39,Pilot,3,0) -> Medlánky | E39: =VLOOKUP(A39,Pilot,4,0) -> CZ/M | F39: JPJ 2018 - Klub | G39: CZ | H39: 2018 | I39: 33 | J39: 623 | K39: 0 | L39: 3683 | M39: 0 | P39: Std. Cirrus | Q39: MF
A40: Petr Havrlant | B40: 1965 | C40: M | D40: Šumperk | E40: CZ/M | F40: JPJ 2018 - Klub | G40: CZ | H40: 2018 | I40: 34 | J40: 558 | K40: 0 | L40: 3309 | M40: 0 | P40: ASW-15B | Q40: Q1
A41: Yvona Vyhnankova | B41: 1963 | C41: F | D41: Olomouc | E41: CZ/M | F41: JPJ 2018 - Klub | G41: CZ | H41: 2018 | I41: 35 | J41: 537 | K41: 0 | L41: 3141 | M41: 0 | P41: ASW-15 | Q41: YZ
A42: Lubomir Papezik | B42: 1951 | C42: M | D42: Luhačovice | E42: CZ/M | F42: JPJ 2018 - Klub | G42: CZ | H42: 2018 | I42: 36 | J42: 518 | K42: 0 | L42: 2982 | M42: 0 | P42: LS-4 | Q42: FP
A43: Sabina Vitova | B43: 1998 | C43: F | D43: Kroměříž | E43: CZ/M | F43: JPJ 2018 - Klub | G43: CZ | H43: 2018 | I43: 37 | J43: 494 | K43: 0 | L43: 2800 | M43: 0 | P43: G-102 Astir Jeans | Q43: 2Y | R43: Junior v roce 2021
A44: Marek Sild | B44: 1976 | C44: M | D44: Kunovice | E44: CZ/M | F44: JPJ 2018 - Klub | G44: CZ | H44: 2018 | I44: 38 | J44: 440 | K44: 0 | L44: 2477 | M44: 0 | P44: DG-400 15m | Q44: VZ
A45: Martin Novak | B45: 1976 | C45: M | D45: Slaný | E45: CZ/C1 | F45: JPJ 2018 - Klub | G45: CZ | H45: 2018 | I45: 39 | J45: 423 | K45: 0 | L45: 2328 | M45: 0 | P45: DG-400 15m | Q45: ZX
A46: Jan Pokluda | B46: 1973 | C46: M | D46: Šumperk | E46: CZ/M | F46: JPJ 2018 - Klub | G46: CZ | H46: 2018 | I46: 40 | J46: 185 | K46: 0 | L46: 1145 | M46: 0 | P46: ASW-15B WL | Q46: JG
A47: Ludek Mikl | B47: 1963 | C47: M | D47: Kroměříž | E47: CZ/M | F47: JPJ 2018 - Klub | G47: CZ | H47: 2018 | I47: 41 | J47: 147 | K47: 0 | L47: 897 | M47: 0 | P47: G-102 Astir Jeans | Q47: L1
A48: Lukas Fronek | B48: 1989 | C48: M | D48: Kyjov | E48: CZ/M | F48: JPJ 2018 - Klub | G48: CZ | H48: 2018 | I48: 42 | J48: 123 | K48: 0 | L48: 715 | M48: 0 | P48: G-103 Twin Basic | Q48: KW
A49: Roman Schotli | B49: 1970 | C49: M | D49: Hranice | E49: CZ/M | F49: JPJ 2018 - Klub | G49: CZ | H49: 2018 | I49: 43 | J49: 65 | K49: 0 | L49: 374 | M49: 0 | P49: ASW-19B | Q49: 19
A50: Michal Kodousek | B50: 1983 | C50: M | D50: Jaroměř | E50: CZ/C2 | F50: JPJ 2018 - Klub | G50: CZ | H50: 2018 | I50: 44 | J50: 0 | K50: 0 | L50: 0 | M50: 0 | P50: LS-3 15m | Q50: RI
A51: Pavel Handl | B51: 1971 | C51: M | D51: Kroměříž | E51: CZ/M | F51: JPJ 2018 - Klub | G51: CZ | H51: 2018 | I51: 44 | J51: 0 | K51: 0 | L51: 0 | M51: 0 | P51: Phoebus A1 | Q51: P1
A52: Jiri Steiger | B52: 1969 | C52: M | D52: Olomouc | E52: CZ/M | F52: JPJ 2018 - Kombi | G52: CZ | H52: 2018 | I52: 1 | J52: 1343 | K52: 0 | L52: =ROUND(J52/MAX($J$52:$J$75)*10000*0.7+(MAX($I$52:$I$75)-I52)/(MAX($I$52:$I$75)-1)*10000*0.3,0) -> 10000 | M52: 0 | P52: Ventus 2cxt 18m | Q52: JS
A53: Zdenek Boruvka 54 | B53: 1954 | C53: M | D53: Jičín | E53: CZ/C2 | F53: JPJ 2018 - Kombi | G53: CZ | H53: 2018 | I53: 2 | J53: 1309 | K53: 0 | L53: =ROUND(J53/MAX($J$52:$J$75)*10000*0.7+(MAX($I$52:$I$75)-I53)/(MAX($I$52:$I$75)-1)*10000*0.3,0) -> 9692 | M53: 0 | P53: LS-8 15m | Q53: ZB
A54: Marek Blatak | B54: 1969 | C54: M | D54: Šumperk | E54: CZ/M | F54: JPJ 2018 - Kombi | G54: CZ | H54: 2018 | I54: 3 | J54: 1295 | K54: 0 | L54: =ROUND(J54/MAX($J$52:$J$75)*10000*0.7+(MAX($I$52:$I$75)-I54)/(MAX($I$52:$I$75)-1)*10000*0.3,0) -> 9489 | M54: 0 | P54: Duo Discus T | Q54: ZS
A55: Pavel Zima | B55: 1979 | C55: M | D55: Břeclav | E55: CZ/M | F55: JPJ 2018 - Kombi | G55: CZ | H55: 2018 | I55: 4 | J55: 1285 | K55: 0 | L55: 9306 | M55: 0 | P55: Ventus cm 17,6m | Q55: RK
A56: Frantisek Vancura | B56: 1966 | C56: M | D56: Hranice | E56: CZ/M | F56: JPJ 2018 - Kombi | G56: CZ | H56: 2018 | I56: 5 | J56: 1215 | K56: 0 | L56: 8811 | M56: 0 | P56: Nimbus 3 24,5m WL | Q56: A1
A57: Zdenek Schenk | B57: 1972 | C57: M | D57: Hranice | E57: CZ/M | F57: JPJ 2018 - Kombi | G57: CZ | H57: 2018 | I57: 6 | J57: 1159 | K57: 0 | L57: 8389 | M57: 0 | P57: Ventus ct 17,6m | Q57: ŠNeK
A58: Jaroslav Buryan | B58: 1953 | C58: M | D58: Zábřeh | E58: CZ/M | F58: JPJ 2018 - Kombi | G58: CZ | H58: 2018 | I58: 7 | J58: 1144 | K58: 0 | L58: 8180 | M58: 0 | P58: ASW-20 15m WL | Q58: NS
A59: Roman Konarik | B59: 1976 | C59: M | D59: Luhačovice | E59: CZ/M | F59: JPJ 2018 - Kombi | G59: CZ | H59: 2018 | I59: 8 | J59: 1132 | K59: 0 | L59: 7987 | M59: 0 | P59: Arcus M | Q59: AR
A60: Michal Cechmanek | B60: 1978 | C60: M | D60: Luhačovice | E60: CZ/M | F60: JPJ 2018 - Kombi | G60: CZ | H60: 2018 | I60: 9 | J60: 1120 | K60: 0 | L60: 7794 | M60: 0 | P60: ASW-20 15m WL | Q60: MK
A61: Miroslav Koci | B61: 1961 | C61: M | D61: Žamberk | E61: CZ/C2 | F61: JPJ 2018 - Kombi | G61: CZ | H61: 2018 | I61: 10 | J61: 1092 | K61: 0 | L61: 7518 | M61: 0 | P61: Ventus 2cxt 18m | Q61: E8
A62: Jan Matejovsky | B62: 1972 | C62: M | D62: Hranice | E62: CZ/M | F62: JPJ 2018 - Kombi | G62: CZ | H62: 2018 | I62: 11 | J62: 1033 | K62: 0 | L62: 7080 | M62: 0 | P62: Duo Discus | Q62: OK
A63: Jan Simon | B63: 1970 | C63: M | D63: Kralupy | E63: CZ/C1 | F63: JPJ 2018 - Kombi | G63: CZ | H63: 2018 | I63: 12 | J63: 971 | K63: 0 | L63: 6626 | M63: 0 | P63: Nimbus 3 22,9m WL | Q63: HS
A64: Miroslav Sklenar | B64: 1964 | C64: M | D64: Žamberk | E64: CZ/C2 | F64: JPJ 2018 - Kombi | G64: CZ | H64: 2018 | I64: 13 | J64: 968 | K64: 0 | L64: 6480 | M64: 0 | P64: Duo Discus | Q64: VP
A65: Albrecht Beat | B65: 1953 | C65: M | D65: Šumperk | E65: CZ/M | F65: JPJ 2018 - Kombi | G65: CZ | H65: 2018 | I65: 14 | J65: 967 | K65: 0 | L65: 6345 | M65: 0 | P65: LS-8-18 18m | Q65: GL
A66: Antonin Kutalek | B66: 1943 | C66: M | D66: Zábřeh | E66: CZ/M | F66: JPJ 2018 - Kombi | G66: CZ | H66: 2018 | I66: 15 | J66: 888 | K66: 0 | L66: 5802 | M66: 0 | P66: Mini-Nimbus c | Q66: GL1
A67: Boris Bachraty | B67: 1974 | C67: M | D67: Břeclav | E67: CZ/M | F67: JPJ 2018 - Kombi | G67: CZ | H67: 2018 | I67: 16 | J67: 810 | K67: 0 | L67: 5265 | M67: 0 | P67: SZD-42 Jantar 2B | Q67: 25
A68: Filip Vita | B68: 2001 | C68: M | D68: Kroměříž | E68: CZ/M | F68: JPJ 2018 - Kombi | G68: CZ | H68: 2018 | I68: 17 | J68: 764 | K68: 0 | L68: 4895 | M68: 0 | P68: LAK-12 | Q68: FL | R68: Junior v roce 2021
A69: Vladimir Spilka | B69: 1940 | C69: M | D69: Hranice | E69: CZ/M | F69: JPJ 2018 - Kombi | G69: CZ | H69: 2018 | I69: 18 | J69: 763 | K69: 0 | L69: 4760 | M69: 0 | P69: Nimbus 2b | Q69: AY
A70: Antonin Konicek | B70: 1973 | C70: M | D70: Kunovice | E70: CZ/M | F70: JPJ 2018 - Kombi | G70: CZ | H70: 2018 | I70: 19 | J70: 737 | K70: 0 | L70: 4494 | M70: 0 | P70: HpH 304M SHARK | Q70: KK
A71: Tomas Profeld | B71: =VLOOKUP(A71,Pilot,2,0) -> 1964 | C71: =VLOOKUP(A71,Pilot,5,0) -> M | D71: =VLOOKUP(A71,Pilot,3,0) -> Jičín | E71: =VLOOKUP(A71,Pilot,4,0) -> CZ/C2 | F71: JPJ 2018 - Kombi | G71: CZ | H71: 2018 | I71: 20 | J71: 539 | K71: =VLOOKUP(F71,Soutez,12,0) -> 0 | L71: 3331 | M71: =ROUND(K71*L71,0) -> 0 | P71: Ventus 2cm 18m | Q71: OZ | R71: =IF(ISERROR(VLOOKUP(A71,Pilot,6,0)),"Není v databázi",VLOOKUP(A71,Pilot,6,0)) -> 
A72: Dusan Sys | B72: 1977 | C72: M | D72: Šumperk | E72: CZ/M | F72: JPJ 2018 - Kombi | G72: CZ | H72: 2018 | I72: 21 | J72: 529 | K72: 0 | L72: 3149 | M72: 0 | P72: DG-808 C WL | Q72: MSko
A73: Kamil Sohr | B73: 1973 | C73: M | D73: Šumperk | E73: CZ/M | F73: JPJ 2018 - Kombi | G73: CZ | H73: 2018 | I73: 22 | J73: 419 | K73: 0 | L73: 2445 | M73: 0 | P73: SZD-55 Promyk | Q73: BC
A74: Pavel Haluza | B74: 1966 | C74: M | D74: Prostějov | E74: CZ/M | F74: JPJ 2018 - Kombi | G74: CZ | H74: 2018 | I74: 23 | J74: 377 | K74: 0 | L74: 2095 | M74: 0 | P74: Nimbus 2b | Q74: HT
A75: Roman Cerny | B75: 1971 | C75: M | D75: Hranice | E75: CZ/M | F75: JPJ 2018 - Kombi | G75: CZ | H75: 2018 | I75: 24 | J75: 0 | K75: 0 | L75: 0 | M75: 0 | P75: ASW-20 15m WL | Q75: 67
A76: Oldrich Slavicek | B76: 1959 | C76: M | D76: Hronov | E76: CZ/C2 | F76: HOP 2018 - Klub | G76: CZ | H76: 2018 | I76: 1 | J76: 4723 | K76: 0.76 | L76: =ROUND(J76/MAX($J$76:$J$101)*10000*0.7+(MAX($I$76:$I$101)-I76)/(MAX($I$76:$I$101)-1)*10000*0.3,0) -> 10000 | M76: 7600 | N76: x | P76: VT-116 | Q76: 4310
A77: Milan Svoboda 80 | B77: 1980 | C77: M | D77: Havlíčkův Brod | E77: CZ/C2 | F77: HOP 2018 - Klub | G77: CZ | H77: 2018 | I77: 2 | J77: 4460 | K77: 0.76 | L77: =ROUND(J77/MAX($J$76:$J$101)*10000*0.7+(MAX($I$76:$I$101)-I77)/(MAX($I$76:$I$101)-1)*10000*0.3,0) -> 9490 | M77: 7212 | N77: x | P77: VT-116 | Q77: 6446
A78: Jan Sindelar | B78: 1946 | C78: M | D78: Kunovice | E78: CZ/M | F78: HOP 2018 - Klub | G78: CZ | H78: 2018 | I78: 3 | J78: 4427 | K78: 0.76 | L78: 9321 | M78: 7084 | N78: x | P78: VT-116 | Q78: 7410
A79: Miroslav Stepan | B79: 1955 | C79: M | D79: Žamberk | E79: CZ/C2 | F79: HOP 2018 - Klub | G79: CZ | H79: 2018 | I79: 4 | J79: 4254 | K79: 0.76 | L79: 8945 | M79: 6798 | N79: x | P79: VT-116 | Q79: 8412
A80: Wolfgang Sluka | B80: 1942 | C80: M | D80: Liberec | E80: CZ/C2 | F80: HOP 2018 - Klub | G80: CZ | H80: 2018 | I80: 5 | J80: 4150 | K80: 0.76 | L80: 8671 | M80: 6590 | P80: VT-116 | Q80: 8425
A81: M.VondraCek, K.Teichmannova | C81: - | D81: Hronov | E81: CZ/C2 | F81: HOP 2018 - Klub | G81: CZ | H81: 2018 | I81: 6 | J81: 4059 | K81: 0.76 | L81: 8416 | M81: 6396 | P81: VT-16 | Q81: 2909 | R81: Není v databázi
A82: Jiri Klicnar | B82: =VLOOKUP(A82,Pilot,2,0) -> 1965 | C82: =VLOOKUP(A82,Pilot,5,0) -> M | D82: =VLOOKUP(A82,Pilot,3,0) -> Medlánky | E82: =VLOOKUP(A82,Pilot,4,0) -> CZ/M | F82: HOP 2018 - Klub | G82: CZ | H82: 2018 | I82: 7 | J82: 3825 | K82: 0.76 | L82: 7949 | M82: 6041 | N82: x | P82: M-28 | Q82: 2903
A83: Monika Jiraskova | B83: 1994 | C83: F | D83: Hronov | E83: CZ/C2 | F83: HOP 2018 - Klub | G83: CZ | H83: 2018 | I83: 8 | J83: 3804 | K83: 0.76 | L83: 7798 | M83: 5926 | N83: x | O83: x | P83: VT-116 | Q83: 6922
A84: Ondrej Teichman | B84: 1984 | C84: M | D84: Dvůr Králové | E84: CZ/C2 | F84: HOP 2018 - Klub | G84: CZ | H84: 2018 | I84: 9 | J84: 3684 | K84: 0.76 | L84: 7500 | M84: 5700 | N84: x | P84: VT-116 | Q84: 6445
A85: Ondrej Blaha | B85: 1976 | C85: M | D85: Letňany | E85: CZ/C1 | F85: HOP 2018 - Klub | G85: CZ | H85: 2018 | I85: 10 | J85: 3672 | K85: 0.76 | L85: 7362 | M85: 5595 | P85: VT-116 | Q85: 6444
A86: Jaromir Vlk | B86: 1959 | C86: M | D86: Šumperk | E86: CZ/M | F86: HOP 2018 - Klub | G86: CZ | H86: 2018 | I86: 11 | J86: 3623 | K86: 0.76 | L86: 7170 | M86: 5449 | N86: x | P86: VT-16 | Q86: 2412
A87: Ivan Kuzelka | B87: 1945 | C87: M | D87: Havlíčkův Brod | E87: CZ/C2 | F87: HOP 2018 - Klub | G87: CZ | H87: 2018 | I87: 12 | J87: 3622 | K87: 0.76 | L87: 7048 | M87: 5356 | N87: x | P87: VT-116 | Q87: 4314
A88: Krystof Mimra | B88: 1992 | C88: M | D88: Most | E88: CZ/C2 | F88: HOP 2018 - Klub | G88: CZ | H88: 2018 | I88: 13 | J88: 3580 | K88: 0.76 | L88: 6866 | M88: 5218 | N88: x | P88: VT-116 | Q88: 7413
A89: Tomas Mezera | B89: 1973 | C89: M | D89: Raná | E89: CZ/C2 | F89: HOP 2018 - Klub | G89: CZ | H89: 2018 | I89: 14 | J89: 3381 | K89: 0.76 | L89: 6451 | M89: 4903 | N89: x | P89: VT-116 | Q89: 8401
A90: Oldrich Hlavacek | B90: 1973 | C90: M | D90: Medlánky | E90: CZ/M | F90: HOP 2018 - Klub | G90: CZ | H90: 2018 | I90: 15 | J90: 3207 | K90: 0.76 | L90: 6073 | M90: 4615 | N90: x | P90: VT-116 | Q90: 8439
A91: Sarka Lochova | B91: 1966 | C91: F | D91: Šumperk | E91: CZ/M | F91: HOP 2018 - Klub | G91: CZ | H91: 2018 | I91: 16 | J91: 3133 | K91: 0.76 | L91: 5843 | M91: 4441 | N91: x | O91: x | P91: VT-116 | Q91: 7445
A92: Miroslav Major | B92: 1968 | C92: M | D92: Kralupy | E92: CZ/C1 | F92: HOP 2018 - Klub | G92: CZ | H92: 2018 | I92: 17 | J92: 3106 | K92: 0.76 | L92: 5683 | M92: 4319 | N92: x | P92: VT-116 | Q92: 8430
A93: Jaromir Hendrych | B93: 1954 | C93: M | D93: Raná | E93: CZ/C2 | F93: HOP 2018 - Klub | G93: CZ | H93: 2018 | I93: 18 | J93: 2993 | K93: 0.76 | L93: 5396 | M93: 4101 | N93: x | P93: M-35 | Q93: 2403
A94: P.Seibrt, M.Nutil | C94: - | D94: Náchod | E94: CZ/C2 | F94: HOP 2018 - Klub | G94: CZ | H94: 2018 | I94: 19 | J94: 2958 | K94: 0.76 | L94: 5224 | M94: 3970 | P94: VT-116 | Q94: 7402 | R94: Není v databázi
A95: Karel Kotlan | B95: =VLOOKUP(A95,Pilot,2,0) -> 1957 | C95: =VLOOKUP(A95,Pilot,5,0) -> M | D95: =VLOOKUP(A95,Pilot,3,0) -> Medlánky | E95: =VLOOKUP(A95,Pilot,4,0) -> CZ/M | F95: HOP 2018 - Klub | G95: CZ | H95: 2018 | I95: 20 | J95: 2898 | K95: 0.76 | L95: 5015 | M95: 3811 | N95: x | P95: VT-116 | Q95: 8406
A96: Jiri Slouka | B96: 1967 | C96: M | D96: Medlánky | E96: CZ/M | F96: HOP 2018 - Klub | G96: CZ | H96: 2018 | I96: 21 | J96: 2857 | K96: 0.76 | L96: 4834 | M96: 3674 | N96: x | P96: M-35 | Q96: 2901
A97: Jana Mezerova | B97: 1975 | C97: F | D97: Raná | E97: CZ/C2 | F97: HOP 2018 - Klub | G97: CZ | H97: 2018 | I97: 22 | J97: 2770 | K97: 0.76 | L97: 4585 | M97: 3485 | P97: VT-116 | Q97: 7425
A98: Petr Vlasak | B98: 1974 | C98: M | D98: Medlánky | E98: CZ/M | F98: HOP 2018 - Klub | G98: CZ | H98: 2018 | I98: 23 | J98: 2761 | K98: 0.76 | L98: 4452 | M98: 3384 | N98: x | P98: VT 116 | Q98: 4307
A99: Vaclav Kysilka | B99: 1979 | C99: M | D99: GAC Benešov | E99: CZ/C1 | F99: HOP 2018 - Klub | G99: CZ | H99: 2018 | I99: 24 | J99: 2563 | K99: 0.76 | L99: 4039 | M99: 3070 | N99: x | P99: VT-16 | Q99: 2924
A100: Bohumil Rikal | B100: 1946 | C100: M | D100: Hronov | E100: CZ/C2 | F100: HOP 2018 - Klub | G100: CZ | H100: 2018 | I100: 25 | J100: 2546 | K100: 0.76 | L100: 3893 | M100: 2959 | N100: x | P100: VT-16 | Q100: 3405
A101: Josef Linhart, Jakub Dvorak | C101: - | D101: Medlánky | E101: CZ/M | F101: HOP 2018 - Klub | G101: CZ | H101: 2018 | I101: 26 | J101: 1431 | K101: 0.76 | L101: 2121 | M101: 1612 | P101: Ka 6 E | Q101: 9781 | R101: Není v databázi
A102: Zdenek Boruvka 54 | B102: =VLOOKUP(A102,Pilot,2,0) -> 1954 | C102: =VLOOKUP(A102,Pilot,5,0) -> M | D102: =VLOOKUP(A102,Pilot,3,0) -> Jičín | E102: =VLOOKUP(A102,Pilot,4,0) -> CZ/C2 | F102: HOP 2018 - Kombi | G102: CZ | H102: 2018 | I102: 1 | J102: 5324 | K102: 0.76 | L102: =ROUND(J102/MAX($J$102:$J$116)*10000*0.7+(MAX($I$102:$I$116)-I102)/(MAX($I$102:$I$116)-1)*10000*0.3,0) -> 10000 | M102: 7600 | P102: LS 8 15 m (voda) | Q102: ZB
A103: Sebastian Bode | C103: M | D103: FSV Eisenhüttenstadt | E103: DE | F103: HOP 2018 - Kombi | G103: CZ | H103: 2018 | I103: 2 | J103: 5191 | K103: 0.76 | L103: =ROUND(J103/MAX($J$102:$J$116)*10000*0.7+(MAX($I$102:$I$116)-I103)/(MAX($I$102:$I$116)-1)*10000*0.3,0) -> 9611 | M103: 7304 | P103: Discus cs (voda) | Q103: E4 | R103: Není v databázi
A104: Jan Kohout | B104: =VLOOKUP(A104,Pilot,2,0) -> 1970 | C104: =VLOOKUP(A104,Pilot,5,0) -> M | D104: =VLOOKUP(A104,Pilot,3,0) -> Žamberk | E104: =VLOOKUP(A104,Pilot,4,0) -> CZ/C2 | F104: HOP 2018 - Kombi | G104: CZ | H104: 2018 | I104: 3 | J104: 4823 | K104: 0.76 | L104: 8913 | M104: 6774 | N104: x | P104: LS 8 15 m (voda) | Q104: SK
A105: T+G.Jakl, D.Mach | C105: - | D105: AK Pivo | E105: DE | F105: HOP 2018 - Kombi | G105: CZ | H105: 2018 | I105: 4 | J105: 4499 | K105: 0.76 | L105: 8272 | M105: 6287 | P105: Janus b ( bez vody) | Q105: GJ | R105: Není v databázi
A106: Carsten Tietz | B106: =VLOOKUP(A106,Pilot,2,0) -> 1966 | C106: =VLOOKUP(A106,Pilot,5,0) -> M | D106: =VLOOKUP(A106,Pilot,3,0) -> Hronov | E106: =VLOOKUP(A106,Pilot,4,0) -> CZ/C2 | F106: HOP 2018 - Kombi | G106: CZ | H106: 2018 | I106: 5 | J106: 4441 | K106: 0.76 | L106: 7982 | M106: 6066 | N106: x | P106: Ventus 2cxm 18 meter (bez vody) | Q106: WE
A107: Vaclav Kult | B107: 1973 | C107: M | D107: Broumov | E107: CZ/C2 | F107: HOP 2018 - Kombi | G107: CZ | H107: 2018 | I107: 6 | J107: 4352 | K107: 0.76 | L107: 7651 | M107: 5815 | N107: x | P107: Nimbus 2 b (voda) | Q107: VK
A108: Martin Koci | B108: 1975 | C108: M | D108: Ústí nad Orlicí | E108: CZ/C2 | F108: HOP 2018 - Kombi | G108: CZ | H108: 2018 | I108: 7 | J108: 4343 | K108: 0.76 | L108: 7424 | M108: 5642 | N108: x | P108: Discus cs (voda) | Q108: 5E
A109: Petr Fisar | B109: 1974 | C109: M | D109: Ústí nad Orlicí | E109: CZ/C2 | F109: HOP 2018 - Kombi | G109: CZ | H109: 2018 | I109: 8 | J109: 4341 | K109: 0.76 | L109: 7208 | M109: 5478 | N109: x | P109: Mosquito (bez vody) | Q109: PF
A110: Jan Rott | B110: 1962 | C110: M | D110: Hronov | E110: CZ/C2 | F110: HOP 2018 - Kombi | G110: CZ | H110: 2018 | I110: 9 | J110: 4083 | K110: 0.76 | L110: 6654 | M110: 5057 | N110: x | P110: Nimbus 2 b (bez vody) | Q110: AX
A111: Miloslav Cindr | B111: 1974 | C111: M | D111: Ústí nad Orlicí | E111: CZ/C2 | F111: HOP 2018 - Kombi | G111: CZ | H111: 2018 | I111: 10 | J111: 4076 | K111: 0.76 | L111: 6431 | M111: 4888 | N111: x | P111: Speed Astir II b (bez vody) | Q111: XM
A112: Vratislav Sram | B112: 1966 | C112: M | D112: Broumov | E112: CZ/C2 | F112: HOP 2018 - Kombi | G112: CZ | H112: 2018 | I112: 11 | J112: 3932 | K112: 0.76 | L112: 6027 | M112: 4581 | P112: Janus b (bez vody) | Q112: KG
A113: Jiri Suchomel | B113: 1950 | C113: M | D113: Broumov | E113: CZ/C2 | F113: HOP 2018 - Kombi | G113: CZ | H113: 2018 | I113: 12 | J113: 3687 | K113: 0.76 | L113: 5491 | M113: 4173 | N113: x | P113: Janus b (bez vody) | Q113: V1
A114: Christian Rakowski | D114: FSV Eisenhüttenstadt | E114: DE | F114: HOP 2018 - Kombi | G114: CZ | H114: 2018 | I114: 13 | J114: 3456 | K114: 0.76 | L114: 4973 | M114: 3779 | P114: LS 4 (voda) | Q114: MP | R114: Není v databázi
A115: Miroslav+Josef PlechaC | C115: - | D115: Hronov | E115: CZ/C2 | F115: HOP 2018 - Kombi | G115: CZ | H115: 2018 | I115: 14 | J115: 2248 | K115: 0.76 | L115: 3170 | M115: 2409 | P115: Nimbus 2 (voda) | Q115: SP | R115: Není v databázi
A116: M.Eichler, J.PlechaC | C116: - | D116: Hronov | E116: CZ/C2 | F116: HOP 2018 - Kombi | G116: CZ | H116: 2018 | I116: 15 | J116: 1494 | K116: 0.76 | L116: 1964 | M116: 1493 | P116: Cirrus/Cirrus VTC 17.74 (bez vody) | Q116: G7 | R116: Není v databázi
A117: Sebastian Kawa | F117: WGC 2018 - 15m | G117: PL | H117: 2018 | I117: 1 | J117: 6047 | K117: 1.1 | L117: =ROUND(J117/MAX($J$117:$J$153)*10000*0.7+(MAX($I$117:$I$153)-I117)/(MAX($I$117:$I$153)-1)*10000*0.3,0) -> 10000 | M117: 11000 | P117: ASG 29 | Q117: PC | R117: Není v databázi
A118: Łukasz Grabowski | F118: WGC 2018 - 15m | G118: PL | H118: 2018 | I118: 2 | J118: 5961 | K118: 1.1 | L118: =ROUND(J118/MAX($J$117:$J$153)*10000*0.7+(MAX($I$117:$I$153)-I118)/(MAX($I$117:$I$153)-1)*10000*0.3,0) -> 9817 | M118: 10799 | P118: Diana 2 | Q118: RP | R118: Není v databázi
A119: Christophe Ruch | F119: WGC 2018 - 15m | G119: PL | H119: 2018 | I119: 3 | J119: 5837 | K119: 1.1 | L119: 9590 | M119: 10549 | P119: JS 3 | Q119: FM | R119: Není v databázi
A120: Jan Omsels | F120: WGC 2018 - 15m | G120: PL | H120: 2018 | I120: 4 | J120: 5814 | K120: 1.1 | L120: 9480 | M120: 10428 | P120: Ventus 2ax | Q120: FH | R120: Není v databázi
A121: Maximilian Seis | F121: WGC 2018 - 15m | G121: PL | H121: 2018 | I121: 5 | J121: 5771 | K121: 1.1 | L121: 9347 | M121: 10282 | P121: JS 3 | Q121: FQ | R121: Není v databázi
A122: Kristian Roine | F122: WGC 2018 - 15m | G122: PL | H122: 2018 | I122: 6 | J122: 5742 | K122: 1.1 | L122: =ROUND(J122/MAX($J$117:$J$153)*10000*0.7+(MAX($I$117:$I$153)-I122)/(MAX($I$117:$I$153)-1)*10000*0.3,0) -> 9230 | M122: 10153 | P122: ASG 29E | Q122: WS | R122: Není v databázi
A123: Harri Hirvola | F123: WGC 2018 - 15m | G123: PL | H123: 2018 | I123: 7 | J123: 5689 | K123: 1.1 | L123: 9086 | M123: 9995 | P123: Ventus 2a | Q123: EH | R123: Není v databázi
A124: Adam Woolley | F124: WGC 2018 - 15m | G124: PL | H124: 2018 | I124: 8 | J124: 5671 | K124: 1.1 | L124: 8981 | M124: 9879 | P124: Ventus 3T | Q124: 3V | R124: Není v databázi
A125: Attie Jonker | F125: WGC 2018 - 15m | G125: PL | H125: 2018 | I125: 9 | J125: 5669 | K125: 1.1 | L125: 8896 | M125: 9786 | P125: JS 3 | Q125: OG | R125: Není v databázi
A126: Daan Spruyt | F126: WGC 2018 - 15m | G126: PL | H126: 2018 | I126: 10 | J126: 5663 | K126: 1.1 | L126: 8805 | M126: 9686 | P126: ASW 27 | Q126: FS | R126: Není v databázi
A127: Derren Francis | F127: WGC 2018 - 15m | G127: PL | H127: 2018 | I127: 11 | J127: 5601 | K127: 1.1 | L127: 8650 | M127: 9515 | P127: Ventus 3 | Q127: F2 | R127: Není v databázi
A128: Radek Krejcirik | B128: =VLOOKUP(A128,Pilot,2,0) -> 1991 | C128: =VLOOKUP(A128,Pilot,5,0) -> M | D128: =VLOOKUP(A128,Pilot,3,0) -> Hranice | E128: =VLOOKUP(A128,Pilot,4,0) -> CZ/M | F128: WGC 2018 - 15m | G128: PL | H128: 2018 | I128: 12 | J128: 5538 | K128: 1.1 | L128: =ROUND(J128/MAX($J$117:$J$153)*10000*0.7+(MAX($I$117:$I$153)-I128)/(MAX($I$117:$I$153)-1)*10000*0.3,0) -> 8494 | M128: 9343 | P128: Ventus 2ax | Q128: AX
A129: Ondrej Bordovsky | B129: =VLOOKUP(A129,Pilot,2,0) -> 1983 | C129: =VLOOKUP(A129,Pilot,5,0) -> M | D129: =VLOOKUP(A129,Pilot,3,0) -> Krnov | E129: =VLOOKUP(A129,Pilot,4,0) -> CZ/M | F129: WGC 2018 - 15m | G129: PL | H129: 2018 | I129: 13 | J129: 5446 | K129: 1.1 | L129: 8304 | M129: 9134 | N129: x | P129: ASG 29E | Q129: QZ
A130: Andreas Lutz | F130: WGC 2018 - 15m | G130: PL | H130: 2018 | I130: 14 | J130: 5420 | K130: 1.1 | L130: 8191 | M130: 9010 | P130: Ventus 3T | Q130: WO | R130: Není v databázi
A131: Tim Scott | F131: WGC 2018 - 15m | G131: PL | H131: 2018 | I131: 15 | J131: 5344 | K131: 1.1 | L131: 8020 | M131: 8822 | P131: ASG 29 | Q131: Z3 | R131: Není v databázi
A132: Sebastian Bauder | F132: WGC 2018 - 15m | G132: PL | H132: 2018 | I132: 16 | J132: 5300 | K132: 1.1 | L132: 7885 | M132: 8674 | P132: Ventus 2ax | Q132: Ei | R132: Není v databázi
A133: Uys Jonker | F133: WGC 2018 - 15m | G133: PL | H133: 2018 | I133: 17 | J133: 5296 | K133: 1.1 | L133: 7797 | M133: 8577 | P133: JS 3 | Q133: ML | R133: Není v databázi
A134: Michael Rass | F134: WGC 2018 - 15m | G134: PL | H134: 2018 | I134: 18 | J134: 4959 | K134: 1.1 | L134: 7324 | M134: 8056 | P134: ASG-29E | Q134: MR | R134: Není v databázi
A135: Sergei Morozov | F135: WGC 2018 - 15m | G135: PL | H135: 2018 | I135: 19 | J135: 4954 | K135: =VLOOKUP(F135,Soutez,12,0) -> 1.1 | L135: 7235 | M135: =ROUND(K135*L135,0) -> 7959 | P135: ASG 29 | Q135: XG | R135: =IF(ISERROR(VLOOKUP(A135,Pilot,6,0)),"Není v databázi",VLOOKUP(A135,Pilot,6,0)) -> Není v databázi
A136: Zoltan Kore | F136: WGC 2018 - 15m | G136: PL | H136: 2018 | I136: 20 | J136: 4921 | K136: 1.1 | L136: 7113 | M136: 7824 | P136: JS3 | Q136: AI | R136: Není v databázi
A137: Zoltan Hamar | F137: WGC 2018 - 15m | G137: PL | H137: 2018 | I137: 21 | J137: 4912 | K137: 1.1 | L137: 7019 | M137: 7721 | P137: Ventus 2a | Q137: 5A | R137: Není v databázi
A138: Sebastian Luengo | F138: WGC 2018 - 15m | G138: PL | H138: 2018 | I138: 22 | J138: 4898 | K138: 1.1 | L138: 6920 | M138: 7612 | P138: Ventus 2a | Q138: PE | R138: Není v databázi
A139: Francisco Ortega | F139: WGC 2018 - 15m | G139: PL | H139: 2018 | I139: 23 | J139: 4804 | K139: 1.1 | L139: 6728 | M139: 7401 | P139: ASW 27 | Q139: 27B | R139: Není v databázi
A140: Vytautas Sabeckis | F140: WGC 2018 - 15m | G140: PL | H140: 2018 | I140: 24 | J140: 4751 | K140: 1.1 | L140: 6583 | M140: 7241 | P140: Ventus 2ax | Q140: VV | R140: Není v databázi
A141: Thomas Gostner | F141: WGC 2018 - 15m | G141: PL | H141: 2018 | I141: 25 | J141: 4653 | K141: 1.1 | L141: 6386 | M141: 7025 | P141: Ventus 2ax | Q141: GT | R141: Není v databázi
A142: Jeroen van Dijk | F142: WGC 2018 - 15m | G142: PL | H142: 2018 | I142: 26 | J142: 4648 | K142: 1.1 | L142: 6297 | M142: 6927 | P142: ASW 27 | Q142: M6 | R142: Není v databázi
A143: Nico Jägli | F143: WGC 2018 - 15m | G143: PL | H143: 2018 | I143: 27 | J143: 4614 | K143: 1.1 | L143: 6174 | M143: 6791 | P143: LS-6a | Q143: NJ | R143: Není v databázi
A144: Øjvind Frank | F144: WGC 2018 - 15m | G144: PL | H144: 2018 | I144: 28 | J144: 4549 | K144: 1.1 | L144: 6016 | M144: 6618 | P144: Ventus 3 | Q144: EK | R144: Není v databázi
A145: Mike Hürlimann | F145: WGC 2018 - 15m | G145: PL | H145: 2018 | I145: 29 | J145: 4465 | K145: 1.1 | L145: 5835 | M145: 6419 | P145: Ventus 2a | Q145: HQ | R145: Není v databázi
A146: Cristian Marcaida | F146: WGC 2018 - 15m | G146: PL | H146: 2018 | I146: 30 | J146: 4435 | K146: 1.1 | L146: 5717 | M146: 6289 | P146: Ventus 2 | Q146: 19 | R146: Není v databázi
A147: Gvidas Sabeckis | F147: WGC 2018 - 15m | G147: PL | H147: 2018 | I147: 30 | J147: 4435 | K147: 1.1 | L147: 5717 | M147: 6289 | P147: ASG 29 | Q147: MZ | R147: Není v databázi
A148: Luke Szczepaniak | F148: WGC 2018 - 15m | G148: PL | H148: 2018 | I148: 32 | J148: 4399 | K148: 1.1 | L148: 5509 | M148: 6060 | P148: ASW 27B | Q148: 2W | R148: Není v databázi
A149: Jan Hald | F149: WGC 2018 - 15m | G149: PL | H149: 2018 | I149: 33 | J149: 4189 | K149: 1.1 | L149: 5183 | M149: 5701 | P149: Ventus 2cT | Q149: T | R149: Není v databázi
A150: Timothy Taylor | F150: WGC 2018 - 15m | G150: PL | H150: 2018 | I150: 34 | J150: 4084 | K150: 1.1 | L150: 4978 | M150: 5476 | P150: ASW 27B | Q150: T6 | R150: Není v databázi
A151: Carlos Gonzalez de Herrero | F151: WGC 2018 - 15m | G151: PL | H151: 2018 | I151: 35 | J151: 3811 | K151: 1.1 | L151: 4578 | M151: 5036 | P151: ASW 27B | Q151: 7A | R151: Není v databázi
A152: Fernando Silva | F152: WGC 2018 - 15m | G152: PL | H152: 2018 | I152: 36 | J152: 3454 | K152: 1.1 | L152: 4082 | M152: 4490 | P152: ASW 27 | Q152: PS | R152: Není v databázi
A153: Matias Pasztor | F153: WGC 2018 - 15m | G153: PL | H153: 2018 | I153: 37 | J153: 3440 | K153: 1.1 | L153: 3982 | M153: 4380 | P153: Ventus 2b | Q153: MW | R153: Není v databázi
A154: Wolfgang Janowitsch | C154: M | D154: Austria | F154: WGC 2018 - 18m | G154: CZ | H154: 2018 | I154: 1 | J154: 10236 | K154: 1.135 | L154: =ROUND(J154/MAX($J$154:$J$198)*10000*0.7+(MAX($I$154:$I$198)-I154)/(MAX($I$154:$I$198)-1)*10000*0.3,0) -> 10000 | M154: 11350 | P154: Ventus 3T | Q154: WO | R154: Není v databázi
A155: Mario Kiessling | C155: M | D155: Germany | F155: WGC 2018 - 18m | G155: CZ | H155: 2018 | I155: 2 | J155: 10097 | K155: 1.135 | L155: =ROUND(J155/MAX($J$154:$J$198)*10000*0.7+(MAX($I$154:$I$198)-I155)/(MAX($I$154:$I$198)-1)*10000*0.3,0) -> 9837 | M155: 11165 | P155: Ventus 3T | Q155: I | R155: Není v databázi
A156: Jean-Denis Barrois | C156: M | D156: France | F156: WGC 2018 - 18m | G156: CZ | H156: 2018 | I156: 3 | J156: 9915 | K156: 1.135 | L156: 9644 | M156: 10946 | P156: JS 3 | Q156: FM | R156: Není v databázi
A157: Peter Millenaar | C157: M | D157: Netherlands | F157: WGC 2018 - 18m | G157: CZ | H157: 2018 | I157: 4 | J157: 9820 | K157: 1.135 | L157: 9511 | M157: 10795 | P157: Ventus 3T | Q157: VY | R157: Není v databázi
A158: Christophe Cousseau | C158: M | D158: France | F158: WGC 2018 - 18m | G158: CZ | H158: 2018 | I158: 5 | J158: 9766 | K158: 1.135 | L158: 9406 | M158: 10676 | P158: JS 3 | Q158: FQ | R158: Není v databázi
A159: Roman Mracek | B159: =VLOOKUP(A159,Pilot,2,0) -> 1980 | C159: =VLOOKUP(A159,Pilot,5,0) -> M | D159: =VLOOKUP(A159,Pilot,3,0) -> Letkov | E159: =VLOOKUP(A159,Pilot,4,0) -> CZ/C1 | F159: WGC 2018 - 18m | G159: CZ | H159: 2018 | I159: 6 | J159: 9709 | K159: 1.135 | L159: 9299 | M159: 10554 | N159: x | P159: Ventus 3 FES | Q159: LB
A160: Tomas Suchanek | B160: =VLOOKUP(A160,Pilot,2,0) -> 1964 | C160: =VLOOKUP(A160,Pilot,5,0) -> M | D160: =VLOOKUP(A160,Pilot,3,0) -> GAC Benešov | E160: =VLOOKUP(A160,Pilot,4,0) -> CZ/C1 | F160: WGC 2018 - 18m | G160: CZ | H160: 2018 | I160: 7 | J160: 9690 | K160: 1.135 | L160: =ROUND(J160/MAX($J$154:$J$198)*10000*0.7+(MAX($I$154:$I$198)-I160)/(MAX($I$154:$I$198)-1)*10000*0.3,0) -> 9218 | M160: 10462 | N160: x | P160: Ventus 3T | Q160: 3V
A161: Katrin Senne | C161: F | D161: Germany | F161: WGC 2018 - 18m | G161: CZ | H161: 2018 | I161: 8 | J161: 9664 | K161: 1.135 | L161: 9132 | M161: 10365 | P161: JS 3 | Q161: IG | R161: Není v databázi
A162: Oscar Goudriaan | C162: M | D162: South Africa | F162: WGC 2018 - 18m | G162: CZ | H162: 2018 | I162: 9 | J162: 9626 | K162: 1.135 | L162: 9037 | M162: 10257 | P162: JS 3 | Q162: OG | R162: Není v databázi
A163: Gyorgy Gulyas | C163: M | D163: Hungary | F163: WGC 2018 - 18m | G163: CZ | H163: 2018 | I163: 10 | J163: 9622 | K163: 1.135 | L163: 8966 | M163: 10176 | P163: JS 3 | Q163: AX | R163: Není v databázi
A164: Bert Schmelzer | C164: M | D164: Belgium | F164: WGC 2018 - 18m | G164: CZ | H164: 2018 | I164: 11 | J164: 9569 | K164: 1.135 | L164: 8862 | M164: 10058 | P164: Ventus 3T | Q164: 2X | R164: Není v databázi
A165: John Buchanan | C165: M | D165: Australia | F165: WGC 2018 - 18m | G165: CZ | H165: 2018 | I165: 12 | J165: 9440 | K165: 1.135 | L165: 8706 | M165: 9881 | P165: JS 3 | Q165: BB | R165: Není v databázi
A166: Russell Cheetham | C166: M | D166: United Kingdom | F166: WGC 2018 - 18m | G166: CZ | H166: 2018 | I166: 13 | J166: 9410 | K166: 1.135 | L166: 8617 | M166: 9780 | P166: JS 3 | Q166: E1 | R166: Není v databázi
A167: Laurens Goudriaan | C167: M | D167: South Africa | F167: WGC 2018 - 18m | G167: CZ | H167: 2018 | I167: 14 | J167: 9396 | K167: 1.135 | L167: 8539 | M167: 9692 | P167: JS 3 | Q167: LG | R167: Není v databázi
A168: Adomas Grabskis | C168: M | D168: Lithuania | F168: WGC 2018 - 18m | G168: CZ | H168: 2018 | I168: 15 | J168: 9369 | K168: 1.135 | L168: 8453 | M168: 9594 | P168: JS 1B | Q168: LR | R168: Není v databázi
A169: Peter Szabo | C169: M | D169: Hungary | F169: WGC 2018 - 18m | G169: CZ | H169: 2018 | I169: 16 | J169: 9247 | K169: 1.135 | L169: 8301 | M169: 9422 | P169: JS 3 | Q169: BX | R169: Není v databázi
A170: Rolf Friedli | C170: M | D170: Switzerland | F170: WGC 2018 - 18m | G170: CZ | H170: 2018 | I170: 17 | J170: 9221 | K170: 1.135 | L170: 8215 | M170: 9324 | P170: ASG-29 | Q170: F | R170: Není v databázi
A171: Arne Boye-Møller | C171: M | D171: Denmark | F171: WGC 2018 - 18m | G171: CZ | H171: 2018 | I171: 18 | J171: 9173 | K171: 1.135 | L171: 8114 | M171: 9209 | P171: JS 3 | Q171: JS3 | R171: Není v databázi
A172: Mike Young | C172: M | D172: United Kingdom | F172: WGC 2018 - 18m | G172: CZ | H172: 2018 | I172: 19 | J172: 9137 | K172: 1.135 | L172: 8021 | M172: 9104 | P172: Ventus 3 | Q172: 120 | R172: Není v databázi
A173: Giancarlo Grinza | C173: M | D173: Italy | F173: WGC 2018 - 18m | G173: CZ | H173: 2018 | I173: 20 | J173: 9126 | K173: 1.135 | L173: 7945 | M173: 9018 | P173: Ventus 3 FES | Q173: CU | R173: Není v databázi
A174: Adam Woolley | C174: M | D174: Australia | F174: WGC 2018 - 18m | G174: CZ | H174: 2018 | I174: 21 | J174: 9076 | K174: 1.135 | L174: 7843 | M174: 8902 | P174: Ventus 3T | Q174: HC | R174: Není v databázi
A175: Jurg Haas | C175: M | D175: Switzerland | F175: WGC 2018 - 18m | G175: CZ | H175: 2018 | I175: 22 | J175: 9022 | K175: 1.135 | L175: 7738 | M175: 8783 | P175: JS 1C | Q175: CH | R175: Není v databázi
A176: Martti Sucksdorff | C176: M | D176: Finland | F176: WGC 2018 - 18m | G176: CZ | H176: 2018 | I176: 23 | J176: 8999 | K176: 1.135 | L176: 7654 | M176: 8687 | P176: ASG-29E | Q176: WS | R176: Není v databázi
A177: Jerzy Szemplinski | C177: M | D177: Canada | F177: WGC 2018 - 18m | G177: CZ | H177: 2018 | I177: 24 | J177: 8916 | K177: 1.135 | L177: 7529 | M177: 8545 | P177: ASG-29 | Q177: XG | R177: Není v databázi
A178: Erik Nelson | C178: M | D178: United States of America | F178: WGC 2018 - 18m | G178: CZ | H178: 2018 | I178: 25 | J178: 8786 | K178: 1.135 | L178: 7372 | M178: 8367 | P178: Ventus 3T | Q178: 5E | R178: Není v databázi
A179: Piotr Jarysz | C179: M | D179: Poland | F179: WGC 2018 - 18m | G179: CZ | H179: 2018 | I179: 26 | J179: 8775 | K179: 1.135 | L179: =ROUND(J179/MAX($J$154:$J$198)*10000*0.7+(MAX($I$154:$I$198)-I179)/(MAX($I$154:$I$198)-1)*10000*0.3,0) -> 7296 | M179: 8281 | P179: ASG-29 | Q179: PL | R179: Není v databázi
A180: Jeroen Verkuijl | C180: M | D180: Netherlands | F180: WGC 2018 - 18m | G180: CZ | H180: 2018 | I180: 27 | J180: 8771 | K180: 1.135 | L180: 7225 | M180: 8200 | P180: JS 3 | Q180: 3 | R180: Není v databázi
A181: Damian Goldenzweig | C181: M | D181: Argentina | F181: WGC 2018 - 18m | G181: CZ | H181: 2018 | I181: 28 | J181: 8767 | K181: 1.135 | L181: 7154 | M181: 8120 | P181: Ventus 3T | Q181: 3M | R181: Není v databázi
A182: Alberto Pozzi | C182: M | D182: Italy | F182: WGC 2018 - 18m | G182: CZ | H182: 2018 | I182: 29 | J182: 8672 | K182: 1.135 | L182: 7021 | M182: 7969 | P182: Ventus 2 cxa | Q182: AY | R182: Není v databázi
A183: Vladimir Foltin | C183: M | D183: Slovakia | F183: WGC 2018 - 18m | G183: CZ | H183: 2018 | I183: 30 | J183: 8577 | K183: 1.135 | L183: 6888 | M183: 7818 | P183: ASG-29E | Q183: AJ | R183: Není v databázi
A184: Matthias Sturm | C184: M | D184: Germany | F184: WGC 2018 - 18m | G184: CZ | H184: 2018 | I184: 31 | J184: 8539 | K184: 1.135 | L184: 6794 | M184: 7711 | P184: JS 3 | Q184: XM | R184: Není v databázi
A185: Hannu Halonen | C185: M | D185: Finland | F185: WGC 2018 - 18m | G185: CZ | H185: 2018 | I185: 32 | J185: 8471 | K185: 1.135 | L185: 6679 | M185: 7581 | P185: Ventus 3T | Q185: W | R185: Není v databázi
A186: Bernhard Leitner | C186: M | D186: Austria | F186: WGC 2018 - 18m | G186: CZ | H186: 2018 | I186: 33 | J186: 8324 | K186: 1.135 | L186: 6511 | M186: 7390 | P186: Ventus 2 cxm | Q186: LV | R186: Není v databázi
A187: Lukasz Wojcik | C187: M | D187: Poland | F187: WGC 2018 - 18m | G187: CZ | H187: 2018 | I187: 34 | J187: 8284 | K187: 1.135 | L187: 6415 | M187: 7281 | P187: Diana 3 | Q187: D3 | R187: Není v databázi
A188: Luka Znidarsic | C188: M | D188: Slovenia | F188: WGC 2018 - 18m | G188: CZ | H188: 2018 | I188: 35 | J188: 8059 | K188: 1.135 | L188: 6193 | M188: 7029 | P188: Ventus 2 cxa FES | Q188: LZ | R188: Není v databázi
A189: Takeshi Maruyama | C189: M | D189: Japan | F189: WGC 2018 - 18m | G189: CZ | H189: 2018 | I189: 36 | J189: 8049 | K189: 1.135 | L189: 6118 | M189: 6944 | P189: ASG-29E | Q189: 2C | R189: Není v databázi
A190: Federico Buscema | C190: M | D190: Argentina | F190: WGC 2018 - 18m | G190: CZ | H190: 2018 | I190: 37 | J190: 7938 | K190: 1.135 | L190: 5974 | M190: 6780 | P190: ASG-29E | Q190: OS | R190: Není v databázi
A191: Teet Jagomägi | C191: M | D191: Estonia | F191: WGC 2018 - 18m | G191: CZ | H191: 2018 | I191: 38 | J191: 7796 | K191: 1.135 | L191: 5809 | M191: 6593 | P191: JS 1B | Q191: TB | R191: Není v databázi
A192: Olivier Sevrin | C192: M | D192: Belgium | F192: WGC 2018 - 18m | G192: CZ | H192: 2018 | I192: 39 | J192: 7473 | K192: 1.135 | L192: 5520 | M192: 6265 | P192: ASG-29E | Q192: 29 | R192: Není v databázi
A193: Gunnar Axelsson | C193: M | D193: Sweden | F193: WGC 2018 - 18m | G193: CZ | H193: 2018 | I193: 40 | J193: 6895 | K193: 1.135 | L193: 5056 | M193: 5739 | P193: ASG-29E | Q193: TC | R193: Není v databázi
A194: Branko Blagojevic | C194: M | D194: Serbia | F194: WGC 2018 - 18m | G194: CZ | H194: 2018 | I194: 41 | J194: 6710 | K194: 1.135 | L194: 4861 | M194: 5517 | P194: JS 1C | Q194: BP | R194: Není v databázi
A195: Kestutis Miliunas | C195: M | D195: Liithuania | F195: WGC 2018 - 18m | G195: CZ | H195: 2018 | I195: 42 | J195: 6406 | K195: 1.135 | L195: 4585 | M195: 5204 | P195: ASG-29 | Q195: M7 | R195: Není v databázi
A196: Svend Andersen | C196: M | D196: Denmark | F196: WGC 2018 - 18m | G196: CZ | H196: 2018 | I196: 43 | J196: 6375 | K196: 1.135 | L196: 4496 | M196: 5103 | P196: ASG-29E | Q196: 2O | R196: Není v databázi
A197: Robert W. Fletcher | C197: M | D197: United States of America | F197: WGC 2018 - 18m | G197: CZ | H197: 2018 | I197: 44 | J197: 5288 | K197: 1.135 | L197: 3684 | M197: 4181 | P197: ASG-29E | Q197: 70 | R197: Není v databázi
A198: Patrick Driessen | C198: M | D198: New Zealand | F198: WGC 2018 - 18m | G198: CZ | H198: 2018 | I198: 45 | J198: 4767 | K198: 1.135 | L198: 3260 | M198: 3700 | P198: JS 1C | Q198: 8Q | R198: Není v databázi
A199: Matkowski & Kawa | C199: M | D199: Poland | F199: WGC 2018 - Duo 20m | G199: CZ | H199: 2018 | I199: 1 | J199: 10600 | K199: =VLOOKUP(F199,Soutez,12,0) -> 1.1 | L199: =ROUND(J199/MAX($J$199:$J$216)*10000*0.7+(MAX($I$199:$I$216)-I199)/(MAX($I$199:$I$216)-1)*10000*0.3,0) -> 10000 | M199: =ROUND(K199*L199,0) -> 11000 | P199: ASG 32 Mi | Q199: MD | R199: =IF(ISERROR(VLOOKUP(A199,Pilot,6,0)),"Není v databázi",VLOOKUP(A199,Pilot,6,0)) -> Není v databázi
A200: Jones & Coppin | C200: M | D200: United Kingdom | F200: WGC 2018 - Duo 20m | G200: CZ | H200: 2018 | I200: 2 | J200: 10335 | K200: 1.1 | L200: =ROUND(J200/MAX($J$199:$J$216)*10000*0.7+(MAX($I$199:$I$216)-I200)/(MAX($I$199:$I$216)-1)*10000*0.3,0) -> 9649 | M200: 10614 | P200: Arcus T | Q200: 66 | R200: Není v databázi
... 3032 more rows

Sheet Temp
A1: Jmeno | B1: Rok narození | C1: M/F | D1: Aeroklub | E1: Region | F1: Soutěž | G1: Stát | H1: Rok | I1: Pořadí ve třídě | J1: Body ve třídě | K1: Kinp | L1: Bi | M1: Bi×Kinp | N1: G | O1: W | P1: Typ | Q1: CN | R1: Junior | S1: Poznámka

Sheet Zebrik G
A1: ="Všeobecný Žebřík pilotů plachtařů PK AeČR "&A6 -> Všeobecný Žebřík pilotů plachtařů PK AeČR 2020 | I1: =Zmeny!A5 -> 2020-11-23 | J1: Rev. | K1: =Zmeny!B5 -> 02 | L1: =Zmeny!C5 -> Doplněno WWGC 2020 Lake Keepit, opraveny chyby
B3: G | C3: x | I3: Junior v roce: | J3: Junior v roce: | K3: ="Repre družstvo "&I4 -> Repre družstvo 2021 | L3: ="Repre výběr "&I4 -> Repre výběr 2021 | M3: ="W "&L3 -> W Repre výběr 2021 | N3: Poznámka
I4: =A6+1 -> 2021 | J4: =I4+1 -> 2022 | K4: (RD) | L4: (RV) | M4: (WRV)
A5: Pořadí | G5: Data | I5: =COUNTIF(I7:I985,"Junior v roce "&$I$4) -> 43 | J5: =COUNTIF(J7:J985,"Junior v roce "&$J$4) -> 41 | K5: =COUNTIF(K7:K985,"RD "&$I$4) -> 0 | L5: =COUNTIF(L7:L985,"RV "&$I$4) -> 34 | M5: =COUNTIF(M7:M985,"WRV "&$I$4) -> 9 | N5: =COUNTIF(N7:N985,"<>") -> 0
A6: 2020 | B6: Jméno | C6: Rok narození | D6: M/F | E6: Aeroklub | F6: Region | G6: Součet z Bi×Kinp | H6: Počet G
A7: =RANK(G7,G:G) -> 1 | B7: Pavel Louzecky | C7: 1957 | D7: M | E7: Přibyslav | F7: CZ/C2 | G7: 31916 | H7: 3 | I7: =IF(C7="(prázdné)","",IF(($I$4-C7)>25,"","Junior v roce "&$I$4)) ->  | J7: =IF(C7="(prázdné)","",IF(($J$4-C7)>25,"","Junior v roce "&$J$4)) ->  | L7: RV 2021 | M7: =IF(ISERROR(VLOOKUP(B7,'Zebrik W'!$B$7:$L$1001,11,0)),"",IF(VLOOKUP(B7,'Zebrik W'!$B$7:$L$1001,11,0)=0,"--",VLOOKUP(B7,'Zebrik W'!$B$7:$L$1001,11,0))) -> 
A8: 2 | B8: David Mach | C8: 1994 | D8: M | E8: Hronov | F8: CZ/C2 | G8: 31904 | H8: 3 | I8: =IF(C8="(prázdné)","",IF(($I$4-C8)>25,"","Junior v roce "&$I$4)) ->  | J8: =IF(C8="(prázdné)","",IF(($J$4-C8)>25,"","Junior v roce "&$J$4)) ->  | L8: RV 2021 | M8: =IF(ISERROR(VLOOKUP(B8,'Zebrik W'!$B$7:$L$1001,11,0)),"",IF(VLOOKUP(B8,'Zebrik W'!$B$7:$L$1001,11,0)=0,"--",VLOOKUP(B8,'Zebrik W'!$B$7:$L$1001,11,0))) -> 
A9: 3 | B9: Miloslav Cink | C9: 1987 | D9: M | E9: Letkov | F9: CZ/C1 | G9: 31464 | H9: 3 | I9: =IF(C9="(prázdné)","",IF(($I$4-C9)>25,"","Junior v roce "&$I$4)) ->  | L9: RV 2021 | M9: =IF(ISERROR(VLOOKUP(B9,'Zebrik W'!$B$7:$L$1001,11,0)),"",IF(VLOOKUP(B9,'Zebrik W'!$B$7:$L$1001,11,0)=0,"--",VLOOKUP(B9,'Zebrik W'!$B$7:$L$1001,11,0))) -> 
A10: 4 | B10: Tomas Suchanek | C10: 1964 | D10: M | E10: GAC Benešov | F10: CZ/C1 | G10: 31333 | H10: 3 | L10: RV 2021 | M10: =IF(ISERROR(VLOOKUP(B10,'Zebrik W'!$B$7:$L$1001,11,0)),"",IF(VLOOKUP(B10,'Zebrik W'!$B$7:$L$1001,11,0)=0,"--",VLOOKUP(B10,'Zebrik W'!$B$7:$L$1001,11,0))) -> 
A11: 5 | B11: Radek Krejcirik | C11: 1991 | D11: M | E11: Hranice | F11: CZ/M | G11: 30693 | H11: 3 | L11: RV 2021 | M11: =IF(ISERROR(VLOOKUP(B11,'Zebrik W'!$B$7:$L$1001,11,0)),"",IF(VLOOKUP(B11,'Zebrik W'!$B$7:$L$1001,11,0)=0,"--",VLOOKUP(B11,'Zebrik W'!$B$7:$L$1001,11,0))) -> 
A12: 6 | B12: Petr Koutny | C12: 1971 | D12: M | E12: Křižanov | F12: CZ/M | G12: 30650 | H12: 3 | L12: RV 2021 | M12: =IF(ISERROR(VLOOKUP(B12,'Zebrik W'!$B$7:$L$1001,11,0)),"",IF(VLOOKUP(B12,'Zebrik W'!$B$7:$L$1001,11,0)=0,"--",VLOOKUP(B12,'Zebrik W'!$B$7:$L$1001,11,0))) -> 
A13: 7 | B13: Roman Mracek | C13: 1980 | D13: M | E13: Letkov | F13: CZ/C1 | G13: 30641 | H13: 3 | L13: RV 2021 | M13: =IF(ISERROR(VLOOKUP(B13,'Zebrik W'!$B$7:$L$1001,11,0)),"",IF(VLOOKUP(B13,'Zebrik W'!$B$7:$L$1001,11,0)=0,"--",VLOOKUP(B13,'Zebrik W'!$B$7:$L$1001,11,0))) -> 
A14: 8 | B14: Ivan Novak | C14: 1962 | D14: M | E14: Mladá Boleslav | F14: CZ/C1 | G14: 30610 | H14: 3 | L14: RV 2021 | M14: =IF(ISERROR(VLOOKUP(B14,'Zebrik W'!$B$7:$L$1001,11,0)),"",IF(VLOOKUP(B14,'Zebrik W'!$B$7:$L$1001,11,0)=0,"--",VLOOKUP(B14,'Zebrik W'!$B$7:$L$1001,11,0))) -> 
A15: 9 | B15: Jaroslav Tomana | C15: 1975 | D15: M | E15: Zbraslavice | F15: CZ/C1 | G15: 30560 | H15: 3 | L15: RV 2021 | M15: =IF(ISERROR(VLOOKUP(B15,'Zebrik W'!$B$7:$L$1001,11,0)),"",IF(VLOOKUP(B15,'Zebrik W'!$B$7:$L$1001,11,0)=0,"--",VLOOKUP(B15,'Zebrik W'!$B$7:$L$1001,11,0))) -> 
A16: 10 | B16: Petr Tichy | C16: 1973 | D16: M | E16: Zbraslavice | F16: CZ/C1 | G16: 30300 | H16: 3 | L16: RV 2021 | M16: =IF(ISERROR(VLOOKUP(B16,'Zebrik W'!$B$7:$L$1001,11,0)),"",IF(VLOOKUP(B16,'Zebrik W'!$B$7:$L$1001,11,0)=0,"--",VLOOKUP(B16,'Zebrik W'!$B$7:$L$1001,11,0))) -> 
A17: 11 | B17: Karel Novak | C17: 1993 | D17: M | E17: Mladá Boleslav | F17: CZ/C1 | G17: 29469 | H17: 3 | L17: RV 2021 | M17: =IF(ISERROR(VLOOKUP(B17,'Zebrik W'!$B$7:$L$1001,11,0)),"",IF(VLOOKUP(B17,'Zebrik W'!$B$7:$L$1001,11,0)=0,"--",VLOOKUP(B17,'Zebrik W'!$B$7:$L$1001,11,0))) -> 
A18: 12 | B18: Michal Lesinger | C18: 1966 | D18: M | E18: Moravská Třebová | F18: CZ/M | G18: 29232 | H18: 3 | L18: RV 2021 | M18: =IF(ISERROR(VLOOKUP(B18,'Zebrik W'!$B$7:$L$1001,11,0)),"",IF(VLOOKUP(B18,'Zebrik W'!$B$7:$L$1001,11,0)=0,"--",VLOOKUP(B18,'Zebrik W'!$B$7:$L$1001,11,0))) -> 
A19: 13 | B19: Ondrej Bordovsky | C19: 1983 | D19: M | E19: Krnov | F19: CZ/M | G19: 29184 | H19: 3 | L19: RV 2021 | M19: =IF(ISERROR(VLOOKUP(B19,'Zebrik W'!$B$7:$L$1001,11,0)),"",IF(VLOOKUP(B19,'Zebrik W'!$B$7:$L$1001,11,0)=0,"--",VLOOKUP(B19,'Zebrik W'!$B$7:$L$1001,11,0))) -> 
A20: 14 | B20: Jan Pavlik | C20: 1987 | D20: M | E20: Křižanov | F20: CZ/M | G20: 29037 | H20: 3 | L20: RV 2021 | M20: =IF(ISERROR(VLOOKUP(B20,'Zebrik W'!$B$7:$L$1001,11,0)),"",IF(VLOOKUP(B20,'Zebrik W'!$B$7:$L$1001,11,0)=0,"--",VLOOKUP(B20,'Zebrik W'!$B$7:$L$1001,11,0))) -> 
A21: 15 | B21: Ondrej Dupal | C21: 1966 | D21: M | E21: GAC Benešov | F21: CZ/C1 | G21: 28892 | H21: 3 | L21: RV 2021 | M21: =IF(ISERROR(VLOOKUP(B21,'Zebrik W'!$B$7:$L$1001,11,0)),"",IF(VLOOKUP(B21,'Zebrik W'!$B$7:$L$1001,11,0)=0,"--",VLOOKUP(B21,'Zebrik W'!$B$7:$L$1001,11,0))) -> 
A22: 16 | B22: Jan Louda | C22: 1986 | D22: M | E22: Mladá Boleslav | F22: CZ/C1 | G22: 28692 | H22: 3 | L22: RV 2021 | M22: =IF(ISERROR(VLOOKUP(B22,'Zebrik W'!$B$7:$L$1001,11,0)),"",IF(VLOOKUP(B22,'Zebrik W'!$B$7:$L$1001,11,0)=0,"--",VLOOKUP(B22,'Zebrik W'!$B$7:$L$1001,11,0))) -> 
A23: 17 | B23: Jan Ratz | C23: 1987 | D23: M | E23: Zbraslavice | F23: CZ/C1 | G23: 28209 | H23: 3 | L23: RV 2021 | M23: =IF(ISERROR(VLOOKUP(B23,'Zebrik W'!$B$7:$L$1001,11,0)),"",IF(VLOOKUP(B23,'Zebrik W'!$B$7:$L$1001,11,0)=0,"--",VLOOKUP(B23,'Zebrik W'!$B$7:$L$1001,11,0))) -> 
A24: 18 | B24: Danes Grula | C24: 1961 | D24: M | E24: Medlánky | F24: CZ/M | G24: 28072 | H24: 3 | L24: RV 2021 | M24: =IF(ISERROR(VLOOKUP(B24,'Zebrik W'!$B$7:$L$1001,11,0)),"",IF(VLOOKUP(B24,'Zebrik W'!$B$7:$L$1001,11,0)=0,"--",VLOOKUP(B24,'Zebrik W'!$B$7:$L$1001,11,0))) -> 
A25: 19 | B25: Daniel Ryba | C25: 1994 | D25: M | E25: Dvůr Králové | F25: CZ/C2 | G25: 27980 | H25: 3 | L25: RV 2021 | M25: =IF(ISERROR(VLOOKUP(B25,'Zebrik W'!$B$7:$L$1001,11,0)),"",IF(VLOOKUP(B25,'Zebrik W'!$B$7:$L$1001,11,0)=0,"--",VLOOKUP(B25,'Zebrik W'!$B$7:$L$1001,11,0))) -> 
A26: 20 | B26: Alena Netusilova | C26: 1970 | D26: F | E26: Zbraslavice | F26: CZ/C1 | G26: 27907 | H26: 3 | I26: =IF(C26="(prázdné)","",IF(($I$4-C26)>25,"","Junior v roce "&$I$4)) ->  | L26: RV 2021 | M26: =IF(ISERROR(VLOOKUP(B26,'Zebrik W'!$B$7:$L$1001,11,0)),"",IF(VLOOKUP(B26,'Zebrik W'!$B$7:$L$1001,11,0)=0,"--",VLOOKUP(B26,'Zebrik W'!$B$7:$L$1001,11,0))) -> WRV 2021
A27: 21 | B27: Jan Viskot | C27: 1995 | D27: M | E27: Břeclav | F27: CZ/M | G27: 27577 | H27: 3 | M27: =IF(ISERROR(VLOOKUP(B27,'Zebrik W'!$B$7:$L$1001,11,0)),"",IF(VLOOKUP(B27,'Zebrik W'!$B$7:$L$1001,11,0)=0,"--",VLOOKUP(B27,'Zebrik W'!$B$7:$L$1001,11,0))) -> 
A28: 22 | B28: Radek Kucirek | C28: 1973 | D28: M | E28: Havlíčkův Brod | F28: CZ/C2 | G28: 27471 | H28: 3 | M28: =IF(ISERROR(VLOOKUP(B28,'Zebrik W'!$B$7:$L$1001,11,0)),"",IF(VLOOKUP(B28,'Zebrik W'!$B$7:$L$1001,11,0)=0,"--",VLOOKUP(B28,'Zebrik W'!$B$7:$L$1001,11,0))) -> 
A29: 23 | B29: Pavel Trybenekr | C29: 1990 | D29: M | E29: Hořice | F29: CZ/C2 | G29: 27285 | H29: 3 | M29: =IF(ISERROR(VLOOKUP(B29,'Zebrik W'!$B$7:$L$1001,11,0)),"",IF(VLOOKUP(B29,'Zebrik W'!$B$7:$L$1001,11,0)=0,"--",VLOOKUP(B29,'Zebrik W'!$B$7:$L$1001,11,0))) -> 
A30: 24 | B30: Jan Zapletal | C30: 1997 | D30: M | E30: Břeclav | F30: CZ/M | G30: 27177 | H30: 3 | I30: Junior v roce 2021 | J30: Junior v roce 2022 | L30: RV 2021 | M30: =IF(ISERROR(VLOOKUP(B30,'Zebrik W'!$B$7:$L$1001,11,0)),"",IF(VLOOKUP(B30,'Zebrik W'!$B$7:$L$1001,11,0)=0,"--",VLOOKUP(B30,'Zebrik W'!$B$7:$L$1001,11,0))) -> 
A31: 25 | B31: Petr Krejcirik | C31: 1960 | D31: M | E31: Hranice | F31: CZ/M | G31: 26863 | H31: 3 | M31: =IF(ISERROR(VLOOKUP(B31,'Zebrik W'!$B$7:$L$1001,11,0)),"",IF(VLOOKUP(B31,'Zebrik W'!$B$7:$L$1001,11,0)=0,"--",VLOOKUP(B31,'Zebrik W'!$B$7:$L$1001,11,0))) -> 
A32: 26 | B32: Dana Novakova | C32: 1965 | D32: F | E32: Mladá Boleslav | F32: CZ/C1 | G32: 26704 | H32: 3 | L32: RV 2021 | M32: =IF(ISERROR(VLOOKUP(B32,'Zebrik W'!$B$7:$L$1001,11,0)),"",IF(VLOOKUP(B32,'Zebrik W'!$B$7:$L$1001,11,0)=0,"--",VLOOKUP(B32,'Zebrik W'!$B$7:$L$1001,11,0))) -> WRV 2021
A33: 27 | B33: Jiri Kusbach | C33: 1959 | D33: M | E33: Luhačovice | F33: CZ/M | G33: 26647 | H33: 3 | M33: =IF(ISERROR(VLOOKUP(B33,'Zebrik W'!$B$7:$L$1001,11,0)),"",IF(VLOOKUP(B33,'Zebrik W'!$B$7:$L$1001,11,0)=0,"--",VLOOKUP(B33,'Zebrik W'!$B$7:$L$1001,11,0))) -> 
A34: 28 | B34: Jaromir Macoun | C34: 1999 | D34: M | E34: Jičín | F34: CZ/C2 | G34: 26556 | H34: 3 | I34: Junior v roce 2021 | J34: Junior v roce 2022 | L34: RV 2021 | M34: =IF(ISERROR(VLOOKUP(B34,'Zebrik W'!$B$7:$L$1001,11,0)),"",IF(VLOOKUP(B34,'Zebrik W'!$B$7:$L$1001,11,0)=0,"--",VLOOKUP(B34,'Zebrik W'!$B$7:$L$1001,11,0))) -> 
A35: 29 | B35: Lubomir Motl | C35: 1959 | D35: M | E35: Kyjov | F35: CZ/M | G35: 26513 | H35: 3 | M35: =IF(ISERROR(VLOOKUP(B35,'Zebrik W'!$B$7:$L$1001,11,0)),"",IF(VLOOKUP(B35,'Zebrik W'!$B$7:$L$1001,11,0)=0,"--",VLOOKUP(B35,'Zebrik W'!$B$7:$L$1001,11,0))) -> 
A36: 30 | B36: Zdenek Boruvka 86 | C36: 1986 | D36: M | E36: Jičín | F36: CZ/C2 | G36: 26492 | H36: 3 | M36: =IF(ISERROR(VLOOKUP(B36,'Zebrik W'!$B$7:$L$1001,11,0)),"",IF(VLOOKUP(B36,'Zebrik W'!$B$7:$L$1001,11,0)=0,"--",VLOOKUP(B36,'Zebrik W'!$B$7:$L$1001,11,0))) -> 
A37: 31 | B37: Pavel Rericha | C37: 1967 | D37: M | E37: Moravská Třebová | F37: CZ/M | G37: 26476 | H37: 3 | M37: =IF(ISERROR(VLOOKUP(B37,'Zebrik W'!$B$7:$L$1001,11,0)),"",IF(VLOOKUP(B37,'Zebrik W'!$B$7:$L$1001,11,0)=0,"--",VLOOKUP(B37,'Zebrik W'!$B$7:$L$1001,11,0))) -> 
A38: 32 | B38: Ivan Harasta 65 | C38: 1965 | D38: M | E38: Toužim | F38: CZ/C1 | G38: 26105 | H38: 3 | M38: =IF(ISERROR(VLOOKUP(B38,'Zebrik W'!$B$7:$L$1001,11,0)),"",IF(VLOOKUP(B38,'Zebrik W'!$B$7:$L$1001,11,0)=0,"--",VLOOKUP(B38,'Zebrik W'!$B$7:$L$1001,11,0))) -> 
A39: 33 | B39: Barbora Moravcova | C39: 1994 | D39: F | E39: Zbraslavice | F39: CZ/C1 | G39: 25849 | H39: 3 | L39: RV 2021 | M39: =IF(ISERROR(VLOOKUP(B39,'Zebrik W'!$B$7:$L$1001,11,0)),"",IF(VLOOKUP(B39,'Zebrik W'!$B$7:$L$1001,11,0)=0,"--",VLOOKUP(B39,'Zebrik W'!$B$7:$L$1001,11,0))) -> WRV 2021
A40: 34 | B40: Jan Boruvka | C40: 1984 | D40: M | E40: Jičín | F40: CZ/C2 | G40: 25819 | H40: 3 | M40: =IF(ISERROR(VLOOKUP(B40,'Zebrik W'!$B$7:$L$1001,11,0)),"",IF(VLOOKUP(B40,'Zebrik W'!$B$7:$L$1001,11,0)=0,"--",VLOOKUP(B40,'Zebrik W'!$B$7:$L$1001,11,0))) -> 
A41: 35 | B41: Jana Veprekova | C41: 1961 | D41: F | E41: Dvůr Králové | F41: CZ/C2 | G41: 25775 | H41: 3 | L41: RV 2021 | M41: =IF(ISERROR(VLOOKUP(B41,'Zebrik W'!$B$7:$L$1001,11,0)),"",IF(VLOOKUP(B41,'Zebrik W'!$B$7:$L$1001,11,0)=0,"--",VLOOKUP(B41,'Zebrik W'!$B$7:$L$1001,11,0))) -> WRV 2021
A42: 36 | B42: Frantisek Vancura | C42: 1966 | D42: M | E42: Hranice | F42: CZ/M | G42: 25577 | H42: 3 | M42: =IF(ISERROR(VLOOKUP(B42,'Zebrik W'!$B$7:$L$1001,11,0)),"",IF(VLOOKUP(B42,'Zebrik W'!$B$7:$L$1001,11,0)=0,"--",VLOOKUP(B42,'Zebrik W'!$B$7:$L$1001,11,0))) -> 
A43: 37 | B43: Hana Treslova | C43: 1991 | D43: F | E43: Raná | F43: CZ/C2 | G43: 25533 | H43: 3 | L43: RV 2021 | M43: =IF(ISERROR(VLOOKUP(B43,'Zebrik W'!$B$7:$L$1001,11,0)),"",IF(VLOOKUP(B43,'Zebrik W'!$B$7:$L$1001,11,0)=0,"--",VLOOKUP(B43,'Zebrik W'!$B$7:$L$1001,11,0))) -> WRV 2021
A44: 38 | B44: Marek Blatak | C44: 1969 | D44: M | E44: Šumperk | F44: CZ/M | G44: 25446 | H44: 3 | I44: =IF(C44="(prázdné)","",IF(($I$4-C44)>25,"","Junior v roce "&$I$4)) ->  | J44: =IF(C44="(prázdné)","",IF(($J$4-C44)>25,"","Junior v roce "&$J$4)) ->  | M44: =IF(ISERROR(VLOOKUP(B44,'Zebrik W'!$B$7:$L$1001,11,0)),"",IF(VLOOKUP(B44,'Zebrik W'!$B$7:$L$1001,11,0)=0,"--",VLOOKUP(B44,'Zebrik W'!$B$7:$L$1001,11,0))) -> 
A45: 39 | B45: Tomas Rendla | C45: 1973 | D45: M | E45: Zbraslavice | F45: CZ/C1 | G45: 25434 | H45: 3 | M45: =IF(ISERROR(VLOOKUP(B45,'Zebrik W'!$B$7:$L$1001,11,0)),"",IF(VLOOKUP(B45,'Zebrik W'!$B$7:$L$1001,11,0)=0,"--",VLOOKUP(B45,'Zebrik W'!$B$7:$L$1001,11,0))) -> 
A46: 40 | B46: Petr Hotovy | C46: 1958 | D46: M | E46: Česká Lípa | F46: CZ/C2 | G46: 25416 | H46: 3 | M46: =IF(ISERROR(VLOOKUP(B46,'Zebrik W'!$B$7:$L$1001,11,0)),"",IF(VLOOKUP(B46,'Zebrik W'!$B$7:$L$1001,11,0)=0,"--",VLOOKUP(B46,'Zebrik W'!$B$7:$L$1001,11,0))) -> 
A47: 41 | B47: Lukas Koukal | C47: 1991 | D47: M | E47: Letkov | F47: CZ/C1 | G47: 25411 | H47: 3 | M47: =IF(ISERROR(VLOOKUP(B47,'Zebrik W'!$B$7:$L$1001,11,0)),"",IF(VLOOKUP(B47,'Zebrik W'!$B$7:$L$1001,11,0)=0,"--",VLOOKUP(B47,'Zebrik W'!$B$7:$L$1001,11,0))) -> 
A48: 42 | B48: Vojtech Novotny | C48: 1992 | D48: M | E48: Kralupy | F48: CZ/C1 | G48: 25407 | H48: 3 | M48: =IF(ISERROR(VLOOKUP(B48,'Zebrik W'!$B$7:$L$1001,11,0)),"",IF(VLOOKUP(B48,'Zebrik W'!$B$7:$L$1001,11,0)=0,"--",VLOOKUP(B48,'Zebrik W'!$B$7:$L$1001,11,0))) -> 
A49: 43 | B49: Jindrich Svorc | C49: 1978 | D49: M | E49: Letňany | F49: CZ/C1 | G49: 25239 | H49: 3 | M49: =IF(ISERROR(VLOOKUP(B49,'Zebrik W'!$B$7:$L$1001,11,0)),"",IF(VLOOKUP(B49,'Zebrik W'!$B$7:$L$1001,11,0)=0,"--",VLOOKUP(B49,'Zebrik W'!$B$7:$L$1001,11,0))) -> 
A50: 44 | B50: Vratislav Sram | C50: 1966 | D50: M | E50: Broumov | F50: CZ/C2 | G50: 25215 | H50: 3 | M50: =IF(ISERROR(VLOOKUP(B50,'Zebrik W'!$B$7:$L$1001,11,0)),"",IF(VLOOKUP(B50,'Zebrik W'!$B$7:$L$1001,11,0)=0,"--",VLOOKUP(B50,'Zebrik W'!$B$7:$L$1001,11,0))) -> 
A51: 45 | B51: Zdenek Balcarek | C51: 1967 | D51: M | E51: Kroměříž | F51: CZ/M | G51: 25214 | H51: 3 | M51: =IF(ISERROR(VLOOKUP(B51,'Zebrik W'!$B$7:$L$1001,11,0)),"",IF(VLOOKUP(B51,'Zebrik W'!$B$7:$L$1001,11,0)=0,"--",VLOOKUP(B51,'Zebrik W'!$B$7:$L$1001,11,0))) -> 
A52: 46 | B52: Jan Zahradka | C52: 1981 | D52: M | E52: Hodkovice | F52: CZ/C2 | G52: 25065 | H52: 3 | M52: =IF(ISERROR(VLOOKUP(B52,'Zebrik W'!$B$7:$L$1001,11,0)),"",IF(VLOOKUP(B52,'Zebrik W'!$B$7:$L$1001,11,0)=0,"--",VLOOKUP(B52,'Zebrik W'!$B$7:$L$1001,11,0))) -> 
A53: 47 | B53: Jana Treslova | C53: 1963 | D53: F | E53: Raná | F53: CZ/C2 | G53: 24982 | H53: 3 | L53: RV 2021 | M53: =IF(ISERROR(VLOOKUP(B53,'Zebrik W'!$B$7:$L$1001,11,0)),"",IF(VLOOKUP(B53,'Zebrik W'!$B$7:$L$1001,11,0)=0,"--",VLOOKUP(B53,'Zebrik W'!$B$7:$L$1001,11,0))) -> WRV 2021
A54: 48 | B54: Lenka Kuthanova | C54: 1960 | D54: F | E54: Tábor | F54: CZ/C1 | G54: 24788 | H54: 3 | L54: RV 2021 | M54: =IF(ISERROR(VLOOKUP(B54,'Zebrik W'!$B$7:$L$1001,11,0)),"",IF(VLOOKUP(B54,'Zebrik W'!$B$7:$L$1001,11,0)=0,"--",VLOOKUP(B54,'Zebrik W'!$B$7:$L$1001,11,0))) -> WRV 2021
A55: 49 | B55: Karel Benisek 76 | C55: 1976 | D55: M | E55: Toužim | F55: CZ/C1 | G55: 24660 | H55: 3 | M55: =IF(ISERROR(VLOOKUP(B55,'Zebrik W'!$B$7:$L$1001,11,0)),"",IF(VLOOKUP(B55,'Zebrik W'!$B$7:$L$1001,11,0)=0,"--",VLOOKUP(B55,'Zebrik W'!$B$7:$L$1001,11,0))) -> 
A56: 50 | B56: Vit Morkovsky | C56: 2000 | D56: M | E56: Polička | F56: CZ/C2 | G56: 24565 | H56: 3 | I56: Junior v roce 2021 | J56: Junior v roce 2022 | L56: RV 2021 | M56: =IF(ISERROR(VLOOKUP(B56,'Zebrik W'!$B$7:$L$1001,11,0)),"",IF(VLOOKUP(B56,'Zebrik W'!$B$7:$L$1001,11,0)=0,"--",VLOOKUP(B56,'Zebrik W'!$B$7:$L$1001,11,0))) -> 
A57: 51 | B57: Jan Kotan | C57: 1982 | D57: M | E57: Letňany | F57: CZ/C1 | G57: 24389 | H57: 3 | M57: =IF(ISERROR(VLOOKUP(B57,'Zebrik W'!$B$7:$L$1001,11,0)),"",IF(VLOOKUP(B57,'Zebrik W'!$B$7:$L$1001,11,0)=0,"--",VLOOKUP(B57,'Zebrik W'!$B$7:$L$1001,11,0))) -> 
A58: 52 | B58: Petr Jiranek 91 | C58: 1991 | D58: M | E58: Toužim | F58: CZ/C1 | G58: 24292 | H58: 3 | M58: =IF(ISERROR(VLOOKUP(B58,'Zebrik W'!$B$7:$L$1001,11,0)),"",IF(VLOOKUP(B58,'Zebrik W'!$B$7:$L$1001,11,0)=0,"--",VLOOKUP(B58,'Zebrik W'!$B$7:$L$1001,11,0))) -> 
A59: 53 | B59: Petr Panek | C59: 1975 | D59: M | E59: Dvůr Králové | F59: CZ/C2 | G59: 24266 | H59: 3 | M59: =IF(ISERROR(VLOOKUP(B59,'Zebrik W'!$B$7:$L$1001,11,0)),"",IF(VLOOKUP(B59,'Zebrik W'!$B$7:$L$1001,11,0)=0,"--",VLOOKUP(B59,'Zebrik W'!$B$7:$L$1001,11,0))) -> 
A60: 54 | B60: Zdenek Boruvka 54 | C60: 1954 | D60: M | E60: Jičín | F60: CZ/C2 | G60: 24218 | H60: 3 | M60: =IF(ISERROR(VLOOKUP(B60,'Zebrik W'!$B$7:$L$1001,11,0)),"",IF(VLOOKUP(B60,'Zebrik W'!$B$7:$L$1001,11,0)=0,"--",VLOOKUP(B60,'Zebrik W'!$B$7:$L$1001,11,0))) -> 
A61: 55 | B61: Martin Urner | C61: 1974 | D61: M | E61: Letňany | F61: CZ/C1 | G61: 23828 | H61: 3 | M61: =IF(ISERROR(VLOOKUP(B61,'Zebrik W'!$B$7:$L$1001,11,0)),"",IF(VLOOKUP(B61,'Zebrik W'!$B$7:$L$1001,11,0)=0,"--",VLOOKUP(B61,'Zebrik W'!$B$7:$L$1001,11,0))) -> 
A62: 56 | B62: Marek Pechanec | C62: 1970 | D62: M | E62: Luhačovice | F62: CZ/M | G62: 23799 | H62: 3 | M62: =IF(ISERROR(VLOOKUP(B62,'Zebrik W'!$B$7:$L$1001,11,0)),"",IF(VLOOKUP(B62,'Zebrik W'!$B$7:$L$1001,11,0)=0,"--",VLOOKUP(B62,'Zebrik W'!$B$7:$L$1001,11,0))) -> 
A63: 57 | B63: David Sachl | C63: 1978 | D63: M | E63: Kralupy | F63: CZ/C1 | G63: 23798 | H63: 3 | M63: =IF(ISERROR(VLOOKUP(B63,'Zebrik W'!$B$7:$L$1001,11,0)),"",IF(VLOOKUP(B63,'Zebrik W'!$B$7:$L$1001,11,0)=0,"--",VLOOKUP(B63,'Zebrik W'!$B$7:$L$1001,11,0))) -> 
A64: 58 | B64: Petr Valenta 94 | C64: 1994 | D64: M | E64: Kunovice | F64: CZ/M | G64: 23665 | H64: 3 | M64: =IF(ISERROR(VLOOKUP(B64,'Zebrik W'!$B$7:$L$1001,11,0)),"",IF(VLOOKUP(B64,'Zebrik W'!$B$7:$L$1001,11,0)=0,"--",VLOOKUP(B64,'Zebrik W'!$B$7:$L$1001,11,0))) -> 
A65: 59 | B65: Klara Teichmannova | C65: 1993 | D65: F | E65: Hronov | F65: CZ/C2 | G65: 23658 | H65: 3 | L65: RV 2021 | M65: =IF(ISERROR(VLOOKUP(B65,'Zebrik W'!$B$7:$L$1001,11,0)),"",IF(VLOOKUP(B65,'Zebrik W'!$B$7:$L$1001,11,0)=0,"--",VLOOKUP(B65,'Zebrik W'!$B$7:$L$1001,11,0))) -> WRV 2021
A66: 60 | B66: Karel Mares | C66: 1974 | D66: M | E66: Slaný | F66: CZ/C1 | G66: 23599 | H66: 3 | M66: =IF(ISERROR(VLOOKUP(B66,'Zebrik W'!$B$7:$L$1001,11,0)),"",IF(VLOOKUP(B66,'Zebrik W'!$B$7:$L$1001,11,0)=0,"--",VLOOKUP(B66,'Zebrik W'!$B$7:$L$1001,11,0))) -> 
A67: 61 | B67: Josef Busek | C67: 1967 | D67: M | E67: Hosín | F67: CZ/C1 | G67: 23516 | H67: 3 | M67: =IF(ISERROR(VLOOKUP(B67,'Zebrik W'!$B$7:$L$1001,11,0)),"",IF(VLOOKUP(B67,'Zebrik W'!$B$7:$L$1001,11,0)=0,"--",VLOOKUP(B67,'Zebrik W'!$B$7:$L$1001,11,0))) -> 
A68: 62 | B68: Jan Vavrin | C68: 1987 | D68: M | E68: Vysoké Mýto | F68: CZ/C2 | G68: 23513 | H68: 3 | M68: =IF(ISERROR(VLOOKUP(B68,'Zebrik W'!$B$7:$L$1001,11,0)),"",IF(VLOOKUP(B68,'Zebrik W'!$B$7:$L$1001,11,0)=0,"--",VLOOKUP(B68,'Zebrik W'!$B$7:$L$1001,11,0))) -> 
A69: 63 | B69: Michal Drab | C69: 1969 | D69: M | E69: Letkov | F69: CZ/C1 | G69: 23496 | H69: 3 | M69: =IF(ISERROR(VLOOKUP(B69,'Zebrik W'!$B$7:$L$1001,11,0)),"",IF(VLOOKUP(B69,'Zebrik W'!$B$7:$L$1001,11,0)=0,"--",VLOOKUP(B69,'Zebrik W'!$B$7:$L$1001,11,0))) -> 
A70: 64 | B70: Rene Hudak | C70: 1972 | D70: M | E70: Kunovice | F70: CZ/M | G70: 23441 | H70: 3 | M70: =IF(ISERROR(VLOOKUP(B70,'Zebrik W'!$B$7:$L$1001,11,0)),"",IF(VLOOKUP(B70,'Zebrik W'!$B$7:$L$1001,11,0)=0,"--",VLOOKUP(B70,'Zebrik W'!$B$7:$L$1001,11,0))) -> 
A71: =RANK(G71,G:G) -> 65 | B71: Vaclav Marel | C71: 1974 | D71: M | E71: Jaroměř | F71: CZ/C2 | G71: 23337 | H71: 3 | M71: =IF(ISERROR(VLOOKUP(B71,'Zebrik W'!$B$7:$L$1001,11,0)),"",IF(VLOOKUP(B71,'Zebrik W'!$B$7:$L$1001,11,0)=0,"--",VLOOKUP(B71,'Zebrik W'!$B$7:$L$1001,11,0))) -> 
A72: 66 | B72: Jan Pubec | C72: 1979 | D72: M | E72: Plzeň Bory | F72: CZ/C1 | G72: 23281 | H72: 3 | M72: =IF(ISERROR(VLOOKUP(B72,'Zebrik W'!$B$7:$L$1001,11,0)),"",IF(VLOOKUP(B72,'Zebrik W'!$B$7:$L$1001,11,0)=0,"--",VLOOKUP(B72,'Zebrik W'!$B$7:$L$1001,11,0))) -> 
A73: 67 | B73: Jan Dersak 69 | C73: 1969 | D73: M | E73: Kralupy | F73: CZ/C1 | G73: 23246 | H73: 3 | M73: =IF(ISERROR(VLOOKUP(B73,'Zebrik W'!$B$7:$L$1001,11,0)),"",IF(VLOOKUP(B73,'Zebrik W'!$B$7:$L$1001,11,0)=0,"--",VLOOKUP(B73,'Zebrik W'!$B$7:$L$1001,11,0))) -> 
A74: 68 | B74: Pavel Jiranek | C74: 1993 | D74: M | E74: Toužim | F74: CZ/C1 | G74: 23132 | H74: 3 | M74: =IF(ISERROR(VLOOKUP(B74,'Zebrik W'!$B$7:$L$1001,11,0)),"",IF(VLOOKUP(B74,'Zebrik W'!$B$7:$L$1001,11,0)=0,"--",VLOOKUP(B74,'Zebrik W'!$B$7:$L$1001,11,0))) -> 
A75: 69 | B75: Jiri Steiger | C75: 1969 | D75: M | E75: Olomouc | F75: CZ/M | G75: 23021 | H75: 3 | M75: =IF(ISERROR(VLOOKUP(B75,'Zebrik W'!$B$7:$L$1001,11,0)),"",IF(VLOOKUP(B75,'Zebrik W'!$B$7:$L$1001,11,0)=0,"--",VLOOKUP(B75,'Zebrik W'!$B$7:$L$1001,11,0))) -> 
A76: 70 | B76: Petra Piskata | C76: 1989 | D76: F | E76: Luhačovice | F76: CZ/M | G76: 22893 | H76: 3 | L76: RV 2021 | M76: =IF(ISERROR(VLOOKUP(B76,'Zebrik W'!$B$7:$L$1001,11,0)),"",IF(VLOOKUP(B76,'Zebrik W'!$B$7:$L$1001,11,0)=0,"--",VLOOKUP(B76,'Zebrik W'!$B$7:$L$1001,11,0))) -> WRV 2021
A77: 71 | B77: Ivan Tvrdik | C77: 1997 | D77: M | E77: Letňany | F77: CZ/C1 | G77: 22885 | H77: 3 | I77: Junior v roce 2021 | J77: Junior v roce 2022 | L77: RV 2021 | M77: =IF(ISERROR(VLOOKUP(B77,'Zebrik W'!$B$7:$L$1001,11,0)),"",IF(VLOOKUP(B77,'Zebrik W'!$B$7:$L$1001,11,0)=0,"--",VLOOKUP(B77,'Zebrik W'!$B$7:$L$1001,11,0))) -> 
A78: 72 | B78: Martin Svarc | C78: 1981 | D78: M | E78: Olomouc | F78: CZ/M | G78: 22782 | H78: 3 | M78: =IF(ISERROR(VLOOKUP(B78,'Zebrik W'!$B$7:$L$1001,11,0)),"",IF(VLOOKUP(B78,'Zebrik W'!$B$7:$L$1001,11,0)=0,"--",VLOOKUP(B78,'Zebrik W'!$B$7:$L$1001,11,0))) -> 
A79: 73 | B79: Marek Kornec | C79: 1957 | D79: M | E79: Dvůr Králové | F79: CZ/C2 | G79: 22458 | H79: 3 | M79: =IF(ISERROR(VLOOKUP(B79,'Zebrik W'!$B$7:$L$1001,11,0)),"",IF(VLOOKUP(B79,'Zebrik W'!$B$7:$L$1001,11,0)=0,"--",VLOOKUP(B79,'Zebrik W'!$B$7:$L$1001,11,0))) -> 
A80: 74 | B80: Antonin Konicek | C80: 1973 | D80: M | E80: Kunovice | F80: CZ/M | G80: 22415 | H80: 3 | M80: =IF(ISERROR(VLOOKUP(B80,'Zebrik W'!$B$7:$L$1001,11,0)),"",IF(VLOOKUP(B80,'Zebrik W'!$B$7:$L$1001,11,0)=0,"--",VLOOKUP(B80,'Zebrik W'!$B$7:$L$1001,11,0))) -> 
A81: 75 | B81: Martin Zahalka | C81: 1987 | D81: M | E81: Staňkov | F81: CZ/C1 | G81: 22406 | H81: 3 | M81: =IF(ISERROR(VLOOKUP(B81,'Zebrik W'!$B$7:$L$1001,11,0)),"",IF(VLOOKUP(B81,'Zebrik W'!$B$7:$L$1001,11,0)=0,"--",VLOOKUP(B81,'Zebrik W'!$B$7:$L$1001,11,0))) -> 
A82: 76 | B82: Jan Horak | C82: 1971 | D82: M | E82: Zbraslavice | F82: CZ/C1 | G82: 22314 | H82: 3 | M82: =IF(ISERROR(VLOOKUP(B82,'Zebrik W'!$B$7:$L$1001,11,0)),"",IF(VLOOKUP(B82,'Zebrik W'!$B$7:$L$1001,11,0)=0,"--",VLOOKUP(B82,'Zebrik W'!$B$7:$L$1001,11,0))) -> 
A83: 77 | B83: Jiri Stepanek | C83: 1956 | D83: M | E83: Moravská Třebová | F83: CZ/M | G83: 22308 | H83: 3 | M83: =IF(ISERROR(VLOOKUP(B83,'Zebrik W'!$B$7:$L$1001,11,0)),"",IF(VLOOKUP(B83,'Zebrik W'!$B$7:$L$1001,11,0)=0,"--",VLOOKUP(B83,'Zebrik W'!$B$7:$L$1001,11,0))) -> 
A84: 78 | B84: Slavomir Piskaty 84 | C84: 1984 | D84: M | E84: Kunovice | F84: CZ/M | G84: 22297 | H84: 3 | M84: =IF(ISERROR(VLOOKUP(B84,'Zebrik W'!$B$7:$L$1001,11,0)),"",IF(VLOOKUP(B84,'Zebrik W'!$B$7:$L$1001,11,0)=0,"--",VLOOKUP(B84,'Zebrik W'!$B$7:$L$1001,11,0))) -> 
A85: 79 | B85: Martin Hrivna | C85: 1978 | D85: M | E85: Zbraslavice | F85: CZ/C1 | G85: 22246 | H85: 3 | M85: =IF(ISERROR(VLOOKUP(B85,'Zebrik W'!$B$7:$L$1001,11,0)),"",IF(VLOOKUP(B85,'Zebrik W'!$B$7:$L$1001,11,0)=0,"--",VLOOKUP(B85,'Zebrik W'!$B$7:$L$1001,11,0))) -> 
A86: 80 | B86: Zdenek Schenk | C86: 1972 | D86: M | E86: Hranice | F86: CZ/M | G86: 22225 | H86: 3 | M86: =IF(ISERROR(VLOOKUP(B86,'Zebrik W'!$B$7:$L$1001,11,0)),"",IF(VLOOKUP(B86,'Zebrik W'!$B$7:$L$1001,11,0)=0,"--",VLOOKUP(B86,'Zebrik W'!$B$7:$L$1001,11,0))) -> 
A87: 81 | B87: Jaromir Pauer | C87: 1974 | D87: M | E87: Hosín | F87: CZ/C1 | G87: 22155 | H87: 3 | M87: =IF(ISERROR(VLOOKUP(B87,'Zebrik W'!$B$7:$L$1001,11,0)),"",IF(VLOOKUP(B87,'Zebrik W'!$B$7:$L$1001,11,0)=0,"--",VLOOKUP(B87,'Zebrik W'!$B$7:$L$1001,11,0))) -> 
A88: 82 | B88: Tereza Koubkova | C88: 1999 | D88: F | E88: Vysoké Mýto | F88: CZ/C2 | G88: 22136 | H88: 3 | I88: Junior v roce 2021 | J88: Junior v roce 2022 | L88: RV 2021 | M88: =IF(ISERROR(VLOOKUP(B88,'Zebrik W'!$B$7:$L$1001,11,0)),"",IF(VLOOKUP(B88,'Zebrik W'!$B$7:$L$1001,11,0)=0,"--",VLOOKUP(B88,'Zebrik W'!$B$7:$L$1001,11,0))) -> --
A89: 83 | B89: Martin Fric | C89: 1967 | D89: M | E89: Raná | F89: CZ/C2 | G89: 22077 | H89: 3 | M89: =IF(ISERROR(VLOOKUP(B89,'Zebrik W'!$B$7:$L$1001,11,0)),"",IF(VLOOKUP(B89,'Zebrik W'!$B$7:$L$1001,11,0)=0,"--",VLOOKUP(B89,'Zebrik W'!$B$7:$L$1001,11,0))) -> 
A90: 84 | B90: Lukas Hynek | C90: 1979 | D90: M | E90: Dvůr Králové | F90: CZ/C2 | G90: 22063 | H90: 3 | M90: =IF(ISERROR(VLOOKUP(B90,'Zebrik W'!$B$7:$L$1001,11,0)),"",IF(VLOOKUP(B90,'Zebrik W'!$B$7:$L$1001,11,0)=0,"--",VLOOKUP(B90,'Zebrik W'!$B$7:$L$1001,11,0))) -> 
A91: 85 | B91: Jan Simon | C91: 1970 | D91: M | E91: Kralupy | F91: CZ/C1 | G91: 22059 | H91: 3 | M91: =IF(ISERROR(VLOOKUP(B91,'Zebrik W'!$B$7:$L$1001,11,0)),"",IF(VLOOKUP(B91,'Zebrik W'!$B$7:$L$1001,11,0)=0,"--",VLOOKUP(B91,'Zebrik W'!$B$7:$L$1001,11,0))) -> 
A92: 86 | B92: Milan Svoboda 80 | C92: 1980 | D92: M | E92: Havlíčkův Brod | F92: CZ/C2 | G92: 21889 | H92: 3 | M92: =IF(ISERROR(VLOOKUP(B92,'Zebrik W'!$B$7:$L$1001,11,0)),"",IF(VLOOKUP(B92,'Zebrik W'!$B$7:$L$1001,11,0)=0,"--",VLOOKUP(B92,'Zebrik W'!$B$7:$L$1001,11,0))) -> 
A93: 87 | B93: Lumir Motyka | C93: 1955 | D93: M | E93: Frýdlant | F93: CZ/M | G93: 21843 | H93: 3 | M93: =IF(ISERROR(VLOOKUP(B93,'Zebrik W'!$B$7:$L$1001,11,0)),"",IF(VLOOKUP(B93,'Zebrik W'!$B$7:$L$1001,11,0)=0,"--",VLOOKUP(B93,'Zebrik W'!$B$7:$L$1001,11,0))) -> 
A94: 88 | B94: Miroslav Koci | C94: 1961 | D94: M | E94: Žamberk | F94: CZ/C2 | G94: 21630 | H94: 3 | M94: =IF(ISERROR(VLOOKUP(B94,'Zebrik W'!$B$7:$L$1001,11,0)),"",IF(VLOOKUP(B94,'Zebrik W'!$B$7:$L$1001,11,0)=0,"--",VLOOKUP(B94,'Zebrik W'!$B$7:$L$1001,11,0))) -> 
A95: 89 | B95: Roman Jokl | C95: 1979 | D95: M | E95: Letkov | F95: CZ/C1 | G95: 21405 | H95: 3 | M95: =IF(ISERROR(VLOOKUP(B95,'Zebrik W'!$B$7:$L$1001,11,0)),"",IF(VLOOKUP(B95,'Zebrik W'!$B$7:$L$1001,11,0)=0,"--",VLOOKUP(B95,'Zebrik W'!$B$7:$L$1001,11,0))) -> 
A96: 90 | B96: Jaroslav Buryan | C96: 1953 | D96: M | E96: Zábřeh | F96: CZ/M | G96: 21358 | H96: 3 | M96: =IF(ISERROR(VLOOKUP(B96,'Zebrik W'!$B$7:$L$1001,11,0)),"",IF(VLOOKUP(B96,'Zebrik W'!$B$7:$L$1001,11,0)=0,"--",VLOOKUP(B96,'Zebrik W'!$B$7:$L$1001,11,0))) -> 
A97: 91 | B97: Tomas Talanda | C97: 1988 | D97: M | E97: Křižanov | F97: CZ/M | G97: 21321 | H97: 3 | M97: =IF(ISERROR(VLOOKUP(B97,'Zebrik W'!$B$7:$L$1001,11,0)),"",IF(VLOOKUP(B97,'Zebrik W'!$B$7:$L$1001,11,0)=0,"--",VLOOKUP(B97,'Zebrik W'!$B$7:$L$1001,11,0))) -> 
A98: 92 | B98: Wolfgang Sluka | C98: 1942 | D98: M | E98: Liberec | F98: CZ/C2 | G98: 21308 | H98: 3 | M98: =IF(ISERROR(VLOOKUP(B98,'Zebrik W'!$B$7:$L$1001,11,0)),"",IF(VLOOKUP(B98,'Zebrik W'!$B$7:$L$1001,11,0)=0,"--",VLOOKUP(B98,'Zebrik W'!$B$7:$L$1001,11,0))) -> 
A99: 93 | B99: Petr Stepanek | C99: 1989 | D99: M | E99: Moravská Třebová | F99: CZ/M | G99: 21182 | H99: 3 | M99: =IF(ISERROR(VLOOKUP(B99,'Zebrik W'!$B$7:$L$1001,11,0)),"",IF(VLOOKUP(B99,'Zebrik W'!$B$7:$L$1001,11,0)=0,"--",VLOOKUP(B99,'Zebrik W'!$B$7:$L$1001,11,0))) -> 
A100: 94 | B100: Jan Vozeh | C100: 1995 | D100: M | E100: Rakovník | F100: CZ/C1 | G100: 21151 | H100: 3 | M100: =IF(ISERROR(VLOOKUP(B100,'Zebrik W'!$B$7:$L$1001,11,0)),"",IF(VLOOKUP(B100,'Zebrik W'!$B$7:$L$1001,11,0)=0,"--",VLOOKUP(B100,'Zebrik W'!$B$7:$L$1001,11,0))) -> 
A101: 95 | B101: Tomas Jilek | C101: 1995 | D101: M | E101: Raná | F101: CZ/C2 | G101: 21060 | H101: 3 | M101: =IF(ISERROR(VLOOKUP(B101,'Zebrik W'!$B$7:$L$1001,11,0)),"",IF(VLOOKUP(B101,'Zebrik W'!$B$7:$L$1001,11,0)=0,"--",VLOOKUP(B101,'Zebrik W'!$B$7:$L$1001,11,0))) -> 
A102: 96 | B102: Jakub Kmosek | C102: 1978 | D102: M | E102: Zbraslavice | F102: CZ/C1 | G102: 20986 | H102: 3 | M102: =IF(ISERROR(VLOOKUP(B102,'Zebrik W'!$B$7:$L$1001,11,0)),"",IF(VLOOKUP(B102,'Zebrik W'!$B$7:$L$1001,11,0)=0,"--",VLOOKUP(B102,'Zebrik W'!$B$7:$L$1001,11,0))) -> 
A103: 97 | B103: Jan Smaha | C103: 1958 | D103: M | E103: Česká Lípa | F103: CZ/C2 | G103: 20828 | H103: 3 | M103: =IF(ISERROR(VLOOKUP(B103,'Zebrik W'!$B$7:$L$1001,11,0)),"",IF(VLOOKUP(B103,'Zebrik W'!$B$7:$L$1001,11,0)=0,"--",VLOOKUP(B103,'Zebrik W'!$B$7:$L$1001,11,0))) -> 
A104: 98 | B104: Milan Dvorak | C104: 1965 | D104: M | E104: Liberec | F104: CZ/C2 | G104: 20591 | H104: 3 | M104: =IF(ISERROR(VLOOKUP(B104,'Zebrik W'!$B$7:$L$1001,11,0)),"",IF(VLOOKUP(B104,'Zebrik W'!$B$7:$L$1001,11,0)=0,"--",VLOOKUP(B104,'Zebrik W'!$B$7:$L$1001,11,0))) -> 
A105: 99 | B105: Slavomir Valecko | C105: 1960 | D105: M | E105: Hranice | F105: CZ/M | G105: 20456 | H105: 3 | M105: =IF(ISERROR(VLOOKUP(B105,'Zebrik W'!$B$7:$L$1001,11,0)),"",IF(VLOOKUP(B105,'Zebrik W'!$B$7:$L$1001,11,0)=0,"--",VLOOKUP(B105,'Zebrik W'!$B$7:$L$1001,11,0))) -> 
A106: 100 | B106: Miloslav Hulmak | C106: 1963 | D106: M | E106: Hosín | F106: CZ/C1 | G106: 20371 | H106: 3 | M106: =IF(ISERROR(VLOOKUP(B106,'Zebrik W'!$B$7:$L$1001,11,0)),"",IF(VLOOKUP(B106,'Zebrik W'!$B$7:$L$1001,11,0)=0,"--",VLOOKUP(B106,'Zebrik W'!$B$7:$L$1001,11,0))) -> 
A107: 101 | B107: Ladislav Jozsa | C107: 1981 | D107: M | E107: Medlánky | F107: CZ/M | G107: 20278 | H107: 3 | M107: =IF(ISERROR(VLOOKUP(B107,'Zebrik W'!$B$7:$L$1001,11,0)),"",IF(VLOOKUP(B107,'Zebrik W'!$B$7:$L$1001,11,0)=0,"--",VLOOKUP(B107,'Zebrik W'!$B$7:$L$1001,11,0))) -> 
A108: 102 | B108: Michaela Krizova | C108: 2001 | D108: F | E108: Přibyslav | F108: CZ/C2 | G108: 20248 | H108: 3 | I108: =IF(C108="(prázdné)","",IF(($I$4-C108)>25,"","Junior v roce "&$I$4)) -> Junior v roce 2021 | J108: =IF(C108="(prázdné)","",IF(($J$4-C108)>25,"","Junior v roce "&$J$4)) -> Junior v roce 2022 | L108: RV 2021 | M108: =IF(ISERROR(VLOOKUP(B108,'Zebrik W'!$B$7:$L$1001,11,0)),"",IF(VLOOKUP(B108,'Zebrik W'!$B$7:$L$1001,11,0)=0,"--",VLOOKUP(B108,'Zebrik W'!$B$7:$L$1001,11,0))) -> --
A109: 103 | B109: Jan Kohout | C109: 1970 | D109: M | E109: Žamberk | F109: CZ/C2 | G109: 20127 | H109: 3 | M109: =IF(ISERROR(VLOOKUP(B109,'Zebrik W'!$B$7:$L$1001,11,0)),"",IF(VLOOKUP(B109,'Zebrik W'!$B$7:$L$1001,11,0)=0,"--",VLOOKUP(B109,'Zebrik W'!$B$7:$L$1001,11,0))) -> 
A110: 104 | B110: David Vrchota | C110: 1976 | D110: M | E110: Jaroměř | F110: CZ/C2 | G110: 20109 | H110: 3 | M110: =IF(ISERROR(VLOOKUP(B110,'Zebrik W'!$B$7:$L$1001,11,0)),"",IF(VLOOKUP(B110,'Zebrik W'!$B$7:$L$1001,11,0)=0,"--",VLOOKUP(B110,'Zebrik W'!$B$7:$L$1001,11,0))) -> 
A111: 105 | B111: Frantisek Filandr | C111: 1956 | D111: M | E111: Most | F111: CZ/C2 | G111: 20104 | H111: 3 | M111: =IF(ISERROR(VLOOKUP(B111,'Zebrik W'!$B$7:$L$1001,11,0)),"",IF(VLOOKUP(B111,'Zebrik W'!$B$7:$L$1001,11,0)=0,"--",VLOOKUP(B111,'Zebrik W'!$B$7:$L$1001,11,0))) -> 
A112: 106 | B112: Jiri Holcman | C112: 1976 | D112: M | E112: Hosín | F112: CZ/C1 | G112: 19930 | H112: 3 | M112: =IF(ISERROR(VLOOKUP(B112,'Zebrik W'!$B$7:$L$1001,11,0)),"",IF(VLOOKUP(B112,'Zebrik W'!$B$7:$L$1001,11,0)=0,"--",VLOOKUP(B112,'Zebrik W'!$B$7:$L$1001,11,0))) -> 
A113: 107 | B113: Jan Hybner | C113: 1977 | D113: M | E113: Liberec | F113: CZ/C2 | G113: 19718 | H113: 3 | M113: =IF(ISERROR(VLOOKUP(B113,'Zebrik W'!$B$7:$L$1001,11,0)),"",IF(VLOOKUP(B113,'Zebrik W'!$B$7:$L$1001,11,0)=0,"--",VLOOKUP(B113,'Zebrik W'!$B$7:$L$1001,11,0))) -> 
A114: 108 | B114: Martin Urban | C114: 1971 | D114: M | E114: Frýdlant | F114: CZ/M | G114: 19656 | H114: 3 | M114: =IF(ISERROR(VLOOKUP(B114,'Zebrik W'!$B$7:$L$1001,11,0)),"",IF(VLOOKUP(B114,'Zebrik W'!$B$7:$L$1001,11,0)=0,"--",VLOOKUP(B114,'Zebrik W'!$B$7:$L$1001,11,0))) -> 
A115: 109 | B115: Jiri Maier 66 | C115: 1966 | D115: M | E115: Raná | F115: CZ/C2 | G115: 19627 | H115: 3 | M115: =IF(ISERROR(VLOOKUP(B115,'Zebrik W'!$B$7:$L$1001,11,0)),"",IF(VLOOKUP(B115,'Zebrik W'!$B$7:$L$1001,11,0)=0,"--",VLOOKUP(B115,'Zebrik W'!$B$7:$L$1001,11,0))) -> 
A116: 110 | B116: Jindrich Hruska | C116: 1986 | D116: M | E116: Soběslav | F116: CZ/C1 | G116: 19432 | H116: 3 | M116: =IF(ISERROR(VLOOKUP(B116,'Zebrik W'!$B$7:$L$1001,11,0)),"",IF(VLOOKUP(B116,'Zebrik W'!$B$7:$L$1001,11,0)=0,"--",VLOOKUP(B116,'Zebrik W'!$B$7:$L$1001,11,0))) -> 
A117: 111 | B117: Jan Hruska | C117: 1988 | D117: M | E117: Tábor | F117: CZ/C1 | G117: 19431 | H117: 3 | M117: =IF(ISERROR(VLOOKUP(B117,'Zebrik W'!$B$7:$L$1001,11,0)),"",IF(VLOOKUP(B117,'Zebrik W'!$B$7:$L$1001,11,0)=0,"--",VLOOKUP(B117,'Zebrik W'!$B$7:$L$1001,11,0))) -> 
A118: 112 | B118: Petr Bartak | C118: 1984 | D118: M | E118: Letkov | F118: CZ/C1 | G118: 19424 | H118: 3 | M118: =IF(ISERROR(VLOOKUP(B118,'Zebrik W'!$B$7:$L$1001,11,0)),"",IF(VLOOKUP(B118,'Zebrik W'!$B$7:$L$1001,11,0)=0,"--",VLOOKUP(B118,'Zebrik W'!$B$7:$L$1001,11,0))) -> 
A119: 113 | B119: Pavlina Horackova | C119: 1965 | D119: F | E119: Šumperk | F119: CZ/M | G119: 19414 | H119: 3 | M119: =IF(ISERROR(VLOOKUP(B119,'Zebrik W'!$B$7:$L$1001,11,0)),"",IF(VLOOKUP(B119,'Zebrik W'!$B$7:$L$1001,11,0)=0,"--",VLOOKUP(B119,'Zebrik W'!$B$7:$L$1001,11,0))) -> --
A120: 114 | B120: Ivan Harasta 98 | C120: 1998 | D120: M | E120: Toužim | F120: CZ/C1 | G120: 19379 | H120: 3 | I120: Junior v roce 2021 | J120: Junior v roce 2022 | M120: =IF(ISERROR(VLOOKUP(B120,'Zebrik W'!$B$7:$L$1001,11,0)),"",IF(VLOOKUP(B120,'Zebrik W'!$B$7:$L$1001,11,0)=0,"--",VLOOKUP(B120,'Zebrik W'!$B$7:$L$1001,11,0))) -> 
A121: 115 | B121: Tomas Kulhavy | C121: 2001 | D121: M | E121: Liberec | F121: CZ/C2 | G121: 19343 | H121: 3 | I121: Junior v roce 2021 | J121: Junior v roce 2022 | M121: =IF(ISERROR(VLOOKUP(B121,'Zebrik W'!$B$7:$L$1001,11,0)),"",IF(VLOOKUP(B121,'Zebrik W'!$B$7:$L$1001,11,0)=0,"--",VLOOKUP(B121,'Zebrik W'!$B$7:$L$1001,11,0))) -> 
A122: 116 | B122: Jan Stastny | C122: 2003 | D122: M | E122: Medlánky | F122: CZ/M | G122: 19293 | H122: 3 | I122: Junior v roce 2021 | J122: Junior v roce 2022 | M122: =IF(ISERROR(VLOOKUP(B122,'Zebrik W'!$B$7:$L$1001,11,0)),"",IF(VLOOKUP(B122,'Zebrik W'!$B$7:$L$1001,11,0)=0,"--",VLOOKUP(B122,'Zebrik W'!$B$7:$L$1001,11,0))) -> 
A123: 117 | B123: Milos Pajr | C123: 1966 | D123: M | E123: Jičín | F123: CZ/C2 | G123: 19286 | H123: 3 | M123: =IF(ISERROR(VLOOKUP(B123,'Zebrik W'!$B$7:$L$1001,11,0)),"",IF(VLOOKUP(B123,'Zebrik W'!$B$7:$L$1001,11,0)=0,"--",VLOOKUP(B123,'Zebrik W'!$B$7:$L$1001,11,0))) -> 
A124: 118 | B124: Radek Zima 78 | C124: 1978 | D124: M | E124: Hodkovice | F124: CZ/C2 | G124: 19182 | H124: 3 | M124: =IF(ISERROR(VLOOKUP(B124,'Zebrik W'!$B$7:$L$1001,11,0)),"",IF(VLOOKUP(B124,'Zebrik W'!$B$7:$L$1001,11,0)=0,"--",VLOOKUP(B124,'Zebrik W'!$B$7:$L$1001,11,0))) -> 
A125: 119 | B125: Petr Lonsky | C125: 1965 | D125: M | E125: Toužim | F125: CZ/C1 | G125: 19169 | H125: 3 | M125: =IF(ISERROR(VLOOKUP(B125,'Zebrik W'!$B$7:$L$1001,11,0)),"",IF(VLOOKUP(B125,'Zebrik W'!$B$7:$L$1001,11,0)=0,"--",VLOOKUP(B125,'Zebrik W'!$B$7:$L$1001,11,0))) -> 
A126: 120 | B126: Jiri Koudela | C126: 1974 | D126: M | E126: Vyškov | F126: CZ/M | G126: 19165 | H126: 3 | M126: =IF(ISERROR(VLOOKUP(B126,'Zebrik W'!$B$7:$L$1001,11,0)),"",IF(VLOOKUP(B126,'Zebrik W'!$B$7:$L$1001,11,0)=0,"--",VLOOKUP(B126,'Zebrik W'!$B$7:$L$1001,11,0))) -> 
A127: 121 | B127: Vaclav Kult | C127: 1973 | D127: M | E127: Broumov | F127: CZ/C2 | G127: 19148 | H127: 3 | M127: =IF(ISERROR(VLOOKUP(B127,'Zebrik W'!$B$7:$L$1001,11,0)),"",IF(VLOOKUP(B127,'Zebrik W'!$B$7:$L$1001,11,0)=0,"--",VLOOKUP(B127,'Zebrik W'!$B$7:$L$1001,11,0))) -> 
A128: 122 | B128: Libor Bednarik | C128: 1972 | D128: M | E128: Kunovice | F128: CZ/M | G128: 19128 | H128: 3 | M128: =IF(ISERROR(VLOOKUP(B128,'Zebrik W'!$B$7:$L$1001,11,0)),"",IF(VLOOKUP(B128,'Zebrik W'!$B$7:$L$1001,11,0)=0,"--",VLOOKUP(B128,'Zebrik W'!$B$7:$L$1001,11,0))) -> 
A129: 123 | B129: Marek Svancara | C129: 1976 | D129: M | E129: GAC Benešov | F129: CZ/C1 | G129: 19121 | H129: 3 | M129: =IF(ISERROR(VLOOKUP(B129,'Zebrik W'!$B$7:$L$1001,11,0)),"",IF(VLOOKUP(B129,'Zebrik W'!$B$7:$L$1001,11,0)=0,"--",VLOOKUP(B129,'Zebrik W'!$B$7:$L$1001,11,0))) -> 
A130: 124 | B130: Ondrej Dvorak 98 | C130: 1998 | D130: M | E130: Mladá Boleslav | F130: CZ/C1 | G130: 19043 | H130: 3 | I130: Junior v roce 2021 | J130: Junior v roce 2022 | M130: =IF(ISERROR(VLOOKUP(B130,'Zebrik W'!$B$7:$L$1001,11,0)),"",IF(VLOOKUP(B130,'Zebrik W'!$B$7:$L$1001,11,0)=0,"--",VLOOKUP(B130,'Zebrik W'!$B$7:$L$1001,11,0))) -> 
A131: 125 | B131: Jiri Prochazka | C131: 1971 | D131: M | E131: Toužim | F131: CZ/C1 | G131: 19030 | H131: 3 | M131: =IF(ISERROR(VLOOKUP(B131,'Zebrik W'!$B$7:$L$1001,11,0)),"",IF(VLOOKUP(B131,'Zebrik W'!$B$7:$L$1001,11,0)=0,"--",VLOOKUP(B131,'Zebrik W'!$B$7:$L$1001,11,0))) -> 
A132: 126 | B132: Miroslav Sklenar | C132: 1964 | D132: M | E132: Žamberk | F132: CZ/C2 | G132: 18926 | H132: 3 | M132: =IF(ISERROR(VLOOKUP(B132,'Zebrik W'!$B$7:$L$1001,11,0)),"",IF(VLOOKUP(B132,'Zebrik W'!$B$7:$L$1001,11,0)=0,"--",VLOOKUP(B132,'Zebrik W'!$B$7:$L$1001,11,0))) -> 
A133: 127 | B133: Vladimir Hammer | C133: 2000 | D133: M | E133: Letkov | F133: CZ/C1 | G133: 18832 | H133: 3 | I133: Junior v roce 2021 | J133: Junior v roce 2022 | M133: =IF(ISERROR(VLOOKUP(B133,'Zebrik W'!$B$7:$L$1001,11,0)),"",IF(VLOOKUP(B133,'Zebrik W'!$B$7:$L$1001,11,0)=0,"--",VLOOKUP(B133,'Zebrik W'!$B$7:$L$1001,11,0))) -> 
A134: 128 | B134: Milan Meisner | C134: 1961 | D134: M | E134: Dvůr Králové | F134: CZ/C2 | G134: 18827 | H134: 3 | M134: =IF(ISERROR(VLOOKUP(B134,'Zebrik W'!$B$7:$L$1001,11,0)),"",IF(VLOOKUP(B134,'Zebrik W'!$B$7:$L$1001,11,0)=0,"--",VLOOKUP(B134,'Zebrik W'!$B$7:$L$1001,11,0))) -> 
A135: =RANK(G135,G:G) -> 129 | B135: Frantisek Myska | C135: 1968 | D135: M | E135: Most | F135: CZ/C2 | G135: 18686 | H135: 3 | M135: =IF(ISERROR(VLOOKUP(B135,'Zebrik W'!$B$7:$L$1001,11,0)),"",IF(VLOOKUP(B135,'Zebrik W'!$B$7:$L$1001,11,0)=0,"--",VLOOKUP(B135,'Zebrik W'!$B$7:$L$1001,11,0))) -> 
A136: 130 | B136: Tomas Hulmak | C136: 1999 | D136: M | E136: Hosín | F136: CZ/C1 | G136: 18671 | H136: 3 | I136: Junior v roce 2021 | J136: Junior v roce 2022 | M136: =IF(ISERROR(VLOOKUP(B136,'Zebrik W'!$B$7:$L$1001,11,0)),"",IF(VLOOKUP(B136,'Zebrik W'!$B$7:$L$1001,11,0)=0,"--",VLOOKUP(B136,'Zebrik W'!$B$7:$L$1001,11,0))) -> 
A137: 131 | B137: Ondrej Teichman | C137: 1984 | D137: M | E137: Dvůr Králové | F137: CZ/C2 | G137: 18571 | H137: 3 | M137: =IF(ISERROR(VLOOKUP(B137,'Zebrik W'!$B$7:$L$1001,11,0)),"",IF(VLOOKUP(B137,'Zebrik W'!$B$7:$L$1001,11,0)=0,"--",VLOOKUP(B137,'Zebrik W'!$B$7:$L$1001,11,0))) -> 
A138: 132 | B138: Jan Zezula | C138: 1979 | D138: M | E138: Letňany | F138: CZ/C1 | G138: 18390 | H138: 3 | M138: =IF(ISERROR(VLOOKUP(B138,'Zebrik W'!$B$7:$L$1001,11,0)),"",IF(VLOOKUP(B138,'Zebrik W'!$B$7:$L$1001,11,0)=0,"--",VLOOKUP(B138,'Zebrik W'!$B$7:$L$1001,11,0))) -> 
A139: 133 | B139: Roman Lanzendorf | C139: 1964 | D139: M | E139: Letkov | F139: CZ/C1 | G139: 18289 | H139: 3 | M139: =IF(ISERROR(VLOOKUP(B139,'Zebrik W'!$B$7:$L$1001,11,0)),"",IF(VLOOKUP(B139,'Zebrik W'!$B$7:$L$1001,11,0)=0,"--",VLOOKUP(B139,'Zebrik W'!$B$7:$L$1001,11,0))) -> 
A140: 134 | B140: Vojtech Hajek | C140: 1987 | D140: M | E140: Mladá Boleslav | F140: CZ/C1 | G140: 17921 | H140: 3 | M140: =IF(ISERROR(VLOOKUP(B140,'Zebrik W'!$B$7:$L$1001,11,0)),"",IF(VLOOKUP(B140,'Zebrik W'!$B$7:$L$1001,11,0)=0,"--",VLOOKUP(B140,'Zebrik W'!$B$7:$L$1001,11,0))) -> 
A141: 135 | B141: Pavel Derda | C141: 1952 | D141: M | E141: Dvůr Králové | F141: CZ/C2 | G141: 17915 | H141: 3 | M141: =IF(ISERROR(VLOOKUP(B141,'Zebrik W'!$B$7:$L$1001,11,0)),"",IF(VLOOKUP(B141,'Zebrik W'!$B$7:$L$1001,11,0)=0,"--",VLOOKUP(B141,'Zebrik W'!$B$7:$L$1001,11,0))) -> 
A142: 136 | B142: Josef Novotny | C142: 1983 | D142: M | E142: Přibyslav | F142: CZ/C2 | G142: 17899 | H142: 2 | M142: =IF(ISERROR(VLOOKUP(B142,'Zebrik W'!$B$7:$L$1001,11,0)),"",IF(VLOOKUP(B142,'Zebrik W'!$B$7:$L$1001,11,0)=0,"--",VLOOKUP(B142,'Zebrik W'!$B$7:$L$1001,11,0))) -> 
A143: 137 | B143: Martin Valenta | C143: 1969 | D143: M | E143: Toužim | F143: CZ/C1 | G143: 17832 | H143: 3 | M143: =IF(ISERROR(VLOOKUP(B143,'Zebrik W'!$B$7:$L$1001,11,0)),"",IF(VLOOKUP(B143,'Zebrik W'!$B$7:$L$1001,11,0)=0,"--",VLOOKUP(B143,'Zebrik W'!$B$7:$L$1001,11,0))) -> 
A144: 138 | B144: Martin Koci | C144: 1975 | D144: M | E144: Ústí nad Orlicí | F144: CZ/C2 | G144: 17737 | H144: 3 | M144: =IF(ISERROR(VLOOKUP(B144,'Zebrik W'!$B$7:$L$1001,11,0)),"",IF(VLOOKUP(B144,'Zebrik W'!$B$7:$L$1001,11,0)=0,"--",VLOOKUP(B144,'Zebrik W'!$B$7:$L$1001,11,0))) -> 
A145: 139 | B145: Petr Jiranek 63 | C145: 1962 | D145: M | E145: Toužim | F145: CZ/C1 | G145: 17561 | H145: 3 | M145: =IF(ISERROR(VLOOKUP(B145,'Zebrik W'!$B$7:$L$1001,11,0)),"",IF(VLOOKUP(B145,'Zebrik W'!$B$7:$L$1001,11,0)=0,"--",VLOOKUP(B145,'Zebrik W'!$B$7:$L$1001,11,0))) -> 
A146: 140 | B146: Ladislav Prokes | C146: 1954 | D146: M | E146: Vrchlabí | F146: CZ/C2 | G146: 17519 | H146: 3 | M146: =IF(ISERROR(VLOOKUP(B146,'Zebrik W'!$B$7:$L$1001,11,0)),"",IF(VLOOKUP(B146,'Zebrik W'!$B$7:$L$1001,11,0)=0,"--",VLOOKUP(B146,'Zebrik W'!$B$7:$L$1001,11,0))) -> 
A147: 141 | B147: Martin Ficnar | C147: 1971 | D147: M | E147: Šumperk | F147: CZ/M | G147: 17427 | H147: 2 | M147: =IF(ISERROR(VLOOKUP(B147,'Zebrik W'!$B$7:$L$1001,11,0)),"",IF(VLOOKUP(B147,'Zebrik W'!$B$7:$L$1001,11,0)=0,"--",VLOOKUP(B147,'Zebrik W'!$B$7:$L$1001,11,0))) -> 
A148: 142 | B148: Lukas Maly | C148: 1998 | D148: M | E148: Vysoké Mýto | F148: CZ/C2 | G148: 17368 | H148: 3 | I148: Junior v roce 2021 | J148: Junior v roce 2022 | M148: =IF(ISERROR(VLOOKUP(B148,'Zebrik W'!$B$7:$L$1001,11,0)),"",IF(VLOOKUP(B148,'Zebrik W'!$B$7:$L$1001,11,0)=0,"--",VLOOKUP(B148,'Zebrik W'!$B$7:$L$1001,11,0))) -> 
A149: 143 | B149: Michal Kodousek | C149: 1983 | D149: M | E149: Jaroměř | F149: CZ/C2 | G149: 17297 | H149: 2 | M149: =IF(ISERROR(VLOOKUP(B149,'Zebrik W'!$B$7:$L$1001,11,0)),"",IF(VLOOKUP(B149,'Zebrik W'!$B$7:$L$1001,11,0)=0,"--",VLOOKUP(B149,'Zebrik W'!$B$7:$L$1001,11,0))) -> 
A150: 144 | B150: Martin Cicvarek | C150: 1966 | D150: M | E150: Liberec | F150: CZ/C2 | G150: 17228 | H150: 3 | M150: =IF(ISERROR(VLOOKUP(B150,'Zebrik W'!$B$7:$L$1001,11,0)),"",IF(VLOOKUP(B150,'Zebrik W'!$B$7:$L$1001,11,0)=0,"--",VLOOKUP(B150,'Zebrik W'!$B$7:$L$1001,11,0))) -> 
A151: 145 | B151: Jan Oscatka | C151: 1990 | D151: M | E151: Jaroměř | F151: CZ/C2 | G151: 17223 | H151: 3 | M151: =IF(ISERROR(VLOOKUP(B151,'Zebrik W'!$B$7:$L$1001,11,0)),"",IF(VLOOKUP(B151,'Zebrik W'!$B$7:$L$1001,11,0)=0,"--",VLOOKUP(B151,'Zebrik W'!$B$7:$L$1001,11,0))) -> 
A152: 146 | B152: Jiri Slemr | C152: 1979 | D152: M | E152: Vysoké Mýto | F152: CZ/C2 | G152: 17207 | H152: 3 | M152: =IF(ISERROR(VLOOKUP(B152,'Zebrik W'!$B$7:$L$1001,11,0)),"",IF(VLOOKUP(B152,'Zebrik W'!$B$7:$L$1001,11,0)=0,"--",VLOOKUP(B152,'Zebrik W'!$B$7:$L$1001,11,0))) -> 
A153: 147 | B153: Jaroslav Sima | C153: 1972 | D153: M | E153: Chomutov | F153: CZ/C2 | G153: 17188 | H153: 3 | M153: =IF(ISERROR(VLOOKUP(B153,'Zebrik W'!$B$7:$L$1001,11,0)),"",IF(VLOOKUP(B153,'Zebrik W'!$B$7:$L$1001,11,0)=0,"--",VLOOKUP(B153,'Zebrik W'!$B$7:$L$1001,11,0))) -> 
A154: 148 | B154: Eva Cerna | C154: 1964 | D154: F | E154: Příbram | F154: CZ/C1 | G154: 17187 | H154: 3 | M154: =IF(ISERROR(VLOOKUP(B154,'Zebrik W'!$B$7:$L$1001,11,0)),"",IF(VLOOKUP(B154,'Zebrik W'!$B$7:$L$1001,11,0)=0,"--",VLOOKUP(B154,'Zebrik W'!$B$7:$L$1001,11,0))) -> --
A155: 149 | B155: Petr Starek | C155: 1974 | D155: M | E155: Zbraslavice | F155: CZ/C1 | G155: 17136 | H155: 3 | M155: =IF(ISERROR(VLOOKUP(B155,'Zebrik W'!$B$7:$L$1001,11,0)),"",IF(VLOOKUP(B155,'Zebrik W'!$B$7:$L$1001,11,0)=0,"--",VLOOKUP(B155,'Zebrik W'!$B$7:$L$1001,11,0))) -> 
A156: 150 | B156: Lukas Plocek | C156: 1990 | D156: M | E156: Mladá Boleslav | F156: CZ/C1 | G156: 17124 | H156: 3 | M156: =IF(ISERROR(VLOOKUP(B156,'Zebrik W'!$B$7:$L$1001,11,0)),"",IF(VLOOKUP(B156,'Zebrik W'!$B$7:$L$1001,11,0)=0,"--",VLOOKUP(B156,'Zebrik W'!$B$7:$L$1001,11,0))) -> 
A157: 151 | B157: Martin Picka | C157: 1974 | D157: M | E157: Tábor | F157: CZ/C1 | G157: 17057 | H157: 3 | M157: =IF(ISERROR(VLOOKUP(B157,'Zebrik W'!$B$7:$L$1001,11,0)),"",IF(VLOOKUP(B157,'Zebrik W'!$B$7:$L$1001,11,0)=0,"--",VLOOKUP(B157,'Zebrik W'!$B$7:$L$1001,11,0))) -> 
A158: 152 | B158: Tomas Profeld | C158: 1964 | D158: M | E158: Jičín | F158: CZ/C2 | G158: 17030 | H158: 3 | M158: =IF(ISERROR(VLOOKUP(B158,'Zebrik W'!$B$7:$L$1001,11,0)),"",IF(VLOOKUP(B158,'Zebrik W'!$B$7:$L$1001,11,0)=0,"--",VLOOKUP(B158,'Zebrik W'!$B$7:$L$1001,11,0))) -> 
A159: 153 | B159: Petr Hofman | C159: 1984 | D159: M | E159: Letňany | F159: CZ/C1 | G159: 16948 | H159: 2 | M159: =IF(ISERROR(VLOOKUP(B159,'Zebrik W'!$B$7:$L$1001,11,0)),"",IF(VLOOKUP(B159,'Zebrik W'!$B$7:$L$1001,11,0)=0,"--",VLOOKUP(B159,'Zebrik W'!$B$7:$L$1001,11,0))) -> 
A160: 154 | B160: Jaromir Vlk | C160: 1959 | D160: M | E160: Šumperk | F160: CZ/M | G160: 16896 | H160: 3 | M160: =IF(ISERROR(VLOOKUP(B160,'Zebrik W'!$B$7:$L$1001,11,0)),"",IF(VLOOKUP(B160,'Zebrik W'!$B$7:$L$1001,11,0)=0,"--",VLOOKUP(B160,'Zebrik W'!$B$7:$L$1001,11,0))) -> 
A161: 155 | B161: Tomas Moravec | C161: 2000 | D161: M | E161: Žamberk | F161: CZ/C2 | G161: 16828 | H161: 3 | I161: Junior v roce 2021 | J161: Junior v roce 2022 | M161: =IF(ISERROR(VLOOKUP(B161,'Zebrik W'!$B$7:$L$1001,11,0)),"",IF(VLOOKUP(B161,'Zebrik W'!$B$7:$L$1001,11,0)=0,"--",VLOOKUP(B161,'Zebrik W'!$B$7:$L$1001,11,0))) -> 
A162: 156 | B162: Petr Babak | C162: 1973 | D162: M | E162: Hořice | F162: CZ/C2 | G162: 16802 | H162: 3 | M162: =IF(ISERROR(VLOOKUP(B162,'Zebrik W'!$B$7:$L$1001,11,0)),"",IF(VLOOKUP(B162,'Zebrik W'!$B$7:$L$1001,11,0)=0,"--",VLOOKUP(B162,'Zebrik W'!$B$7:$L$1001,11,0))) -> 
A163: 157 | B163: Jiri Maier 99 | C163: 1999 | D163: M | E163: Raná | F163: CZ/C2 | G163: 16770 | H163: 3 | I163: Junior v roce 2021 | J163: Junior v roce 2022 | M163: =IF(ISERROR(VLOOKUP(B163,'Zebrik W'!$B$7:$L$1001,11,0)),"",IF(VLOOKUP(B163,'Zebrik W'!$B$7:$L$1001,11,0)=0,"--",VLOOKUP(B163,'Zebrik W'!$B$7:$L$1001,11,0))) -> 
A164: 158 | B164: Katerina Vojtova | C164: 1983 | D164: F | E164: Slaný | F164: CZ/C1 | G164: 16756 | H164: 3 | M164: =IF(ISERROR(VLOOKUP(B164,'Zebrik W'!$B$7:$L$1001,11,0)),"",IF(VLOOKUP(B164,'Zebrik W'!$B$7:$L$1001,11,0)=0,"--",VLOOKUP(B164,'Zebrik W'!$B$7:$L$1001,11,0))) -> --
A165: 159 | B165: Petr Fisar | C165: 1974 | D165: M | E165: Ústí nad Orlicí | F165: CZ/C2 | G165: 16726 | H165: 3 | M165: =IF(ISERROR(VLOOKUP(B165,'Zebrik W'!$B$7:$L$1001,11,0)),"",IF(VLOOKUP(B165,'Zebrik W'!$B$7:$L$1001,11,0)=0,"--",VLOOKUP(B165,'Zebrik W'!$B$7:$L$1001,11,0))) -> 
A166: 160 | B166: Tomas Mezera | C166: 1973 | D166: M | E166: Raná | F166: CZ/C2 | G166: 16524 | H166: 3 | M166: =IF(ISERROR(VLOOKUP(B166,'Zebrik W'!$B$7:$L$1001,11,0)),"",IF(VLOOKUP(B166,'Zebrik W'!$B$7:$L$1001,11,0)=0,"--",VLOOKUP(B166,'Zebrik W'!$B$7:$L$1001,11,0))) -> 
A167: 161 | B167: David Popovsky | C167: 1976 | D167: M | E167: Rakovník | F167: CZ/C1 | G167: 16487 | H167: 3 | M167: =IF(ISERROR(VLOOKUP(B167,'Zebrik W'!$B$7:$L$1001,11,0)),"",IF(VLOOKUP(B167,'Zebrik W'!$B$7:$L$1001,11,0)=0,"--",VLOOKUP(B167,'Zebrik W'!$B$7:$L$1001,11,0))) -> 
A168: 162 | B168: Michaela Rendlova | C168: 2004 | D168: F | E168: Toužim | F168: CZ/C1 | G168: 16480 | H168: 3 | I168: Junior v roce 2021 | J168: Junior v roce 2022 | M168: =IF(ISERROR(VLOOKUP(B168,'Zebrik W'!$B$7:$L$1001,11,0)),"",IF(VLOOKUP(B168,'Zebrik W'!$B$7:$L$1001,11,0)=0,"--",VLOOKUP(B168,'Zebrik W'!$B$7:$L$1001,11,0))) -> --
A169: 163 | B169: Jan Beran | C169: 1999 | D169: M | E169: Kladno | F169: CZ/C1 | G169: 16426 | H169: 3 | I169: Junior v roce 2021 | J169: Junior v roce 2022 | M169: =IF(ISERROR(VLOOKUP(B169,'Zebrik W'!$B$7:$L$1001,11,0)),"",IF(VLOOKUP(B169,'Zebrik W'!$B$7:$L$1001,11,0)=0,"--",VLOOKUP(B169,'Zebrik W'!$B$7:$L$1001,11,0))) -> 
A170: 164 | B170: Peter Kaspar | C170: 1980 | D170: M | E170: Vyškov | F170: CZ/M | G170: 16386 | H170: 3 | M170: =IF(ISERROR(VLOOKUP(B170,'Zebrik W'!$B$7:$L$1001,11,0)),"",IF(VLOOKUP(B170,'Zebrik W'!$B$7:$L$1001,11,0)=0,"--",VLOOKUP(B170,'Zebrik W'!$B$7:$L$1001,11,0))) -> 
A171: 165 | B171: Dalibor Pek | C171: 1968 | D171: M | E171: Raná | F171: CZ/C2 | G171: 16380 | H171: 3 | M171: =IF(ISERROR(VLOOKUP(B171,'Zebrik W'!$B$7:$L$1001,11,0)),"",IF(VLOOKUP(B171,'Zebrik W'!$B$7:$L$1001,11,0)=0,"--",VLOOKUP(B171,'Zebrik W'!$B$7:$L$1001,11,0))) -> 
A172: 166 | B172: Petr Rozhon | C172: 1972 | D172: M | E172: Hosín | F172: CZ/C1 | G172: 16347 | H172: 3 | I172: =IF(C172="(prázdné)","",IF(($I$4-C172)>25,"","Junior v roce "&$I$4)) ->  | J172: =IF(C172="(prázdné)","",IF(($J$4-C172)>25,"","Junior v roce "&$J$4)) ->  | M172: =IF(ISERROR(VLOOKUP(B172,'Zebrik W'!$B$7:$L$1001,11,0)),"",IF(VLOOKUP(B172,'Zebrik W'!$B$7:$L$1001,11,0)=0,"--",VLOOKUP(B172,'Zebrik W'!$B$7:$L$1001,11,0))) -> 
A173: 167 | B173: Michal Cechmanek | C173: 1978 | D173: M | E173: Luhačovice | F173: CZ/M | G173: 16175 | H173: 2 | M173: =IF(ISERROR(VLOOKUP(B173,'Zebrik W'!$B$7:$L$1001,11,0)),"",IF(VLOOKUP(B173,'Zebrik W'!$B$7:$L$1001,11,0)=0,"--",VLOOKUP(B173,'Zebrik W'!$B$7:$L$1001,11,0))) -> 
A174: 168 | B174: Jaromir Hendrych | C174: 1954 | D174: M | E174: Raná | F174: CZ/C2 | G174: 16054 | H174: 3 | M174: =IF(ISERROR(VLOOKUP(B174,'Zebrik W'!$B$7:$L$1001,11,0)),"",IF(VLOOKUP(B174,'Zebrik W'!$B$7:$L$1001,11,0)=0,"--",VLOOKUP(B174,'Zebrik W'!$B$7:$L$1001,11,0))) -> 
A175: 169 | B175: Josef Novak | C175: 1981 | D175: M | E175: Kunovice | F175: CZ/M | G175: 15875 | H175: 2 | M175: =IF(ISERROR(VLOOKUP(B175,'Zebrik W'!$B$7:$L$1001,11,0)),"",IF(VLOOKUP(B175,'Zebrik W'!$B$7:$L$1001,11,0)=0,"--",VLOOKUP(B175,'Zebrik W'!$B$7:$L$1001,11,0))) -> 
A176: 170 | B176: Daniel Novak | C176: 1971 | D176: M | E176: Letkov | F176: CZ/C1 | G176: 15831 | H176: 2 | M176: =IF(ISERROR(VLOOKUP(B176,'Zebrik W'!$B$7:$L$1001,11,0)),"",IF(VLOOKUP(B176,'Zebrik W'!$B$7:$L$1001,11,0)=0,"--",VLOOKUP(B176,'Zebrik W'!$B$7:$L$1001,11,0))) -> 
A177: 171 | B177: Josef Hlusek | C177: 1993 | D177: M | E177: Kunovice | F177: CZ/M | G177: 15576 | H177: 3 | M177: =IF(ISERROR(VLOOKUP(B177,'Zebrik W'!$B$7:$L$1001,11,0)),"",IF(VLOOKUP(B177,'Zebrik W'!$B$7:$L$1001,11,0)=0,"--",VLOOKUP(B177,'Zebrik W'!$B$7:$L$1001,11,0))) -> 
A178: 172 | B178: Pavel Zima | C178: 1979 | D178: M | E178: Břeclav | F178: CZ/M | G178: 15481 | H178: 2 | M178: =IF(ISERROR(VLOOKUP(B178,'Zebrik W'!$B$7:$L$1001,11,0)),"",IF(VLOOKUP(B178,'Zebrik W'!$B$7:$L$1001,11,0)=0,"--",VLOOKUP(B178,'Zebrik W'!$B$7:$L$1001,11,0))) -> 
A179: 173 | B179: Radoslav Pur | C179: 1973 | D179: M | E179: Hosín | F179: CZ/C1 | G179: 15364 | H179: 3 | M179: =IF(ISERROR(VLOOKUP(B179,'Zebrik W'!$B$7:$L$1001,11,0)),"",IF(VLOOKUP(B179,'Zebrik W'!$B$7:$L$1001,11,0)=0,"--",VLOOKUP(B179,'Zebrik W'!$B$7:$L$1001,11,0))) -> 
A180: 174 | B180: Krystof Mimra | C180: 1992 | D180: M | E180: Most | F180: CZ/C2 | G180: 15228 | H180: 3 | M180: =IF(ISERROR(VLOOKUP(B180,'Zebrik W'!$B$7:$L$1001,11,0)),"",IF(VLOOKUP(B180,'Zebrik W'!$B$7:$L$1001,11,0)=0,"--",VLOOKUP(B180,'Zebrik W'!$B$7:$L$1001,11,0))) -> 
A181: 175 | B181: Jiri Pelucha | C181: 1984 | D181: M | E181: Frýdlant | F181: CZ/M | G181: 15220 | H181: 3 | M181: =IF(ISERROR(VLOOKUP(B181,'Zebrik W'!$B$7:$L$1001,11,0)),"",IF(VLOOKUP(B181,'Zebrik W'!$B$7:$L$1001,11,0)=0,"--",VLOOKUP(B181,'Zebrik W'!$B$7:$L$1001,11,0))) -> 
A182: 176 | B182: Eduard Svoboda | C182: 1957 | D182: M | E182: Raná | F182: CZ/C2 | G182: 15195 | H182: 3 | M182: =IF(ISERROR(VLOOKUP(B182,'Zebrik W'!$B$7:$L$1001,11,0)),"",IF(VLOOKUP(B182,'Zebrik W'!$B$7:$L$1001,11,0)=0,"--",VLOOKUP(B182,'Zebrik W'!$B$7:$L$1001,11,0))) -> 
A183: 177 | B183: Michal Hemrle | C183: 1974 | D183: M | E183: Česká Lípa | F183: CZ/C2 | G183: 15192 | H183: 3 | M183: =IF(ISERROR(VLOOKUP(B183,'Zebrik W'!$B$7:$L$1001,11,0)),"",IF(VLOOKUP(B183,'Zebrik W'!$B$7:$L$1001,11,0)=0,"--",VLOOKUP(B183,'Zebrik W'!$B$7:$L$1001,11,0))) -> 
A184: 178 | B184: Antonin Novotny | C184: 1972 | D184: M | E184: Luhačovice | F184: CZ/M | G184: 15107 | H184: 2 | M184: =IF(ISERROR(VLOOKUP(B184,'Zebrik W'!$B$7:$L$1001,11,0)),"",IF(VLOOKUP(B184,'Zebrik W'!$B$7:$L$1001,11,0)=0,"--",VLOOKUP(B184,'Zebrik W'!$B$7:$L$1001,11,0))) -> 
A185: 179 | B185: Petr Kolomaznik | C185: 1981 | D185: M | E185: Šumperk | F185: CZ/M | G185: 15100 | H185: 2 | M185: =IF(ISERROR(VLOOKUP(B185,'Zebrik W'!$B$7:$L$1001,11,0)),"",IF(VLOOKUP(B185,'Zebrik W'!$B$7:$L$1001,11,0)=0,"--",VLOOKUP(B185,'Zebrik W'!$B$7:$L$1001,11,0))) -> 
A186: 180 | B186: Jan Sustr 76 | C186: 1976 | D186: M | E186: Raná | F186: CZ/C2 | G186: 15086 | H186: 3 | M186: =IF(ISERROR(VLOOKUP(B186,'Zebrik W'!$B$7:$L$1001,11,0)),"",IF(VLOOKUP(B186,'Zebrik W'!$B$7:$L$1001,11,0)=0,"--",VLOOKUP(B186,'Zebrik W'!$B$7:$L$1001,11,0))) -> 
A187: 181 | B187: Josef Kolman | C187: 1983 | D187: M | E187: Letňany | F187: CZ/C1 | G187: 15081 | H187: 2 | M187: =IF(ISERROR(VLOOKUP(B187,'Zebrik W'!$B$7:$L$1001,11,0)),"",IF(VLOOKUP(B187,'Zebrik W'!$B$7:$L$1001,11,0)=0,"--",VLOOKUP(B187,'Zebrik W'!$B$7:$L$1001,11,0))) -> 
A188: 182 | B188: Michal Krupicka | C188: 1975 | D188: M | E188: Most | F188: CZ/C2 | G188: 15075 | H188: 2 | M188: =IF(ISERROR(VLOOKUP(B188,'Zebrik W'!$B$7:$L$1001,11,0)),"",IF(VLOOKUP(B188,'Zebrik W'!$B$7:$L$1001,11,0)=0,"--",VLOOKUP(B188,'Zebrik W'!$B$7:$L$1001,11,0))) -> 
A189: 183 | B189: Jan Florian | C189: 1992 | D189: M | E189: Zbraslavice | F189: CZ/C1 | G189: 14994 | H189: 3 | M189: =IF(ISERROR(VLOOKUP(B189,'Zebrik W'!$B$7:$L$1001,11,0)),"",IF(VLOOKUP(B189,'Zebrik W'!$B$7:$L$1001,11,0)=0,"--",VLOOKUP(B189,'Zebrik W'!$B$7:$L$1001,11,0))) -> 
A190: 184 | B190: David Zapletal | C190: 1970 | D190: M | E190: Mladá Boleslav | F190: CZ/C1 | G190: 14978 | H190: 3 | M190: =IF(ISERROR(VLOOKUP(B190,'Zebrik W'!$B$7:$L$1001,11,0)),"",IF(VLOOKUP(B190,'Zebrik W'!$B$7:$L$1001,11,0)=0,"--",VLOOKUP(B190,'Zebrik W'!$B$7:$L$1001,11,0))) -> 
A191: 185 | B191: Tomas Jung | C191: 1950 | D191: M | E191: Zbraslavice | F191: CZ/C1 | G191: 14842 | H191: 3 | M191: =IF(ISERROR(VLOOKUP(B191,'Zebrik W'!$B$7:$L$1001,11,0)),"",IF(VLOOKUP(B191,'Zebrik W'!$B$7:$L$1001,11,0)=0,"--",VLOOKUP(B191,'Zebrik W'!$B$7:$L$1001,11,0))) -> 
A192: 186 | B192: Martin Grmela | C192: 1989 | D192: M | E192: Zbraslavice | F192: CZ/C1 | G192: 14779 | H192: 3 | M192: =IF(ISERROR(VLOOKUP(B192,'Zebrik W'!$B$7:$L$1001,11,0)),"",IF(VLOOKUP(B192,'Zebrik W'!$B$7:$L$1001,11,0)=0,"--",VLOOKUP(B192,'Zebrik W'!$B$7:$L$1001,11,0))) -> 
A193: 187 | B193: Oldrich Slavicek | C193: 1959 | D193: M | E193: Hronov | F193: CZ/C2 | G193: 14752 | H193: 2 | M193: =IF(ISERROR(VLOOKUP(B193,'Zebrik W'!$B$7:$L$1001,11,0)),"",IF(VLOOKUP(B193,'Zebrik W'!$B$7:$L$1001,11,0)=0,"--",VLOOKUP(B193,'Zebrik W'!$B$7:$L$1001,11,0))) -> 
A194: 188 | B194: Jan Sindelar | C194: 1946 | D194: M | E194: Kunovice | F194: CZ/M | G194: 14539 | H194: 2 | M194: =IF(ISERROR(VLOOKUP(B194,'Zebrik W'!$B$7:$L$1001,11,0)),"",IF(VLOOKUP(B194,'Zebrik W'!$B$7:$L$1001,11,0)=0,"--",VLOOKUP(B194,'Zebrik W'!$B$7:$L$1001,11,0))) -> 
A195: 189 | B195: Michal Cupak | C195: 1991 | D195: M | E195: Medlánky | F195: CZ/M | G195: 14411 | H195: 2 | M195: =IF(ISERROR(VLOOKUP(B195,'Zebrik W'!$B$7:$L$1001,11,0)),"",IF(VLOOKUP(B195,'Zebrik W'!$B$7:$L$1001,11,0)=0,"--",VLOOKUP(B195,'Zebrik W'!$B$7:$L$1001,11,0))) -> 
A196: 190 | B196: Michal Kratochvil | C196: 1984 | D196: M | E196: Slaný | F196: CZ/C1 | G196: 14378 | H196: 2 | M196: =IF(ISERROR(VLOOKUP(B196,'Zebrik W'!$B$7:$L$1001,11,0)),"",IF(VLOOKUP(B196,'Zebrik W'!$B$7:$L$1001,11,0)=0,"--",VLOOKUP(B196,'Zebrik W'!$B$7:$L$1001,11,0))) -> 
A197: 191 | B197: Vaclav Svoboda | C197: 1970 | D197: M | E197: Letkov | F197: CZ/C1 | G197: 14366 | H197: 3 | M197: =IF(ISERROR(VLOOKUP(B197,'Zebrik W'!$B$7:$L$1001,11,0)),"",IF(VLOOKUP(B197,'Zebrik W'!$B$7:$L$1001,11,0)=0,"--",VLOOKUP(B197,'Zebrik W'!$B$7:$L$1001,11,0))) -> 
A198: 192 | B198: Tomas Hynek | C198: 2002 | D198: M | E198: Dvůr Králové | F198: CZ/C2 | G198: 14352 | H198: 3 | I198: Junior v roce 2021 | J198: Junior v roce 2022 | M198: =IF(ISERROR(VLOOKUP(B198,'Zebrik W'!$B$7:$L$1001,11,0)),"",IF(VLOOKUP(B198,'Zebrik W'!$B$7:$L$1001,11,0)=0,"--",VLOOKUP(B198,'Zebrik W'!$B$7:$L$1001,11,0))) -> 
A199: =RANK(G199,G:G) -> 193 | B199: Marek Pechar | C199: 1995 | D199: M | E199: Chrudim | F199: CZ/C2 | G199: 14313 | H199: 3 | M199: =IF(ISERROR(VLOOKUP(B199,'Zebrik W'!$B$7:$L$1001,11,0)),"",IF(VLOOKUP(B199,'Zebrik W'!$B$7:$L$1001,11,0)=0,"--",VLOOKUP(B199,'Zebrik W'!$B$7:$L$1001,11,0))) -> 
A200: 194 | B200: Vojtech Pivonka | C200: 1976 | D200: M | E200: Vrchlabí | F200: CZ/C2 | G200: 14291 | H200: 2 | M200: =IF(ISERROR(VLOOKUP(B200,'Zebrik W'!$B$7:$L$1001,11,0)),"",IF(VLOOKUP(B200,'Zebrik W'!$B$7:$L$1001,11,0)=0,"--",VLOOKUP(B200,'Zebrik W'!$B$7:$L$1001,11,0))) -> 
A201: 195 | B201: Karel Horalek | C201: 1976 | D201: M | E201: Olomouc | F201: CZ/M | G201: 14243 | H201: 3 | M201: =IF(ISERROR(VLOOKUP(B201,'Zebrik W'!$B$7:$L$1001,11,0)),"",IF(VLOOKUP(B201,'Zebrik W'!$B$7:$L$1001,11,0)=0,"--",VLOOKUP(B201,'Zebrik W'!$B$7:$L$1001,11,0))) -> 
... 277 more rows

Sheet Zebrik W
B1: ="Ženský Žebřík pilotek plachtařek PK AeČR "&A6 -> Ženský Žebřík pilotek plachtařek PK AeČR 2020 | I1: ='Zebrik G'!I1 -> 2020-11-23 | J1: Rev. | K1: ='Zebrik G'!K1 -> 02 | L1: ='Zebrik G'!L1 -> Doplněno WWGC 2020 Lake Keepit, opraveny chyby
B3: W | C3: x | I3: Juniorka v roce: | J3: Juniorka v roce: | K3: ="W Repre družstvo "&I4 -> W Repre družstvo 2021 | L3: ="W Repre výběr "&I4 -> W Repre výběr 2021 | M3: Poznámka
I4: =A6+1 -> 2021 | J4: =A6+2 -> 2022 | K4: (WRD) | L4: (WRV)
A5: Pořadí | G5: Data | I5: =COUNTIF(I7:I498,"Juniorka v roce "&$I$4) -> 8 | J5: =COUNTIF(J7:J498,"Juniorka v roce "&$J$4) -> 7 | K5: =COUNTIF(K7:K498,"WRD "&$I$4) -> 0 | L5: =COUNTIF(L7:L498,"WRV "&$I$4) -> 9 | M5: =COUNTIF(M7:M498,"<>") -> 0
A6: ='Zebrik G'!A6 -> 2020 | B6: Jméno | C6: Rok narození | D6: M/F | E6: Aeroklub | F6: Region | G6: Součet z Bi×Kinp | H6: Počet W
A7: =RANK(G7,G:G) -> 1 | B7: Alena Netusilova | C7: 1970 | D7: F | E7: Zbraslavice | F7: CZ/C1 | G7: 27973 | H7: 3 | I7: =IF(C7="(prázdné)","",IF(($I$4-C7)>25,"","Juniorka v roce "&$I$4)) ->  | J7: =IF(C7="(prázdné)","",IF(($J$4-C7)>25,"","Juniorka v roce "&$J$4)) ->  | L7: WRV 2021
A8: 2 | B8: Dana Novakova | C8: 1965 | D8: F | E8: Mladá Boleslav | F8: CZ/C1 | G8: 27896 | H8: 3 | I8: =IF(C8="(prázdné)","",IF(($I$4-C8)>25,"","Juniorka v roce "&$I$4)) ->  | J8: =IF(C8="(prázdné)","",IF(($J$4-C8)>25,"","Juniorka v roce "&$J$4)) ->  | L8: WRV 2021
A9: 3 | B9: Jana Veprekova | C9: 1961 | D9: F | E9: Dvůr Králové | F9: CZ/C2 | G9: 26854 | H9: 3 | L9: WRV 2021
A10: 4 | B10: Hana Treslova | C10: 1991 | D10: F | E10: Raná | F10: CZ/C2 | G10: 26531 | H10: 3 | L10: WRV 2021
A11: 5 | B11: Barbora Moravcova | C11: 1994 | D11: F | E11: Zbraslavice | F11: CZ/C1 | G11: 25849 | H11: 3 | L11: WRV 2021
A12: 6 | B12: Jana Treslova | C12: 1963 | D12: F | E12: Raná | F12: CZ/C2 | G12: 24987 | H12: 3 | L12: WRV 2021
A13: 7 | B13: Lenka Kuthanova | C13: 1960 | D13: F | E13: Tábor | F13: CZ/C1 | G13: 24788 | H13: 3 | L13: WRV 2021
A14: 8 | B14: Klara Teichmannova | C14: 1993 | D14: F | E14: Hronov | F14: CZ/C2 | G14: 24311 | H14: 3 | L14: WRV 2021
A15: 9 | B15: Petra Piskata | C15: 1989 | D15: F | E15: Luhačovice | F15: CZ/M | G15: 23179 | H15: 3 | L15: WRV 2021
A16: 10 | B16: Tereza Koubkova | C16: 1999 | D16: F | E16: Vysoké Mýto | F16: CZ/C2 | G16: 22136 | H16: 3 | I16: Juniorka v roce 2021 | J16: Juniorka v roce 2022
A17: 11 | B17: Michaela Krizova | C17: 2001 | D17: F | E17: Přibyslav | F17: CZ/C2 | G17: 20248 | H17: 3 | I17: Juniorka v roce 2021 | J17: Juniorka v roce 2022
A18: 12 | B18: Pavlina Horackova | C18: 1965 | D18: F | E18: Šumperk | F18: CZ/M | G18: 19414 | H18: 3
A19: 13 | B19: Eva Cerna | C19: 1964 | D19: F | E19: Příbram | F19: CZ/C1 | G19: 18319 | H19: 3
A20: 14 | B20: Katerina Vojtova | C20: 1983 | D20: F | E20: Slaný | F20: CZ/C1 | G20: 16756 | H20: 3
A21: 15 | B21: Michaela Rendlova | C21: 2004 | D21: F | E21: Toužim | F21: CZ/C1 | G21: 16480 | H21: 3 | I21: Juniorka v roce 2021 | J21: Juniorka v roce 2022
A22: 16 | B22: Anna Bordovska | C22: 1989 | D22: F | E22: Mladá Boleslav | F22: CZ/C1 | G22: 13697 | H22: 2
A23: 17 | B23: Jana Mezerova | C23: 1975 | D23: F | E23: Raná | F23: CZ/C2 | G23: 12654 | H23: 3
A24: 18 | B24: Sarka Lochova | C24: 1966 | D24: F | E24: Šumperk | F24: CZ/M | G24: 12200 | H24: 3
A25: 19 | B25: Yvona Vyhnankova | C25: 1963 | D25: F | E25: Olomouc | F25: CZ/M | G25: 12176 | H25: 3
A26: 20 | B26: Olga Mokosova | C26: 1970 | D26: F | E26: Jihlava | F26: CZ/M | G26: 11581 | H26: 3
A27: 21 | B27: Linda Vasatova | C27: 1990 | D27: F | E27: Mladá Boleslav | F27: CZ/C1 | G27: 10710 | H27: 3
A28: 22 | B28: Jarmila Zatykova | C28: 1959 | D28: F | E28: Kralupy | F28: CZ/C1 | G28: 8906 | H28: 2
A29: 23 | B29: Sabina Vitova | C29: 1998 | D29: F | E29: Kroměříž | F29: CZ/M | G29: 8133 | H29: 3 | I29: Juniorka v roce 2021 | J29: Juniorka v roce 2022
A30: 24 | B30: Kristina Santruckova | C30: 1996 | D30: F | E30: Podhořany | F30: CZ/C2 | G30: 7396 | H30: 3 | I30: Juniorka v roce 2021
A31: 25 | B31: Tereza Novakova | C31: 1993 | D31: F | E31: Chrudim | F31: CZ/C2 | G31: 6223 | H31: 2
A32: 26 | B32: Michaela Sirmerova | C32: 2000 | D32: F | E32: Jihlava | F32: CZ/M | G32: 6083 | H32: 2 | I32: Juniorka v roce 2021 | J32: Juniorka v roce 2022
A33: 27 | B33: Monika Jiraskova | C33: 1994 | D33: F | E33: Hronov | F33: CZ/C2 | G33: 5926 | H33: 1
A34: 28 | B34: Zuzana Markesova | C34: 2001 | D34: F | E34: Medlánky | F34: CZ/M | G34: 5533 | H34: 2 | I34: Juniorka v roce 2021 | J34: Juniorka v roce 2022
A35: 29 | B35: Barbora Kubickova | C35: 1993 | D35: F | E35: Medlánky | F35: CZ/M | G35: 5434 | H35: 1
A36: 30 | B36: Tereza Krcilova Spalenkova | C36: 1981 | D36: F | E36: Raná | F36: CZ/C2 | G36: 4805 | H36: 2
A37: 31 | B37: Katerina Vancurova | C37: 2002 | D37: F | E37: Hranice | F37: CZ/M | G37: 3912 | H37: 1 | I37: Juniorka v roce 2021 | J37: Juniorka v roce 2022
A38: 32 | B38: Radmila Horacek Filakovska | C38: 1963 | D38: F | E38: Dvůr Králové | F38: CZ/C2 | G38: 3202 | H38: 1
A39: 33 | B39: Zuzana Kutilkova | C39: 1993 | D39: F | E39: Křižanov | F39: CZ/M | G39: 3164 | H39: 1
A40: 34 | B40: Petra Diepoldova | C40: 1978 | D40: F | E40: Vysoké Mýto | F40: CZ/C2 | G40: 2947 | H40: 1
A41: 35 | B41: Milada Moudra | C41: 1991 | D41: F | E41: Hodkovice | F41: CZ/C2 | G41: 2743 | H41: 1
A42: 36 | B42: Eliska Bohunovska | C42: 2001 | D42: F | E42: Hranice | F42: CZ/M | G42: 2073 | H42: 1
A43: 37 | B43: Stanislava Zemlickova | C43: 2000 | D43: F | E43: Vyškov | F43: CZ/M | G43: 1246 | H43: 1
A46: =Soutez!B154 -> Schváleno Plachtařskou komisí AeČR dne xx.yy.2020 v ZZZZ

Sheet KB PMRg 2018
A1: PMRg 2018 - Hodkovice - Korigované body
A2: Pořadí v KB | B2: Jméno | C2: Rok narození | D2: M/F | E2: Aeroklub | F2: Region | G2: Soutěž | H2: Pořadí ve třídě | I2: Body ve třídě | J2: Bi | K2: Typ | L2: CN | M2: Junior
A3: =RANK(J3,J:J) -> 1 | B3: Marek Pechanec | C3: =VLOOKUP(B3,Pilot,2,0) -> 1970 | D3: =VLOOKUP(B3,Pilot,5,0) -> M | E3: =VLOOKUP(B3,Pilot,3,0) -> Luhačovice | F3: =VLOOKUP(B3,Pilot,4,0) -> CZ/M | G3: PMRg 2018 - Klub | H3: 1 | I3: 6509 | J3: 10000 | K3: std. cirrus | L3: SJ | M3: =IF(ISERROR(VLOOKUP(B3,Pilot,6,0)),"Není v databázi",VLOOKUP(B3,Pilot,6,0)) -> 
A4: 1 | B4: Jan Louda | C4: 1986 | D4: M | E4: Mladá Boleslav | F4: CZ/C1 | G4: PMRg 2018 - Kombi | H4: 1 | I4: 7195 | J4: 10000 | K4: Ventus a 15m WL 500kg (voda) | L4: FW
A5: 3 | B5: Zdenek Boruvka 86 | C5: 1986 | D5: M | E5: Jičín | F5: CZ/C2 | G5: PMRg 2018 - Klub | H5: 2 | I5: 6377 | J5: 9772 | K5: Std. Cirrus | L5: BJ
A6: 4 | B6: Karel Novak | C6: 1993 | D6: M | E6: Mladá Boleslav | F6: CZ/C1 | G6: PMRg 2018 - Klub | H6: 3 | I6: 6342 | J6: 9649 | K6: std. cirrus | L6: DI
A7: 5 | B7: Karel Mares | C7: 1974 | D7: M | E7: Slaný | F7: CZ/C1 | G7: PMRg 2018 - Kombi | H7: 2 | I7: 6865 | J7: 9491 | K7: LS-8b, LS-8-18, LS-8t /18m | L7: YF
A8: 6 | B8: Daniel Ryba | C8: 1994 | D8: M | E8: Dvůr Králové | F8: CZ/C2 | G8: PMRg 2018 - Klub | H8: 4 | I8: 6268 | J8: 9484 | K8: ASW-19B | L8: L7
A9: 7 | B9: Petr Panek | C9: 1975 | D9: M | E9: Dvůr Králové | F9: CZ/C2 | G9: PMRg 2018 - Klub | H9: 5 | I9: 6208 | J9: 9333 | K9: std. cirrus | L9: YU
A10: 8 | B10: Jana Veprekova | C10: 1961 | D10: F | E10: Dvůr Králové | F10: CZ/C2 | G10: PMRg 2018 - Kombi | H10: 3 | I10: 6818 | J10: 9258 | K10: LS 8,a,b,s,st,18 15m (voda) | L10: W8
A11: 9 | B11: Hana Treslova | C11: 1991 | D11: F | E11: Raná | F11: CZ/C2 | G11: PMRg 2018 - Kombi | H11: 4 | I11: 6765 | J11: 9019 | K11: LS 8,a,b,s,st,18 15m (voda) | L11: FX
A12: 10 | B12: Vaclav Marel | C12: 1974 | D12: M | E12: Jaroměř | F12: CZ/C2 | G12: PMRg 2018 - Klub | H12: 6 | I12: 5949 | J12: 8969 | K12: Std. Cirrus | L12: IF
A13: 11 | B13: Dana Novakova | C13: 1965 | D13: F | E13: Mladá Boleslav | F13: CZ/C1 | G13: PMRg 2018 - Kombi | H13: 5 | I13: 6742 | J13: 8809 | K13: LS 8,a,b,s,st,18 15m (voda) | L13: AU
A14: 12 | B14: Jan Ratz | C14: 1987 | D14: M | E14: Zbraslavice | F14: CZ/C1 | G14: PMRg 2018 - Klub | H14: 7 | I14: 5857 | J14: 8785 | K14: Std. Cirrus | L14: REX
A15: 13 | B15: Jana Treslova | C15: 1963 | D15: F | E15: Raná | F15: CZ/C2 | G15: PMRg 2018 - Kombi | H15: 6 | I15: 6716 | J15: 8596 | K15: LS 8,a,b,s,st,18 15m (voda) | L15: EU
A16: 14 | B16: Lukas Koukal | C16: 1991 | D16: M | E16: Letkov | F16: CZ/C1 | G16: PMRg 2018 - Klub | H16: 8 | I16: 5526 | J16: 8343 | K16: ASW-15B | L16: T1
A17: 15 | B17: Jiri Kusbach | C17: 1959 | D17: M | E17: Luhačovice | F17: CZ/M | G17: PMRg 2018 - Kombi | H17: 7 | I17: 6510 | J17: 8209 | K17: KKB-18E FES (voda) | L17: B
A18: 16 | B18: Jan Vavrin | C18: 1987 | D18: M | E18: Vysoké Mýto | F18: CZ/C2 | G18: PMRg 2018 - Klub | H18: 9 | I18: 5438 | J18: 8162 | K18: ASW-15B | L18: IG
A19: 17 | B19: Vojtech Novotny | C19: 1992 | D19: M | E19: Kralupy | F19: CZ/C1 | G19: PMRg 2018 - Klub | H19: 10 | I19: 5418 | J19: 8055 | K19: LS-1f | L19: EF
A20: 18 | B20: Radek Zima 78 | C20: 1978 | D20: M | E20: Hodkovice | F20: CZ/C2 | G20: PMRg 2018 - Kombi | H20: 8 | I20: 6481 | J20: 7993 | K20: Ventus b /15m WL -500 kg | L20: 7F
A21: 19 | B21: Lukas Plocek | C21: 1990 | D21: M | E21: Mladá Boleslav | F21: CZ/C1 | G21: PMRg 2018 - Klub | H21: 11 | I21: 5400 | J21: 7950 | K21: ASW-19B | L21: AH
A22: 20 | B22: Michal Krupicka | C22: 1975 | D22: M | E22: Most | F22: CZ/C2 | G22: PMRg 2018 - Klub | H22: 12 | I22: 5390 | J22: 7854 | K22: Std. Cirrus | L22: K
A23: 21 | B23: Marek Svancara | C23: 1976 | D23: M | E23: GAC Benešov | F23: CZ/C1 | G23: PMRg 2018 - Klub | H23: 13 | I23: 5343 | J23: 7717 | K23: Std. Cirrus | L23: GT
A24: 22 | B24: Jan Zahradka | C24: 1981 | D24: M | E24: Hodkovice | F24: CZ/C2 | G24: PMRg 2018 - Klub | H24: 14 | I24: 5324 | J24: 7611 | K24: Std. Cirrus | L24: AR
A25: 23 | B25: Jan Smaha | C25: 1958 | D25: M | E25: Česká Lípa | F25: CZ/C2 | G25: PMRg 2018 - Klub | H25: 15 | I25: 5255 | J25: 7451 | K25: ASW-15B | L25: CW
A26: 24 | B26: Petr Hotovy | C26: 1958 | D26: M | E26: Česká Lípa | F26: CZ/C2 | G26: PMRg 2018 - Kombi | H26: 9 | I26: 6061 | J26: 7397 | K26: JS-1A,B,C,BTJ,CTJ 18m (voda) | L26: IGC
A27: 25 | B27: Jan Hruska | C27: 1988 | D27: M | E27: Tábor | F27: CZ/C1 | G27: PMRg 2018 - Klub | H27: 16 | I27: 5175 | J27: 7280 | K27: ASW-15B | L27: LF
A28: 26 | B28: Vojtech Hajek | C28: 1987 | D28: M | E28: Mladá Boleslav | F28: CZ/C1 | G28: PMRg 2018 - Klub | H28: 17 | I28: 5122 | J28: 7137 | K28: Std. Cirrus | L28: BW
A29: 27 | B29: Ladislav Prokes | C29: 1954 | D29: M | E29: Vrchlabí | F29: CZ/C2 | G29: PMRg 2018 - Kombi | H29: 10 | I29: 5935 | J29: 7087 | K29: Discus b | L29: VR
A30: 28 | B30: Antonin Novotny | C30: 1972 | D30: M | E30: Luhačovice | F30: CZ/M | G30: PMRg 2018 - Klub | H30: 18 | I30: 5057 | J30: 6981 | K30: Std. Cirrus | L30: SP
A31: 29 | B31: Jaroslav Buryan | C31: 1953 | D31: M | E31: Zábřeh | F31: CZ/M | G31: PMRg 2018 - Kombi | H31: 11 | I31: 5901 | J31: 6866 | K31: ASW-20(A)+F 15m+W (voda) | L31: NS
A32: 30 | B32: Ondrej Sindelar | C32: 1979 | D32: M | E32: Mladá Boleslav | F32: CZ/C1 | G32: PMRg 2018 - Klub | H32: 19 | I32: 4881 | J32: 6706 | K32: ASW-19B | L32: OI
A33: 31 | B33: Jakub Kohn | C33: 1992 | D33: M | E33: Prostějov | F33: CZ/M | G33: PMRg 2018 - Klub | H33: 20 | I33: 4714 | J33: 6441 | K33: ASW-15B | L33: FK
A34: 32 | B34: Ladislav Jozsa | C34: 1981 | D34: M | E34: Medlánky | F34: CZ/M | G34: PMRg 2018 - Klub | H34: 21 | I34: 4708 | J34: 6349 | K34: Std. Cirrus | L34: LJ
A35: =RANK(J35,J:J) -> 33 | B35: Jindrich Hruska | C35: 1986 | D35: =VLOOKUP(B35,Pilot,5,0) -> M | E35: Soběslav | F35: CZ/C1 | G35: PMRg 2018 - Klub | H35: 22 | I35: 4616 | J35: 6164 | K35: ASW-15 | L35: ASW | M35: =IF(ISERROR(VLOOKUP(B35,Pilot,6,0)),"Není v databázi",VLOOKUP(B35,Pilot,6,0)) -> 
A36: 34 | B36: Pavlina Horackova | C36: 1965 | D36: F | E36: Šumperk | F36: CZ/M | G36: PMRg 2018 - Klub | H36: 23 | I36: 4590 | J36: 6051 | K36: SZD-48 Jantar Std. 2(3) | L36: SU
A37: 35 | B37: Jan Vozeh | C37: 1995 | D37: M | E37: Rakovník | F37: CZ/C1 | G37: PMRg 2018 - Klub | H37: 24 | I37: 4499 | J37: 5867 | K37: std. cirrus | L37: OG
A38: 36 | B38: Miroslav Koci | C38: 1961 | D38: M | E38: Žamberk | F38: CZ/C2 | G38: PMRg 2018 - Kombi | H38: 12 | I38: 4877 | J38: 5682 | K38: Ventusy: 2cx, 2cxm, 2cxt /18m -600 kg | L38: E8
A39: 37 | B39: David Sachl | C39: 1978 | D39: M | E39: Kralupy | F39: CZ/C1 | G39: PMRg 2018 - Klub | H39: 25 | I39: 4374 | J39: 5647 | K39: DG-300 | L39: BK
A40: 38 | B40: Vilem Riha | C40: 1990 | D40: M | E40: Letňany | F40: CZ/C1 | G40: PMRg 2018 - Klub | H40: 26 | I40: 4300 | J40: 5482 | K40: Std. Cirrus | L40: UB
A41: 39 | B41: Karel Knotek | C41: 1961 | D41: M | E41: Soběslav | F41: CZ/C1 | G41: PMRg 2018 - Klub | H41: 27 | I41: 4163 | J41: 5248 | K41: ASW-19 | L41: SO
A42: 40 | B42: Martin Kriz | C42: 1968 | D42: M | E42: Přibyslav | F42: CZ/C2 | G42: PMRg 2018 - Klub | H42: 28 | I42: 4085 | J42: 5079 | K42: ASW-15B | L42: BE
A43: 41 | B43: Slavomir Piskaty 58 | C43: 1958 | D43: M | E43: Kunovice | F43: CZ/M | G43: PMRg 2018 - Kombi | H43: 13 | I43: 4380 | J43: 5011 | K43: Discus b +W(voda) | L43: KAL
A44: 42 | B44: Martin Cicvarek | C44: 1966 | D44: M | E44: Liberec | F44: CZ/C2 | G44: PMRg 2018 - Kombi | H44: 14 | I44: 4248 | J44: 4695 | K44: DG-400 17m | L44: AC
A45: 43 | B45: Pavel Liska | C45: 1965 | D45: M | E45: Roudnice | F45: CZ/C2 | G45: PMRg 2018 - Klub | H45: 29 | I45: 3725 | J45: 4606 | K45: ASW-19B | L45: RCE
A46: 44 | B46: Tereza Koubkova | C46: 1999 | D46: F | E46: Vysoké Mýto | F46: CZ/C2 | G46: PMRg 2018 - Klub | H46: 30 | I46: 3668 | J46: 4459 | K46: Std. Cirrus | L46: WY | M46: Junior v roce 2021
A47: 45 | B47: Karel Policky | C47: 1950 | D47: M | E47: Kolín | F47: CZ/C1 | G47: PMRg 2018 - Klub | H47: 31 | I47: 3427 | J47: 4114 | K47: VSO-10 | L47: 47
A48: 46 | B48: Petr Frycek | C48: 1960 | D48: M | E48: Most | F48: CZ/C2 | G48: PMRg 2018 - Kombi | H48: 15 | I48: 3737 | J48: 4011 | K48: Nimbus 3 (25,5m,700kg)(voda) | L48: F
A49: 47 | B49: Ondrej Dvorak 98 | C49: 1998 | D49: M | E49: Mladá Boleslav | F49: CZ/C1 | G49: PMRg 2018 - Klub | H49: 32 | I49: 3377 | J49: 3975 | K49: ASW-15B | L49: MB | M49: Junior v roce 2021
A50: 48 | B50: Pavel Sulc | C50: 1976 | D50: M | E50: Hodkovice | F50: CZ/C2 | G50: PMRg 2018 - Klub | H50: 33 | I50: 3096 | J50: 3587 | K50: Std. Cirrus | L50: AC
A51: 49 | B51: Milada Moudra | C51: 1991 | D51: F | E51: Hodkovice | F51: CZ/C2 | G51: PMRg 2018 - Klub | H51: 34 | I51: 2540 | J51: 2903 | K51: ASW-19B | L51: XP
A52: 50 | B52: Antonin Kutalek | C52: 1943 | D52: M | E52: Zábřeh | F52: CZ/M | G52: PMRg 2018 - Kombi | H52: 16 | I52: 2610 | J52: 2727 | K52: Mini-Nimbus c (voda) | L52: GL
A53: 51 | B53: Leos Strnadek | C53: 1983 | D53: M | E53: Hodkovice | F53: CZ/C2 | G53: PMRg 2018 - Klub | H53: 35 | I53: 2113 | J53: 2358 | K53: ASW-19B | L53: XZ
A54: 52 | B54: Olga Mokosova | C54: 1970 | D54: F | E54: Jihlava | F54: CZ/M | G54: PMRg 2018 - Kombi | H54: 17 | I54: 2309 | J54: 2246 | K54: LS 6c 18m+W (voda) | L54: MM
A55: 53 | B55: Petr Lonsky | C55: 1965 | D55: M | E55: Toužim | F55: CZ/C1 | G55: PMRg 2018 - Klub | H55: 36 | I55: 638 | J55: 686 | K55: Cirrus VTC | L55: JP
A58: Schváleno Plachtařskou komisí AeČR dne 4.11.2018 ve Vysokém Mýtě

Sheet KB PMRg 2019
A1: PMRg 2019 - Vysoké Mýto - Korigované body
A2: Pořadí v KB | B2: Jméno | C2: Rok narození | D2: M/F | E2: Aeroklub | F2: Region | G2: Soutěž | H2: Pořadí ve třídě | I2: Body ve třídě | J2: Bi | K2: Typ | L2: CN | M2: Junior
A3: =RANK(J3,J:J) -> 1 | B3: Karel Novak | C3: =VLOOKUP(B3,Pilot,2,0) -> 1993 | D3: =VLOOKUP(B3,Pilot,5,0) -> M | E3: =VLOOKUP(B3,Pilot,3,0) -> Mladá Boleslav | F3: =VLOOKUP(B3,Pilot,4,0) -> CZ/C1 | G3: PMRg 2019 - Klub | H3: 1 | I3: 7016 | J3: 10000 | K3: Std. Cirrus | L3: DI | M3: =IF(ISERROR(VLOOKUP(B3,Pilot,6,0)),"Není v databázi",VLOOKUP(B3,Pilot,6,0)) -> 
A4: 1 | B4: Jan Louda | C4: 1986 | D4: M | E4: Mladá Boleslav | F4: CZ/C1 | G4: PMRg 2019 - Kombi | H4: 1 | I4: 6191 | J4: 10000 | K4: Ventus a 15m WL 500kg (voda) | L4: FW
A5: 3 | B5: Karel Mares | C5: 1974 | D5: M | E5: Slaný | F5: CZ/C1 | G5: PMRg 2019 - Kombi | H5: 2 | I5: 6041 | J5: 9580 | K5: Ventus b 16.6m WL | L5: 7F
A6: 4 | B6: Michal Lesinger | C6: 1966 | D6: M | E6: Moravská Třebová | F6: CZ/M | G6: PMRg 2019 - Klub | H6: 2 | I6: 6536 | J6: 9391 | K6: ASW-19B | L6: LL
A7: 5 | B7: Vojtech Novotny | C7: 1992 | D7: M | E7: Kralupy | F7: CZ/C1 | G7: PMRg 2019 - Klub | H7: 3 | I7: 6445 | J7: 9169 | K7: LS 1f | L7: EF
A8: 6 | B8: Hana Treslova | C8: 1991 | D8: F | E8: Raná | F8: CZ/C2 | G8: PMRg 2019 - Kombi | H8: 3 | I8: 5887 | J8: 9156 | K8: LS 8 15m (voda) | L8: AU
A9: 7 | B9: Jiri Stepanek | C9: 1956 | D9: M | E9: Moravská Třebová | F9: CZ/M | G9: PMRg 2019 - Klub | H9: 4 | I9: 6307 | J9: 8901 | K9: ASW-15B | L9: LE
A10: 8 | B10: Zdenek Boruvka 54 | C10: 1954 | D10: M | E10: Jičín | F10: CZ/C2 | G10: PMRg 2019 - Kombi | H10: 4 | I10: 5813 | J10: 8823 | K10: LS 8 15m (voda) | L10: ZB
A11: 9 | B11: Jan Zahradka | C11: 1981 | D11: M | E11: Hodkovice | F11: CZ/C2 | G11: PMRg 2019 - Klub | H11: 5 | I11: 6168 | J11: 8632 | K11: Std. Cirrus | L11: AR
A12: 10 | B12: Dana Novakova | C12: 1965 | D12: F | E12: Mladá Boleslav | F12: CZ/C1 | G12: PMRg 2019 - Kombi | H12: 5 | I12: 5693 | J12: 8437 | K12: LS 8 15m (voda) | L12: FX
A13: 11 | B13: Zdenek Boruvka 86 | C13: 1986 | D13: M | E13: Jičín | F13: CZ/C2 | G13: PMRg 2019 - Klub | H13: 6 | I13: 6082 | J13: 8416 | K13: Std. Cirrus | L13: BJ
A14: 12 | B14: Michal Krupicka | C14: 1975 | D14: M | E14: Most | F14: CZ/C2 | G14: PMRg 2019 - Klub | H14: 7 | I14: 5981 | J14: 8185 | K14: Std. Cirrus | L14: K
A15: 13 | B15: Jan Vavrin | C15: 1987 | D15: M | E15: Vysoké Mýto | F15: CZ/C2 | G15: PMRg 2019 - Klub | H15: 8 | I15: 5958 | J15: 8031 | K15: ASW-15B | L15: IG
A16: 14 | B16: Miroslav Koci | C16: 1961 | D16: M | E16: Žamberk | F16: CZ/C2 | G16: PMRg 2019 - Kombi | H16: 6 | I16: 5213 | J16: 7644 | K16: Ventus 2cxm 18m 565kg (voda) | L16: E8
A17: 15 | B17: Tereza Koubkova | C17: 1999 | D17: F | E17: Vysoké Mýto | F17: CZ/C2 | G17: PMRg 2019 - Klub | H17: 9 | I17: 5495 | J17: 7439 | K17: Std. Cirrus | L17: WY | M17: Junior v roce 2021
A18: 16 | B18: Vaclav Marel | C18: 1974 | D18: M | E18: Jaroměř | F18: CZ/C2 | G18: PMRg 2019 - Klub | H18: 10 | I18: 5399 | J18: 7213 | K18: Std. Cirrus | L18: IF
A19: 17 | B19: Jana Treslova | C19: 1963 | D19: F | E19: Raná | F19: CZ/C2 | G19: PMRg 2019 - Kombi | H19: 7 | I19: 5029 | J19: 7186 | K19: JS-3, TJ 18m (voda) | L19: ZE
A20: 18 | B20: Jindrich Hruska | C20: 1986 | D20: M | E20: Soběslav | F20: CZ/C1 | G20: PMRg 2019 - Klub | H20: 11 | I20: 5336 | J20: 7019 | K20: 303 Mosquito | L20: UFO
A21: 19 | B21: Jan Vozeh | C21: 1995 | D21: M | E21: Rakovník | F21: CZ/C1 | G21: PMRg 2019 - Klub | H21: 12 | I21: 5287 | J21: 6840 | K21: Std. Cirrus | L21: OG
A22: 20 | B22: Jiri Slemr | C22: 1979 | D22: M | E22: Vysoké Mýto | F22: CZ/C2 | G22: PMRg 2019 - Kombi | H22: 8 | I22: 4840 | J22: 6722 | K22: Discus b (voda) | L22: 65
A23: 21 | B23: Lukas Plocek | C23: 1990 | D23: M | E23: Mladá Boleslav | F23: CZ/C1 | G23: PMRg 2019 - Klub | H23: 13 | I23: 5284 | J23: 6707 | K23: ASW-19B | L23: AH
A24: 22 | B24: Pavlina Horackova | C24: 1965 | D24: F | E24: Šumperk | F24: CZ/M | G24: PMRg 2019 - Klub | H24: 14 | I24: 5256 | J24: 6548 | K24: SZD-48 Jantar Std. 2(3) | L24: SU
A25: 23 | B25: Lenka Kuthanova | C25: 1960 | D25: F | E25: Tábor | F25: CZ/C1 | G25: PMRg 2019 - Kombi | H25: 9 | I25: 4767 | J25: 6390 | K25: JS-1C (TJ) 18m EVO | L25: LX
A26: 24 | B26: Jan Smaha | C26: 1958 | D26: M | E26: Česká Lípa | F26: CZ/C2 | G26: PMRg 2019 - Klub | H26: 15 | I26: 4916 | J26: 6079 | K26: ASW-15B | L26: CW
A27: 25 | B27: Martin Stepanek | C27: 1987 | D27: M | E27: Moravská Třebová | F27: CZ/M | G27: PMRg 2019 - Klub | H27: 16 | I27: 4840 | J27: 5872 | K27: ASW-15B | L27: ZP
A28: 26 | B28: Barbora Kubickova | C28: 1993 | D28: F | E28: Medlánky | F28: CZ/M | G28: PMRg 2019 - Kombi | H28: 10 | I28: 4477 | J28: 5812 | K28: LAK 17 A 18m WL | L28: BI
A29: 27 | B29: Lukas Maly | C29: 1998 | D29: M | E29: Vysoké Mýto | F29: CZ/C2 | G29: PMRg 2019 - Klub | H29: 17 | I29: 4697 | J29: 5599 | K29: ASW-15B | L29: AM | M29: Junior v roce 2021
A30: 28 | B30: Ladislav Jozsa | C30: 1981 | D30: M | E30: Medlánky | F30: CZ/M | G30: PMRg 2019 - Klub | H30: 18 | I30: 4541 | J30: 5313 | K30: Std. Cirrus | L30: LJ
A31: 29 | B31: Vaclav Zak | C31: 1962 | D31: M | E31: GAC Benešov | F31: CZ/C1 | G31: PMRg 2019 - Klub | H31: 19 | I31: 4256 | J31: 4898 | K31: Std. Cirrus | L31: TS
A32: 30 | B32: Petr Frycek | C32: 1960 | D32: M | E32: Most | F32: CZ/C2 | G32: PMRg 2019 - Kombi | H32: 11 | I32: 3755 | J32: 4746 | K32: Nimbus 3 (25,5m, 700kg) (voda) | L32: F
A33: 31 | B33: Karel Knotek | C33: 1961 | D33: M | E33: Soběslav | F33: CZ/C1 | G33: PMRg 2019 - Klub | H33: 20 | I33: 4021 | J33: 4534 | K33: ASW-19 | L33: SO
A34: 32 | B34: Slavomir Piskaty 58 | C34: 1958 | D34: M | E34: Kunovice | F34: CZ/M | G34: PMRg 2019 - Kombi | H34: 12 | I34: 3547 | J34: 4260 | K34: Discus b (voda) WL | L34: KAL
A35: 33 | B35: Josef Hlusek | C35: 1993 | D35: M | E35: Kunovice | F35: CZ/M | G35: PMRg 2019 - Klub | H35: 21 | I35: 3831 | J35: 4214 | K35: Std. Cirrus G | L35: WO
A36: 34 | B36: Jan Florian | C36: 1992 | D36: M | E36: Zbraslavice | F36: CZ/C1 | G36: PMRg 2019 - Klub | H36: 22 | I36: 3824 | J36: 4076 | K36: Std. Cirrus | L36: C1
A37: 35 | B37: Ladislav Prokes | C37: 1954 | D37: M | E37: Vrchlabí | F37: CZ/C2 | G37: PMRg 2019 - Kombi | H37: 13 | I37: 3314 | J37: 3747 | K37: Discus b (voda) | L37: VR
A38: 36 | B38: Petr Velek | C38: 1975 | D38: M | E38: GAC Benešov | F38: CZ/C1 | G38: PMRg 2019 - Klub | H38: 23 | I38: 3398 | J38: 3521 | K38: LS 1c | L38: I
A39: 37 | B39: Kristina Santruckova | C39: 1996 | D39: F | E39: Podhořany | F39: CZ/C2 | G39: PMRg 2019 - Klub | H39: 24 | I39: 2941 | J39: 2934 | K39: ASW-15B WL | L39: KS | M39: Junior v roce 2021
A42: Schváleno Plachtařskou komisí AeČR dne 10.11.2019 ve Vysokém Mýtě

Sheet KB PMRg 2020
A1: PMRg 2020 - Hosín - Korigované body
A2: Pořadí v KB | B2: Jméno | C2: Rok narození | D2: M/F | E2: Aeroklub | F2: Region | G2: Soutěž | H2: Pořadí ve třídě | I2: Body ve třídě | J2: Bi | K2: Typ | L2: CN | M2: Junior
A3: =RANK(J3,J:J) -> 1 | B3: Michal Lesinger | C3: 1966 | D3: M | E3: Moravská Třebová | F3: CZ/M | G3: PMRg 2020 - Klub | H3: 1 | I3: 4243 | J3: 10000 | K3: ASW 19B | L3: LL | M3: =IF(ISERROR(VLOOKUP(B3,Pilot,6,0)),"Není v databázi",VLOOKUP(B3,Pilot,6,0)) -> 
A4: 1 | B4: Danes Grula | C4: 1961 | D4: M | E4: Medlánky | F4: CZ/M | G4: PMRg 2020 - Kombi | H4: 1 | I4: 4243 | J4: 10000 | K4: ASG29E | L4: DX
A5: 3 | B5: Zdenek Boruvka 86 | C5: 1986 | D5: M | E5: Jičín | F5: CZ/C2 | G5: PMRg 2020 - Klub | H5: 2 | I5: 4134 | J5: 9690 | K5: STD. CIRRUS | L5: BJ
A6: 4 | B6: Petr Hotovy | C6: 1958 | D6: M | E6: Česká Lípa | F6: CZ/C2 | G6: PMRg 2020 - Kombi | H6: 2 | I6: 4106 | J6: 9501 | K6: JS1B 18m | L6: IGC
A7: 5 | B7: Josef Busek | C7: 1967 | D7: M | E7: Hosín | F7: CZ/C1 | G7: PMRg 2020 - Kombi | H7: 3 | I7: 3900 | J7: 8889 | K7: Duodiscus X 750kg | L7: BB
A8: 6 | B8: Jan Zahradka | C8: 1981 | D8: M | E8: Hodkovice | F8: CZ/C2 | G8: PMRg 2020 - Klub | H8: 3 | I8: 3619 | J8: 8710 | K8: Std. Cirrus | L8: AR
A9: 7 | B9: Marek Svancara | C9: 1976 | D9: M | E9: GAC Benešov | F9: CZ/C1 | G9: PMRg 2020 - Klub | H9: 4 | I9: 3499 | J9: 8381 | K9: Std. Cirrus | L9: GT
A10: 8 | B10: Michael Fik | C10: 1972 | D10: M | E10: Strakonice | F10: CZ/C1 | G10: PMRg 2020 - Kombi | H10: 4 | I10: 3722 | J10: 8322 | K10: Ventus C 17,6 | L10: GE
A11: 9 | B11: Jan Stastny | C11: 2003 | D11: M | E11: Medlánky | F11: CZ/M | G11: PMRg 2020 - Klub | H11: 5 | I11: 3276 | J11: 7883 | K11: ASW-15B | L11: TW | M11: Junior v roce 2021
A12: 10 | B12: Jindrich Hruska | C12: 1986 | D12: M | E12: Soběslav | F12: CZ/C1 | G12: PMRg 2020 - Klub | H12: 6 | I12: 3243 | J12: 7698 | K12: Mosquito | L12: UFO
A13: 11 | B13: Hana Treslova | C13: 1991 | D13: F | E13: Raná | F13: CZ/C2 | G13: PMRg 2020 - Kombi | H13: 5 | I13: 3460 | J13: 7617 | K13: Ventus 2ax | L13: AX
A14: 12 | B14: Jiri Vondracek | C14: 1989 | D14: M | E14: Kladno | F14: CZ/C1 | G14: PMRg 2020 - Klub | H14: 7 | I14: 3122 | J14: 7368 | K14: ASW-15B | L14: 2P
A15: 13 | B15: Jaromir Macoun | C15: 1999 | D15: M | E15: Jičín | F15: CZ/C2 | G15: PMRg 2020 - Kombi | H15: 6 | I15: 3413 | J15: 7267 | K15: LS 8 | L15: EU | M15: Junior v roce 2021
A16: 14 | B16: Vladimir Hammer | C16: 2000 | D16: M | E16: Letkov | F16: CZ/C1 | G16: PMRg 2020 - Klub | H16: 8 | I16: 3106 | J16: 7211 | K16: Std. Cirrus | L16: XII | M16: Junior v roce 2021
A17: 15 | B17: Miloslav Hulmak | C17: 1963 | D17: M | E17: Hosín | F17: CZ/C1 | G17: PMRg 2020 - Klub | H17: 9 | I17: 3030 | J17: 6955 | K17: ASW15B | L17: HH
A18: 16 | B18: Jaromir Pauer | C18: 1974 | D18: M | E18: Hosín | F18: CZ/C1 | G18: PMRg 2020 - Kombi | H18: 7 | I18: 3293 | J18: 6796 | K18: Ventus C 17,6m | L18: XE
A19: 17 | B19: Pavlina Horackova | C19: 1965 | D19: F | E19: Šumperk | F19: CZ/M | G19: PMRg 2020 - Klub | H19: 10 | I19: 2891 | J19: 6596 | K19: SZD 48 Jantar Std. 2 | L19: SU
A20: 18 | B20: Karel Novak | C20: 1993 | D20: M | E20: Mladá Boleslav | F20: CZ/C1 | G20: PMRg 2020 - Kombi | H20: 8 | I20: 3255 | J20: 6461 | K20: JS-3 | L20: XM
A21: 19 | B21: Jan Florian | C21: 1992 | D21: M | E21: Zbraslavice | F21: CZ/C1 | G21: PMRg 2020 - Klub | H21: 11 | I21: 2831 | J21: 6366 | K21: Std. Cirrus | L21: C1
A22: 20 | B22: Tomas Hulmak | C22: 1999 | D22: M | E22: Hosín | F22: CZ/C1 | G22: PMRg 2020 - Klub | H22: 12 | I22: 2823 | J22: 6223 | K22: ASW-15B | L22: XI | M22: Junior v roce 2021
A23: 21 | B23: Jiri Holcman | C23: 1976 | D23: M | E23: Hosín | F23: CZ/C1 | G23: PMRg 2020 - Klub | H23: 13 | I23: 2717 | J23: 5917 | K23: ASW-19 | L23: BO
A24: 22 | B24: Petr Rozhon | C24: 1972 | D24: M | E24: Hosín | F24: CZ/C1 | G24: PMRg 2020 - Klub | H24: 14 | I24: 2611 | J24: 5612 | K24: vso-10 | L24: 9
A25: 23 | B25: Pavel Koudelka | C25: 1973 | D25: M | E25: Křižanov | F25: CZ/M | G25: PMRg 2020 - Klub | H25: 15 | I25: 2442 | J25: 5203 | K25: Std.Cirrus | L25: ICQ
A26: 24 | B26: Michal Vranek | C26: 1993 | D26: M | E26: Hosín | F26: CZ/C1 | G26: PMRg 2020 - Klub | H26: 16 | I26: 2440 | J26: 5069 | K26: DG-100 | L26: 8W
A27: 25 | B27: Jan Beran | C27: 1999 | D27: M | E27: Kladno | F27: CZ/C1 | G27: PMRg 2020 - Klub | H27: 17 | I27: 2275 | J27: 4666 | K27: ASW 19 | L27: HB | M27: Junior v roce 2021
A28: 26 | B28: Jaroslav Potmesil | C28: 1964 | D28: M | E28: Zbraslavice | F28: CZ/C1 | G28: PMRg 2020 - Kombi | H28: 9 | I28: 2273 | J28: 4568 | K28: 304TS TwinShark | L28: DL
A29: 27 | B29: Martin Tison | C29: 2000 | D29: M | E29: Hosín | F29: CZ/C1 | G29: PMRg 2020 - Klub | H29: 18 | I29: 2175 | J29: 4371 | K29: ASW-15B | L29: EZ | M29: Junior v roce 2021
A30: 28 | B30: Petr Velek | C30: 1975 | D30: M | E30: GAC Benešov | F30: CZ/C1 | G30: PMRg 2020 - Klub | H30: 19 | I30: 2138 | J30: 4179 | K30: DG400 | L30: HX
A31: 29 | B31: Lukas Plocek | C31: 1990 | D31: M | E31: Mladá Boleslav | F31: CZ/C1 | G31: PMRg 2020 - Klub | H31: 20 | I31: 1896 | J31: 3650 | K31: ASW-19B | L31: AH
A32: 30 | B32: Radek Zima 78 | C32: 1978 | D32: M | E32: Hodkovice | F32: CZ/C2 | G32: PMRg 2020 - Kombi | H32: 10 | I32: 1751 | J32: 3434 | K32: Ventus b 16,6m 430kg WL | L32: 7F
A33: 31 | B33: Vaclav Zak | C33: 1962 | D33: M | E33: GAC Benešov | F33: CZ/C1 | G33: PMRg 2020 - Klub | H33: 21 | I33: 1721 | J33: 3231 | K33: Std. Cirrus | L33: TS
A34: 32 | B34: Jiri Krofta | C34: 1988 | D34: M | E34: Hosín | F34: CZ/C1 | G34: PMRg 2020 - Klub | H34: 22 | I34: 1563 | J34: 2839 | K34: Std. Cirrus | L34: 2U
A35: 33 | B35: Frantisek Suna | C35: 1983 | D35: M | E35: Hosín | F35: CZ/C1 | G35: PMRg 2020 - Klub | H35: 23 | I35: 1461 | J35: 2541 | K35: DG-100 | L35: 78
A36: 34 | B36: Jan Kohout | C36: 1970 | D36: M | E36: Žamberk | F36: CZ/C2 | G36: PMRg 2020 - Kombi | H36: 11 | I36: 1320 | J36: 2450 | K36: LS8a | L36: SK
A37: 35 | B37: Petr Sochor | C37: 1986 | D37: M | E37: Hosín | F37: CZ/C1 | G37: PMRg 2020 - Klub | H37: 24 | I37: 1308 | J37: 2158 | K37: ASW15B | L37: 6Y
A38: 36 | B38: Radoslav Pur | C38: 1973 | D38: M | E38: Hosín | F38: CZ/C1 | G38: PMRg 2020 - Kombi | H38: 12 | I38: 1147 | J38: 1892 | K38: DG-200 | L38: EK
A41: Schváleno Plachtařskou komisí AeČR dne xx.yy.2020 v ZZZZ
A70: Schváleno Plachtařskou komisí AeČR dne xx.yy.2020 v ZZZZ

Sheet N PMČR 2021
B1: Nominace na PMČR 2021 | H1: Kontrola: | I1: Počet | J1: Počet | K1: Nominace | L1: Počet | M1: Nominace | N1: M: | O1: F: | P1: M+F:
A2: No | B2: Jméno | C2: Aeroklub | D2: Rok narození | E2: M/F | F2: Junior | G2: No | I2: PMČR | J2: PMRg | K2: PMRg | L2: PMČRj | M2: PMČRj | N2: =COUNTIF(E:E,"M") -> 83 | O2: =COUNTIF(E:E,"F") -> 12 | P2: =N2+O2 -> 95 | Q2: S náhradníky
A3: 6.6.5. | B3: Nominace na PMČR - všeobecně (dle SŘ ZM9) | M3: Celkem řádně nominováno: | N3: =N2-COUNTIF(E62:E66,"M")-COUNTIF(E112:E120,"M") -> 69 | O3: =O2-COUNTIF(E62:E66,"F")-COUNTIF(E112:E120,"F") -> 12 | P3: =N3+O3 -> 81 | Q3: Bez náhradníků
B4: Na PMČR nominuje PK minimálně 80 pilotů/pilotek a příslušný počet náhradníků pro stanovená nominační kritéria.
B5: PMČR se mohou zúčastnit pouze soutěžící nominovaní dle jednotlivých bodů odstavců 6.6.6., 6.6.7. a 6.6.8.
B6: Pořadatel soutěže nemůže doplnit soutěžící na základě jiných kritérií.
A7: 6.6.6. | B7: Řádná nominace - Na PMČR jsou nominováni
A8: 6.6.6.1. | B8: všichni členové reprezentačního výběru (RV) ČR stanoveného pro daný soutěžní ročník (bez náhradníků)
A9: 1 | B9: Pavel Louzecky | C9: =VLOOKUP(B9,Pilot!A:C,3,0) -> Přibyslav | D9: =VLOOKUP(B9,Pilot!A:B,2,0) -> 1957 | E9: =VLOOKUP(B9,Pilot!A:E,5,0) -> M | F9: =VLOOKUP(B9,Pilot!A:F,6,0) ->  | G9: =A9 -> 1 | I9: =COUNTIF(B:B,B9) -> 1 | J9: =IF(COUNTIF('N PMRg 2021'!B:B,B9)=0,"-",COUNTIF('N PMRg 2021'!B:B,B9)) -> - | K9: =IF(ISERROR(VLOOKUP(B9,'N PMRg 2021'!B:G,6,0)),"-",VLOOKUP(B9,'N PMRg 2021'!B:G,6,0)) -> - | L9: =IF(COUNTIF('N PMČRj 2021'!B:B,B9)=0,"-",COUNTIF('N PMČRj 2021'!B:B,B9)) -> - | M9: =IF(ISERROR(VLOOKUP(B9,'N PMČRj 2021'!B:G,6,0)),"-",VLOOKUP(B9,'N PMČRj 2021'!B:G,6,0)) -> -
A10: =A9+1 -> 2 | B10: David Mach | C10: =VLOOKUP(B10,Pilot!A:C,3,0) -> Hronov | D10: =VLOOKUP(B10,Pilot!A:B,2,0) -> 1994 | E10: =VLOOKUP(B10,Pilot!A:E,5,0) -> M | F10: =VLOOKUP(B10,Pilot!A:F,6,0) ->  | G10: =A10 -> 2 | I10: 1 | J10: =IF(COUNTIF('N PMRg 2021'!B:B,B10)=0,"-",COUNTIF('N PMRg 2021'!B:B,B10)) -> - | K10: =IF(ISERROR(VLOOKUP(B10,'N PMRg 2021'!B:G,6,0)),"-",VLOOKUP(B10,'N PMRg 2021'!B:G,6,0)) -> - | L10: =IF(COUNTIF('N PMČRj 2021'!B:B,B10)=0,"-",COUNTIF('N PMČRj 2021'!B:B,B10)) -> - | M10: =IF(ISERROR(VLOOKUP(B10,'N PMČRj 2021'!B:G,6,0)),"-",VLOOKUP(B10,'N PMČRj 2021'!B:G,6,0)) -> -
A11: =A10+1 -> 3 | B11: Miloslav Cink | C11: =VLOOKUP(B11,Pilot!A:C,3,0) -> Letkov | D11: =VLOOKUP(B11,Pilot!A:B,2,0) -> 1987 | E11: =VLOOKUP(B11,Pilot!A:E,5,0) -> M | F11: =VLOOKUP(B11,Pilot!A:F,6,0) ->  | G11: 3 | I11: 1 | J11: =IF(COUNTIF('N PMRg 2021'!B:B,B11)=0,"-",COUNTIF('N PMRg 2021'!B:B,B11)) -> - | K11: =IF(ISERROR(VLOOKUP(B11,'N PMRg 2021'!B:G,6,0)),"-",VLOOKUP(B11,'N PMRg 2021'!B:G,6,0)) -> - | L11: =IF(COUNTIF('N PMČRj 2021'!B:B,B11)=0,"-",COUNTIF('N PMČRj 2021'!B:B,B11)) -> - | M11: =IF(ISERROR(VLOOKUP(B11,'N PMČRj 2021'!B:G,6,0)),"-",VLOOKUP(B11,'N PMČRj 2021'!B:G,6,0)) -> -
A12: 4 | B12: Tomas Suchanek | C12: =VLOOKUP(B12,Pilot!A:C,3,0) -> GAC Benešov | D12: =VLOOKUP(B12,Pilot!A:B,2,0) -> 1964 | E12: =VLOOKUP(B12,Pilot!A:E,5,0) -> M | F12: =VLOOKUP(B12,Pilot!A:F,6,0) ->  | G12: 4 | I12: 1 | J12: =IF(COUNTIF('N PMRg 2021'!B:B,B12)=0,"-",COUNTIF('N PMRg 2021'!B:B,B12)) -> - | K12: =IF(ISERROR(VLOOKUP(B12,'N PMRg 2021'!B:G,6,0)),"-",VLOOKUP(B12,'N PMRg 2021'!B:G,6,0)) -> - | L12: =IF(COUNTIF('N PMČRj 2021'!B:B,B12)=0,"-",COUNTIF('N PMČRj 2021'!B:B,B12)) -> - | M12: =IF(ISERROR(VLOOKUP(B12,'N PMČRj 2021'!B:G,6,0)),"-",VLOOKUP(B12,'N PMČRj 2021'!B:G,6,0)) -> -
A13: 5 | B13: Radek Krejcirik | C13: =VLOOKUP(B13,Pilot!A:C,3,0) -> Hranice | D13: =VLOOKUP(B13,Pilot!A:B,2,0) -> 1991 | E13: =VLOOKUP(B13,Pilot!A:E,5,0) -> M | F13: =VLOOKUP(B13,Pilot!A:F,6,0) ->  | G13: 5 | I13: 1 | J13: =IF(COUNTIF('N PMRg 2021'!B:B,B13)=0,"-",COUNTIF('N PMRg 2021'!B:B,B13)) -> - | K13: =IF(ISERROR(VLOOKUP(B13,'N PMRg 2021'!B:G,6,0)),"-",VLOOKUP(B13,'N PMRg 2021'!B:G,6,0)) -> - | L13: =IF(COUNTIF('N PMČRj 2021'!B:B,B13)=0,"-",COUNTIF('N PMČRj 2021'!B:B,B13)) -> - | M13: =IF(ISERROR(VLOOKUP(B13,'N PMČRj 2021'!B:G,6,0)),"-",VLOOKUP(B13,'N PMČRj 2021'!B:G,6,0)) -> -
A14: 6 | B14: Petr Koutny | C14: =VLOOKUP(B14,Pilot!A:C,3,0) -> Křižanov | D14: =VLOOKUP(B14,Pilot!A:B,2,0) -> 1971 | E14: =VLOOKUP(B14,Pilot!A:E,5,0) -> M | F14: =VLOOKUP(B14,Pilot!A:F,6,0) ->  | G14: 6 | I14: 1 | J14: =IF(COUNTIF('N PMRg 2021'!B:B,B14)=0,"-",COUNTIF('N PMRg 2021'!B:B,B14)) -> - | K14: =IF(ISERROR(VLOOKUP(B14,'N PMRg 2021'!B:G,6,0)),"-",VLOOKUP(B14,'N PMRg 2021'!B:G,6,0)) -> - | L14: =IF(COUNTIF('N PMČRj 2021'!B:B,B14)=0,"-",COUNTIF('N PMČRj 2021'!B:B,B14)) -> - | M14: =IF(ISERROR(VLOOKUP(B14,'N PMČRj 2021'!B:G,6,0)),"-",VLOOKUP(B14,'N PMČRj 2021'!B:G,6,0)) -> -
A15: 7 | B15: Roman Mracek | C15: =VLOOKUP(B15,Pilot!A:C,3,0) -> Letkov | D15: =VLOOKUP(B15,Pilot!A:B,2,0) -> 1980 | E15: =VLOOKUP(B15,Pilot!A:E,5,0) -> M | F15: =VLOOKUP(B15,Pilot!A:F,6,0) ->  | G15: 7 | I15: 1 | J15: =IF(COUNTIF('N PMRg 2021'!B:B,B15)=0,"-",COUNTIF('N PMRg 2021'!B:B,B15)) -> - | K15: =IF(ISERROR(VLOOKUP(B15,'N PMRg 2021'!B:G,6,0)),"-",VLOOKUP(B15,'N PMRg 2021'!B:G,6,0)) -> - | L15: =IF(COUNTIF('N PMČRj 2021'!B:B,B15)=0,"-",COUNTIF('N PMČRj 2021'!B:B,B15)) -> - | M15: =IF(ISERROR(VLOOKUP(B15,'N PMČRj 2021'!B:G,6,0)),"-",VLOOKUP(B15,'N PMČRj 2021'!B:G,6,0)) -> -
A16: 8 | B16: Ivan Novak | C16: =VLOOKUP(B16,Pilot!A:C,3,0) -> Mladá Boleslav | D16: =VLOOKUP(B16,Pilot!A:B,2,0) -> 1962 | E16: =VLOOKUP(B16,Pilot!A:E,5,0) -> M | F16: =VLOOKUP(B16,Pilot!A:F,6,0) ->  | G16: 8 | I16: 1 | J16: =IF(COUNTIF('N PMRg 2021'!B:B,B16)=0,"-",COUNTIF('N PMRg 2021'!B:B,B16)) -> - | K16: =IF(ISERROR(VLOOKUP(B16,'N PMRg 2021'!B:G,6,0)),"-",VLOOKUP(B16,'N PMRg 2021'!B:G,6,0)) -> - | L16: =IF(COUNTIF('N PMČRj 2021'!B:B,B16)=0,"-",COUNTIF('N PMČRj 2021'!B:B,B16)) -> - | M16: =IF(ISERROR(VLOOKUP(B16,'N PMČRj 2021'!B:G,6,0)),"-",VLOOKUP(B16,'N PMČRj 2021'!B:G,6,0)) -> -
A17: 9 | B17: Jaroslav Tomana | C17: =VLOOKUP(B17,Pilot!A:C,3,0) -> Zbraslavice | D17: =VLOOKUP(B17,Pilot!A:B,2,0) -> 1975 | E17: =VLOOKUP(B17,Pilot!A:E,5,0) -> M | F17: =VLOOKUP(B17,Pilot!A:F,6,0) ->  | G17: 9 | I17: 1 | J17: =IF(COUNTIF('N PMRg 2021'!B:B,B17)=0,"-",COUNTIF('N PMRg 2021'!B:B,B17)) -> - | K17: =IF(ISERROR(VLOOKUP(B17,'N PMRg 2021'!B:G,6,0)),"-",VLOOKUP(B17,'N PMRg 2021'!B:G,6,0)) -> - | L17: =IF(COUNTIF('N PMČRj 2021'!B:B,B17)=0,"-",COUNTIF('N PMČRj 2021'!B:B,B17)) -> - | M17: =IF(ISERROR(VLOOKUP(B17,'N PMČRj 2021'!B:G,6,0)),"-",VLOOKUP(B17,'N PMČRj 2021'!B:G,6,0)) -> -
A18: 10 | B18: Petr Tichy | C18: =VLOOKUP(B18,Pilot!A:C,3,0) -> Zbraslavice | D18: =VLOOKUP(B18,Pilot!A:B,2,0) -> 1973 | E18: =VLOOKUP(B18,Pilot!A:E,5,0) -> M | F18: =VLOOKUP(B18,Pilot!A:F,6,0) ->  | G18: =A18 -> 10 | I18: 1 | J18: =IF(COUNTIF('N PMRg 2021'!B:B,B18)=0,"-",COUNTIF('N PMRg 2021'!B:B,B18)) -> - | K18: =IF(ISERROR(VLOOKUP(B18,'N PMRg 2021'!B:G,6,0)),"-",VLOOKUP(B18,'N PMRg 2021'!B:G,6,0)) -> - | L18: =IF(COUNTIF('N PMČRj 2021'!B:B,B18)=0,"-",COUNTIF('N PMČRj 2021'!B:B,B18)) -> - | M18: =IF(ISERROR(VLOOKUP(B18,'N PMČRj 2021'!B:G,6,0)),"-",VLOOKUP(B18,'N PMČRj 2021'!B:G,6,0)) -> -
A19: 11 | B19: Karel Novak | C19: =VLOOKUP(B19,Pilot!A:C,3,0) -> Mladá Boleslav | D19: =VLOOKUP(B19,Pilot!A:B,2,0) -> 1993 | E19: =VLOOKUP(B19,Pilot!A:E,5,0) -> M | F19: =VLOOKUP(B19,Pilot!A:F,6,0) ->  | G19: 11 | I19: 1 | J19: =IF(COUNTIF('N PMRg 2021'!B:B,B19)=0,"-",COUNTIF('N PMRg 2021'!B:B,B19)) -> - | K19: =IF(ISERROR(VLOOKUP(B19,'N PMRg 2021'!B:G,6,0)),"-",VLOOKUP(B19,'N PMRg 2021'!B:G,6,0)) -> - | L19: =IF(COUNTIF('N PMČRj 2021'!B:B,B19)=0,"-",COUNTIF('N PMČRj 2021'!B:B,B19)) -> - | M19: =IF(ISERROR(VLOOKUP(B19,'N PMČRj 2021'!B:G,6,0)),"-",VLOOKUP(B19,'N PMČRj 2021'!B:G,6,0)) -> -
A20: 12 | B20: Michal Lesinger | C20: =VLOOKUP(B20,Pilot!A:C,3,0) -> Moravská Třebová | D20: =VLOOKUP(B20,Pilot!A:B,2,0) -> 1966 | E20: =VLOOKUP(B20,Pilot!A:E,5,0) -> M | F20: =VLOOKUP(B20,Pilot!A:F,6,0) ->  | G20: 12 | I20: 1 | J20: =IF(COUNTIF('N PMRg 2021'!B:B,B20)=0,"-",COUNTIF('N PMRg 2021'!B:B,B20)) -> - | K20: =IF(ISERROR(VLOOKUP(B20,'N PMRg 2021'!B:G,6,0)),"-",VLOOKUP(B20,'N PMRg 2021'!B:G,6,0)) -> - | L20: =IF(COUNTIF('N PMČRj 2021'!B:B,B20)=0,"-",COUNTIF('N PMČRj 2021'!B:B,B20)) -> - | M20: =IF(ISERROR(VLOOKUP(B20,'N PMČRj 2021'!B:G,6,0)),"-",VLOOKUP(B20,'N PMČRj 2021'!B:G,6,0)) -> -
A21: 13 | B21: Ondrej Bordovsky | C21: =VLOOKUP(B21,Pilot!A:C,3,0) -> Krnov | D21: =VLOOKUP(B21,Pilot!A:B,2,0) -> 1983 | E21: =VLOOKUP(B21,Pilot!A:E,5,0) -> M | F21: =VLOOKUP(B21,Pilot!A:F,6,0) ->  | G21: =A21 -> 13 | I21: 1 | J21: =IF(COUNTIF('N PMRg 2021'!B:B,B21)=0,"-",COUNTIF('N PMRg 2021'!B:B,B21)) -> - | K21: =IF(ISERROR(VLOOKUP(B21,'N PMRg 2021'!B:G,6,0)),"-",VLOOKUP(B21,'N PMRg 2021'!B:G,6,0)) -> - | L21: =IF(COUNTIF('N PMČRj 2021'!B:B,B21)=0,"-",COUNTIF('N PMČRj 2021'!B:B,B21)) -> - | M21: =IF(ISERROR(VLOOKUP(B21,'N PMČRj 2021'!B:G,6,0)),"-",VLOOKUP(B21,'N PMČRj 2021'!B:G,6,0)) -> -
A22: 14 | B22: Jan Pavlik | C22: =VLOOKUP(B22,Pilot!A:C,3,0) -> Křižanov | D22: =VLOOKUP(B22,Pilot!A:B,2,0) -> 1987 | E22: =VLOOKUP(B22,Pilot!A:E,5,0) -> M | F22: =VLOOKUP(B22,Pilot!A:F,6,0) ->  | G22: 14 | I22: 1 | J22: =IF(COUNTIF('N PMRg 2021'!B:B,B22)=0,"-",COUNTIF('N PMRg 2021'!B:B,B22)) -> - | K22: =IF(ISERROR(VLOOKUP(B22,'N PMRg 2021'!B:G,6,0)),"-",VLOOKUP(B22,'N PMRg 2021'!B:G,6,0)) -> - | L22: =IF(COUNTIF('N PMČRj 2021'!B:B,B22)=0,"-",COUNTIF('N PMČRj 2021'!B:B,B22)) -> - | M22: =IF(ISERROR(VLOOKUP(B22,'N PMČRj 2021'!B:G,6,0)),"-",VLOOKUP(B22,'N PMČRj 2021'!B:G,6,0)) -> -
A23: 15 | B23: Ondrej Dupal | C23: =VLOOKUP(B23,Pilot!A:C,3,0) -> GAC Benešov | D23: =VLOOKUP(B23,Pilot!A:B,2,0) -> 1966 | E23: =VLOOKUP(B23,Pilot!A:E,5,0) -> M | F23: =VLOOKUP(B23,Pilot!A:F,6,0) ->  | G23: 15 | I23: 1 | J23: =IF(COUNTIF('N PMRg 2021'!B:B,B23)=0,"-",COUNTIF('N PMRg 2021'!B:B,B23)) -> - | K23: =IF(ISERROR(VLOOKUP(B23,'N PMRg 2021'!B:G,6,0)),"-",VLOOKUP(B23,'N PMRg 2021'!B:G,6,0)) -> - | L23: =IF(COUNTIF('N PMČRj 2021'!B:B,B23)=0,"-",COUNTIF('N PMČRj 2021'!B:B,B23)) -> - | M23: =IF(ISERROR(VLOOKUP(B23,'N PMČRj 2021'!B:G,6,0)),"-",VLOOKUP(B23,'N PMČRj 2021'!B:G,6,0)) -> -
A24: 16 | B24: Jan Louda | C24: =VLOOKUP(B24,Pilot!A:C,3,0) -> Mladá Boleslav | D24: =VLOOKUP(B24,Pilot!A:B,2,0) -> 1986 | E24: =VLOOKUP(B24,Pilot!A:E,5,0) -> M | F24: =VLOOKUP(B24,Pilot!A:F,6,0) ->  | G24: 16 | I24: 1 | J24: =IF(COUNTIF('N PMRg 2021'!B:B,B24)=0,"-",COUNTIF('N PMRg 2021'!B:B,B24)) -> - | K24: =IF(ISERROR(VLOOKUP(B24,'N PMRg 2021'!B:G,6,0)),"-",VLOOKUP(B24,'N PMRg 2021'!B:G,6,0)) -> - | L24: =IF(COUNTIF('N PMČRj 2021'!B:B,B24)=0,"-",COUNTIF('N PMČRj 2021'!B:B,B24)) -> - | M24: =IF(ISERROR(VLOOKUP(B24,'N PMČRj 2021'!B:G,6,0)),"-",VLOOKUP(B24,'N PMČRj 2021'!B:G,6,0)) -> -
A25: 17 | B25: Jan Ratz | C25: =VLOOKUP(B25,Pilot!A:C,3,0) -> Zbraslavice | D25: =VLOOKUP(B25,Pilot!A:B,2,0) -> 1987 | E25: =VLOOKUP(B25,Pilot!A:E,5,0) -> M | F25: =VLOOKUP(B25,Pilot!A:F,6,0) ->  | G25: 17 | I25: 1 | J25: =IF(COUNTIF('N PMRg 2021'!B:B,B25)=0,"-",COUNTIF('N PMRg 2021'!B:B,B25)) -> - | K25: =IF(ISERROR(VLOOKUP(B25,'N PMRg 2021'!B:G,6,0)),"-",VLOOKUP(B25,'N PMRg 2021'!B:G,6,0)) -> - | L25: =IF(COUNTIF('N PMČRj 2021'!B:B,B25)=0,"-",COUNTIF('N PMČRj 2021'!B:B,B25)) -> - | M25: =IF(ISERROR(VLOOKUP(B25,'N PMČRj 2021'!B:G,6,0)),"-",VLOOKUP(B25,'N PMČRj 2021'!B:G,6,0)) -> -
A26: 18 | B26: Danes Grula | C26: =VLOOKUP(B26,Pilot!A:C,3,0) -> Medlánky | D26: =VLOOKUP(B26,Pilot!A:B,2,0) -> 1961 | E26: =VLOOKUP(B26,Pilot!A:E,5,0) -> M | F26: =VLOOKUP(B26,Pilot!A:F,6,0) ->  | G26: 18 | I26: 1 | J26: =IF(COUNTIF('N PMRg 2021'!B:B,B26)=0,"-",COUNTIF('N PMRg 2021'!B:B,B26)) -> - | K26: =IF(ISERROR(VLOOKUP(B26,'N PMRg 2021'!B:G,6,0)),"-",VLOOKUP(B26,'N PMRg 2021'!B:G,6,0)) -> - | L26: =IF(COUNTIF('N PMČRj 2021'!B:B,B26)=0,"-",COUNTIF('N PMČRj 2021'!B:B,B26)) -> - | M26: =IF(ISERROR(VLOOKUP(B26,'N PMČRj 2021'!B:G,6,0)),"-",VLOOKUP(B26,'N PMČRj 2021'!B:G,6,0)) -> -
A27: 19 | B27: Daniel Ryba | C27: =VLOOKUP(B27,Pilot!A:C,3,0) -> Dvůr Králové | D27: =VLOOKUP(B27,Pilot!A:B,2,0) -> 1994 | E27: =VLOOKUP(B27,Pilot!A:E,5,0) -> M | F27: =VLOOKUP(B27,Pilot!A:F,6,0) ->  | G27: 19 | I27: 1 | J27: =IF(COUNTIF('N PMRg 2021'!B:B,B27)=0,"-",COUNTIF('N PMRg 2021'!B:B,B27)) -> - | K27: =IF(ISERROR(VLOOKUP(B27,'N PMRg 2021'!B:G,6,0)),"-",VLOOKUP(B27,'N PMRg 2021'!B:G,6,0)) -> - | L27: =IF(COUNTIF('N PMČRj 2021'!B:B,B27)=0,"-",COUNTIF('N PMČRj 2021'!B:B,B27)) -> - | M27: =IF(ISERROR(VLOOKUP(B27,'N PMČRj 2021'!B:G,6,0)),"-",VLOOKUP(B27,'N PMČRj 2021'!B:G,6,0)) -> -
A28: 20 | B28: Alena Netusilova | C28: =VLOOKUP(B28,Pilot!A:C,3,0) -> Zbraslavice | D28: =VLOOKUP(B28,Pilot!A:B,2,0) -> 1970 | E28: =VLOOKUP(B28,Pilot!A:E,5,0) -> F | F28: =VLOOKUP(B28,Pilot!A:F,6,0) ->  | G28: 20 | I28: 1 | J28: =IF(COUNTIF('N PMRg 2021'!B:B,B28)=0,"-",COUNTIF('N PMRg 2021'!B:B,B28)) -> - | K28: =IF(ISERROR(VLOOKUP(B28,'N PMRg 2021'!B:G,6,0)),"-",VLOOKUP(B28,'N PMRg 2021'!B:G,6,0)) -> - | L28: =IF(COUNTIF('N PMČRj 2021'!B:B,B28)=0,"-",COUNTIF('N PMČRj 2021'!B:B,B28)) -> - | M28: =IF(ISERROR(VLOOKUP(B28,'N PMČRj 2021'!B:G,6,0)),"-",VLOOKUP(B28,'N PMČRj 2021'!B:G,6,0)) -> -
A29: 21 | B29: Jan Zapletal | C29: =VLOOKUP(B29,Pilot!A:C,3,0) -> Břeclav | D29: =VLOOKUP(B29,Pilot!A:B,2,0) -> 1997 | E29: =VLOOKUP(B29,Pilot!A:E,5,0) -> M | F29: =VLOOKUP(B29,Pilot!A:F,6,0) -> Junior v roce 2021 | G29: 21 | I29: 1 | J29: =IF(COUNTIF('N PMRg 2021'!B:B,B29)=0,"-",COUNTIF('N PMRg 2021'!B:B,B29)) -> - | K29: =IF(ISERROR(VLOOKUP(B29,'N PMRg 2021'!B:G,6,0)),"-",VLOOKUP(B29,'N PMRg 2021'!B:G,6,0)) -> - | L29: =IF(COUNTIF('N PMČRj 2021'!B:B,B29)=0,"-",COUNTIF('N PMČRj 2021'!B:B,B29)) -> 1 | M29: =IF(ISERROR(VLOOKUP(B29,'N PMČRj 2021'!B:G,6,0)),"-",VLOOKUP(B29,'N PMČRj 2021'!B:G,6,0)) -> 1
A30: 22 | B30: Dana Novakova | C30: =VLOOKUP(B30,Pilot!A:C,3,0) -> Mladá Boleslav | D30: =VLOOKUP(B30,Pilot!A:B,2,0) -> 1965 | E30: =VLOOKUP(B30,Pilot!A:E,5,0) -> F | F30: =VLOOKUP(B30,Pilot!A:F,6,0) ->  | G30: 22 | I30: 1 | J30: =IF(COUNTIF('N PMRg 2021'!B:B,B30)=0,"-",COUNTIF('N PMRg 2021'!B:B,B30)) -> - | K30: =IF(ISERROR(VLOOKUP(B30,'N PMRg 2021'!B:G,6,0)),"-",VLOOKUP(B30,'N PMRg 2021'!B:G,6,0)) -> - | L30: =IF(COUNTIF('N PMČRj 2021'!B:B,B30)=0,"-",COUNTIF('N PMČRj 2021'!B:B,B30)) -> - | M30: =IF(ISERROR(VLOOKUP(B30,'N PMČRj 2021'!B:G,6,0)),"-",VLOOKUP(B30,'N PMČRj 2021'!B:G,6,0)) -> -
A31: 23 | B31: Jaromir Macoun | C31: =VLOOKUP(B31,Pilot!A:C,3,0) -> Jičín | D31: =VLOOKUP(B31,Pilot!A:B,2,0) -> 1999 | E31: =VLOOKUP(B31,Pilot!A:E,5,0) -> M | F31: =VLOOKUP(B31,Pilot!A:F,6,0) -> Junior v roce 2021 | G31: 23 | I31: 1 | J31: =IF(COUNTIF('N PMRg 2021'!B:B,B31)=0,"-",COUNTIF('N PMRg 2021'!B:B,B31)) -> - | K31: =IF(ISERROR(VLOOKUP(B31,'N PMRg 2021'!B:G,6,0)),"-",VLOOKUP(B31,'N PMRg 2021'!B:G,6,0)) -> - | L31: =IF(COUNTIF('N PMČRj 2021'!B:B,B31)=0,"-",COUNTIF('N PMČRj 2021'!B:B,B31)) -> 1 | M31: =IF(ISERROR(VLOOKUP(B31,'N PMČRj 2021'!B:G,6,0)),"-",VLOOKUP(B31,'N PMČRj 2021'!B:G,6,0)) -> 2
A32: 24 | B32: Barbora Moravcova | C32: =VLOOKUP(B32,Pilot!A:C,3,0) -> Zbraslavice | D32: =VLOOKUP(B32,Pilot!A:B,2,0) -> 1994 | E32: =VLOOKUP(B32,Pilot!A:E,5,0) -> F | F32: =VLOOKUP(B32,Pilot!A:F,6,0) ->  | G32: 24 | I32: 1 | J32: =IF(COUNTIF('N PMRg 2021'!B:B,B32)=0,"-",COUNTIF('N PMRg 2021'!B:B,B32)) -> - | K32: =IF(ISERROR(VLOOKUP(B32,'N PMRg 2021'!B:G,6,0)),"-",VLOOKUP(B32,'N PMRg 2021'!B:G,6,0)) -> - | L32: =IF(COUNTIF('N PMČRj 2021'!B:B,B32)=0,"-",COUNTIF('N PMČRj 2021'!B:B,B32)) -> - | M32: =IF(ISERROR(VLOOKUP(B32,'N PMČRj 2021'!B:G,6,0)),"-",VLOOKUP(B32,'N PMČRj 2021'!B:G,6,0)) -> -
A33: 25 | B33: Jana Veprekova | C33: =VLOOKUP(B33,Pilot!A:C,3,0) -> Dvůr Králové | D33: =VLOOKUP(B33,Pilot!A:B,2,0) -> 1961 | E33: =VLOOKUP(B33,Pilot!A:E,5,0) -> F | F33: =VLOOKUP(B33,Pilot!A:F,6,0) ->  | G33: 25 | I33: 1 | J33: =IF(COUNTIF('N PMRg 2021'!B:B,B33)=0,"-",COUNTIF('N PMRg 2021'!B:B,B33)) -> - | K33: =IF(ISERROR(VLOOKUP(B33,'N PMRg 2021'!B:G,6,0)),"-",VLOOKUP(B33,'N PMRg 2021'!B:G,6,0)) -> - | L33: =IF(COUNTIF('N PMČRj 2021'!B:B,B33)=0,"-",COUNTIF('N PMČRj 2021'!B:B,B33)) -> - | M33: =IF(ISERROR(VLOOKUP(B33,'N PMČRj 2021'!B:G,6,0)),"-",VLOOKUP(B33,'N PMČRj 2021'!B:G,6,0)) -> -
A34: 26 | B34: Hana Treslova | C34: =VLOOKUP(B34,Pilot!A:C,3,0) -> Raná | D34: =VLOOKUP(B34,Pilot!A:B,2,0) -> 1991 | E34: =VLOOKUP(B34,Pilot!A:E,5,0) -> F | F34: =VLOOKUP(B34,Pilot!A:F,6,0) ->  | G34: =A34 -> 26 | I34: 1 | J34: =IF(COUNTIF('N PMRg 2021'!B:B,B34)=0,"-",COUNTIF('N PMRg 2021'!B:B,B34)) -> - | K34: =IF(ISERROR(VLOOKUP(B34,'N PMRg 2021'!B:G,6,0)),"-",VLOOKUP(B34,'N PMRg 2021'!B:G,6,0)) -> - | L34: =IF(COUNTIF('N PMČRj 2021'!B:B,B34)=0,"-",COUNTIF('N PMČRj 2021'!B:B,B34)) -> - | M34: =IF(ISERROR(VLOOKUP(B34,'N PMČRj 2021'!B:G,6,0)),"-",VLOOKUP(B34,'N PMČRj 2021'!B:G,6,0)) -> -
A35: 27 | B35: Jana Treslova | C35: =VLOOKUP(B35,Pilot!A:C,3,0) -> Raná | D35: =VLOOKUP(B35,Pilot!A:B,2,0) -> 1963 | E35: =VLOOKUP(B35,Pilot!A:E,5,0) -> F | F35: =VLOOKUP(B35,Pilot!A:F,6,0) ->  | G35: 27 | I35: 1 | J35: =IF(COUNTIF('N PMRg 2021'!B:B,B35)=0,"-",COUNTIF('N PMRg 2021'!B:B,B35)) -> - | K35: =IF(ISERROR(VLOOKUP(B35,'N PMRg 2021'!B:G,6,0)),"-",VLOOKUP(B35,'N PMRg 2021'!B:G,6,0)) -> - | L35: =IF(COUNTIF('N PMČRj 2021'!B:B,B35)=0,"-",COUNTIF('N PMČRj 2021'!B:B,B35)) -> - | M35: =IF(ISERROR(VLOOKUP(B35,'N PMČRj 2021'!B:G,6,0)),"-",VLOOKUP(B35,'N PMČRj 2021'!B:G,6,0)) -> -
A36: 28 | B36: Lenka Kuthanova | C36: =VLOOKUP(B36,Pilot!A:C,3,0) -> Tábor | D36: =VLOOKUP(B36,Pilot!A:B,2,0) -> 1960 | E36: =VLOOKUP(B36,Pilot!A:E,5,0) -> F | F36: =VLOOKUP(B36,Pilot!A:F,6,0) ->  | G36: 28 | I36: 1 | J36: =IF(COUNTIF('N PMRg 2021'!B:B,B36)=0,"-",COUNTIF('N PMRg 2021'!B:B,B36)) -> - | K36: =IF(ISERROR(VLOOKUP(B36,'N PMRg 2021'!B:G,6,0)),"-",VLOOKUP(B36,'N PMRg 2021'!B:G,6,0)) -> - | L36: =IF(COUNTIF('N PMČRj 2021'!B:B,B36)=0,"-",COUNTIF('N PMČRj 2021'!B:B,B36)) -> - | M36: =IF(ISERROR(VLOOKUP(B36,'N PMČRj 2021'!B:G,6,0)),"-",VLOOKUP(B36,'N PMČRj 2021'!B:G,6,0)) -> -
A37: 29 | B37: Vit Morkovsky | C37: =VLOOKUP(B37,Pilot!A:C,3,0) -> Polička | D37: =VLOOKUP(B37,Pilot!A:B,2,0) -> 2000 | E37: =VLOOKUP(B37,Pilot!A:E,5,0) -> M | F37: =VLOOKUP(B37,Pilot!A:F,6,0) -> Junior v roce 2021 | G37: 29 | I37: 1 | J37: =IF(COUNTIF('N PMRg 2021'!B:B,B37)=0,"-",COUNTIF('N PMRg 2021'!B:B,B37)) -> - | K37: =IF(ISERROR(VLOOKUP(B37,'N PMRg 2021'!B:G,6,0)),"-",VLOOKUP(B37,'N PMRg 2021'!B:G,6,0)) -> - | L37: =IF(COUNTIF('N PMČRj 2021'!B:B,B37)=0,"-",COUNTIF('N PMČRj 2021'!B:B,B37)) -> 1 | M37: =IF(ISERROR(VLOOKUP(B37,'N PMČRj 2021'!B:G,6,0)),"-",VLOOKUP(B37,'N PMČRj 2021'!B:G,6,0)) -> 3
A38: 30 | B38: Klara Teichmannova | C38: =VLOOKUP(B38,Pilot!A:C,3,0) -> Hronov | D38: =VLOOKUP(B38,Pilot!A:B,2,0) -> 1993 | E38: =VLOOKUP(B38,Pilot!A:E,5,0) -> F | F38: =VLOOKUP(B38,Pilot!A:F,6,0) ->  | G38: 30 | I38: 1 | J38: =IF(COUNTIF('N PMRg 2021'!B:B,B38)=0,"-",COUNTIF('N PMRg 2021'!B:B,B38)) -> - | K38: =IF(ISERROR(VLOOKUP(B38,'N PMRg 2021'!B:G,6,0)),"-",VLOOKUP(B38,'N PMRg 2021'!B:G,6,0)) -> - | L38: =IF(COUNTIF('N PMČRj 2021'!B:B,B38)=0,"-",COUNTIF('N PMČRj 2021'!B:B,B38)) -> - | M38: =IF(ISERROR(VLOOKUP(B38,'N PMČRj 2021'!B:G,6,0)),"-",VLOOKUP(B38,'N PMČRj 2021'!B:G,6,0)) -> -
A39: 31 | B39: Petra Piskata | C39: =VLOOKUP(B39,Pilot!A:C,3,0) -> Luhačovice | D39: =VLOOKUP(B39,Pilot!A:B,2,0) -> 1989 | E39: =VLOOKUP(B39,Pilot!A:E,5,0) -> F | F39: =VLOOKUP(B39,Pilot!A:F,6,0) ->  | G39: =A39 -> 31 | I39: 1 | J39: =IF(COUNTIF('N PMRg 2021'!B:B,B39)=0,"-",COUNTIF('N PMRg 2021'!B:B,B39)) -> - | K39: =IF(ISERROR(VLOOKUP(B39,'N PMRg 2021'!B:G,6,0)),"-",VLOOKUP(B39,'N PMRg 2021'!B:G,6,0)) -> - | L39: =IF(COUNTIF('N PMČRj 2021'!B:B,B39)=0,"-",COUNTIF('N PMČRj 2021'!B:B,B39)) -> - | M39: =IF(ISERROR(VLOOKUP(B39,'N PMČRj 2021'!B:G,6,0)),"-",VLOOKUP(B39,'N PMČRj 2021'!B:G,6,0)) -> -
A40: 32 | B40: Ivan Tvrdik | C40: =VLOOKUP(B40,Pilot!A:C,3,0) -> Letňany | D40: =VLOOKUP(B40,Pilot!A:B,2,0) -> 1997 | E40: =VLOOKUP(B40,Pilot!A:E,5,0) -> M | F40: =VLOOKUP(B40,Pilot!A:F,6,0) -> Junior v roce 2021 | G40: 32 | I40: 1 | J40: =IF(COUNTIF('N PMRg 2021'!B:B,B40)=0,"-",COUNTIF('N PMRg 2021'!B:B,B40)) -> - | K40: =IF(ISERROR(VLOOKUP(B40,'N PMRg 2021'!B:G,6,0)),"-",VLOOKUP(B40,'N PMRg 2021'!B:G,6,0)) -> - | L40: =IF(COUNTIF('N PMČRj 2021'!B:B,B40)=0,"-",COUNTIF('N PMČRj 2021'!B:B,B40)) -> 1 | M40: =IF(ISERROR(VLOOKUP(B40,'N PMČRj 2021'!B:G,6,0)),"-",VLOOKUP(B40,'N PMČRj 2021'!B:G,6,0)) -> 4
A41: 33 | B41: Tereza Koubkova | C41: =VLOOKUP(B41,Pilot!A:C,3,0) -> Vysoké Mýto | D41: =VLOOKUP(B41,Pilot!A:B,2,0) -> 1999 | E41: =VLOOKUP(B41,Pilot!A:E,5,0) -> F | F41: =VLOOKUP(B41,Pilot!A:F,6,0) -> Junior v roce 2021 | G41: 33 | I41: 1 | J41: =IF(COUNTIF('N PMRg 2021'!B:B,B41)=0,"-",COUNTIF('N PMRg 2021'!B:B,B41)) -> - | K41: =IF(ISERROR(VLOOKUP(B41,'N PMRg 2021'!B:G,6,0)),"-",VLOOKUP(B41,'N PMRg 2021'!B:G,6,0)) -> - | L41: =IF(COUNTIF('N PMČRj 2021'!B:B,B41)=0,"-",COUNTIF('N PMČRj 2021'!B:B,B41)) -> 1 | M41: =IF(ISERROR(VLOOKUP(B41,'N PMČRj 2021'!B:G,6,0)),"-",VLOOKUP(B41,'N PMČRj 2021'!B:G,6,0)) -> 5
A42: 34 | B42: Michaela Krizova | C42: =VLOOKUP(B42,Pilot!A:C,3,0) -> Přibyslav | D42: =VLOOKUP(B42,Pilot!A:B,2,0) -> 2001 | E42: =VLOOKUP(B42,Pilot!A:E,5,0) -> F | F42: =VLOOKUP(B42,Pilot!A:F,6,0) -> Junior v roce 2021 | G42: 34 | I42: 1 | J42: =IF(COUNTIF('N PMRg 2021'!B:B,B42)=0,"-",COUNTIF('N PMRg 2021'!B:B,B42)) -> - | K42: =IF(ISERROR(VLOOKUP(B42,'N PMRg 2021'!B:G,6,0)),"-",VLOOKUP(B42,'N PMRg 2021'!B:G,6,0)) -> - | L42: =IF(COUNTIF('N PMČRj 2021'!B:B,B42)=0,"-",COUNTIF('N PMČRj 2021'!B:B,B42)) -> 1 | M42: =IF(ISERROR(VLOOKUP(B42,'N PMČRj 2021'!B:G,6,0)),"-",VLOOKUP(B42,'N PMČRj 2021'!B:G,6,0)) -> 6
A43: 6.6.6.2. | B43: další soutěžící, kteří se umístili v konečném pořadí na posledním platném PMČR ve své třídě nejhůře v první polovině celkového pořadí (bez náhradníků)
B44: PMČR 2020 - Tábor - Klub
A45: =MAX(A9:A43)+1 -> 35 | B45: Pavel Trybenekr | C45: =VLOOKUP(B45,Pilot!A:C,3,0) -> Hořice | D45: =VLOOKUP(B45,Pilot!A:B,2,0) -> 1990 | E45: =VLOOKUP(B45,Pilot!A:E,5,0) -> M | F45: =VLOOKUP(B45,Pilot!A:F,6,0) ->  | G45: =A45 -> 35 | I45: =COUNTIF(B:B,B45) -> 1 | J45: =IF(COUNTIF('N PMRg 2021'!B:B,B45)=0,"-",COUNTIF('N PMRg 2021'!B:B,B45)) -> - | K45: =IF(ISERROR(VLOOKUP(B45,'N PMRg 2021'!B:G,6,0)),"-",VLOOKUP(B45,'N PMRg 2021'!B:G,6,0)) -> - | L45: =IF(COUNTIF('N PMČRj 2021'!B:B,B45)=0,"-",COUNTIF('N PMČRj 2021'!B:B,B45)) -> - | M45: =IF(ISERROR(VLOOKUP(B45,'N PMČRj 2021'!B:G,6,0)),"-",VLOOKUP(B45,'N PMČRj 2021'!B:G,6,0)) -> -
A46: =A45+1 -> 36 | B46: Pavel Rericha | C46: =VLOOKUP(B46,Pilot!A:C,3,0) -> Moravská Třebová | D46: =VLOOKUP(B46,Pilot!A:B,2,0) -> 1967 | E46: =VLOOKUP(B46,Pilot!A:E,5,0) -> M | F46: =VLOOKUP(B46,Pilot!A:F,6,0) ->  | G46: =A46 -> 36 | I46: =COUNTIF(B:B,B46) -> 1 | J46: =IF(COUNTIF('N PMRg 2021'!B:B,B46)=0,"-",COUNTIF('N PMRg 2021'!B:B,B46)) -> - | K46: =IF(ISERROR(VLOOKUP(B46,'N PMRg 2021'!B:G,6,0)),"-",VLOOKUP(B46,'N PMRg 2021'!B:G,6,0)) -> - | L46: =IF(COUNTIF('N PMČRj 2021'!B:B,B46)=0,"-",COUNTIF('N PMČRj 2021'!B:B,B46)) -> - | M46: =IF(ISERROR(VLOOKUP(B46,'N PMČRj 2021'!B:G,6,0)),"-",VLOOKUP(B46,'N PMČRj 2021'!B:G,6,0)) -> -
B47: PMČR 2020 - Tábor - Kombi 15m
A48: =A46+1 -> 37 | B48: Jiri Kusbach | C48: =VLOOKUP(B48,Pilot!A:C,3,0) -> Luhačovice | D48: =VLOOKUP(B48,Pilot!A:B,2,0) -> 1959 | E48: =VLOOKUP(B48,Pilot!A:E,5,0) -> M | F48: =VLOOKUP(B48,Pilot!A:F,6,0) ->  | G48: =A48 -> 37 | I48: =COUNTIF(B:B,B48) -> 1 | J48: =IF(COUNTIF('N PMRg 2021'!B:B,B48)=0,"-",COUNTIF('N PMRg 2021'!B:B,B48)) -> - | K48: =IF(ISERROR(VLOOKUP(B48,'N PMRg 2021'!B:G,6,0)),"-",VLOOKUP(B48,'N PMRg 2021'!B:G,6,0)) -> - | L48: =IF(COUNTIF('N PMČRj 2021'!B:B,B48)=0,"-",COUNTIF('N PMČRj 2021'!B:B,B48)) -> - | M48: =IF(ISERROR(VLOOKUP(B48,'N PMČRj 2021'!B:G,6,0)),"-",VLOOKUP(B48,'N PMČRj 2021'!B:G,6,0)) -> -
A49: =A48+1 -> 38 | B49: Petr Krejcirik | C49: =VLOOKUP(B49,Pilot!A:C,3,0) -> Hranice | D49: =VLOOKUP(B49,Pilot!A:B,2,0) -> 1960 | E49: =VLOOKUP(B49,Pilot!A:E,5,0) -> M | F49: =VLOOKUP(B49,Pilot!A:F,6,0) ->  | G49: =A49 -> 38 | I49: =COUNTIF(B:B,B49) -> 1 | J49: =IF(COUNTIF('N PMRg 2021'!B:B,B49)=0,"-",COUNTIF('N PMRg 2021'!B:B,B49)) -> - | K49: =IF(ISERROR(VLOOKUP(B49,'N PMRg 2021'!B:G,6,0)),"-",VLOOKUP(B49,'N PMRg 2021'!B:G,6,0)) -> - | L49: =IF(COUNTIF('N PMČRj 2021'!B:B,B49)=0,"-",COUNTIF('N PMČRj 2021'!B:B,B49)) -> - | M49: =IF(ISERROR(VLOOKUP(B49,'N PMČRj 2021'!B:G,6,0)),"-",VLOOKUP(B49,'N PMČRj 2021'!B:G,6,0)) -> -
A50: =A49+1 -> 39 | B50: Jan Kotan | C50: =VLOOKUP(B50,Pilot!A:C,3,0) -> Letňany | D50: =VLOOKUP(B50,Pilot!A:B,2,0) -> 1982 | E50: =VLOOKUP(B50,Pilot!A:E,5,0) -> M | F50: =VLOOKUP(B50,Pilot!A:F,6,0) ->  | G50: =A50 -> 39 | I50: =COUNTIF(B:B,B50) -> 1 | J50: =IF(COUNTIF('N PMRg 2021'!B:B,B50)=0,"-",COUNTIF('N PMRg 2021'!B:B,B50)) -> - | K50: =IF(ISERROR(VLOOKUP(B50,'N PMRg 2021'!B:G,6,0)),"-",VLOOKUP(B50,'N PMRg 2021'!B:G,6,0)) -> - | L50: =IF(COUNTIF('N PMČRj 2021'!B:B,B50)=0,"-",COUNTIF('N PMČRj 2021'!B:B,B50)) -> - | M50: =IF(ISERROR(VLOOKUP(B50,'N PMČRj 2021'!B:G,6,0)),"-",VLOOKUP(B50,'N PMČRj 2021'!B:G,6,0)) -> -
A51: 40 | B51: Jan Vavrin | C51: =VLOOKUP(B51,Pilot!A:C,3,0) -> Vysoké Mýto | D51: =VLOOKUP(B51,Pilot!A:B,2,0) -> 1987 | E51: =VLOOKUP(B51,Pilot!A:E,5,0) -> M | F51: =VLOOKUP(B51,Pilot!A:F,6,0) ->  | G51: 40 | I51: =COUNTIF(B:B,B51) -> 1 | J51: =IF(COUNTIF('N PMRg 2021'!B:B,B51)=0,"-",COUNTIF('N PMRg 2021'!B:B,B51)) -> - | K51: =IF(ISERROR(VLOOKUP(B51,'N PMRg 2021'!B:G,6,0)),"-",VLOOKUP(B51,'N PMRg 2021'!B:G,6,0)) -> - | L51: =IF(COUNTIF('N PMČRj 2021'!B:B,B51)=0,"-",COUNTIF('N PMČRj 2021'!B:B,B51)) -> - | M51: =IF(ISERROR(VLOOKUP(B51,'N PMČRj 2021'!B:G,6,0)),"-",VLOOKUP(B51,'N PMČRj 2021'!B:G,6,0)) -> -
B52: PMČR 2020 - Tábor - Kombi Open
A53: =A51+1 -> 41 | B53: Radek Kucirek | C53: =VLOOKUP(B53,Pilot!A:C,3,0) -> Havlíčkův Brod | D53: =VLOOKUP(B53,Pilot!A:B,2,0) -> 1973 | E53: =VLOOKUP(B53,Pilot!A:E,5,0) -> M | F53: =VLOOKUP(B53,Pilot!A:F,6,0) ->  | G53: 41 | I53: =COUNTIF(B:B,B53) -> 1 | J53: =IF(COUNTIF('N PMRg 2021'!B:B,B53)=0,"-",COUNTIF('N PMRg 2021'!B:B,B53)) -> - | K53: =IF(ISERROR(VLOOKUP(B53,'N PMRg 2021'!B:G,6,0)),"-",VLOOKUP(B53,'N PMRg 2021'!B:G,6,0)) -> - | L53: =IF(COUNTIF('N PMČRj 2021'!B:B,B53)=0,"-",COUNTIF('N PMČRj 2021'!B:B,B53)) -> - | M53: =IF(ISERROR(VLOOKUP(B53,'N PMČRj 2021'!B:G,6,0)),"-",VLOOKUP(B53,'N PMČRj 2021'!B:G,6,0)) -> -
A54: 42 | B54: Tomas Rendla | C54: =VLOOKUP(B54,Pilot!A:C,3,0) -> Zbraslavice | D54: =VLOOKUP(B54,Pilot!A:B,2,0) -> 1973 | E54: =VLOOKUP(B54,Pilot!A:E,5,0) -> M | F54: =VLOOKUP(B54,Pilot!A:F,6,0) ->  | G54: =A54 -> 42 | I54: =COUNTIF(B:B,B54) -> 1 | J54: =IF(COUNTIF('N PMRg 2021'!B:B,B54)=0,"-",COUNTIF('N PMRg 2021'!B:B,B54)) -> - | K54: =IF(ISERROR(VLOOKUP(B54,'N PMRg 2021'!B:G,6,0)),"-",VLOOKUP(B54,'N PMRg 2021'!B:G,6,0)) -> - | L54: =IF(COUNTIF('N PMČRj 2021'!B:B,B54)=0,"-",COUNTIF('N PMČRj 2021'!B:B,B54)) -> - | M54: =IF(ISERROR(VLOOKUP(B54,'N PMČRj 2021'!B:G,6,0)),"-",VLOOKUP(B54,'N PMČRj 2021'!B:G,6,0)) -> -
A55: 6.6.6.3. | B55: prvních 5 soutěžících z posledního platného PMČRj mimo RV (+ 5 náhradníků)
B56: PMČRj 2020 - Zbraslavice - Klub
A57: =MAX(A44:A55)+1 -> 43 | B57: Jan Viskot | C57: =VLOOKUP(B57,Pilot!A:C,3,0) -> Břeclav | D57: =VLOOKUP(B57,Pilot!A:B,2,0) -> 1995 | E57: =VLOOKUP(B57,Pilot!A:E,5,0) -> M | F57: =VLOOKUP(B57,Pilot!A:F,6,0) ->  | G57: =A57 -> 43 | I57: =COUNTIF(B:B,B57) -> 1 | J57: =IF(COUNTIF('N PMRg 2021'!B:B,B57)=0,"-",COUNTIF('N PMRg 2021'!B:B,B57)) -> - | K57: =IF(ISERROR(VLOOKUP(B57,'N PMRg 2021'!B:G,6,0)),"-",VLOOKUP(B57,'N PMRg 2021'!B:G,6,0)) -> - | L57: =IF(COUNTIF('N PMČRj 2021'!B:B,B57)=0,"-",COUNTIF('N PMČRj 2021'!B:B,B57)) -> - | M57: =IF(ISERROR(VLOOKUP(B57,'N PMČRj 2021'!B:G,6,0)),"-",VLOOKUP(B57,'N PMČRj 2021'!B:G,6,0)) -> -
A58: =A57+1 -> 44 | B58: Tibor Hezina | C58: =VLOOKUP(B58,Pilot!A:C,3,0) -> Křižanov | D58: =VLOOKUP(B58,Pilot!A:B,2,0) -> 2002 | E58: =VLOOKUP(B58,Pilot!A:E,5,0) -> M | F58: =VLOOKUP(B58,Pilot!A:F,6,0) -> Junior v roce 2021 | G58: 44 | I58: 1 | J58: =IF(COUNTIF('N PMRg 2021'!B:B,B58)=0,"-",COUNTIF('N PMRg 2021'!B:B,B58)) -> - | K58: =IF(ISERROR(VLOOKUP(B58,'N PMRg 2021'!B:G,6,0)),"-",VLOOKUP(B58,'N PMRg 2021'!B:G,6,0)) -> - | L58: =IF(COUNTIF('N PMČRj 2021'!B:B,B58)=0,"-",COUNTIF('N PMČRj 2021'!B:B,B58)) -> 1 | M58: =IF(ISERROR(VLOOKUP(B58,'N PMČRj 2021'!B:G,6,0)),"-",VLOOKUP(B58,'N PMČRj 2021'!B:G,6,0)) -> 9
A59: =A58+1 -> 45 | B59: Jan Stastny | C59: =VLOOKUP(B59,Pilot!A:C,3,0) -> Medlánky | D59: =VLOOKUP(B59,Pilot!A:B,2,0) -> 2003 | E59: =VLOOKUP(B59,Pilot!A:E,5,0) -> M | F59: =VLOOKUP(B59,Pilot!A:F,6,0) -> Junior v roce 2021 | G59: 45 | I59: 1 | J59: =IF(COUNTIF('N PMRg 2021'!B:B,B59)=0,"-",COUNTIF('N PMRg 2021'!B:B,B59)) -> - | K59: =IF(ISERROR(VLOOKUP(B59,'N PMRg 2021'!B:G,6,0)),"-",VLOOKUP(B59,'N PMRg 2021'!B:G,6,0)) -> - | L59: =IF(COUNTIF('N PMČRj 2021'!B:B,B59)=0,"-",COUNTIF('N PMČRj 2021'!B:B,B59)) -> 1 | M59: =IF(ISERROR(VLOOKUP(B59,'N PMČRj 2021'!B:G,6,0)),"-",VLOOKUP(B59,'N PMČRj 2021'!B:G,6,0)) -> 10
A60: =A59+1 -> 46 | B60: Tomas Jilek | C60: =VLOOKUP(B60,Pilot!A:C,3,0) -> Raná | D60: =VLOOKUP(B60,Pilot!A:B,2,0) -> 1995 | E60: =VLOOKUP(B60,Pilot!A:E,5,0) -> M | F60: =VLOOKUP(B60,Pilot!A:F,6,0) ->  | G60: 46 | I60: 1 | J60: =IF(COUNTIF('N PMRg 2021'!B:B,B60)=0,"-",COUNTIF('N PMRg 2021'!B:B,B60)) -> - | K60: =IF(ISERROR(VLOOKUP(B60,'N PMRg 2021'!B:G,6,0)),"-",VLOOKUP(B60,'N PMRg 2021'!B:G,6,0)) -> - | L60: =IF(COUNTIF('N PMČRj 2021'!B:B,B60)=0,"-",COUNTIF('N PMČRj 2021'!B:B,B60)) -> - | M60: =IF(ISERROR(VLOOKUP(B60,'N PMČRj 2021'!B:G,6,0)),"-",VLOOKUP(B60,'N PMČRj 2021'!B:G,6,0)) -> -
A61: =A60+1 -> 47 | B61: Daniel Suchy | C61: =VLOOKUP(B61,Pilot!A:C,3,0) -> Hranice | D61: =VLOOKUP(B61,Pilot!A:B,2,0) -> 1995 | E61: =VLOOKUP(B61,Pilot!A:E,5,0) -> M | F61: =VLOOKUP(B61,Pilot!A:F,6,0) ->  | G61: 47 | I61: 1 | J61: =IF(COUNTIF('N PMRg 2021'!B:B,B61)=0,"-",COUNTIF('N PMRg 2021'!B:B,B61)) -> - | K61: =IF(ISERROR(VLOOKUP(B61,'N PMRg 2021'!B:G,6,0)),"-",VLOOKUP(B61,'N PMRg 2021'!B:G,6,0)) -> - | L61: =IF(COUNTIF('N PMČRj 2021'!B:B,B61)=0,"-",COUNTIF('N PMČRj 2021'!B:B,B61)) -> - | M61: =IF(ISERROR(VLOOKUP(B61,'N PMČRj 2021'!B:G,6,0)),"-",VLOOKUP(B61,'N PMČRj 2021'!B:G,6,0)) -> -
A62: N1 | B62: Tomas Hulmak | C62: =VLOOKUP(B62,Pilot!A:C,3,0) -> Hosín | D62: =VLOOKUP(B62,Pilot!A:B,2,0) -> 1999 | E62: =VLOOKUP(B62,Pilot!A:E,5,0) -> M | F62: =VLOOKUP(B62,Pilot!A:F,6,0) -> Junior v roce 2021 | G62: N1 | I62: 1 | J62: =IF(COUNTIF('N PMRg 2021'!B:B,B62)=0,"-",COUNTIF('N PMRg 2021'!B:B,B62)) -> - | K62: =IF(ISERROR(VLOOKUP(B62,'N PMRg 2021'!B:G,6,0)),"-",VLOOKUP(B62,'N PMRg 2021'!B:G,6,0)) -> - | L62: =IF(COUNTIF('N PMČRj 2021'!B:B,B62)=0,"-",COUNTIF('N PMČRj 2021'!B:B,B62)) -> 1 | M62: =IF(ISERROR(VLOOKUP(B62,'N PMČRj 2021'!B:G,6,0)),"-",VLOOKUP(B62,'N PMČRj 2021'!B:G,6,0)) -> 11
A63: N2 | B63: Lukas Kriz | C63: =VLOOKUP(B63,Pilot!A:C,3,0) -> Křižanov | D63: =VLOOKUP(B63,Pilot!A:B,2,0) -> 2003 | E63: =VLOOKUP(B63,Pilot!A:E,5,0) -> M | F63: =VLOOKUP(B63,Pilot!A:F,6,0) -> Junior v roce 2021 | G63: N2 | I63: 1 | J63: =IF(COUNTIF('N PMRg 2021'!B:B,B63)=0,"-",COUNTIF('N PMRg 2021'!B:B,B63)) -> - | K63: =IF(ISERROR(VLOOKUP(B63,'N PMRg 2021'!B:G,6,0)),"-",VLOOKUP(B63,'N PMRg 2021'!B:G,6,0)) -> - | L63: =IF(COUNTIF('N PMČRj 2021'!B:B,B63)=0,"-",COUNTIF('N PMČRj 2021'!B:B,B63)) -> 1 | M63: =IF(ISERROR(VLOOKUP(B63,'N PMČRj 2021'!B:G,6,0)),"-",VLOOKUP(B63,'N PMČRj 2021'!B:G,6,0)) -> 12
A64: N3 | B64: Tomas Kulhavy | C64: =VLOOKUP(B64,Pilot!A:C,3,0) -> Liberec | D64: =VLOOKUP(B64,Pilot!A:B,2,0) -> 2001 | E64: =VLOOKUP(B64,Pilot!A:E,5,0) -> M | F64: =VLOOKUP(B64,Pilot!A:F,6,0) -> Junior v roce 2021 | G64: N3 | I64: 1 | J64: =IF(COUNTIF('N PMRg 2021'!B:B,B64)=0,"-",COUNTIF('N PMRg 2021'!B:B,B64)) -> - | K64: =IF(ISERROR(VLOOKUP(B64,'N PMRg 2021'!B:G,6,0)),"-",VLOOKUP(B64,'N PMRg 2021'!B:G,6,0)) -> - | L64: =IF(COUNTIF('N PMČRj 2021'!B:B,B64)=0,"-",COUNTIF('N PMČRj 2021'!B:B,B64)) -> 1 | M64: =IF(ISERROR(VLOOKUP(B64,'N PMČRj 2021'!B:G,6,0)),"-",VLOOKUP(B64,'N PMČRj 2021'!B:G,6,0)) -> 13
A65: N4 | B65: Lukas Maly | C65: =VLOOKUP(B65,Pilot!A:C,3,0) -> Vysoké Mýto | D65: =VLOOKUP(B65,Pilot!A:B,2,0) -> 1998 | E65: =VLOOKUP(B65,Pilot!A:E,5,0) -> M | F65: =VLOOKUP(B65,Pilot!A:F,6,0) -> Junior v roce 2021 | G65: N4 | I65: 1 | J65: =IF(COUNTIF('N PMRg 2021'!B:B,B65)=0,"-",COUNTIF('N PMRg 2021'!B:B,B65)) -> - | K65: =IF(ISERROR(VLOOKUP(B65,'N PMRg 2021'!B:G,6,0)),"-",VLOOKUP(B65,'N PMRg 2021'!B:G,6,0)) -> - | L65: =IF(COUNTIF('N PMČRj 2021'!B:B,B65)=0,"-",COUNTIF('N PMČRj 2021'!B:B,B65)) -> 1 | M65: =IF(ISERROR(VLOOKUP(B65,'N PMČRj 2021'!B:G,6,0)),"-",VLOOKUP(B65,'N PMČRj 2021'!B:G,6,0)) -> 14
A66: N5 | B66: Vladimir Hammer | C66: =VLOOKUP(B66,Pilot!A:C,3,0) -> Letkov | D66: =VLOOKUP(B66,Pilot!A:B,2,0) -> 2000 | E66: =VLOOKUP(B66,Pilot!A:E,5,0) -> M | F66: =VLOOKUP(B66,Pilot!A:F,6,0) -> Junior v roce 2021 | G66: N5 | I66: 1 | J66: =IF(COUNTIF('N PMRg 2021'!B:B,B66)=0,"-",COUNTIF('N PMRg 2021'!B:B,B66)) -> - | K66: =IF(ISERROR(VLOOKUP(B66,'N PMRg 2021'!B:G,6,0)),"-",VLOOKUP(B66,'N PMRg 2021'!B:G,6,0)) -> - | L66: =IF(COUNTIF('N PMČRj 2021'!B:B,B66)=0,"-",COUNTIF('N PMČRj 2021'!B:B,B66)) -> 1 | M66: =IF(ISERROR(VLOOKUP(B66,'N PMČRj 2021'!B:G,6,0)),"-",VLOOKUP(B66,'N PMČRj 2021'!B:G,6,0)) -> 15
A67: 6.6.6.4. | B67: 5 soutěžících může navrhnout PK podle jiných kritérií dle odstavce 9. (bez náhradníků)
A68: 81. | B68: - | C68: =VLOOKUP(B68,Pilot!A:C,3,0) ->  | D68: =VLOOKUP(B68,Pilot!A:B,2,0) ->  | E68: =VLOOKUP(B68,Pilot!A:E,5,0) ->  | F68: =VLOOKUP(B68,Pilot!A:F,6,0) ->  | G68: =A68 -> 81. | I68: =COUNTIF(B:B,B68) -> 5 | J68: =IF(COUNTIF('N PMRg 2021'!B:B,B68)=0,"-",COUNTIF('N PMRg 2021'!B:B,B68)) -> 60 | K68: =IF(ISERROR(VLOOKUP(B68,'N PMRg 2021'!B:G,6,0)),"-",VLOOKUP(B68,'N PMRg 2021'!B:G,6,0)) -> - | L68: =IF(COUNTIF('N PMČRj 2021'!B:B,B68)=0,"-",COUNTIF('N PMČRj 2021'!B:B,B68)) -> 40 | M68: =IF(ISERROR(VLOOKUP(B68,'N PMČRj 2021'!B:G,6,0)),"-",VLOOKUP(B68,'N PMČRj 2021'!B:G,6,0)) -> 16
A69: 82. | B69: - | C69: =VLOOKUP(B69,Pilot!A:C,3,0) ->  | D69: =VLOOKUP(B69,Pilot!A:B,2,0) ->  | E69: =VLOOKUP(B69,Pilot!A:E,5,0) ->  | F69: =VLOOKUP(B69,Pilot!A:F,6,0) ->  | G69: =A69 -> 82. | I69: =COUNTIF(B:B,B69) -> 5 | J69: =IF(COUNTIF('N PMRg 2021'!B:B,B69)=0,"-",COUNTIF('N PMRg 2021'!B:B,B69)) -> 60 | K69: =IF(ISERROR(VLOOKUP(B69,'N PMRg 2021'!B:G,6,0)),"-",VLOOKUP(B69,'N PMRg 2021'!B:G,6,0)) -> - | L69: =IF(COUNTIF('N PMČRj 2021'!B:B,B69)=0,"-",COUNTIF('N PMČRj 2021'!B:B,B69)) -> 40 | M69: =IF(ISERROR(VLOOKUP(B69,'N PMČRj 2021'!B:G,6,0)),"-",VLOOKUP(B69,'N PMČRj 2021'!B:G,6,0)) -> 16
A70: 83. | B70: - | C70: =VLOOKUP(B70,Pilot!A:C,3,0) ->  | D70: =VLOOKUP(B70,Pilot!A:B,2,0) ->  | E70: =VLOOKUP(B70,Pilot!A:E,5,0) ->  | F70: =VLOOKUP(B70,Pilot!A:F,6,0) ->  | G70: =A70 -> 83. | I70: =COUNTIF(B:B,B70) -> 5 | J70: =IF(COUNTIF('N PMRg 2021'!B:B,B70)=0,"-",COUNTIF('N PMRg 2021'!B:B,B70)) -> 60 | K70: =IF(ISERROR(VLOOKUP(B70,'N PMRg 2021'!B:G,6,0)),"-",VLOOKUP(B70,'N PMRg 2021'!B:G,6,0)) -> - | L70: =IF(COUNTIF('N PMČRj 2021'!B:B,B70)=0,"-",COUNTIF('N PMČRj 2021'!B:B,B70)) -> 40 | M70: =IF(ISERROR(VLOOKUP(B70,'N PMČRj 2021'!B:G,6,0)),"-",VLOOKUP(B70,'N PMČRj 2021'!B:G,6,0)) -> 16
A71: 84. | B71: - | C71: =VLOOKUP(B71,Pilot!A:C,3,0) ->  | D71: =VLOOKUP(B71,Pilot!A:B,2,0) ->  | E71: =VLOOKUP(B71,Pilot!A:E,5,0) ->  | F71: =VLOOKUP(B71,Pilot!A:F,6,0) ->  | G71: =A71 -> 84. | I71: =COUNTIF(B:B,B71) -> 5 | J71: =IF(COUNTIF('N PMRg 2021'!B:B,B71)=0,"-",COUNTIF('N PMRg 2021'!B:B,B71)) -> 60 | K71: =IF(ISERROR(VLOOKUP(B71,'N PMRg 2021'!B:G,6,0)),"-",VLOOKUP(B71,'N PMRg 2021'!B:G,6,0)) -> - | L71: =IF(COUNTIF('N PMČRj 2021'!B:B,B71)=0,"-",COUNTIF('N PMČRj 2021'!B:B,B71)) -> 40 | M71: =IF(ISERROR(VLOOKUP(B71,'N PMČRj 2021'!B:G,6,0)),"-",VLOOKUP(B71,'N PMČRj 2021'!B:G,6,0)) -> 16
A72: 85. | B72: - | C72: =VLOOKUP(B72,Pilot!A:C,3,0) ->  | D72: =VLOOKUP(B72,Pilot!A:B,2,0) ->  | E72: =VLOOKUP(B72,Pilot!A:E,5,0) ->  | F72: =VLOOKUP(B72,Pilot!A:F,6,0) ->  | G72: =A72 -> 85. | I72: =COUNTIF(B:B,B72) -> 5 | J72: =IF(COUNTIF('N PMRg 2021'!B:B,B72)=0,"-",COUNTIF('N PMRg 2021'!B:B,B72)) -> 60 | K72: =IF(ISERROR(VLOOKUP(B72,'N PMRg 2021'!B:G,6,0)),"-",VLOOKUP(B72,'N PMRg 2021'!B:G,6,0)) -> - | L72: =IF(COUNTIF('N PMČRj 2021'!B:B,B72)=0,"-",COUNTIF('N PMČRj 2021'!B:B,B72)) -> 40 | M72: =IF(ISERROR(VLOOKUP(B72,'N PMČRj 2021'!B:G,6,0)),"-",VLOOKUP(B72,'N PMČRj 2021'!B:G,6,0)) -> 16
A73: 6.6.6.5. | B73: ostatní soutěžící z posledního platného PMRg v pořadí podle umístění, do naplnění celkového počtu nominovaných 80 dle 6.6.5. (+ 10 náhradníků)
A74: 6.6.6.6. | B74: Je-li PMRg pořádáno ve více třídách, a/nebo ve více regionech, pak jsou na PMČR nominováni soutěžící podle korigovaných bodů z jednotlivých tříd/regionů do naplnění celkového počtu nominovaných dle 6.6.5.
A75: 6.6.6.7. | B75: V případě neplatnosti některé ze soutěžních tříd posledního PMRg budou pro výpočet korigovaných bodů použity výsledky z posledního platného PMRg v dané třídě.
B76: PMRg 2020 - Hosín - Korigované body
A77: =MAX(A57:A73)+1 -> 48 | B77: Zdenek Boruvka 86 | C77: =VLOOKUP(B77,Pilot!A:C,3,0) -> Jičín | D77: =VLOOKUP(B77,Pilot!A:B,2,0) -> 1986 | E77: =VLOOKUP(B77,Pilot!A:E,5,0) -> M | F77: =VLOOKUP(B77,Pilot!A:F,6,0) ->  | G77: =A77 -> 48 | I77: =COUNTIF(B:B,B77) -> 1 | J77: =IF(COUNTIF('N PMRg 2021'!B:B,B77)=0,"-",COUNTIF('N PMRg 2021'!B:B,B77)) -> - | K77: =IF(ISERROR(VLOOKUP(B77,'N PMRg 2021'!B:G,6,0)),"-",VLOOKUP(B77,'N PMRg 2021'!B:G,6,0)) -> - | L77: =IF(COUNTIF('N PMČRj 2021'!B:B,B77)=0,"-",COUNTIF('N PMČRj 2021'!B:B,B77)) -> - | M77: =IF(ISERROR(VLOOKUP(B77,'N PMČRj 2021'!B:G,6,0)),"-",VLOOKUP(B77,'N PMČRj 2021'!B:G,6,0)) -> -
A78: =A77+1 -> 49 | B78: Petr Hotovy | C78: =VLOOKUP(B78,Pilot!A:C,3,0) -> Česká Lípa | D78: =VLOOKUP(B78,Pilot!A:B,2,0) -> 1958 | E78: =VLOOKUP(B78,Pilot!A:E,5,0) -> M | F78: =VLOOKUP(B78,Pilot!A:F,6,0) ->  | G78: 49 | I78: 1 | J78: =IF(COUNTIF('N PMRg 2021'!B:B,B78)=0,"-",COUNTIF('N PMRg 2021'!B:B,B78)) -> - | K78: =IF(ISERROR(VLOOKUP(B78,'N PMRg 2021'!B:G,6,0)),"-",VLOOKUP(B78,'N PMRg 2021'!B:G,6,0)) -> - | L78: =IF(COUNTIF('N PMČRj 2021'!B:B,B78)=0,"-",COUNTIF('N PMČRj 2021'!B:B,B78)) -> - | M78: =IF(ISERROR(VLOOKUP(B78,'N PMČRj 2021'!B:G,6,0)),"-",VLOOKUP(B78,'N PMČRj 2021'!B:G,6,0)) -> -
A79: =A78+1 -> 50 | B79: Josef Busek | C79: =VLOOKUP(B79,Pilot!A:C,3,0) -> Hosín | D79: =VLOOKUP(B79,Pilot!A:B,2,0) -> 1967 | E79: =VLOOKUP(B79,Pilot!A:E,5,0) -> M | F79: =VLOOKUP(B79,Pilot!A:F,6,0) ->  | G79: 50 | I79: 1 | J79: =IF(COUNTIF('N PMRg 2021'!B:B,B79)=0,"-",COUNTIF('N PMRg 2021'!B:B,B79)) -> - | K79: =IF(ISERROR(VLOOKUP(B79,'N PMRg 2021'!B:G,6,0)),"-",VLOOKUP(B79,'N PMRg 2021'!B:G,6,0)) -> - | L79: =IF(COUNTIF('N PMČRj 2021'!B:B,B79)=0,"-",COUNTIF('N PMČRj 2021'!B:B,B79)) -> - | M79: =IF(ISERROR(VLOOKUP(B79,'N PMČRj 2021'!B:G,6,0)),"-",VLOOKUP(B79,'N PMČRj 2021'!B:G,6,0)) -> -
A80: =A79+1 -> 51 | B80: Jan Zahradka | C80: =VLOOKUP(B80,Pilot!A:C,3,0) -> Hodkovice | D80: =VLOOKUP(B80,Pilot!A:B,2,0) -> 1981 | E80: =VLOOKUP(B80,Pilot!A:E,5,0) -> M | F80: =VLOOKUP(B80,Pilot!A:F,6,0) ->  | G80: 51 | I80: 1 | J80: =IF(COUNTIF('N PMRg 2021'!B:B,B80)=0,"-",COUNTIF('N PMRg 2021'!B:B,B80)) -> - | K80: =IF(ISERROR(VLOOKUP(B80,'N PMRg 2021'!B:G,6,0)),"-",VLOOKUP(B80,'N PMRg 2021'!B:G,6,0)) -> - | L80: =IF(COUNTIF('N PMČRj 2021'!B:B,B80)=0,"-",COUNTIF('N PMČRj 2021'!B:B,B80)) -> - | M80: =IF(ISERROR(VLOOKUP(B80,'N PMČRj 2021'!B:G,6,0)),"-",VLOOKUP(B80,'N PMČRj 2021'!B:G,6,0)) -> -
A81: =A80+1 -> 52 | B81: Marek Svancara | C81: =VLOOKUP(B81,Pilot!A:C,3,0) -> GAC Benešov | D81: =VLOOKUP(B81,Pilot!A:B,2,0) -> 1976 | E81: =VLOOKUP(B81,Pilot!A:E,5,0) -> M | F81: =VLOOKUP(B81,Pilot!A:F,6,0) ->  | G81: 52 | I81: 1 | J81: =IF(COUNTIF('N PMRg 2021'!B:B,B81)=0,"-",COUNTIF('N PMRg 2021'!B:B,B81)) -> - | K81: =IF(ISERROR(VLOOKUP(B81,'N PMRg 2021'!B:G,6,0)),"-",VLOOKUP(B81,'N PMRg 2021'!B:G,6,0)) -> - | L81: =IF(COUNTIF('N PMČRj 2021'!B:B,B81)=0,"-",COUNTIF('N PMČRj 2021'!B:B,B81)) -> - | M81: =IF(ISERROR(VLOOKUP(B81,'N PMČRj 2021'!B:G,6,0)),"-",VLOOKUP(B81,'N PMČRj 2021'!B:G,6,0)) -> -
A82: 53 | B82: Michael Fik | C82: =VLOOKUP(B82,Pilot!A:C,3,0) -> Strakonice | D82: =VLOOKUP(B82,Pilot!A:B,2,0) -> 1972 | E82: =VLOOKUP(B82,Pilot!A:E,5,0) -> M | F82: =VLOOKUP(B82,Pilot!A:F,6,0) ->  | G82: 53 | I82: 1 | J82: =IF(COUNTIF('N PMRg 2021'!B:B,B82)=0,"-",COUNTIF('N PMRg 2021'!B:B,B82)) -> - | K82: =IF(ISERROR(VLOOKUP(B82,'N PMRg 2021'!B:G,6,0)),"-",VLOOKUP(B82,'N PMRg 2021'!B:G,6,0)) -> - | L82: =IF(COUNTIF('N PMČRj 2021'!B:B,B82)=0,"-",COUNTIF('N PMČRj 2021'!B:B,B82)) -> - | M82: =IF(ISERROR(VLOOKUP(B82,'N PMČRj 2021'!B:G,6,0)),"-",VLOOKUP(B82,'N PMČRj 2021'!B:G,6,0)) -> -
A83: 54 | B83: Jindrich Hruska | C83: =VLOOKUP(B83,Pilot!A:C,3,0) -> Soběslav | D83: =VLOOKUP(B83,Pilot!A:B,2,0) -> 1986 | E83: =VLOOKUP(B83,Pilot!A:E,5,0) -> M | F83: =VLOOKUP(B83,Pilot!A:F,6,0) ->  | G83: 54 | I83: 1 | J83: =IF(COUNTIF('N PMRg 2021'!B:B,B83)=0,"-",COUNTIF('N PMRg 2021'!B:B,B83)) -> - | K83: =IF(ISERROR(VLOOKUP(B83,'N PMRg 2021'!B:G,6,0)),"-",VLOOKUP(B83,'N PMRg 2021'!B:G,6,0)) -> - | L83: =IF(COUNTIF('N PMČRj 2021'!B:B,B83)=0,"-",COUNTIF('N PMČRj 2021'!B:B,B83)) -> - | M83: =IF(ISERROR(VLOOKUP(B83,'N PMČRj 2021'!B:G,6,0)),"-",VLOOKUP(B83,'N PMČRj 2021'!B:G,6,0)) -> -
A84: 55 | B84: Jiri Vondracek | C84: =VLOOKUP(B84,Pilot!A:C,3,0) -> Kladno | D84: =VLOOKUP(B84,Pilot!A:B,2,0) -> 1989 | E84: =VLOOKUP(B84,Pilot!A:E,5,0) -> M | F84: =VLOOKUP(B84,Pilot!A:F,6,0) ->  | G84: 55 | I84: 1 | J84: =IF(COUNTIF('N PMRg 2021'!B:B,B84)=0,"-",COUNTIF('N PMRg 2021'!B:B,B84)) -> - | K84: =IF(ISERROR(VLOOKUP(B84,'N PMRg 2021'!B:G,6,0)),"-",VLOOKUP(B84,'N PMRg 2021'!B:G,6,0)) -> - | L84: =IF(COUNTIF('N PMČRj 2021'!B:B,B84)=0,"-",COUNTIF('N PMČRj 2021'!B:B,B84)) -> - | M84: =IF(ISERROR(VLOOKUP(B84,'N PMČRj 2021'!B:G,6,0)),"-",VLOOKUP(B84,'N PMČRj 2021'!B:G,6,0)) -> -
A85: 56 | B85: Miloslav Hulmak | C85: =VLOOKUP(B85,Pilot!A:C,3,0) -> Hosín | D85: =VLOOKUP(B85,Pilot!A:B,2,0) -> 1963 | E85: =VLOOKUP(B85,Pilot!A:E,5,0) -> M | F85: =VLOOKUP(B85,Pilot!A:F,6,0) ->  | G85: 56 | I85: 1 | J85: =IF(COUNTIF('N PMRg 2021'!B:B,B85)=0,"-",COUNTIF('N PMRg 2021'!B:B,B85)) -> - | K85: =IF(ISERROR(VLOOKUP(B85,'N PMRg 2021'!B:G,6,0)),"-",VLOOKUP(B85,'N PMRg 2021'!B:G,6,0)) -> - | L85: =IF(COUNTIF('N PMČRj 2021'!B:B,B85)=0,"-",COUNTIF('N PMČRj 2021'!B:B,B85)) -> - | M85: =IF(ISERROR(VLOOKUP(B85,'N PMČRj 2021'!B:G,6,0)),"-",VLOOKUP(B85,'N PMČRj 2021'!B:G,6,0)) -> -
A86: 57 | B86: Jaromir Pauer | C86: =VLOOKUP(B86,Pilot!A:C,3,0) -> Hosín | D86: =VLOOKUP(B86,Pilot!A:B,2,0) -> 1974 | E86: =VLOOKUP(B86,Pilot!A:E,5,0) -> M | F86: =VLOOKUP(B86,Pilot!A:F,6,0) ->  | G86: 57 | I86: 1 | J86: =IF(COUNTIF('N PMRg 2021'!B:B,B86)=0,"-",COUNTIF('N PMRg 2021'!B:B,B86)) -> - | K86: =IF(ISERROR(VLOOKUP(B86,'N PMRg 2021'!B:G,6,0)),"-",VLOOKUP(B86,'N PMRg 2021'!B:G,6,0)) -> - | L86: =IF(COUNTIF('N PMČRj 2021'!B:B,B86)=0,"-",COUNTIF('N PMČRj 2021'!B:B,B86)) -> - | M86: =IF(ISERROR(VLOOKUP(B86,'N PMČRj 2021'!B:G,6,0)),"-",VLOOKUP(B86,'N PMČRj 2021'!B:G,6,0)) -> -
A87: 58 | B87: Pavlina Horackova | C87: =VLOOKUP(B87,Pilot!A:C,3,0) -> Šumperk | D87: =VLOOKUP(B87,Pilot!A:B,2,0) -> 1965 | E87: =VLOOKUP(B87,Pilot!A:E,5,0) -> F | F87: =VLOOKUP(B87,Pilot!A:F,6,0) ->  | G87: 58 | I87: 1 | J87: =IF(COUNTIF('N PMRg 2021'!B:B,B87)=0,"-",COUNTIF('N PMRg 2021'!B:B,B87)) -> - | K87: =IF(ISERROR(VLOOKUP(B87,'N PMRg 2021'!B:G,6,0)),"-",VLOOKUP(B87,'N PMRg 2021'!B:G,6,0)) -> - | L87: =IF(COUNTIF('N PMČRj 2021'!B:B,B87)=0,"-",COUNTIF('N PMČRj 2021'!B:B,B87)) -> - | M87: =IF(ISERROR(VLOOKUP(B87,'N PMČRj 2021'!B:G,6,0)),"-",VLOOKUP(B87,'N PMČRj 2021'!B:G,6,0)) -> -
A88: 59 | B88: Jan Florian | C88: =VLOOKUP(B88,Pilot!A:C,3,0) -> Zbraslavice | D88: =VLOOKUP(B88,Pilot!A:B,2,0) -> 1992 | E88: =VLOOKUP(B88,Pilot!A:E,5,0) -> M | F88: =VLOOKUP(B88,Pilot!A:F,6,0) ->  | G88: 59 | I88: 1 | J88: =IF(COUNTIF('N PMRg 2021'!B:B,B88)=0,"-",COUNTIF('N PMRg 2021'!B:B,B88)) -> - | K88: =IF(ISERROR(VLOOKUP(B88,'N PMRg 2021'!B:G,6,0)),"-",VLOOKUP(B88,'N PMRg 2021'!B:G,6,0)) -> - | L88: =IF(COUNTIF('N PMČRj 2021'!B:B,B88)=0,"-",COUNTIF('N PMČRj 2021'!B:B,B88)) -> - | M88: =IF(ISERROR(VLOOKUP(B88,'N PMČRj 2021'!B:G,6,0)),"-",VLOOKUP(B88,'N PMČRj 2021'!B:G,6,0)) -> -
A89: 60 | B89: Jiri Holcman | C89: =VLOOKUP(B89,Pilot!A:C,3,0) -> Hosín | D89: =VLOOKUP(B89,Pilot!A:B,2,0) -> 1976 | E89: =VLOOKUP(B89,Pilot!A:E,5,0) -> M | F89: =VLOOKUP(B89,Pilot!A:F,6,0) ->  | G89: 60 | I89: 1 | J89: =IF(COUNTIF('N PMRg 2021'!B:B,B89)=0,"-",COUNTIF('N PMRg 2021'!B:B,B89)) -> - | K89: =IF(ISERROR(VLOOKUP(B89,'N PMRg 2021'!B:G,6,0)),"-",VLOOKUP(B89,'N PMRg 2021'!B:G,6,0)) -> - | L89: =IF(COUNTIF('N PMČRj 2021'!B:B,B89)=0,"-",COUNTIF('N PMČRj 2021'!B:B,B89)) -> - | M89: =IF(ISERROR(VLOOKUP(B89,'N PMČRj 2021'!B:G,6,0)),"-",VLOOKUP(B89,'N PMČRj 2021'!B:G,6,0)) -> -
A90: 61 | B90: Petr Rozhon | C90: =VLOOKUP(B90,Pilot!A:C,3,0) -> Hosín | D90: =VLOOKUP(B90,Pilot!A:B,2,0) -> 1972 | E90: =VLOOKUP(B90,Pilot!A:E,5,0) -> M | F90: =VLOOKUP(B90,Pilot!A:F,6,0) ->  | G90: 61 | I90: 1 | J90: =IF(COUNTIF('N PMRg 2021'!B:B,B90)=0,"-",COUNTIF('N PMRg 2021'!B:B,B90)) -> - | K90: =IF(ISERROR(VLOOKUP(B90,'N PMRg 2021'!B:G,6,0)),"-",VLOOKUP(B90,'N PMRg 2021'!B:G,6,0)) -> - | L90: =IF(COUNTIF('N PMČRj 2021'!B:B,B90)=0,"-",COUNTIF('N PMČRj 2021'!B:B,B90)) -> - | M90: =IF(ISERROR(VLOOKUP(B90,'N PMČRj 2021'!B:G,6,0)),"-",VLOOKUP(B90,'N PMČRj 2021'!B:G,6,0)) -> -
A91: 62 | B91: Pavel Koudelka | C91: =VLOOKUP(B91,Pilot!A:C,3,0) -> Křižanov | D91: =VLOOKUP(B91,Pilot!A:B,2,0) -> 1973 | E91: =VLOOKUP(B91,Pilot!A:E,5,0) -> M | F91: =VLOOKUP(B91,Pilot!A:F,6,0) ->  | G91: 62 | I91: 1 | J91: =IF(COUNTIF('N PMRg 2021'!B:B,B91)=0,"-",COUNTIF('N PMRg 2021'!B:B,B91)) -> - | K91: =IF(ISERROR(VLOOKUP(B91,'N PMRg 2021'!B:G,6,0)),"-",VLOOKUP(B91,'N PMRg 2021'!B:G,6,0)) -> - | L91: =IF(COUNTIF('N PMČRj 2021'!B:B,B91)=0,"-",COUNTIF('N PMČRj 2021'!B:B,B91)) -> - | M91: =IF(ISERROR(VLOOKUP(B91,'N PMČRj 2021'!B:G,6,0)),"-",VLOOKUP(B91,'N PMČRj 2021'!B:G,6,0)) -> -
A92: 63 | B92: Michal Vranek | C92: =VLOOKUP(B92,Pilot!A:C,3,0) -> Hosín | D92: =VLOOKUP(B92,Pilot!A:B,2,0) -> 1993 | E92: =VLOOKUP(B92,Pilot!A:E,5,0) -> M | F92: =VLOOKUP(B92,Pilot!A:F,6,0) ->  | G92: 63 | I92: 1 | J92: =IF(COUNTIF('N PMRg 2021'!B:B,B92)=0,"-",COUNTIF('N PMRg 2021'!B:B,B92)) -> - | K92: =IF(ISERROR(VLOOKUP(B92,'N PMRg 2021'!B:G,6,0)),"-",VLOOKUP(B92,'N PMRg 2021'!B:G,6,0)) -> - | L92: =IF(COUNTIF('N PMČRj 2021'!B:B,B92)=0,"-",COUNTIF('N PMČRj 2021'!B:B,B92)) -> - | M92: =IF(ISERROR(VLOOKUP(B92,'N PMČRj 2021'!B:G,6,0)),"-",VLOOKUP(B92,'N PMČRj 2021'!B:G,6,0)) -> -
A93: 64 | B93: Jan Beran | C93: =VLOOKUP(B93,Pilot!A:C,3,0) -> Kladno | D93: =VLOOKUP(B93,Pilot!A:B,2,0) -> 1999 | E93: =VLOOKUP(B93,Pilot!A:E,5,0) -> M | F93: =VLOOKUP(B93,Pilot!A:F,6,0) -> Junior v roce 2021 | G93: 64 | I93: 1 | J93: =IF(COUNTIF('N PMRg 2021'!B:B,B93)=0,"-",COUNTIF('N PMRg 2021'!B:B,B93)) -> - | K93: =IF(ISERROR(VLOOKUP(B93,'N PMRg 2021'!B:G,6,0)),"-",VLOOKUP(B93,'N PMRg 2021'!B:G,6,0)) -> - | L93: =IF(COUNTIF('N PMČRj 2021'!B:B,B93)=0,"-",COUNTIF('N PMČRj 2021'!B:B,B93)) -> - | M93: =IF(ISERROR(VLOOKUP(B93,'N PMČRj 2021'!B:G,6,0)),"-",VLOOKUP(B93,'N PMČRj 2021'!B:G,6,0)) -> -
A94: 65 | B94: Jaroslav Potmesil | C94: =VLOOKUP(B94,Pilot!A:C,3,0) -> Zbraslavice | D94: =VLOOKUP(B94,Pilot!A:B,2,0) -> 1964 | E94: =VLOOKUP(B94,Pilot!A:E,5,0) -> M | F94: =VLOOKUP(B94,Pilot!A:F,6,0) ->  | G94: 65 | I94: 1 | J94: =IF(COUNTIF('N PMRg 2021'!B:B,B94)=0,"-",COUNTIF('N PMRg 2021'!B:B,B94)) -> - | K94: =IF(ISERROR(VLOOKUP(B94,'N PMRg 2021'!B:G,6,0)),"-",VLOOKUP(B94,'N PMRg 2021'!B:G,6,0)) -> - | L94: =IF(COUNTIF('N PMČRj 2021'!B:B,B94)=0,"-",COUNTIF('N PMČRj 2021'!B:B,B94)) -> - | M94: =IF(ISERROR(VLOOKUP(B94,'N PMČRj 2021'!B:G,6,0)),"-",VLOOKUP(B94,'N PMČRj 2021'!B:G,6,0)) -> -
A95: 66 | B95: Martin Tison | C95: =VLOOKUP(B95,Pilot!A:C,3,0) -> Hosín | D95: =VLOOKUP(B95,Pilot!A:B,2,0) -> 2000 | E95: =VLOOKUP(B95,Pilot!A:E,5,0) -> M | F95: =VLOOKUP(B95,Pilot!A:F,6,0) -> Junior v roce 2021 | G95: 66 | I95: 1 | J95: =IF(COUNTIF('N PMRg 2021'!B:B,B95)=0,"-",COUNTIF('N PMRg 2021'!B:B,B95)) -> - | K95: =IF(ISERROR(VLOOKUP(B95,'N PMRg 2021'!B:G,6,0)),"-",VLOOKUP(B95,'N PMRg 2021'!B:G,6,0)) -> - | L95: =IF(COUNTIF('N PMČRj 2021'!B:B,B95)=0,"-",COUNTIF('N PMČRj 2021'!B:B,B95)) -> - | M95: =IF(ISERROR(VLOOKUP(B95,'N PMČRj 2021'!B:G,6,0)),"-",VLOOKUP(B95,'N PMČRj 2021'!B:G,6,0)) -> -
A96: 67 | B96: Petr Velek | C96: =VLOOKUP(B96,Pilot!A:C,3,0) -> GAC Benešov | D96: =VLOOKUP(B96,Pilot!A:B,2,0) -> 1975 | E96: =VLOOKUP(B96,Pilot!A:E,5,0) -> M | F96: =VLOOKUP(B96,Pilot!A:F,6,0) ->  | G96: =A96 -> 67 | I96: 1 | J96: =IF(COUNTIF('N PMRg 2021'!B:B,B96)=0,"-",COUNTIF('N PMRg 2021'!B:B,B96)) -> - | K96: =IF(ISERROR(VLOOKUP(B96,'N PMRg 2021'!B:G,6,0)),"-",VLOOKUP(B96,'N PMRg 2021'!B:G,6,0)) -> - | L96: =IF(COUNTIF('N PMČRj 2021'!B:B,B96)=0,"-",COUNTIF('N PMČRj 2021'!B:B,B96)) -> - | M96: =IF(ISERROR(VLOOKUP(B96,'N PMČRj 2021'!B:G,6,0)),"-",VLOOKUP(B96,'N PMČRj 2021'!B:G,6,0)) -> -
A97: 68 | B97: Lukas Plocek | C97: =VLOOKUP(B97,Pilot!A:C,3,0) -> Mladá Boleslav | D97: =VLOOKUP(B97,Pilot!A:B,2,0) -> 1990 | E97: =VLOOKUP(B97,Pilot!A:E,5,0) -> M | F97: =VLOOKUP(B97,Pilot!A:F,6,0) ->  | G97: 68 | I97: 1 | J97: =IF(COUNTIF('N PMRg 2021'!B:B,B97)=0,"-",COUNTIF('N PMRg 2021'!B:B,B97)) -> - | K97: =IF(ISERROR(VLOOKUP(B97,'N PMRg 2021'!B:G,6,0)),"-",VLOOKUP(B97,'N PMRg 2021'!B:G,6,0)) -> - | L97: =IF(COUNTIF('N PMČRj 2021'!B:B,B97)=0,"-",COUNTIF('N PMČRj 2021'!B:B,B97)) -> - | M97: =IF(ISERROR(VLOOKUP(B97,'N PMČRj 2021'!B:G,6,0)),"-",VLOOKUP(B97,'N PMČRj 2021'!B:G,6,0)) -> -
A98: 69 | B98: Radek Zima 78 | C98: =VLOOKUP(B98,Pilot!A:C,3,0) -> Hodkovice | D98: =VLOOKUP(B98,Pilot!A:B,2,0) -> 1978 | E98: =VLOOKUP(B98,Pilot!A:E,5,0) -> M | F98: =VLOOKUP(B98,Pilot!A:F,6,0) ->  | G98: =A98 -> 69 | I98: 1 | J98: =IF(COUNTIF('N PMRg 2021'!B:B,B98)=0,"-",COUNTIF('N PMRg 2021'!B:B,B98)) -> - | K98: =IF(ISERROR(VLOOKUP(B98,'N PMRg 2021'!B:G,6,0)),"-",VLOOKUP(B98,'N PMRg 2021'!B:G,6,0)) -> - | L98: =IF(COUNTIF('N PMČRj 2021'!B:B,B98)=0,"-",COUNTIF('N PMČRj 2021'!B:B,B98)) -> - | M98: =IF(ISERROR(VLOOKUP(B98,'N PMČRj 2021'!B:G,6,0)),"-",VLOOKUP(B98,'N PMČRj 2021'!B:G,6,0)) -> -
A99: 70 | B99: Vaclav Zak | C99: =VLOOKUP(B99,Pilot!A:C,3,0) -> GAC Benešov | D99: =VLOOKUP(B99,Pilot!A:B,2,0) -> 1962 | E99: =VLOOKUP(B99,Pilot!A:E,5,0) -> M | F99: =VLOOKUP(B99,Pilot!A:F,6,0) ->  | G99: 70 | I99: 1 | J99: =IF(COUNTIF('N PMRg 2021'!B:B,B99)=0,"-",COUNTIF('N PMRg 2021'!B:B,B99)) -> - | K99: =IF(ISERROR(VLOOKUP(B99,'N PMRg 2021'!B:G,6,0)),"-",VLOOKUP(B99,'N PMRg 2021'!B:G,6,0)) -> - | L99: =IF(COUNTIF('N PMČRj 2021'!B:B,B99)=0,"-",COUNTIF('N PMČRj 2021'!B:B,B99)) -> - | M99: =IF(ISERROR(VLOOKUP(B99,'N PMČRj 2021'!B:G,6,0)),"-",VLOOKUP(B99,'N PMČRj 2021'!B:G,6,0)) -> -
A100: 71 | B100: Jiri Krofta | C100: =VLOOKUP(B100,Pilot!A:C,3,0) -> Hosín | D100: =VLOOKUP(B100,Pilot!A:B,2,0) -> 1988 | E100: =VLOOKUP(B100,Pilot!A:E,5,0) -> M | F100: =VLOOKUP(B100,Pilot!A:F,6,0) ->  | G100: 71 | I100: 1 | J100: =IF(COUNTIF('N PMRg 2021'!B:B,B100)=0,"-",COUNTIF('N PMRg 2021'!B:B,B100)) -> - | K100: =IF(ISERROR(VLOOKUP(B100,'N PMRg 2021'!B:G,6,0)),"-",VLOOKUP(B100,'N PMRg 2021'!B:G,6,0)) -> - | L100: =IF(COUNTIF('N PMČRj 2021'!B:B,B100)=0,"-",COUNTIF('N PMČRj 2021'!B:B,B100)) -> - | M100: =IF(ISERROR(VLOOKUP(B100,'N PMČRj 2021'!B:G,6,0)),"-",VLOOKUP(B100,'N PMČRj 2021'!B:G,6,0)) -> -
A101: 72 | B101: Frantisek Suna | C101: =VLOOKUP(B101,Pilot!A:C,3,0) -> Hosín | D101: =VLOOKUP(B101,Pilot!A:B,2,0) -> 1983 | E101: =VLOOKUP(B101,Pilot!A:E,5,0) -> M | F101: =VLOOKUP(B101,Pilot!A:F,6,0) ->  | G101: 72 | I101: 1 | J101: =IF(COUNTIF('N PMRg 2021'!B:B,B101)=0,"-",COUNTIF('N PMRg 2021'!B:B,B101)) -> - | K101: =IF(ISERROR(VLOOKUP(B101,'N PMRg 2021'!B:G,6,0)),"-",VLOOKUP(B101,'N PMRg 2021'!B:G,6,0)) -> - | L101: =IF(COUNTIF('N PMČRj 2021'!B:B,B101)=0,"-",COUNTIF('N PMČRj 2021'!B:B,B101)) -> - | M101: =IF(ISERROR(VLOOKUP(B101,'N PMČRj 2021'!B:G,6,0)),"-",VLOOKUP(B101,'N PMČRj 2021'!B:G,6,0)) -> -
A102: 73 | B102: Jan Kohout | C102: =VLOOKUP(B102,Pilot!A:C,3,0) -> Žamberk | D102: =VLOOKUP(B102,Pilot!A:B,2,0) -> 1970 | E102: =VLOOKUP(B102,Pilot!A:E,5,0) -> M | F102: =VLOOKUP(B102,Pilot!A:F,6,0) ->  | G102: 73 | I102: 1 | J102: =IF(COUNTIF('N PMRg 2021'!B:B,B102)=0,"-",COUNTIF('N PMRg 2021'!B:B,B102)) -> - | K102: =IF(ISERROR(VLOOKUP(B102,'N PMRg 2021'!B:G,6,0)),"-",VLOOKUP(B102,'N PMRg 2021'!B:G,6,0)) -> - | L102: =IF(COUNTIF('N PMČRj 2021'!B:B,B102)=0,"-",COUNTIF('N PMČRj 2021'!B:B,B102)) -> - | M102: =IF(ISERROR(VLOOKUP(B102,'N PMČRj 2021'!B:G,6,0)),"-",VLOOKUP(B102,'N PMČRj 2021'!B:G,6,0)) -> -
A103: 74 | B103: Petr Sochor | C103: =VLOOKUP(B103,Pilot!A:C,3,0) -> Hosín | D103: =VLOOKUP(B103,Pilot!A:B,2,0) -> 1986 | E103: =VLOOKUP(B103,Pilot!A:E,5,0) -> M | F103: =VLOOKUP(B103,Pilot!A:F,6,0) ->  | G103: 74 | I103: 1 | J103: =IF(COUNTIF('N PMRg 2021'!B:B,B103)=0,"-",COUNTIF('N PMRg 2021'!B:B,B103)) -> - | K103: =IF(ISERROR(VLOOKUP(B103,'N PMRg 2021'!B:G,6,0)),"-",VLOOKUP(B103,'N PMRg 2021'!B:G,6,0)) -> - | L103: =IF(COUNTIF('N PMČRj 2021'!B:B,B103)=0,"-",COUNTIF('N PMČRj 2021'!B:B,B103)) -> - | M103: =IF(ISERROR(VLOOKUP(B103,'N PMČRj 2021'!B:G,6,0)),"-",VLOOKUP(B103,'N PMČRj 2021'!B:G,6,0)) -> -
A104: 75 | B104: Radoslav Pur | C104: =VLOOKUP(B104,Pilot!A:C,3,0) -> Hosín | D104: =VLOOKUP(B104,Pilot!A:B,2,0) -> 1973 | E104: =VLOOKUP(B104,Pilot!A:E,5,0) -> M | F104: =VLOOKUP(B104,Pilot!A:F,6,0) ->  | G104: 75 | I104: 1 | J104: =IF(COUNTIF('N PMRg 2021'!B:B,B104)=0,"-",COUNTIF('N PMRg 2021'!B:B,B104)) -> - | K104: =IF(ISERROR(VLOOKUP(B104,'N PMRg 2021'!B:G,6,0)),"-",VLOOKUP(B104,'N PMRg 2021'!B:G,6,0)) -> - | L104: =IF(COUNTIF('N PMČRj 2021'!B:B,B104)=0,"-",COUNTIF('N PMČRj 2021'!B:B,B104)) -> - | M104: =IF(ISERROR(VLOOKUP(B104,'N PMČRj 2021'!B:G,6,0)),"-",VLOOKUP(B104,'N PMČRj 2021'!B:G,6,0)) -> -
A105: 6.6.6.8. | B105: ostatní soutěžící z posledního platného Všeobecného žebříku v pořadí podle umístění, do naplnění celkového počtu nominovaných dle 6.6.5. (+ 10 náhradníků).
A106: =A104+1 -> 76 | B106: Lubomir Motl | C106: =VLOOKUP(B106,Pilot!A:C,3,0) -> Kyjov | D106: =VLOOKUP(B106,Pilot!A:B,2,0) -> 1959 | E106: =VLOOKUP(B106,Pilot!A:E,5,0) -> M | F106: =VLOOKUP(B106,Pilot!A:F,6,0) ->  | G106: 76 | I106: =COUNTIF(B:B,B106) -> 1 | J106: =IF(COUNTIF('N PMRg 2021'!B:B,B106)=0,"-",COUNTIF('N PMRg 2021'!B:B,B106)) -> - | K106: =IF(ISERROR(VLOOKUP(B106,'N PMRg 2021'!B:G,6,0)),"-",VLOOKUP(B106,'N PMRg 2021'!B:G,6,0)) -> - | L106: =IF(COUNTIF('N PMČRj 2021'!B:B,B106)=0,"-",COUNTIF('N PMČRj 2021'!B:B,B106)) -> - | M106: =IF(ISERROR(VLOOKUP(B106,'N PMČRj 2021'!B:G,6,0)),"-",VLOOKUP(B106,'N PMČRj 2021'!B:G,6,0)) -> -
A107: 77 | B107: Ivan Harasta 65 | C107: =VLOOKUP(B107,Pilot!A:C,3,0) -> Toužim | D107: =VLOOKUP(B107,Pilot!A:B,2,0) -> 1965 | E107: =VLOOKUP(B107,Pilot!A:E,5,0) -> M | F107: =VLOOKUP(B107,Pilot!A:F,6,0) ->  | G107: =A107 -> 77 | I107: 1 | J107: =IF(COUNTIF('N PMRg 2021'!B:B,B107)=0,"-",COUNTIF('N PMRg 2021'!B:B,B107)) -> - | K107: =IF(ISERROR(VLOOKUP(B107,'N PMRg 2021'!B:G,6,0)),"-",VLOOKUP(B107,'N PMRg 2021'!B:G,6,0)) -> - | L107: =IF(COUNTIF('N PMČRj 2021'!B:B,B107)=0,"-",COUNTIF('N PMČRj 2021'!B:B,B107)) -> - | M107: =IF(ISERROR(VLOOKUP(B107,'N PMČRj 2021'!B:G,6,0)),"-",VLOOKUP(B107,'N PMČRj 2021'!B:G,6,0)) -> -
A108: 78 | B108: Jan Boruvka | C108: =VLOOKUP(B108,Pilot!A:C,3,0) -> Jičín | D108: =VLOOKUP(B108,Pilot!A:B,2,0) -> 1984 | E108: =VLOOKUP(B108,Pilot!A:E,5,0) -> M | F108: =VLOOKUP(B108,Pilot!A:F,6,0) ->  | G108: 78 | I108: 1 | J108: =IF(COUNTIF('N PMRg 2021'!B:B,B108)=0,"-",COUNTIF('N PMRg 2021'!B:B,B108)) -> - | K108: =IF(ISERROR(VLOOKUP(B108,'N PMRg 2021'!B:G,6,0)),"-",VLOOKUP(B108,'N PMRg 2021'!B:G,6,0)) -> - | L108: =IF(COUNTIF('N PMČRj 2021'!B:B,B108)=0,"-",COUNTIF('N PMČRj 2021'!B:B,B108)) -> - | M108: =IF(ISERROR(VLOOKUP(B108,'N PMČRj 2021'!B:G,6,0)),"-",VLOOKUP(B108,'N PMČRj 2021'!B:G,6,0)) -> -
A109: 79 | B109: Frantisek Vancura | C109: =VLOOKUP(B109,Pilot!A:C,3,0) -> Hranice | D109: =VLOOKUP(B109,Pilot!A:B,2,0) -> 1966 | E109: =VLOOKUP(B109,Pilot!A:E,5,0) -> M | F109: =VLOOKUP(B109,Pilot!A:F,6,0) ->  | G109: 79 | I109: 1 | J109: =IF(COUNTIF('N PMRg 2021'!B:B,B109)=0,"-",COUNTIF('N PMRg 2021'!B:B,B109)) -> - | K109: =IF(ISERROR(VLOOKUP(B109,'N PMRg 2021'!B:G,6,0)),"-",VLOOKUP(B109,'N PMRg 2021'!B:G,6,0)) -> - | L109: =IF(COUNTIF('N PMČRj 2021'!B:B,B109)=0,"-",COUNTIF('N PMČRj 2021'!B:B,B109)) -> - | M109: =IF(ISERROR(VLOOKUP(B109,'N PMČRj 2021'!B:G,6,0)),"-",VLOOKUP(B109,'N PMČRj 2021'!B:G,6,0)) -> -
A110: 80 | B110: Marek Blatak | C110: =VLOOKUP(B110,Pilot!A:C,3,0) -> Šumperk | D110: =VLOOKUP(B110,Pilot!A:B,2,0) -> 1969 | E110: =VLOOKUP(B110,Pilot!A:E,5,0) -> M | F110: =VLOOKUP(B110,Pilot!A:F,6,0) ->  | G110: =A110 -> 80 | I110: 1 | J110: =IF(COUNTIF('N PMRg 2021'!B:B,B110)=0,"-",COUNTIF('N PMRg 2021'!B:B,B110)) -> - | K110: =IF(ISERROR(VLOOKUP(B110,'N PMRg 2021'!B:G,6,0)),"-",VLOOKUP(B110,'N PMRg 2021'!B:G,6,0)) -> - | L110: =IF(COUNTIF('N PMČRj 2021'!B:B,B110)=0,"-",COUNTIF('N PMČRj 2021'!B:B,B110)) -> - | M110: =IF(ISERROR(VLOOKUP(B110,'N PMČRj 2021'!B:G,6,0)),"-",VLOOKUP(B110,'N PMČRj 2021'!B:G,6,0)) -> -
A111: N1 | B111: Lukas Koukal | C111: =VLOOKUP(B111,Pilot!A:C,3,0) -> Letkov | D111: =VLOOKUP(B111,Pilot!A:B,2,0) -> 1991 | E111: =VLOOKUP(B111,Pilot!A:E,5,0) -> M | F111: =VLOOKUP(B111,Pilot!A:F,6,0) ->  | G111: =A111 -> N1 | I111: 1 | J111: =IF(COUNTIF('N PMRg 2021'!B:B,B111)=0,"-",COUNTIF('N PMRg 2021'!B:B,B111)) -> - | K111: =IF(ISERROR(VLOOKUP(B111,'N PMRg 2021'!B:G,6,0)),"-",VLOOKUP(B111,'N PMRg 2021'!B:G,6,0)) -> - | L111: =IF(COUNTIF('N PMČRj 2021'!B:B,B111)=0,"-",COUNTIF('N PMČRj 2021'!B:B,B111)) -> - | M111: =IF(ISERROR(VLOOKUP(B111,'N PMČRj 2021'!B:G,6,0)),"-",VLOOKUP(B111,'N PMČRj 2021'!B:G,6,0)) -> -
A112: N2 | B112: Vojtech Novotny | C112: =VLOOKUP(B112,Pilot!A:C,3,0) -> Kralupy | D112: =VLOOKUP(B112,Pilot!A:B,2,0) -> 1992 | E112: =VLOOKUP(B112,Pilot!A:E,5,0) -> M | F112: =VLOOKUP(B112,Pilot!A:F,6,0) ->  | G112: N2 | I112: 1 | J112: =IF(COUNTIF('N PMRg 2021'!B:B,B112)=0,"-",COUNTIF('N PMRg 2021'!B:B,B112)) -> - | K112: =IF(ISERROR(VLOOKUP(B112,'N PMRg 2021'!B:G,6,0)),"-",VLOOKUP(B112,'N PMRg 2021'!B:G,6,0)) -> - | L112: =IF(COUNTIF('N PMČRj 2021'!B:B,B112)=0,"-",COUNTIF('N PMČRj 2021'!B:B,B112)) -> - | M112: =IF(ISERROR(VLOOKUP(B112,'N PMČRj 2021'!B:G,6,0)),"-",VLOOKUP(B112,'N PMČRj 2021'!B:G,6,0)) -> -
A113: N3 | B113: Jindrich Svorc | C113: =VLOOKUP(B113,Pilot!A:C,3,0) -> Letňany | D113: =VLOOKUP(B113,Pilot!A:B,2,0) -> 1978 | E113: =VLOOKUP(B113,Pilot!A:E,5,0) -> M | F113: =VLOOKUP(B113,Pilot!A:F,6,0) ->  | G113: N3 | I113: 1 | J113: =IF(COUNTIF('N PMRg 2021'!B:B,B113)=0,"-",COUNTIF('N PMRg 2021'!B:B,B113)) -> - | K113: =IF(ISERROR(VLOOKUP(B113,'N PMRg 2021'!B:G,6,0)),"-",VLOOKUP(B113,'N PMRg 2021'!B:G,6,0)) -> - | L113: =IF(COUNTIF('N PMČRj 2021'!B:B,B113)=0,"-",COUNTIF('N PMČRj 2021'!B:B,B113)) -> - | M113: =IF(ISERROR(VLOOKUP(B113,'N PMČRj 2021'!B:G,6,0)),"-",VLOOKUP(B113,'N PMČRj 2021'!B:G,6,0)) -> -
A114: N4 | B114: Zdenek Balcarek | C114: =VLOOKUP(B114,Pilot!A:C,3,0) -> Kroměříž | D114: =VLOOKUP(B114,Pilot!A:B,2,0) -> 1967 | E114: =VLOOKUP(B114,Pilot!A:E,5,0) -> M | F114: =VLOOKUP(B114,Pilot!A:F,6,0) ->  | G114: N4 | I114: 1 | J114: =IF(COUNTIF('N PMRg 2021'!B:B,B114)=0,"-",COUNTIF('N PMRg 2021'!B:B,B114)) -> 1 | K114: =IF(ISERROR(VLOOKUP(B114,'N PMRg 2021'!B:G,6,0)),"-",VLOOKUP(B114,'N PMRg 2021'!B:G,6,0)) -> 2 | L114: =IF(COUNTIF('N PMČRj 2021'!B:B,B114)=0,"-",COUNTIF('N PMČRj 2021'!B:B,B114)) -> - | M114: =IF(ISERROR(VLOOKUP(B114,'N PMČRj 2021'!B:G,6,0)),"-",VLOOKUP(B114,'N PMČRj 2021'!B:G,6,0)) -> -
A115: N5 | B115: Karel Benisek 76 | C115: =VLOOKUP(B115,Pilot!A:C,3,0) -> Toužim | D115: =VLOOKUP(B115,Pilot!A:B,2,0) -> 1976 | E115: =VLOOKUP(B115,Pilot!A:E,5,0) -> M | F115: =VLOOKUP(B115,Pilot!A:F,6,0) ->  | G115: N5 | I115: 1 | J115: =IF(COUNTIF('N PMRg 2021'!B:B,B115)=0,"-",COUNTIF('N PMRg 2021'!B:B,B115)) -> - | K115: =IF(ISERROR(VLOOKUP(B115,'N PMRg 2021'!B:G,6,0)),"-",VLOOKUP(B115,'N PMRg 2021'!B:G,6,0)) -> - | L115: =IF(COUNTIF('N PMČRj 2021'!B:B,B115)=0,"-",COUNTIF('N PMČRj 2021'!B:B,B115)) -> - | M115: =IF(ISERROR(VLOOKUP(B115,'N PMČRj 2021'!B:G,6,0)),"-",VLOOKUP(B115,'N PMČRj 2021'!B:G,6,0)) -> -
A116: N6 | B116: Petr Jiranek 91 | C116: =VLOOKUP(B116,Pilot!A:C,3,0) -> Toužim | D116: =VLOOKUP(B116,Pilot!A:B,2,0) -> 1991 | E116: =VLOOKUP(B116,Pilot!A:E,5,0) -> M | F116: =VLOOKUP(B116,Pilot!A:F,6,0) ->  | G116: N6 | I116: 1 | J116: =IF(COUNTIF('N PMRg 2021'!B:B,B116)=0,"-",COUNTIF('N PMRg 2021'!B:B,B116)) -> - | K116: =IF(ISERROR(VLOOKUP(B116,'N PMRg 2021'!B:G,6,0)),"-",VLOOKUP(B116,'N PMRg 2021'!B:G,6,0)) -> - | L116: =IF(COUNTIF('N PMČRj 2021'!B:B,B116)=0,"-",COUNTIF('N PMČRj 2021'!B:B,B116)) -> - | M116: =IF(ISERROR(VLOOKUP(B116,'N PMČRj 2021'!B:G,6,0)),"-",VLOOKUP(B116,'N PMČRj 2021'!B:G,6,0)) -> -
A117: N7 | B117: Petr Panek | C117: =VLOOKUP(B117,Pilot!A:C,3,0) -> Dvůr Králové | D117: =VLOOKUP(B117,Pilot!A:B,2,0) -> 1975 | E117: =VLOOKUP(B117,Pilot!A:E,5,0) -> M | F117: =VLOOKUP(B117,Pilot!A:F,6,0) ->  | G117: N7 | I117: 1 | J117: =IF(COUNTIF('N PMRg 2021'!B:B,B117)=0,"-",COUNTIF('N PMRg 2021'!B:B,B117)) -> 1 | K117: =IF(ISERROR(VLOOKUP(B117,'N PMRg 2021'!B:G,6,0)),"-",VLOOKUP(B117,'N PMRg 2021'!B:G,6,0)) -> 9 | L117: =IF(COUNTIF('N PMČRj 2021'!B:B,B117)=0,"-",COUNTIF('N PMČRj 2021'!B:B,B117)) -> - | M117: =IF(ISERROR(VLOOKUP(B117,'N PMČRj 2021'!B:G,6,0)),"-",VLOOKUP(B117,'N PMČRj 2021'!B:G,6,0)) -> -
A118: N8 | B118: Zdenek Boruvka 54 | C118: =VLOOKUP(B118,Pilot!A:C,3,0) -> Jičín | D118: =VLOOKUP(B118,Pilot!A:B,2,0) -> 1954 | E118: =VLOOKUP(B118,Pilot!A:E,5,0) -> M | F118: =VLOOKUP(B118,Pilot!A:F,6,0) ->  | G118: N8 | I118: 1 | J118: =IF(COUNTIF('N PMRg 2021'!B:B,B118)=0,"-",COUNTIF('N PMRg 2021'!B:B,B118)) -> 1 | K118: =IF(ISERROR(VLOOKUP(B118,'N PMRg 2021'!B:G,6,0)),"-",VLOOKUP(B118,'N PMRg 2021'!B:G,6,0)) -> 7 | L118: =IF(COUNTIF('N PMČRj 2021'!B:B,B118)=0,"-",COUNTIF('N PMČRj 2021'!B:B,B118)) -> - | M118: =IF(ISERROR(VLOOKUP(B118,'N PMČRj 2021'!B:G,6,0)),"-",VLOOKUP(B118,'N PMČRj 2021'!B:G,6,0)) -> -
A119: N9 | B119: Martin Urner | C119: =VLOOKUP(B119,Pilot!A:C,3,0) -> Letňany | D119: =VLOOKUP(B119,Pilot!A:B,2,0) -> 1974 | E119: =VLOOKUP(B119,Pilot!A:E,5,0) -> M | F119: =VLOOKUP(B119,Pilot!A:F,6,0) ->  | G119: N9 | I119: 1 | J119: =IF(COUNTIF('N PMRg 2021'!B:B,B119)=0,"-",COUNTIF('N PMRg 2021'!B:B,B119)) -> - | K119: =IF(ISERROR(VLOOKUP(B119,'N PMRg 2021'!B:G,6,0)),"-",VLOOKUP(B119,'N PMRg 2021'!B:G,6,0)) -> - | L119: =IF(COUNTIF('N PMČRj 2021'!B:B,B119)=0,"-",COUNTIF('N PMČRj 2021'!B:B,B119)) -> - | M119: =IF(ISERROR(VLOOKUP(B119,'N PMČRj 2021'!B:G,6,0)),"-",VLOOKUP(B119,'N PMČRj 2021'!B:G,6,0)) -> -
A120: N10 | B120: Marek Pechanec | C120: =VLOOKUP(B120,Pilot!A:C,3,0) -> Luhačovice | D120: =VLOOKUP(B120,Pilot!A:B,2,0) -> 1970 | E120: =VLOOKUP(B120,Pilot!A:E,5,0) -> M | F120: =VLOOKUP(B120,Pilot!A:F,6,0) ->  | G120: N10 | I120: 1 | J120: =IF(COUNTIF('N PMRg 2021'!B:B,B120)=0,"-",COUNTIF('N PMRg 2021'!B:B,B120)) -> - | K120: =IF(ISERROR(VLOOKUP(B120,'N PMRg 2021'!B:G,6,0)),"-",VLOOKUP(B120,'N PMRg 2021'!B:G,6,0)) -> - | L120: =IF(COUNTIF('N PMČRj 2021'!B:B,B120)=0,"-",COUNTIF('N PMČRj 2021'!B:B,B120)) -> - | M120: =IF(ISERROR(VLOOKUP(B120,'N PMČRj 2021'!B:G,6,0)),"-",VLOOKUP(B120,'N PMČRj 2021'!B:G,6,0)) -> -
A121: 6.6.7. | B121: Nominace zahraničních účastníků
B122: PMČR se mohou zúčastnit zahraniční účastníci pouze v případě, že nebude omezen počet řádně nominovaných soutěžících z ČR a soutěžící splňuje podmínky odstavce 6.1. a 6.6.1. SŘ.
B123: V případě pořádání společného PMČR s plachtařským mistrovstvím některého ze suverénních států může PK stanovit zvláštní pravidla pro nominaci.
A124: 6.6.8. | B124: Volná nominace
B125: Volnou nominaci je možné využít pouze v tom případě, že pilot na PMČR nepostupuje podle žádného z bodů odstavce 6.6.6.
B126: Umožňuje-li to kapacita pořádajícího letiště, mohou se z členů AeČR mimo řádně nominovaných do soutěže přihlásit také piloti/pilotky, kteří se:
A127: 6.6.8.1. | B127: v posledních 3 letech před rokem konání soutěže zúčastnili MS, ME, WAG nebo Světové Grand Prix jako velitel kluzáku,
A128: 6.6.8.2. | B128: umístili v aktuálním Všeobecném Žebříku do 100. místa,
A129: 6.6.8.3. | B129: Při větším počtu přihlášek, než je kapacita letiště Pořadatele, rozhoduje o přijetí do soutěže pořadí soutěžícího v aktuálním Všeobecném Žebříku s podmínkou zaplacení vkladu v termínu stanoveném Pořadatelem.
A132: Schváleno Plachtařskou komisí AeČR dne xx.yy.2020 v ZZZZ

Sheet N PMRg 2021
B1: Nominace na PMRg 2021 | H1: Kontrola: | I1: Počet | J1: Počet | K1: Nominace | L1: Počet | M1: Nominace | N1: M: | O1: F: | P1: M+F:
A2: No | B2: Jméno | C2: Aeroklub | D2: Rok narození | E2: M/F | F2: Junior | G2: No | I2: PMRg | J2: PMČR | K2: PMČR | L2: PMČRj | M2: PMČRj | N2: =COUNTIF(E:E,"M") -> 14 | O2: =COUNTIF(E:E,"F") -> 2 | P2: =N2+O2 -> 16 | Q2: S náhradníky
A3: 6.8.5. | B3: Nominace na PMRg (dle SŘ ZM9) | M3: Celkem řádně nominováno: | N3: =N2-COUNTIF(E75:E83,"M") -> 14 | O3: =O2-COUNTIF(E80:E83,"F") -> 2 | P3: =N3+O3 -> 16 | Q3: Bez náhradníků
B4: Na PMRg nominuje PK minimálně 60 pilotů/pilotek a příslušný počet náhradníků pro stanovená nominační kritéria.
B5: Na PMRg jsou nominováni:
A6: 6.8.5.1. | B6: všichni soutěžící z posledního platného PMČR, kteří nepostoupili na PMČR v roce konání PMRg (bez náhradníků)
B7: PMČR 2020 - Tábor - Klub
A8: 1 | B8: Jan Hruska | C8: =VLOOKUP(B8,Pilot!A:C,3,0) -> Tábor | D8: =VLOOKUP(B8,Pilot!A:C,2,0) -> 1988 | E8: =VLOOKUP(B8,Pilot!A:E,5,0) -> M | F8: =VLOOKUP(B8,Pilot!A:F,6,0) ->  | G8: =A8 -> 1 | I8: =COUNTIF(B:B,B8) -> 1 | J8: =IF(COUNTIF('N PMČR 2021'!B:B,B8)=0,"-",COUNTIF('N PMČR 2021'!B:B,B8)) -> - | K8: =IF(ISERROR(VLOOKUP(B8,'N PMČR 2021'!B:G,6,0)),"-",VLOOKUP(B8,'N PMČR 2021'!B:G,6,0)) -> - | L8: =IF(COUNTIF('N PMČRj 2021'!B:B,B8)=0,"-",COUNTIF('N PMČRj 2021'!B:B,B8)) -> - | M8: =IF(ISERROR(VLOOKUP(B8,'N PMČRj 2021'!B:G,6,0)),"-",VLOOKUP(B8,'N PMČRj 2021'!B:G,6,0)) -> -
A9: =A8+1 -> 2 | B9: Zdenek Balcarek | C9: =VLOOKUP(B9,Pilot!A:C,3,0) -> Kroměříž | D9: =VLOOKUP(B9,Pilot!A:C,2,0) -> 1967 | E9: =VLOOKUP(B9,Pilot!A:E,5,0) -> M | F9: =VLOOKUP(B9,Pilot!A:F,6,0) ->  | G9: 2 | I9: 1 | J9: =IF(COUNTIF('N PMČR 2021'!B:B,B9)=0,"-",COUNTIF('N PMČR 2021'!B:B,B9)) -> 1 | K9: =IF(ISERROR(VLOOKUP(B9,'N PMČR 2021'!B:G,6,0)),"-",VLOOKUP(B9,'N PMČR 2021'!B:G,6,0)) -> N4 | L9: =IF(COUNTIF('N PMČRj 2021'!B:B,B9)=0,"-",COUNTIF('N PMČRj 2021'!B:B,B9)) -> - | M9: =IF(ISERROR(VLOOKUP(B9,'N PMČRj 2021'!B:G,6,0)),"-",VLOOKUP(B9,'N PMČRj 2021'!B:G,6,0)) -> -
A10: 3 | B10: Jiri Stepanek | C10: =VLOOKUP(B10,Pilot!A:C,3,0) -> Moravská Třebová | D10: =VLOOKUP(B10,Pilot!A:C,2,0) -> 1956 | E10: =VLOOKUP(B10,Pilot!A:E,5,0) -> M | F10: =VLOOKUP(B10,Pilot!A:F,6,0) ->  | G10: 3 | I10: 1 | J10: =IF(COUNTIF('N PMČR 2021'!B:B,B10)=0,"-",COUNTIF('N PMČR 2021'!B:B,B10)) -> - | K10: =IF(ISERROR(VLOOKUP(B10,'N PMČR 2021'!B:G,6,0)),"-",VLOOKUP(B10,'N PMČR 2021'!B:G,6,0)) -> - | L10: =IF(COUNTIF('N PMČRj 2021'!B:B,B10)=0,"-",COUNTIF('N PMČRj 2021'!B:B,B10)) -> - | M10: =IF(ISERROR(VLOOKUP(B10,'N PMČRj 2021'!B:G,6,0)),"-",VLOOKUP(B10,'N PMČRj 2021'!B:G,6,0)) -> -
A11: 4 | B11: Martin Stepanek | C11: =VLOOKUP(B11,Pilot!A:C,3,0) -> Moravská Třebová | D11: =VLOOKUP(B11,Pilot!A:C,2,0) -> 1987 | E11: =VLOOKUP(B11,Pilot!A:E,5,0) -> M | F11: =VLOOKUP(B11,Pilot!A:F,6,0) ->  | G11: 4 | I11: 1 | J11: =IF(COUNTIF('N PMČR 2021'!B:B,B11)=0,"-",COUNTIF('N PMČR 2021'!B:B,B11)) -> - | K11: =IF(ISERROR(VLOOKUP(B11,'N PMČR 2021'!B:G,6,0)),"-",VLOOKUP(B11,'N PMČR 2021'!B:G,6,0)) -> - | L11: =IF(COUNTIF('N PMČRj 2021'!B:B,B11)=0,"-",COUNTIF('N PMČRj 2021'!B:B,B11)) -> - | M11: =IF(ISERROR(VLOOKUP(B11,'N PMČRj 2021'!B:G,6,0)),"-",VLOOKUP(B11,'N PMČRj 2021'!B:G,6,0)) -> -
A12: 5 | B12: Petr Stepanek | C12: =VLOOKUP(B12,Pilot!A:C,3,0) -> Moravská Třebová | D12: =VLOOKUP(B12,Pilot!A:C,2,0) -> 1989 | E12: =VLOOKUP(B12,Pilot!A:E,5,0) -> M | F12: =VLOOKUP(B12,Pilot!A:F,6,0) ->  | G12: 5 | I12: 1 | J12: =IF(COUNTIF('N PMČR 2021'!B:B,B12)=0,"-",COUNTIF('N PMČR 2021'!B:B,B12)) -> - | K12: =IF(ISERROR(VLOOKUP(B12,'N PMČR 2021'!B:G,6,0)),"-",VLOOKUP(B12,'N PMČR 2021'!B:G,6,0)) -> - | L12: =IF(COUNTIF('N PMČRj 2021'!B:B,B12)=0,"-",COUNTIF('N PMČRj 2021'!B:B,B12)) -> - | M12: =IF(ISERROR(VLOOKUP(B12,'N PMČRj 2021'!B:G,6,0)),"-",VLOOKUP(B12,'N PMČRj 2021'!B:G,6,0)) -> -
A13: 6 | B13: Tomas Moravec | C13: =VLOOKUP(B13,Pilot!A:C,3,0) -> Žamberk | D13: =VLOOKUP(B13,Pilot!A:C,2,0) -> 2000 | E13: =VLOOKUP(B13,Pilot!A:E,5,0) -> M | F13: =VLOOKUP(B13,Pilot!A:F,6,0) -> Junior v roce 2021 | G13: 6 | I13: 1 | J13: =IF(COUNTIF('N PMČR 2021'!B:B,B13)=0,"-",COUNTIF('N PMČR 2021'!B:B,B13)) -> - | K13: =IF(ISERROR(VLOOKUP(B13,'N PMČR 2021'!B:G,6,0)),"-",VLOOKUP(B13,'N PMČR 2021'!B:G,6,0)) -> - | L13: =IF(COUNTIF('N PMČRj 2021'!B:B,B13)=0,"-",COUNTIF('N PMČRj 2021'!B:B,B13)) -> 1 | M13: =IF(ISERROR(VLOOKUP(B13,'N PMČRj 2021'!B:G,6,0)),"-",VLOOKUP(B13,'N PMČRj 2021'!B:G,6,0)) -> 7
B14: PMČR 2020 - Tábor - Kombi 15m
A15: =A13+1 -> 7 | B15: Zdenek Boruvka 54 | C15: =VLOOKUP(B15,Pilot!A:C,3,0) -> Jičín | D15: =VLOOKUP(B15,Pilot!A:C,2,0) -> 1954 | E15: =VLOOKUP(B15,Pilot!A:E,5,0) -> M | F15: =VLOOKUP(B15,Pilot!A:F,6,0) ->  | G15: =A15 -> 7 | I15: =COUNTIF(B:B,B15) -> 1 | J15: =IF(COUNTIF('N PMČR 2021'!B:B,B15)=0,"-",COUNTIF('N PMČR 2021'!B:B,B15)) -> 1 | K15: =IF(ISERROR(VLOOKUP(B15,'N PMČR 2021'!B:G,6,0)),"-",VLOOKUP(B15,'N PMČR 2021'!B:G,6,0)) -> N8 | L15: =IF(COUNTIF('N PMČRj 2021'!B:B,B15)=0,"-",COUNTIF('N PMČRj 2021'!B:B,B15)) -> - | M15: =IF(ISERROR(VLOOKUP(B15,'N PMČRj 2021'!B:G,6,0)),"-",VLOOKUP(B15,'N PMČRj 2021'!B:G,6,0)) -> -
A16: 8 | B16: Jan Horak | C16: =VLOOKUP(B16,Pilot!A:C,3,0) -> Zbraslavice | D16: =VLOOKUP(B16,Pilot!A:C,2,0) -> 1971 | E16: =VLOOKUP(B16,Pilot!A:E,5,0) -> M | F16: =VLOOKUP(B16,Pilot!A:F,6,0) ->  | G16: =A16 -> 8 | I16: =COUNTIF(B:B,B16) -> 1 | J16: =IF(COUNTIF('N PMČR 2021'!B:B,B16)=0,"-",COUNTIF('N PMČR 2021'!B:B,B16)) -> - | K16: =IF(ISERROR(VLOOKUP(B16,'N PMČR 2021'!B:G,6,0)),"-",VLOOKUP(B16,'N PMČR 2021'!B:G,6,0)) -> - | L16: =IF(COUNTIF('N PMČRj 2021'!B:B,B16)=0,"-",COUNTIF('N PMČRj 2021'!B:B,B16)) -> - | M16: =IF(ISERROR(VLOOKUP(B16,'N PMČRj 2021'!B:G,6,0)),"-",VLOOKUP(B16,'N PMČRj 2021'!B:G,6,0)) -> -
B17: PMČR 2020 - Tábor - Kombi Open
A18: =A16+1 -> 9 | B18: Petr Panek | C18: =VLOOKUP(B18,Pilot!A:C,3,0) -> Dvůr Králové | D18: =VLOOKUP(B18,Pilot!A:C,2,0) -> 1975 | E18: =VLOOKUP(B18,Pilot!A:E,5,0) -> M | F18: =VLOOKUP(B18,Pilot!A:F,6,0) ->  | G18: =A18 -> 9 | I18: =COUNTIF(B:B,B18) -> 1 | J18: =IF(COUNTIF('N PMČR 2021'!B:B,B18)=0,"-",COUNTIF('N PMČR 2021'!B:B,B18)) -> 1 | K18: =IF(ISERROR(VLOOKUP(B18,'N PMČR 2021'!B:G,6,0)),"-",VLOOKUP(B18,'N PMČR 2021'!B:G,6,0)) -> N7 | L18: =IF(COUNTIF('N PMČRj 2021'!B:B,B18)=0,"-",COUNTIF('N PMČRj 2021'!B:B,B18)) -> - | M18: =IF(ISERROR(VLOOKUP(B18,'N PMČRj 2021'!B:G,6,0)),"-",VLOOKUP(B18,'N PMČRj 2021'!B:G,6,0)) -> -
A19: 10 | B19: Michaela Rendlova | C19: =VLOOKUP(B19,Pilot!A:C,3,0) -> Toužim | D19: =VLOOKUP(B19,Pilot!A:C,2,0) -> 2004 | E19: =VLOOKUP(B19,Pilot!A:E,5,0) -> F | F19: =VLOOKUP(B19,Pilot!A:F,6,0) -> Junior v roce 2021 | G19: 10 | I19: 1 | J19: =IF(COUNTIF('N PMČR 2021'!B:B,B19)=0,"-",COUNTIF('N PMČR 2021'!B:B,B19)) -> - | K19: =IF(ISERROR(VLOOKUP(B19,'N PMČR 2021'!B:G,6,0)),"-",VLOOKUP(B19,'N PMČR 2021'!B:G,6,0)) -> - | L19: =IF(COUNTIF('N PMČRj 2021'!B:B,B19)=0,"-",COUNTIF('N PMČRj 2021'!B:B,B19)) -> 1 | M19: =IF(ISERROR(VLOOKUP(B19,'N PMČRj 2021'!B:G,6,0)),"-",VLOOKUP(B19,'N PMČRj 2021'!B:G,6,0)) -> 8
A20: 11 | B20: Martin Hrivna | C20: =VLOOKUP(B20,Pilot!A:C,3,0) -> Zbraslavice | D20: =VLOOKUP(B20,Pilot!A:C,2,0) -> 1978 | E20: =VLOOKUP(B20,Pilot!A:E,5,0) -> M | F20: =VLOOKUP(B20,Pilot!A:F,6,0) ->  | G20: 11 | I20: 1 | J20: =IF(COUNTIF('N PMČR 2021'!B:B,B20)=0,"-",COUNTIF('N PMČR 2021'!B:B,B20)) -> - | K20: =IF(ISERROR(VLOOKUP(B20,'N PMČR 2021'!B:G,6,0)),"-",VLOOKUP(B20,'N PMČR 2021'!B:G,6,0)) -> - | L20: =IF(COUNTIF('N PMČRj 2021'!B:B,B20)=0,"-",COUNTIF('N PMČRj 2021'!B:B,B20)) -> - | M20: =IF(ISERROR(VLOOKUP(B20,'N PMČRj 2021'!B:G,6,0)),"-",VLOOKUP(B20,'N PMČRj 2021'!B:G,6,0)) -> -
A21: 12 | B21: Martin Picka | C21: =VLOOKUP(B21,Pilot!A:C,3,0) -> Tábor | D21: =VLOOKUP(B21,Pilot!A:C,2,0) -> 1974 | E21: =VLOOKUP(B21,Pilot!A:E,5,0) -> M | F21: =VLOOKUP(B21,Pilot!A:F,6,0) ->  | G21: 12 | I21: 1 | J21: =IF(COUNTIF('N PMČR 2021'!B:B,B21)=0,"-",COUNTIF('N PMČR 2021'!B:B,B21)) -> - | K21: =IF(ISERROR(VLOOKUP(B21,'N PMČR 2021'!B:G,6,0)),"-",VLOOKUP(B21,'N PMČR 2021'!B:G,6,0)) -> - | L21: =IF(COUNTIF('N PMČRj 2021'!B:B,B21)=0,"-",COUNTIF('N PMČRj 2021'!B:B,B21)) -> - | M21: =IF(ISERROR(VLOOKUP(B21,'N PMČRj 2021'!B:G,6,0)),"-",VLOOKUP(B21,'N PMČRj 2021'!B:G,6,0)) -> -
A22: 13 | B22: Petr Bartak | C22: =VLOOKUP(B22,Pilot!A:C,3,0) -> Letkov | D22: =VLOOKUP(B22,Pilot!A:C,2,0) -> 1984 | E22: =VLOOKUP(B22,Pilot!A:E,5,0) -> M | F22: =VLOOKUP(B22,Pilot!A:F,6,0) ->  | G22: 13 | I22: 1 | J22: =IF(COUNTIF('N PMČR 2021'!B:B,B22)=0,"-",COUNTIF('N PMČR 2021'!B:B,B22)) -> - | K22: =IF(ISERROR(VLOOKUP(B22,'N PMČR 2021'!B:G,6,0)),"-",VLOOKUP(B22,'N PMČR 2021'!B:G,6,0)) -> - | L22: =IF(COUNTIF('N PMČRj 2021'!B:B,B22)=0,"-",COUNTIF('N PMČRj 2021'!B:B,B22)) -> - | M22: =IF(ISERROR(VLOOKUP(B22,'N PMČRj 2021'!B:G,6,0)),"-",VLOOKUP(B22,'N PMČRj 2021'!B:G,6,0)) -> -
A23: 14 | B23: Eva Cerna | C23: =VLOOKUP(B23,Pilot!A:C,3,0) -> Příbram | D23: =VLOOKUP(B23,Pilot!A:C,2,0) -> 1964 | E23: =VLOOKUP(B23,Pilot!A:E,5,0) -> F | F23: =VLOOKUP(B23,Pilot!A:F,6,0) ->  | G23: 14 | I23: 1 | J23: =IF(COUNTIF('N PMČR 2021'!B:B,B23)=0,"-",COUNTIF('N PMČR 2021'!B:B,B23)) -> - | K23: =IF(ISERROR(VLOOKUP(B23,'N PMČR 2021'!B:G,6,0)),"-",VLOOKUP(B23,'N PMČR 2021'!B:G,6,0)) -> - | L23: =IF(COUNTIF('N PMČRj 2021'!B:B,B23)=0,"-",COUNTIF('N PMČRj 2021'!B:B,B23)) -> - | M23: =IF(ISERROR(VLOOKUP(B23,'N PMČRj 2021'!B:G,6,0)),"-",VLOOKUP(B23,'N PMČRj 2021'!B:G,6,0)) -> -
A24: 15 | B24: Karel Mares | C24: =VLOOKUP(B24,Pilot!A:C,3,0) -> Slaný | D24: =VLOOKUP(B24,Pilot!A:C,2,0) -> 1974 | E24: =VLOOKUP(B24,Pilot!A:E,5,0) -> M | F24: =VLOOKUP(B24,Pilot!A:F,6,0) ->  | G24: 15 | I24: 1 | J24: =IF(COUNTIF('N PMČR 2021'!B:B,B24)=0,"-",COUNTIF('N PMČR 2021'!B:B,B24)) -> - | K24: =IF(ISERROR(VLOOKUP(B24,'N PMČR 2021'!B:G,6,0)),"-",VLOOKUP(B24,'N PMČR 2021'!B:G,6,0)) -> - | L24: =IF(COUNTIF('N PMČRj 2021'!B:B,B24)=0,"-",COUNTIF('N PMČRj 2021'!B:B,B24)) -> - | M24: =IF(ISERROR(VLOOKUP(B24,'N PMČRj 2021'!B:G,6,0)),"-",VLOOKUP(B24,'N PMČRj 2021'!B:G,6,0)) -> -
A25: 16 | B25: Vaclav Svoboda | C25: =VLOOKUP(B25,Pilot!A:C,3,0) -> Letkov | D25: =VLOOKUP(B25,Pilot!A:C,2,0) -> 1970 | E25: =VLOOKUP(B25,Pilot!A:E,5,0) -> M | F25: =VLOOKUP(B25,Pilot!A:F,6,0) ->  | G25: 16 | I25: 1 | J25: =IF(COUNTIF('N PMČR 2021'!B:B,B25)=0,"-",COUNTIF('N PMČR 2021'!B:B,B25)) -> - | K25: =IF(ISERROR(VLOOKUP(B25,'N PMČR 2021'!B:G,6,0)),"-",VLOOKUP(B25,'N PMČR 2021'!B:G,6,0)) -> - | L25: =IF(COUNTIF('N PMČRj 2021'!B:B,B25)=0,"-",COUNTIF('N PMČRj 2021'!B:B,B25)) -> - | M25: =IF(ISERROR(VLOOKUP(B25,'N PMČRj 2021'!B:G,6,0)),"-",VLOOKUP(B25,'N PMČRj 2021'!B:G,6,0)) -> -
A26: 6.8.5.2. | B26: prvních 10 soutěžících z posledního platného PMRg, kteří nepostoupili na PMČR v roce konání PMRg, v pořadí podle korigovaných bodů ze všech tříd (bez náhradníků)
B27: V případě neplatnosti některé ze soutěžních tříd posledního PMRg budou pro výpočet korigovaných bodů použity výsledky z posledního platného PMRg v dané třídě.
B28: PMRg 2019 - Vysoké Mýto - Korigované body
A29: - | B29: - | D29: =VLOOKUP(B29,Pilot!A:C,2,0) ->  | E29: =VLOOKUP(B29,Pilot!A:E,5,0) ->  | F29: =VLOOKUP(B29,Pilot!A:F,6,0) ->  | G29: =A29 -> - | I29: =COUNTIF(B:B,B29) -> 60 | J29: =IF(COUNTIF('N PMČR 2021'!B:B,B29)=0,"-",COUNTIF('N PMČR 2021'!B:B,B29)) -> 5 | K29: =IF(ISERROR(VLOOKUP(B29,'N PMČR 2021'!B:G,6,0)),"-",VLOOKUP(B29,'N PMČR 2021'!B:G,6,0)) -> 81. | L29: =IF(COUNTIF('N PMČRj 2021'!B:B,B29)=0,"-",COUNTIF('N PMČRj 2021'!B:B,B29)) -> 40 | M29: =IF(ISERROR(VLOOKUP(B29,'N PMČRj 2021'!B:G,6,0)),"-",VLOOKUP(B29,'N PMČRj 2021'!B:G,6,0)) -> 16
A30: 6.8.5.3. | B30: soutěžící z regionů Čechy 1, Čechy 2 a Morava v pořadí podle celkového umístění v CPS-INT předcházejícího roku konání PMRg do naplnění celkového počtu minimálně 60 nominovaných (+ 10 náhradníků)
A31: =MAX(A8:A30)+1 -> 17 | B31: - | C31: =VLOOKUP(B31,Pilot!A:C,3,0) ->  | D31: =VLOOKUP(B31,Pilot!A:C,2,0) ->  | E31: =VLOOKUP(B31,Pilot!A:E,5,0) ->  | F31: =VLOOKUP(B31,Pilot!A:F,6,0) ->  | G31: =A31 -> 17 | I31: =COUNTIF(B:B,B31) -> 60 | J31: =IF(COUNTIF('N PMČR 2021'!B:B,B31)=0,"-",COUNTIF('N PMČR 2021'!B:B,B31)) -> 5 | K31: =IF(ISERROR(VLOOKUP(B31,'N PMČR 2021'!B:G,6,0)),"-",VLOOKUP(B31,'N PMČR 2021'!B:G,6,0)) -> 81. | L31: =IF(COUNTIF('N PMČRj 2021'!B:B,B31)=0,"-",COUNTIF('N PMČRj 2021'!B:B,B31)) -> 40 | M31: =IF(ISERROR(VLOOKUP(B31,'N PMČRj 2021'!B:G,6,0)),"-",VLOOKUP(B31,'N PMČRj 2021'!B:G,6,0)) -> 16
A32: =A31+1 -> 18 | B32: - | C32: =VLOOKUP(B32,Pilot!A:C,3,0) ->  | D32: =VLOOKUP(B32,Pilot!A:C,2,0) ->  | E32: =VLOOKUP(B32,Pilot!A:E,5,0) ->  | F32: =VLOOKUP(B32,Pilot!A:F,6,0) ->  | G32: 18 | I32: 60 | J32: =IF(COUNTIF('N PMČR 2021'!B:B,B32)=0,"-",COUNTIF('N PMČR 2021'!B:B,B32)) -> 5 | K32: =IF(ISERROR(VLOOKUP(B32,'N PMČR 2021'!B:G,6,0)),"-",VLOOKUP(B32,'N PMČR 2021'!B:G,6,0)) -> 81. | L32: =IF(COUNTIF('N PMČRj 2021'!B:B,B32)=0,"-",COUNTIF('N PMČRj 2021'!B:B,B32)) -> 40 | M32: =IF(ISERROR(VLOOKUP(B32,'N PMČRj 2021'!B:G,6,0)),"-",VLOOKUP(B32,'N PMČRj 2021'!B:G,6,0)) -> 16
A33: =A32+1 -> 19 | B33: - | C33: =VLOOKUP(B33,Pilot!A:C,3,0) ->  | D33: =VLOOKUP(B33,Pilot!A:C,2,0) ->  | E33: =VLOOKUP(B33,Pilot!A:E,5,0) ->  | F33: =VLOOKUP(B33,Pilot!A:F,6,0) ->  | G33: 19 | I33: 60 | J33: =IF(COUNTIF('N PMČR 2021'!B:B,B33)=0,"-",COUNTIF('N PMČR 2021'!B:B,B33)) -> 5 | K33: =IF(ISERROR(VLOOKUP(B33,'N PMČR 2021'!B:G,6,0)),"-",VLOOKUP(B33,'N PMČR 2021'!B:G,6,0)) -> 81. | L33: =IF(COUNTIF('N PMČRj 2021'!B:B,B33)=0,"-",COUNTIF('N PMČRj 2021'!B:B,B33)) -> 40 | M33: =IF(ISERROR(VLOOKUP(B33,'N PMČRj 2021'!B:G,6,0)),"-",VLOOKUP(B33,'N PMČRj 2021'!B:G,6,0)) -> 16
A34: 20 | B34: - | C34: =VLOOKUP(B34,Pilot!A:C,3,0) ->  | D34: =VLOOKUP(B34,Pilot!A:C,2,0) ->  | E34: =VLOOKUP(B34,Pilot!A:E,5,0) ->  | F34: =VLOOKUP(B34,Pilot!A:F,6,0) ->  | G34: 20 | I34: 60 | J34: =IF(COUNTIF('N PMČR 2021'!B:B,B34)=0,"-",COUNTIF('N PMČR 2021'!B:B,B34)) -> 5 | K34: =IF(ISERROR(VLOOKUP(B34,'N PMČR 2021'!B:G,6,0)),"-",VLOOKUP(B34,'N PMČR 2021'!B:G,6,0)) -> 81. | L34: =IF(COUNTIF('N PMČRj 2021'!B:B,B34)=0,"-",COUNTIF('N PMČRj 2021'!B:B,B34)) -> 40 | M34: =IF(ISERROR(VLOOKUP(B34,'N PMČRj 2021'!B:G,6,0)),"-",VLOOKUP(B34,'N PMČRj 2021'!B:G,6,0)) -> 16
A35: 21 | B35: - | C35: =VLOOKUP(B35,Pilot!A:C,3,0) ->  | D35: =VLOOKUP(B35,Pilot!A:C,2,0) ->  | E35: =VLOOKUP(B35,Pilot!A:E,5,0) ->  | F35: =VLOOKUP(B35,Pilot!A:F,6,0) ->  | G35: 21 | I35: 60 | J35: =IF(COUNTIF('N PMČR 2021'!B:B,B35)=0,"-",COUNTIF('N PMČR 2021'!B:B,B35)) -> 5 | K35: =IF(ISERROR(VLOOKUP(B35,'N PMČR 2021'!B:G,6,0)),"-",VLOOKUP(B35,'N PMČR 2021'!B:G,6,0)) -> 81. | L35: =IF(COUNTIF('N PMČRj 2021'!B:B,B35)=0,"-",COUNTIF('N PMČRj 2021'!B:B,B35)) -> 40 | M35: =IF(ISERROR(VLOOKUP(B35,'N PMČRj 2021'!B:G,6,0)),"-",VLOOKUP(B35,'N PMČRj 2021'!B:G,6,0)) -> 16
A36: 22 | B36: - | C36: =VLOOKUP(B36,Pilot!A:C,3,0) ->  | D36: =VLOOKUP(B36,Pilot!A:C,2,0) ->  | E36: =VLOOKUP(B36,Pilot!A:E,5,0) ->  | F36: =VLOOKUP(B36,Pilot!A:F,6,0) ->  | G36: 22 | I36: 60 | J36: =IF(COUNTIF('N PMČR 2021'!B:B,B36)=0,"-",COUNTIF('N PMČR 2021'!B:B,B36)) -> 5 | K36: =IF(ISERROR(VLOOKUP(B36,'N PMČR 2021'!B:G,6,0)),"-",VLOOKUP(B36,'N PMČR 2021'!B:G,6,0)) -> 81. | L36: =IF(COUNTIF('N PMČRj 2021'!B:B,B36)=0,"-",COUNTIF('N PMČRj 2021'!B:B,B36)) -> 40 | M36: =IF(ISERROR(VLOOKUP(B36,'N PMČRj 2021'!B:G,6,0)),"-",VLOOKUP(B36,'N PMČRj 2021'!B:G,6,0)) -> 16
A37: 23 | B37: - | C37: =VLOOKUP(B37,Pilot!A:C,3,0) ->  | D37: =VLOOKUP(B37,Pilot!A:C,2,0) ->  | E37: =VLOOKUP(B37,Pilot!A:E,5,0) ->  | F37: =VLOOKUP(B37,Pilot!A:F,6,0) ->  | G37: 23 | I37: 60 | J37: =IF(COUNTIF('N PMČR 2021'!B:B,B37)=0,"-",COUNTIF('N PMČR 2021'!B:B,B37)) -> 5 | K37: =IF(ISERROR(VLOOKUP(B37,'N PMČR 2021'!B:G,6,0)),"-",VLOOKUP(B37,'N PMČR 2021'!B:G,6,0)) -> 81. | L37: =IF(COUNTIF('N PMČRj 2021'!B:B,B37)=0,"-",COUNTIF('N PMČRj 2021'!B:B,B37)) -> 40 | M37: =IF(ISERROR(VLOOKUP(B37,'N PMČRj 2021'!B:G,6,0)),"-",VLOOKUP(B37,'N PMČRj 2021'!B:G,6,0)) -> 16
A38: 24 | B38: - | C38: =VLOOKUP(B38,Pilot!A:C,3,0) ->  | D38: =VLOOKUP(B38,Pilot!A:C,2,0) ->  | E38: =VLOOKUP(B38,Pilot!A:E,5,0) ->  | F38: =VLOOKUP(B38,Pilot!A:F,6,0) ->  | G38: 24 | I38: 60 | J38: =IF(COUNTIF('N PMČR 2021'!B:B,B38)=0,"-",COUNTIF('N PMČR 2021'!B:B,B38)) -> 5 | K38: =IF(ISERROR(VLOOKUP(B38,'N PMČR 2021'!B:G,6,0)),"-",VLOOKUP(B38,'N PMČR 2021'!B:G,6,0)) -> 81. | L38: =IF(COUNTIF('N PMČRj 2021'!B:B,B38)=0,"-",COUNTIF('N PMČRj 2021'!B:B,B38)) -> 40 | M38: =IF(ISERROR(VLOOKUP(B38,'N PMČRj 2021'!B:G,6,0)),"-",VLOOKUP(B38,'N PMČRj 2021'!B:G,6,0)) -> 16
A39: 25 | B39: - | C39: =VLOOKUP(B39,Pilot!A:C,3,0) ->  | D39: =VLOOKUP(B39,Pilot!A:C,2,0) ->  | E39: =VLOOKUP(B39,Pilot!A:E,5,0) ->  | F39: =VLOOKUP(B39,Pilot!A:F,6,0) ->  | G39: 25 | I39: 60 | J39: =IF(COUNTIF('N PMČR 2021'!B:B,B39)=0,"-",COUNTIF('N PMČR 2021'!B:B,B39)) -> 5 | K39: =IF(ISERROR(VLOOKUP(B39,'N PMČR 2021'!B:G,6,0)),"-",VLOOKUP(B39,'N PMČR 2021'!B:G,6,0)) -> 81. | L39: =IF(COUNTIF('N PMČRj 2021'!B:B,B39)=0,"-",COUNTIF('N PMČRj 2021'!B:B,B39)) -> 40 | M39: =IF(ISERROR(VLOOKUP(B39,'N PMČRj 2021'!B:G,6,0)),"-",VLOOKUP(B39,'N PMČRj 2021'!B:G,6,0)) -> 16
A40: 26 | B40: - | C40: =VLOOKUP(B40,Pilot!A:C,3,0) ->  | D40: =VLOOKUP(B40,Pilot!A:C,2,0) ->  | E40: =VLOOKUP(B40,Pilot!A:E,5,0) ->  | F40: =VLOOKUP(B40,Pilot!A:F,6,0) ->  | G40: 26 | I40: 60 | J40: =IF(COUNTIF('N PMČR 2021'!B:B,B40)=0,"-",COUNTIF('N PMČR 2021'!B:B,B40)) -> 5 | K40: =IF(ISERROR(VLOOKUP(B40,'N PMČR 2021'!B:G,6,0)),"-",VLOOKUP(B40,'N PMČR 2021'!B:G,6,0)) -> 81. | L40: =IF(COUNTIF('N PMČRj 2021'!B:B,B40)=0,"-",COUNTIF('N PMČRj 2021'!B:B,B40)) -> 40 | M40: =IF(ISERROR(VLOOKUP(B40,'N PMČRj 2021'!B:G,6,0)),"-",VLOOKUP(B40,'N PMČRj 2021'!B:G,6,0)) -> 16
A41: 27 | B41: - | C41: =VLOOKUP(B41,Pilot!A:C,3,0) ->  | D41: =VLOOKUP(B41,Pilot!A:C,2,0) ->  | E41: =VLOOKUP(B41,Pilot!A:E,5,0) ->  | F41: =VLOOKUP(B41,Pilot!A:F,6,0) ->  | G41: 27 | I41: 60 | J41: =IF(COUNTIF('N PMČR 2021'!B:B,B41)=0,"-",COUNTIF('N PMČR 2021'!B:B,B41)) -> 5 | K41: =IF(ISERROR(VLOOKUP(B41,'N PMČR 2021'!B:G,6,0)),"-",VLOOKUP(B41,'N PMČR 2021'!B:G,6,0)) -> 81. | L41: =IF(COUNTIF('N PMČRj 2021'!B:B,B41)=0,"-",COUNTIF('N PMČRj 2021'!B:B,B41)) -> 40 | M41: =IF(ISERROR(VLOOKUP(B41,'N PMČRj 2021'!B:G,6,0)),"-",VLOOKUP(B41,'N PMČRj 2021'!B:G,6,0)) -> 16
A42: 28 | B42: - | C42: =VLOOKUP(B42,Pilot!A:C,3,0) ->  | D42: =VLOOKUP(B42,Pilot!A:C,2,0) ->  | E42: =VLOOKUP(B42,Pilot!A:E,5,0) ->  | F42: =VLOOKUP(B42,Pilot!A:F,6,0) ->  | G42: 28 | I42: 60 | J42: =IF(COUNTIF('N PMČR 2021'!B:B,B42)=0,"-",COUNTIF('N PMČR 2021'!B:B,B42)) -> 5 | K42: =IF(ISERROR(VLOOKUP(B42,'N PMČR 2021'!B:G,6,0)),"-",VLOOKUP(B42,'N PMČR 2021'!B:G,6,0)) -> 81. | L42: =IF(COUNTIF('N PMČRj 2021'!B:B,B42)=0,"-",COUNTIF('N PMČRj 2021'!B:B,B42)) -> 40 | M42: =IF(ISERROR(VLOOKUP(B42,'N PMČRj 2021'!B:G,6,0)),"-",VLOOKUP(B42,'N PMČRj 2021'!B:G,6,0)) -> 16
A43: 29 | B43: - | C43: =VLOOKUP(B43,Pilot!A:C,3,0) ->  | D43: =VLOOKUP(B43,Pilot!A:C,2,0) ->  | E43: =VLOOKUP(B43,Pilot!A:E,5,0) ->  | F43: =VLOOKUP(B43,Pilot!A:F,6,0) ->  | G43: 29 | I43: 60 | J43: =IF(COUNTIF('N PMČR 2021'!B:B,B43)=0,"-",COUNTIF('N PMČR 2021'!B:B,B43)) -> 5 | K43: =IF(ISERROR(VLOOKUP(B43,'N PMČR 2021'!B:G,6,0)),"-",VLOOKUP(B43,'N PMČR 2021'!B:G,6,0)) -> 81. | L43: =IF(COUNTIF('N PMČRj 2021'!B:B,B43)=0,"-",COUNTIF('N PMČRj 2021'!B:B,B43)) -> 40 | M43: =IF(ISERROR(VLOOKUP(B43,'N PMČRj 2021'!B:G,6,0)),"-",VLOOKUP(B43,'N PMČRj 2021'!B:G,6,0)) -> 16
A44: 30 | B44: - | C44: =VLOOKUP(B44,Pilot!A:C,3,0) ->  | D44: =VLOOKUP(B44,Pilot!A:C,2,0) ->  | E44: =VLOOKUP(B44,Pilot!A:E,5,0) ->  | F44: =VLOOKUP(B44,Pilot!A:F,6,0) ->  | G44: 30 | I44: 60 | J44: =IF(COUNTIF('N PMČR 2021'!B:B,B44)=0,"-",COUNTIF('N PMČR 2021'!B:B,B44)) -> 5 | K44: =IF(ISERROR(VLOOKUP(B44,'N PMČR 2021'!B:G,6,0)),"-",VLOOKUP(B44,'N PMČR 2021'!B:G,6,0)) -> 81. | L44: =IF(COUNTIF('N PMČRj 2021'!B:B,B44)=0,"-",COUNTIF('N PMČRj 2021'!B:B,B44)) -> 40 | M44: =IF(ISERROR(VLOOKUP(B44,'N PMČRj 2021'!B:G,6,0)),"-",VLOOKUP(B44,'N PMČRj 2021'!B:G,6,0)) -> 16
A45: 31 | B45: - | C45: =VLOOKUP(B45,Pilot!A:C,3,0) ->  | D45: =VLOOKUP(B45,Pilot!A:C,2,0) ->  | E45: =VLOOKUP(B45,Pilot!A:E,5,0) ->  | F45: =VLOOKUP(B45,Pilot!A:F,6,0) ->  | G45: 31 | I45: 60 | J45: =IF(COUNTIF('N PMČR 2021'!B:B,B45)=0,"-",COUNTIF('N PMČR 2021'!B:B,B45)) -> 5 | K45: =IF(ISERROR(VLOOKUP(B45,'N PMČR 2021'!B:G,6,0)),"-",VLOOKUP(B45,'N PMČR 2021'!B:G,6,0)) -> 81. | L45: =IF(COUNTIF('N PMČRj 2021'!B:B,B45)=0,"-",COUNTIF('N PMČRj 2021'!B:B,B45)) -> 40 | M45: =IF(ISERROR(VLOOKUP(B45,'N PMČRj 2021'!B:G,6,0)),"-",VLOOKUP(B45,'N PMČRj 2021'!B:G,6,0)) -> 16
A46: 32 | B46: - | C46: =VLOOKUP(B46,Pilot!A:C,3,0) ->  | D46: =VLOOKUP(B46,Pilot!A:C,2,0) ->  | E46: =VLOOKUP(B46,Pilot!A:E,5,0) ->  | F46: =VLOOKUP(B46,Pilot!A:F,6,0) ->  | G46: 32 | I46: 60 | J46: =IF(COUNTIF('N PMČR 2021'!B:B,B46)=0,"-",COUNTIF('N PMČR 2021'!B:B,B46)) -> 5 | K46: =IF(ISERROR(VLOOKUP(B46,'N PMČR 2021'!B:G,6,0)),"-",VLOOKUP(B46,'N PMČR 2021'!B:G,6,0)) -> 81. | L46: =IF(COUNTIF('N PMČRj 2021'!B:B,B46)=0,"-",COUNTIF('N PMČRj 2021'!B:B,B46)) -> 40 | M46: =IF(ISERROR(VLOOKUP(B46,'N PMČRj 2021'!B:G,6,0)),"-",VLOOKUP(B46,'N PMČRj 2021'!B:G,6,0)) -> 16
A47: 33 | B47: - | C47: =VLOOKUP(B47,Pilot!A:C,3,0) ->  | D47: =VLOOKUP(B47,Pilot!A:C,2,0) ->  | E47: =VLOOKUP(B47,Pilot!A:E,5,0) ->  | F47: =VLOOKUP(B47,Pilot!A:F,6,0) ->  | G47: 33 | I47: 60 | J47: =IF(COUNTIF('N PMČR 2021'!B:B,B47)=0,"-",COUNTIF('N PMČR 2021'!B:B,B47)) -> 5 | K47: =IF(ISERROR(VLOOKUP(B47,'N PMČR 2021'!B:G,6,0)),"-",VLOOKUP(B47,'N PMČR 2021'!B:G,6,0)) -> 81. | L47: =IF(COUNTIF('N PMČRj 2021'!B:B,B47)=0,"-",COUNTIF('N PMČRj 2021'!B:B,B47)) -> 40 | M47: =IF(ISERROR(VLOOKUP(B47,'N PMČRj 2021'!B:G,6,0)),"-",VLOOKUP(B47,'N PMČRj 2021'!B:G,6,0)) -> 16
A48: 34 | B48: - | C48: =VLOOKUP(B48,Pilot!A:C,3,0) ->  | D48: =VLOOKUP(B48,Pilot!A:C,2,0) ->  | E48: =VLOOKUP(B48,Pilot!A:E,5,0) ->  | F48: =VLOOKUP(B48,Pilot!A:F,6,0) ->  | G48: 34 | I48: 60 | J48: =IF(COUNTIF('N PMČR 2021'!B:B,B48)=0,"-",COUNTIF('N PMČR 2021'!B:B,B48)) -> 5 | K48: =IF(ISERROR(VLOOKUP(B48,'N PMČR 2021'!B:G,6,0)),"-",VLOOKUP(B48,'N PMČR 2021'!B:G,6,0)) -> 81. | L48: =IF(COUNTIF('N PMČRj 2021'!B:B,B48)=0,"-",COUNTIF('N PMČRj 2021'!B:B,B48)) -> 40 | M48: =IF(ISERROR(VLOOKUP(B48,'N PMČRj 2021'!B:G,6,0)),"-",VLOOKUP(B48,'N PMČRj 2021'!B:G,6,0)) -> 16
A49: 35 | B49: - | C49: =VLOOKUP(B49,Pilot!A:C,3,0) ->  | D49: =VLOOKUP(B49,Pilot!A:C,2,0) ->  | E49: =VLOOKUP(B49,Pilot!A:E,5,0) ->  | F49: =VLOOKUP(B49,Pilot!A:F,6,0) ->  | G49: 35 | I49: 60 | J49: =IF(COUNTIF('N PMČR 2021'!B:B,B49)=0,"-",COUNTIF('N PMČR 2021'!B:B,B49)) -> 5 | K49: =IF(ISERROR(VLOOKUP(B49,'N PMČR 2021'!B:G,6,0)),"-",VLOOKUP(B49,'N PMČR 2021'!B:G,6,0)) -> 81. | L49: =IF(COUNTIF('N PMČRj 2021'!B:B,B49)=0,"-",COUNTIF('N PMČRj 2021'!B:B,B49)) -> 40 | M49: =IF(ISERROR(VLOOKUP(B49,'N PMČRj 2021'!B:G,6,0)),"-",VLOOKUP(B49,'N PMČRj 2021'!B:G,6,0)) -> 16
A50: 36 | B50: - | C50: =VLOOKUP(B50,Pilot!A:C,3,0) ->  | D50: =VLOOKUP(B50,Pilot!A:C,2,0) ->  | E50: =VLOOKUP(B50,Pilot!A:E,5,0) ->  | F50: =VLOOKUP(B50,Pilot!A:F,6,0) ->  | G50: =A50 -> 36 | I50: 60 | J50: =IF(COUNTIF('N PMČR 2021'!B:B,B50)=0,"-",COUNTIF('N PMČR 2021'!B:B,B50)) -> 5 | K50: =IF(ISERROR(VLOOKUP(B50,'N PMČR 2021'!B:G,6,0)),"-",VLOOKUP(B50,'N PMČR 2021'!B:G,6,0)) -> 81. | L50: =IF(COUNTIF('N PMČRj 2021'!B:B,B50)=0,"-",COUNTIF('N PMČRj 2021'!B:B,B50)) -> 40 | M50: =IF(ISERROR(VLOOKUP(B50,'N PMČRj 2021'!B:G,6,0)),"-",VLOOKUP(B50,'N PMČRj 2021'!B:G,6,0)) -> 16
A51: 37 | B51: - | C51: =VLOOKUP(B51,Pilot!A:C,3,0) ->  | D51: =VLOOKUP(B51,Pilot!A:C,2,0) ->  | E51: =VLOOKUP(B51,Pilot!A:E,5,0) ->  | F51: =VLOOKUP(B51,Pilot!A:F,6,0) ->  | G51: 37 | I51: 60 | J51: =IF(COUNTIF('N PMČR 2021'!B:B,B51)=0,"-",COUNTIF('N PMČR 2021'!B:B,B51)) -> 5 | K51: =IF(ISERROR(VLOOKUP(B51,'N PMČR 2021'!B:G,6,0)),"-",VLOOKUP(B51,'N PMČR 2021'!B:G,6,0)) -> 81. | L51: =IF(COUNTIF('N PMČRj 2021'!B:B,B51)=0,"-",COUNTIF('N PMČRj 2021'!B:B,B51)) -> 40 | M51: =IF(ISERROR(VLOOKUP(B51,'N PMČRj 2021'!B:G,6,0)),"-",VLOOKUP(B51,'N PMČRj 2021'!B:G,6,0)) -> 16
A52: 38 | B52: - | C52: =VLOOKUP(B52,Pilot!A:C,3,0) ->  | D52: =VLOOKUP(B52,Pilot!A:C,2,0) ->  | E52: =VLOOKUP(B52,Pilot!A:E,5,0) ->  | F52: =VLOOKUP(B52,Pilot!A:F,6,0) ->  | G52: 38 | I52: 60 | J52: =IF(COUNTIF('N PMČR 2021'!B:B,B52)=0,"-",COUNTIF('N PMČR 2021'!B:B,B52)) -> 5 | K52: =IF(ISERROR(VLOOKUP(B52,'N PMČR 2021'!B:G,6,0)),"-",VLOOKUP(B52,'N PMČR 2021'!B:G,6,0)) -> 81. | L52: =IF(COUNTIF('N PMČRj 2021'!B:B,B52)=0,"-",COUNTIF('N PMČRj 2021'!B:B,B52)) -> 40 | M52: =IF(ISERROR(VLOOKUP(B52,'N PMČRj 2021'!B:G,6,0)),"-",VLOOKUP(B52,'N PMČRj 2021'!B:G,6,0)) -> 16
A53: 39 | B53: - | C53: =VLOOKUP(B53,Pilot!A:C,3,0) ->  | D53: =VLOOKUP(B53,Pilot!A:C,2,0) ->  | E53: =VLOOKUP(B53,Pilot!A:E,5,0) ->  | F53: =VLOOKUP(B53,Pilot!A:F,6,0) ->  | G53: 39 | I53: 60 | J53: =IF(COUNTIF('N PMČR 2021'!B:B,B53)=0,"-",COUNTIF('N PMČR 2021'!B:B,B53)) -> 5 | K53: =IF(ISERROR(VLOOKUP(B53,'N PMČR 2021'!B:G,6,0)),"-",VLOOKUP(B53,'N PMČR 2021'!B:G,6,0)) -> 81. | L53: =IF(COUNTIF('N PMČRj 2021'!B:B,B53)=0,"-",COUNTIF('N PMČRj 2021'!B:B,B53)) -> 40 | M53: =IF(ISERROR(VLOOKUP(B53,'N PMČRj 2021'!B:G,6,0)),"-",VLOOKUP(B53,'N PMČRj 2021'!B:G,6,0)) -> 16
A54: 40 | B54: - | C54: =VLOOKUP(B54,Pilot!A:C,3,0) ->  | D54: =VLOOKUP(B54,Pilot!A:C,2,0) ->  | E54: =VLOOKUP(B54,Pilot!A:E,5,0) ->  | F54: =VLOOKUP(B54,Pilot!A:F,6,0) ->  | G54: 40 | I54: 60 | J54: =IF(COUNTIF('N PMČR 2021'!B:B,B54)=0,"-",COUNTIF('N PMČR 2021'!B:B,B54)) -> 5 | K54: =IF(ISERROR(VLOOKUP(B54,'N PMČR 2021'!B:G,6,0)),"-",VLOOKUP(B54,'N PMČR 2021'!B:G,6,0)) -> 81. | L54: =IF(COUNTIF('N PMČRj 2021'!B:B,B54)=0,"-",COUNTIF('N PMČRj 2021'!B:B,B54)) -> 40 | M54: =IF(ISERROR(VLOOKUP(B54,'N PMČRj 2021'!B:G,6,0)),"-",VLOOKUP(B54,'N PMČRj 2021'!B:G,6,0)) -> 16
A55: 41 | B55: - | C55: =VLOOKUP(B55,Pilot!A:C,3,0) ->  | D55: =VLOOKUP(B55,Pilot!A:C,2,0) ->  | E55: =VLOOKUP(B55,Pilot!A:E,5,0) ->  | F55: =VLOOKUP(B55,Pilot!A:F,6,0) ->  | G55: 41 | I55: 60 | J55: =IF(COUNTIF('N PMČR 2021'!B:B,B55)=0,"-",COUNTIF('N PMČR 2021'!B:B,B55)) -> 5 | K55: =IF(ISERROR(VLOOKUP(B55,'N PMČR 2021'!B:G,6,0)),"-",VLOOKUP(B55,'N PMČR 2021'!B:G,6,0)) -> 81. | L55: =IF(COUNTIF('N PMČRj 2021'!B:B,B55)=0,"-",COUNTIF('N PMČRj 2021'!B:B,B55)) -> 40 | M55: =IF(ISERROR(VLOOKUP(B55,'N PMČRj 2021'!B:G,6,0)),"-",VLOOKUP(B55,'N PMČRj 2021'!B:G,6,0)) -> 16
A56: 42 | B56: - | C56: =VLOOKUP(B56,Pilot!A:C,3,0) ->  | D56: =VLOOKUP(B56,Pilot!A:C,2,0) ->  | E56: =VLOOKUP(B56,Pilot!A:E,5,0) ->  | F56: =VLOOKUP(B56,Pilot!A:F,6,0) ->  | G56: =A56 -> 42 | I56: 60 | J56: =IF(COUNTIF('N PMČR 2021'!B:B,B56)=0,"-",COUNTIF('N PMČR 2021'!B:B,B56)) -> 5 | K56: =IF(ISERROR(VLOOKUP(B56,'N PMČR 2021'!B:G,6,0)),"-",VLOOKUP(B56,'N PMČR 2021'!B:G,6,0)) -> 81. | L56: =IF(COUNTIF('N PMČRj 2021'!B:B,B56)=0,"-",COUNTIF('N PMČRj 2021'!B:B,B56)) -> 40 | M56: =IF(ISERROR(VLOOKUP(B56,'N PMČRj 2021'!B:G,6,0)),"-",VLOOKUP(B56,'N PMČRj 2021'!B:G,6,0)) -> 16
A57: 43 | B57: - | C57: =VLOOKUP(B57,Pilot!A:C,3,0) ->  | D57: =VLOOKUP(B57,Pilot!A:C,2,0) ->  | E57: =VLOOKUP(B57,Pilot!A:E,5,0) ->  | F57: =VLOOKUP(B57,Pilot!A:F,6,0) ->  | G57: 43 | I57: 60 | J57: =IF(COUNTIF('N PMČR 2021'!B:B,B57)=0,"-",COUNTIF('N PMČR 2021'!B:B,B57)) -> 5 | K57: =IF(ISERROR(VLOOKUP(B57,'N PMČR 2021'!B:G,6,0)),"-",VLOOKUP(B57,'N PMČR 2021'!B:G,6,0)) -> 81. | L57: =IF(COUNTIF('N PMČRj 2021'!B:B,B57)=0,"-",COUNTIF('N PMČRj 2021'!B:B,B57)) -> 40 | M57: =IF(ISERROR(VLOOKUP(B57,'N PMČRj 2021'!B:G,6,0)),"-",VLOOKUP(B57,'N PMČRj 2021'!B:G,6,0)) -> 16
A58: 44 | B58: - | C58: =VLOOKUP(B58,Pilot!A:C,3,0) ->  | D58: =VLOOKUP(B58,Pilot!A:C,2,0) ->  | E58: =VLOOKUP(B58,Pilot!A:E,5,0) ->  | F58: =VLOOKUP(B58,Pilot!A:F,6,0) ->  | G58: 44 | I58: 60 | J58: =IF(COUNTIF('N PMČR 2021'!B:B,B58)=0,"-",COUNTIF('N PMČR 2021'!B:B,B58)) -> 5 | K58: =IF(ISERROR(VLOOKUP(B58,'N PMČR 2021'!B:G,6,0)),"-",VLOOKUP(B58,'N PMČR 2021'!B:G,6,0)) -> 81. | L58: =IF(COUNTIF('N PMČRj 2021'!B:B,B58)=0,"-",COUNTIF('N PMČRj 2021'!B:B,B58)) -> 40 | M58: =IF(ISERROR(VLOOKUP(B58,'N PMČRj 2021'!B:G,6,0)),"-",VLOOKUP(B58,'N PMČRj 2021'!B:G,6,0)) -> 16
A59: 45 | B59: - | C59: =VLOOKUP(B59,Pilot!A:C,3,0) ->  | D59: =VLOOKUP(B59,Pilot!A:C,2,0) ->  | E59: =VLOOKUP(B59,Pilot!A:E,5,0) ->  | F59: =VLOOKUP(B59,Pilot!A:F,6,0) ->  | G59: 45 | I59: 60 | J59: =IF(COUNTIF('N PMČR 2021'!B:B,B59)=0,"-",COUNTIF('N PMČR 2021'!B:B,B59)) -> 5 | K59: =IF(ISERROR(VLOOKUP(B59,'N PMČR 2021'!B:G,6,0)),"-",VLOOKUP(B59,'N PMČR 2021'!B:G,6,0)) -> 81. | L59: =IF(COUNTIF('N PMČRj 2021'!B:B,B59)=0,"-",COUNTIF('N PMČRj 2021'!B:B,B59)) -> 40 | M59: =IF(ISERROR(VLOOKUP(B59,'N PMČRj 2021'!B:G,6,0)),"-",VLOOKUP(B59,'N PMČRj 2021'!B:G,6,0)) -> 16
A60: 46 | B60: - | C60: =VLOOKUP(B60,Pilot!A:C,3,0) ->  | D60: =VLOOKUP(B60,Pilot!A:C,2,0) ->  | E60: =VLOOKUP(B60,Pilot!A:E,5,0) ->  | F60: =VLOOKUP(B60,Pilot!A:F,6,0) ->  | G60: 46 | I60: 60 | J60: =IF(COUNTIF('N PMČR 2021'!B:B,B60)=0,"-",COUNTIF('N PMČR 2021'!B:B,B60)) -> 5 | K60: =IF(ISERROR(VLOOKUP(B60,'N PMČR 2021'!B:G,6,0)),"-",VLOOKUP(B60,'N PMČR 2021'!B:G,6,0)) -> 81. | L60: =IF(COUNTIF('N PMČRj 2021'!B:B,B60)=0,"-",COUNTIF('N PMČRj 2021'!B:B,B60)) -> 40 | M60: =IF(ISERROR(VLOOKUP(B60,'N PMČRj 2021'!B:G,6,0)),"-",VLOOKUP(B60,'N PMČRj 2021'!B:G,6,0)) -> 16
A61: 47 | B61: - | C61: =VLOOKUP(B61,Pilot!A:C,3,0) ->  | D61: =VLOOKUP(B61,Pilot!A:C,2,0) ->  | E61: =VLOOKUP(B61,Pilot!A:E,5,0) ->  | F61: =VLOOKUP(B61,Pilot!A:F,6,0) ->  | G61: =A61 -> 47 | I61: 60 | J61: =IF(COUNTIF('N PMČR 2021'!B:B,B61)=0,"-",COUNTIF('N PMČR 2021'!B:B,B61)) -> 5 | K61: =IF(ISERROR(VLOOKUP(B61,'N PMČR 2021'!B:G,6,0)),"-",VLOOKUP(B61,'N PMČR 2021'!B:G,6,0)) -> 81. | L61: =IF(COUNTIF('N PMČRj 2021'!B:B,B61)=0,"-",COUNTIF('N PMČRj 2021'!B:B,B61)) -> 40 | M61: =IF(ISERROR(VLOOKUP(B61,'N PMČRj 2021'!B:G,6,0)),"-",VLOOKUP(B61,'N PMČRj 2021'!B:G,6,0)) -> 16
A62: 48 | B62: - | C62: =VLOOKUP(B62,Pilot!A:C,3,0) ->  | D62: =VLOOKUP(B62,Pilot!A:C,2,0) ->  | E62: =VLOOKUP(B62,Pilot!A:E,5,0) ->  | F62: =VLOOKUP(B62,Pilot!A:F,6,0) ->  | G62: 48 | I62: 60 | J62: =IF(COUNTIF('N PMČR 2021'!B:B,B62)=0,"-",COUNTIF('N PMČR 2021'!B:B,B62)) -> 5 | K62: =IF(ISERROR(VLOOKUP(B62,'N PMČR 2021'!B:G,6,0)),"-",VLOOKUP(B62,'N PMČR 2021'!B:G,6,0)) -> 81. | L62: =IF(COUNTIF('N PMČRj 2021'!B:B,B62)=0,"-",COUNTIF('N PMČRj 2021'!B:B,B62)) -> 40 | M62: =IF(ISERROR(VLOOKUP(B62,'N PMČRj 2021'!B:G,6,0)),"-",VLOOKUP(B62,'N PMČRj 2021'!B:G,6,0)) -> 16
A63: 49 | B63: - | C63: =VLOOKUP(B63,Pilot!A:C,3,0) ->  | D63: =VLOOKUP(B63,Pilot!A:C,2,0) ->  | E63: =VLOOKUP(B63,Pilot!A:E,5,0) ->  | F63: =VLOOKUP(B63,Pilot!A:F,6,0) ->  | G63: 49 | I63: =COUNTIF(B:B,B63) -> 60 | J63: =IF(COUNTIF('N PMČR 2021'!B:B,B63)=0,"-",COUNTIF('N PMČR 2021'!B:B,B63)) -> 5 | K63: =IF(ISERROR(VLOOKUP(B63,'N PMČR 2021'!B:G,6,0)),"-",VLOOKUP(B63,'N PMČR 2021'!B:G,6,0)) -> 81. | L63: =IF(COUNTIF('N PMČRj 2021'!B:B,B63)=0,"-",COUNTIF('N PMČRj 2021'!B:B,B63)) -> 40 | M63: =IF(ISERROR(VLOOKUP(B63,'N PMČRj 2021'!B:G,6,0)),"-",VLOOKUP(B63,'N PMČRj 2021'!B:G,6,0)) -> 16
A64: 50 | B64: - | C64: =VLOOKUP(B64,Pilot!A:C,3,0) ->  | D64: =VLOOKUP(B64,Pilot!A:C,2,0) ->  | E64: =VLOOKUP(B64,Pilot!A:E,5,0) ->  | F64: =VLOOKUP(B64,Pilot!A:F,6,0) ->  | G64: 50 | I64: 60 | J64: =IF(COUNTIF('N PMČR 2021'!B:B,B64)=0,"-",COUNTIF('N PMČR 2021'!B:B,B64)) -> 5 | K64: =IF(ISERROR(VLOOKUP(B64,'N PMČR 2021'!B:G,6,0)),"-",VLOOKUP(B64,'N PMČR 2021'!B:G,6,0)) -> 81. | L64: =IF(COUNTIF('N PMČRj 2021'!B:B,B64)=0,"-",COUNTIF('N PMČRj 2021'!B:B,B64)) -> 40 | M64: =IF(ISERROR(VLOOKUP(B64,'N PMČRj 2021'!B:G,6,0)),"-",VLOOKUP(B64,'N PMČRj 2021'!B:G,6,0)) -> 16
A65: 51 | B65: - | C65: =VLOOKUP(B65,Pilot!A:C,3,0) ->  | D65: =VLOOKUP(B65,Pilot!A:C,2,0) ->  | E65: =VLOOKUP(B65,Pilot!A:E,5,0) ->  | F65: =VLOOKUP(B65,Pilot!A:F,6,0) ->  | G65: 51 | I65: 60 | J65: =IF(COUNTIF('N PMČR 2021'!B:B,B65)=0,"-",COUNTIF('N PMČR 2021'!B:B,B65)) -> 5 | K65: =IF(ISERROR(VLOOKUP(B65,'N PMČR 2021'!B:G,6,0)),"-",VLOOKUP(B65,'N PMČR 2021'!B:G,6,0)) -> 81. | L65: =IF(COUNTIF('N PMČRj 2021'!B:B,B65)=0,"-",COUNTIF('N PMČRj 2021'!B:B,B65)) -> 40 | M65: =IF(ISERROR(VLOOKUP(B65,'N PMČRj 2021'!B:G,6,0)),"-",VLOOKUP(B65,'N PMČRj 2021'!B:G,6,0)) -> 16
A66: 52 | B66: - | C66: =VLOOKUP(B66,Pilot!A:C,3,0) ->  | D66: =VLOOKUP(B66,Pilot!A:C,2,0) ->  | E66: =VLOOKUP(B66,Pilot!A:E,5,0) ->  | F66: =VLOOKUP(B66,Pilot!A:F,6,0) ->  | G66: 52 | I66: 60 | J66: =IF(COUNTIF('N PMČR 2021'!B:B,B66)=0,"-",COUNTIF('N PMČR 2021'!B:B,B66)) -> 5 | K66: =IF(ISERROR(VLOOKUP(B66,'N PMČR 2021'!B:G,6,0)),"-",VLOOKUP(B66,'N PMČR 2021'!B:G,6,0)) -> 81. | L66: =IF(COUNTIF('N PMČRj 2021'!B:B,B66)=0,"-",COUNTIF('N PMČRj 2021'!B:B,B66)) -> 40 | M66: =IF(ISERROR(VLOOKUP(B66,'N PMČRj 2021'!B:G,6,0)),"-",VLOOKUP(B66,'N PMČRj 2021'!B:G,6,0)) -> 16
A67: 53 | B67: - | C67: =VLOOKUP(B67,Pilot!A:C,3,0) ->  | D67: =VLOOKUP(B67,Pilot!A:C,2,0) ->  | E67: =VLOOKUP(B67,Pilot!A:E,5,0) ->  | F67: =VLOOKUP(B67,Pilot!A:F,6,0) ->  | G67: 53 | I67: 60 | J67: =IF(COUNTIF('N PMČR 2021'!B:B,B67)=0,"-",COUNTIF('N PMČR 2021'!B:B,B67)) -> 5 | K67: =IF(ISERROR(VLOOKUP(B67,'N PMČR 2021'!B:G,6,0)),"-",VLOOKUP(B67,'N PMČR 2021'!B:G,6,0)) -> 81. | L67: =IF(COUNTIF('N PMČRj 2021'!B:B,B67)=0,"-",COUNTIF('N PMČRj 2021'!B:B,B67)) -> 40 | M67: =IF(ISERROR(VLOOKUP(B67,'N PMČRj 2021'!B:G,6,0)),"-",VLOOKUP(B67,'N PMČRj 2021'!B:G,6,0)) -> 16
A68: 54 | B68: - | C68: =VLOOKUP(B68,Pilot!A:C,3,0) ->  | D68: =VLOOKUP(B68,Pilot!A:C,2,0) ->  | E68: =VLOOKUP(B68,Pilot!A:E,5,0) ->  | F68: =VLOOKUP(B68,Pilot!A:F,6,0) ->  | G68: 54 | I68: 60 | J68: =IF(COUNTIF('N PMČR 2021'!B:B,B68)=0,"-",COUNTIF('N PMČR 2021'!B:B,B68)) -> 5 | K68: =IF(ISERROR(VLOOKUP(B68,'N PMČR 2021'!B:G,6,0)),"-",VLOOKUP(B68,'N PMČR 2021'!B:G,6,0)) -> 81. | L68: =IF(COUNTIF('N PMČRj 2021'!B:B,B68)=0,"-",COUNTIF('N PMČRj 2021'!B:B,B68)) -> 40 | M68: =IF(ISERROR(VLOOKUP(B68,'N PMČRj 2021'!B:G,6,0)),"-",VLOOKUP(B68,'N PMČRj 2021'!B:G,6,0)) -> 16
A69: 55 | B69: - | C69: =VLOOKUP(B69,Pilot!A:C,3,0) ->  | D69: =VLOOKUP(B69,Pilot!A:C,2,0) ->  | E69: =VLOOKUP(B69,Pilot!A:E,5,0) ->  | F69: =VLOOKUP(B69,Pilot!A:F,6,0) ->  | G69: 55 | I69: 60 | J69: =IF(COUNTIF('N PMČR 2021'!B:B,B69)=0,"-",COUNTIF('N PMČR 2021'!B:B,B69)) -> 5 | K69: =IF(ISERROR(VLOOKUP(B69,'N PMČR 2021'!B:G,6,0)),"-",VLOOKUP(B69,'N PMČR 2021'!B:G,6,0)) -> 81. | L69: =IF(COUNTIF('N PMČRj 2021'!B:B,B69)=0,"-",COUNTIF('N PMČRj 2021'!B:B,B69)) -> 40 | M69: =IF(ISERROR(VLOOKUP(B69,'N PMČRj 2021'!B:G,6,0)),"-",VLOOKUP(B69,'N PMČRj 2021'!B:G,6,0)) -> 16
A70: 56 | B70: - | C70: =VLOOKUP(B70,Pilot!A:C,3,0) ->  | D70: =VLOOKUP(B70,Pilot!A:C,2,0) ->  | E70: =VLOOKUP(B70,Pilot!A:E,5,0) ->  | F70: =VLOOKUP(B70,Pilot!A:F,6,0) ->  | G70: 56 | I70: 60 | J70: =IF(COUNTIF('N PMČR 2021'!B:B,B70)=0,"-",COUNTIF('N PMČR 2021'!B:B,B70)) -> 5 | K70: =IF(ISERROR(VLOOKUP(B70,'N PMČR 2021'!B:G,6,0)),"-",VLOOKUP(B70,'N PMČR 2021'!B:G,6,0)) -> 81. | L70: =IF(COUNTIF('N PMČRj 2021'!B:B,B70)=0,"-",COUNTIF('N PMČRj 2021'!B:B,B70)) -> 40 | M70: =IF(ISERROR(VLOOKUP(B70,'N PMČRj 2021'!B:G,6,0)),"-",VLOOKUP(B70,'N PMČRj 2021'!B:G,6,0)) -> 16
A71: 57 | B71: - | C71: =VLOOKUP(B71,Pilot!A:C,3,0) ->  | D71: =VLOOKUP(B71,Pilot!A:C,2,0) ->  | E71: =VLOOKUP(B71,Pilot!A:E,5,0) ->  | F71: =VLOOKUP(B71,Pilot!A:F,6,0) ->  | G71: 57 | I71: 60 | J71: =IF(COUNTIF('N PMČR 2021'!B:B,B71)=0,"-",COUNTIF('N PMČR 2021'!B:B,B71)) -> 5 | K71: =IF(ISERROR(VLOOKUP(B71,'N PMČR 2021'!B:G,6,0)),"-",VLOOKUP(B71,'N PMČR 2021'!B:G,6,0)) -> 81. | L71: =IF(COUNTIF('N PMČRj 2021'!B:B,B71)=0,"-",COUNTIF('N PMČRj 2021'!B:B,B71)) -> 40 | M71: =IF(ISERROR(VLOOKUP(B71,'N PMČRj 2021'!B:G,6,0)),"-",VLOOKUP(B71,'N PMČRj 2021'!B:G,6,0)) -> 16
A72: 58 | B72: - | C72: =VLOOKUP(B72,Pilot!A:C,3,0) ->  | D72: =VLOOKUP(B72,Pilot!A:C,2,0) ->  | E72: =VLOOKUP(B72,Pilot!A:E,5,0) ->  | F72: =VLOOKUP(B72,Pilot!A:F,6,0) ->  | G72: 58 | I72: 60 | J72: =IF(COUNTIF('N PMČR 2021'!B:B,B72)=0,"-",COUNTIF('N PMČR 2021'!B:B,B72)) -> 5 | K72: =IF(ISERROR(VLOOKUP(B72,'N PMČR 2021'!B:G,6,0)),"-",VLOOKUP(B72,'N PMČR 2021'!B:G,6,0)) -> 81. | L72: =IF(COUNTIF('N PMČRj 2021'!B:B,B72)=0,"-",COUNTIF('N PMČRj 2021'!B:B,B72)) -> 40 | M72: =IF(ISERROR(VLOOKUP(B72,'N PMČRj 2021'!B:G,6,0)),"-",VLOOKUP(B72,'N PMČRj 2021'!B:G,6,0)) -> 16
A73: 59 | B73: - | C73: =VLOOKUP(B73,Pilot!A:C,3,0) ->  | D73: =VLOOKUP(B73,Pilot!A:C,2,0) ->  | E73: =VLOOKUP(B73,Pilot!A:E,5,0) ->  | F73: =VLOOKUP(B73,Pilot!A:F,6,0) ->  | G73: 59 | I73: 60 | J73: =IF(COUNTIF('N PMČR 2021'!B:B,B73)=0,"-",COUNTIF('N PMČR 2021'!B:B,B73)) -> 5 | K73: =IF(ISERROR(VLOOKUP(B73,'N PMČR 2021'!B:G,6,0)),"-",VLOOKUP(B73,'N PMČR 2021'!B:G,6,0)) -> 81. | L73: =IF(COUNTIF('N PMČRj 2021'!B:B,B73)=0,"-",COUNTIF('N PMČRj 2021'!B:B,B73)) -> 40 | M73: =IF(ISERROR(VLOOKUP(B73,'N PMČRj 2021'!B:G,6,0)),"-",VLOOKUP(B73,'N PMČRj 2021'!B:G,6,0)) -> 16
A74: 60 | B74: - | C74: =VLOOKUP(B74,Pilot!A:C,3,0) ->  | D74: =VLOOKUP(B74,Pilot!A:C,2,0) ->  | E74: =VLOOKUP(B74,Pilot!A:E,5,0) ->  | F74: =VLOOKUP(B74,Pilot!A:F,6,0) ->  | G74: 60 | I74: 60 | J74: =IF(COUNTIF('N PMČR 2021'!B:B,B74)=0,"-",COUNTIF('N PMČR 2021'!B:B,B74)) -> 5 | K74: =IF(ISERROR(VLOOKUP(B74,'N PMČR 2021'!B:G,6,0)),"-",VLOOKUP(B74,'N PMČR 2021'!B:G,6,0)) -> 81. | L74: =IF(COUNTIF('N PMČRj 2021'!B:B,B74)=0,"-",COUNTIF('N PMČRj 2021'!B:B,B74)) -> 40 | M74: =IF(ISERROR(VLOOKUP(B74,'N PMČRj 2021'!B:G,6,0)),"-",VLOOKUP(B74,'N PMČRj 2021'!B:G,6,0)) -> 16
